Workbook

Sheet data (hidden)
B1: idno | C1: name | D1: degn | E1: dept | F1: scale | G1: Category | H1: DA-1 | I1: DA-2 | J1: basic | P1: Category-1 | Q1: Category-1
B2: 01726 | C2: MD. ISMAIL HOSSAIN | D2: DEPUTY REGISTRAR | E2: FACULTY OF ARTS | F2: 04 - 50000-71200 | G2: =IFERROR(VLOOKUP(F2,$K$2:$L$21,2,0),0) -> Category-1 | H2: =VLOOKUP(F2,$K$2:$N$21,3,0) -> 1050 | I2: =VLOOKUP(F2,$K$2:$N$21,4,0) -> 1365 | J2: 65820 | K2: 01 - 78000/- (Fixed) | L2: Category-1 | M2: 1400 | N2: 1820 | P2: Category-2 | Q2: Category-1 | R2: 1 | S2: GK UvKv | AA2: Bagerhat - Bagerhat Sadar | AB2: অন্য এলাকা
B3: 06655 | C3: NASIF IBNE SHAMS | D3: DEPUTY REGISTRAR | E3: FACULTY OF ARTS | F3: 04 - 50000-71200 | G3: =IFERROR(VLOOKUP(F3,$K$2:$L$21,2,0),0) -> Category-1 | H3: =VLOOKUP(F3,$K$2:$N$21,3,0) -> 1050 | I3: =VLOOKUP(F3,$K$2:$N$21,4,0) -> 1365 | J3: 54080 | K3: 02 - 66000-76490 | L3: Category-1 | M3: 1225 | N3: 1592.5 | P3: Category-3 | Q3: Category-2 | R3: 2 | S3: `yB UvKv | AA3: Bagerhat - Chitalmari | AB3: অন্য এলাকা
B4: 05675 | C4: MD. NORA ALAM SIDDIQI | D4: SECTION OFFICER | E4: FACULTY OF ARTS | F4: 09 - 22000-53060 | G4: =IFERROR(VLOOKUP(F4,$K$2:$L$21,2,0),0) -> Category-2 | H4: 875 | I4: =VLOOKUP(F4,$K$2:$N$21,4,0) -> 1137.5 | J4: 29510 | K4: 03 - 56500-74400 | L4: Category-1 | M4: 1225 | N4: 1592.5 | P4: Category-4 | Q4: Category-2 | R4: 3 | S4: wZb UvKv | AA4: Bagerhat - Fakirhat | AB4: অন্য এলাকা
B5: 03604 | C5: MD. NURUL ISLAM | D5: SECTION OFFICER | E5: FACULTY OF ARTS | F5: 09 - 22000-53060 | G5: Category-2 | H5: 875 | I5: 1137.5 | J5: 29510 | K5: 04 - 50000-71200 | L5: Category-1 | M5: 1050 | N5: 1365 | P5: Category-5 | Q5: Category-3 | R5: 4 | S5: Pvi UvKv | AA5: Bagerhat - Kachua | AB5: অন্য এলাকা
B6: 05816 | C6: MST. ZAKIA AKHTAR | D6: LD ASSISTANT EQV. | E6: FACULTY OF ARTS | F6: 15 - 9700-23490 | G6: Category-3 | H6: 490 | I6: 637 | J6: 23490 | K6: 05 - 43000-69850 | L6: Category-1 | M6: 1050 | N6: 1365 | Q6: Category-3 | R6: 5 | S6: cvuP UvKv | AA6: Bagerhat - Mollahat | AB6: অন্য এলাকা
B7: 04838 | C7: MD. JOYNAL ABEDIN SK. | D7: COMMON ROOM BEARER | E7: FACULTY OF ARTS | F7: 14 - 10200-24680 | G7: Category-3 | H7: 490 | I7: 637 | J7: 22380 | K7: 06 - 35500-67010 | L7: Category-2 | M7: 900 | N7: 1170 | Q7: Category-3 | R7: 6 | S7: Qq UvKv | AA7: Bagerhat - Mongla | AB7: অন্য এলাকা
B8: 05738 | C8: MD. MASUM ALI | D8: MALI | E8: FACULTY OF ARTS | F8: 15 - 9700-23490 | G8: Category-3 | H8: 490 | I8: 637 | J8: 21300 | K8: 07 - 29000-63410 | L8: Category-2 | M8: 900 | N8: 1170 | Q8: Category-3 | R8: 7 | S8: mvZ UvKv | AA8: Bagerhat - Morrelganj | AB8: অন্য এলাকা
B9: 07076 | C9: JONY KUMAR | D9: SCAVENGER | E9: FACULTY OF ARTS | F9: 16 - 9300-22490 | G9: Category-3 | H9: 490 | I9: 637 | J9: 18480 | K9: 08 - 23000-55470 | L9: Category-2 | M9: 875 | N9: 1137.5 | Q9: Category-3 | R9: 8 | S9: AvU UvKv | AA9: Bagerhat - Rampal | AB9: অন্য এলাকা
B10: 04690 | C10: NIRANJAN SARKER | D10: SWEEPER | E10: FACULTY OF ARTS | F10: 13 - 11000-26590 | G10: Category-3 | H10: 700 | I10: 910 | J10: 22380 | K10: 09 - 22000-53060 | L10: Category-2 | M10: 875 | N10: 1137.5 | Q10: Category-4 | R10: 9 | S10: bq UvKv | AA10: Bagerhat - Sharankhola | AB10: অন্য এলাকা
B11: 04891 | C11: SREE KUBOL JAMADAR | D11: SWEEPER | E11: FACULTY OF ARTS | F11: 14 - 10200-24680 | G11: Category-3 | H11: 490 | I11: 637 | J11: 22380 | K11: 10 - 16000-38640 | L11: Category-2 | M11: 875 | N11: 1137.5 | Q11: Category-3 | R11: 10 | S11: `k UvKv | AA11: Bandarban - Alikadam | AB11: অন্য এলাকা
B12: 05791 | C12: PARIMAL KUMAR | D12: SCAVENGER | E12: FACULTY OF ARTS | F12: 15 - 9700-23490 | G12: Category-3 | H12: 490 | I12: 637 | J12: 21300 | K12: 11 - 12500-30230 | L12: Category-3 | M12: 700 | N12: 910 | Q12: Category-3 | R12: 11 | S12: GMvi UvKv | AA12: Bandarban - Bandarban Sadar | AB12: অন্য এলাকা
B13: 05792 | C13: MILON KUMAR | D13: SCAVENGER | E13: FACULTY OF ARTS | F13: 15 - 9700-23490 | G13: Category-3 | H13: 490 | I13: 637 | J13: 21300 | K13: 12 - 11300-27300 | L13: Category-3 | M13: 700 | N13: 910 | Q13: Category-3 | R13: 12 | S13: evi UvKv | AA13: Bandarban - Lama | AB13: অন্য এলাকা
B14: 03138 | C14: MD. TOMIZ UDDIN KHAN | D14: ASSISTANT REGISTRAR | E14: FACULTY OF SCIENCE | F14: 06 - 35500-67010 | G14: Category-2 | H14: 900 | I14: 1170 | J14: 39150 | K14: 13 - 11000-26590 | L14: Category-3 | M14: 700 | N14: 910 | Q14: Category-3 | R14: 13 | S14: †Zi UvKv | AA14: Bandarban - Naikhongchhari | AB14: অন্য এলাকা
B15: 05625 | C15: MD. JALAL UDDIN | D15: SECTION OFFICER | E15: FACULTY OF SCIENCE | F15: 10 - 16000-38640 | G15: Category-2 | H15: 875 | I15: 1137.5 | J15: 23680 | K15: 14 - 10200-24680 | L15: Category-3 | M15: 490 | N15: 637 | Q15: Category-2 | R15: 14 | S15: †PŠÏ UvKv | AA15: Bandarban - Rowangchhari | AB15: অন্য এলাকা
B16: 06753 | C16: SUDARSHAN KUMAR GHOSE | D16: SECTION OFFICER | E16: FACULTY OF SCIENCE | F16: 09 - 22000-53060 | G16: Category-2 | H16: 875 | I16: 1137.5 | J16: 28100 | K16: 15 - 9700-23490 | L16: Category-3 | M16: 490 | N16: 637 | Q16: Category-2 | R16: 15 | S16: c‡bi UvKv | AA16: Bandarban - Ruma | AB16: অন্য এলাকা
B17: 06803 | C17: MD. TUHIN REZA | D17: SENIOR ASSISTANT | E17: FACULTY OF SCIENCE | F17: 12 - 11300-27300 | G17: Category-3 | H17: 700 | I17: 910 | J17: 19390 | K17: 16 - 9300-22490 | L17: Category-3 | M17: 490 | N17: 637 | Q17: Category-2 | R17: 16 | S17: †lvj UvKv | AA17: Bandarban - Thanchi | AB17: অন্য এলাকা
B18: 06817 | C18: MD. AHSAN HABIB | D18: SENIOR ASSISTANT | E18: FACULTY OF SCIENCE | F18: 12 - 11300-27300 | G18: Category-3 | H18: 700 | I18: 910 | J18: 18460 | K18: 17 - 9000-21800 | L18: Category-4 | M18: 400 | N18: 520 | Q18: Category-3 | R18: 17 | S18: m‡Zi UvKv | AA18: Barguna - Amtali | AB18: অন্য এলাকা
B19: 03925 | C19: MD. OMAR ALI | D19: UD ASSISTANT EQV. | E19: FACULTY OF SCIENCE | F19: 13 - 11000-26590 | G19: Category-3 | H19: 700 | I19: 910 | J19: 25320 | K19: 18 - 8800-21310 | L19: Category-4 | M19: 400 | N19: 520 | Q19: Category-3 | R19: 18 | S19: AvVvi UvKv | AA19: Barguna - Bamna | AB19: অন্য এলাকা
B20: 04459 | C20: MD. FAZLUR RAHMAN | D20: SWEEPER ( LD ASSISTANT EQV.) | E20: FACULTY OF SCIENCE | F20: 14 - 10200-24680 | G20: Category-3 | H20: 490 | I20: 637 | J20: 22380 | K20: 19 - 8500-20570 | L20: Category-4 | M20: 400 | N20: 520 | Q20: Category-3 | R20: 19 | S20: Ewbk UvKv | AA20: Barguna - Barguna Sadar | AB20: অন্য এলাকা
B21: 05793 | C21: MD. ANOWER HOSEN | D21: MALI | E21: FACULTY OF SCIENCE | F21: 16 - 9300-22490 | G21: Category-3 | H21: 490 | I21: 637 | J21: 19410 | K21: 20 - 8250-20010 | L21: Category-4 | M21: 400 | N21: 520 | Q21: Category-3 | R21: 20 | S21: wek UvKv | AA21: Barguna - Betagi | AB21: অন্য এলাকা
B22: 05794 | C22: MD. AMIRUL ISLAM | D22: MALI | E22: FACULTY OF SCIENCE | F22: 15 - 9700-23490 | G22: Category-3 | H22: 490 | I22: 637 | J22: 21300 | Q22: Category-3 | R22: 21 | S22: GKzk UvKv | AA22: Barguna - Patharghata | AB22: অন্য এলাকা
B23: 00295 | C23: RABEYA AKHTER | D23: DEPUTY CHIEF HOUSE TUTOR | E23: FACULTY OF BUSINESS STUDIES | F23: 04 - 50000-71200 | G23: Category-1 | H23: 1050 | I23: 1365 | J23: 71200 | Q23: Category-3 | R23: 22 | S23: evBk UvKv | AA23: Barguna - Taltali | AB23: অন্য এলাকা
B24: 01927 | C24: MD. SHOFIQUL ISLAM | D24: COMPUTER OPERATION MANAGER | E24: FACULTY OF BUSINESS STUDIES | F24: 04 - 50000-71200 | G24: Category-1 | H24: 1050 | I24: 1365 | J24: 60840 | Q24: Category-1 | R24: 23 | S24: †ZBk UvKv | AA24: Barishal - Agailjhara | AB24: বরিশাল
B25: 04010 | C25: FERDOUSI BEGUM | D25: DEPUTY REGISTRAR | E25: FACULTY OF BUSINESS STUDIES | F25: 04 - 50000-71200 | G25: Category-1 | H25: 1050 | I25: 1365 | J25: 63280 | Q25: Category-1 | R25: 24 | S25: PweŸk UvKv | AA25: Barishal - Airport Thana, Barishal | AB25: বরিশাল
B26: 03819 | C26: MD. ANFARUL ISLAM | D26: ASSISTANT REGISTRAR | E26: FACULTY OF BUSINESS STUDIES | F26: 06 - 35500-67010 | G26: Category-2 | H26: 900 | I26: 1170 | J26: 47600 | Q26: Category-2 | R26: 25 | S26: cuwPk UvKv | AA26: Barishal - Babuganj | AB26: বরিশাল
B27: 05539 | C27: MD. MONIRUL ISLAM | D27: SECTION OFFICER | E27: FACULTY OF BUSINESS STUDIES | F27: 09 - 22000-53060 | G27: Category-2 | H27: 875 | I27: 1137.5 | J27: 26760 | Q27: Category-2 | R27: 26 | S27: QvweŸk UvKv | AA27: Barishal - Bakerganj | AB27: বরিশাল
B28: 06971 | C28: FERDOUSH SIRAJUM SANJIDA | D28: LIBRARY ASSISTANT ( SR ASSISTANT EQV.) | E28: FACULTY OF BUSINESS STUDIES | F28: 12 - 11300-27300 | G28: Category-3 | H28: 700 | I28: 910 | J28: 19390 | Q28: Category-3 | R28: 27 | S28: mvZvk UvKv | AA28: Barishal - Banari Para | AB28: বরিশাল
B29: 03098 | C29: MD. FAZLUL HAQUE [2] | D29: MALI ( LD ASSISTANT EQV.) | E29: FACULTY OF BUSINESS STUDIES | F29: 13 - 11000-26590 | G29: Category-3 | H29: 700 | I29: 910 | J29: 25320 | Q29: Category-3 | R29: 28 | S29: AvVvk UvKv | AA29: Barishal - Barishal Sadar | AB29: বরিশাল
B30: 03218 | C30: MST. AFROZA BEGUM | D30: AYEA ( LD ASSISTANT EQV.) | E30: FACULTY OF BUSINESS STUDIES | F30: 13 - 11000-26590 | G30: Category-3 | H30: 700 | I30: 910 | J30: 26590 | Q30: Category-3 | R30: 29 | S30: EbwÎk UvKv | AA30: Barishal - Bondar Thana, Barishal | AB30: বরিশাল
B31: 03831 | C31: MD. SAIDUR RAHMAN | D31: SEMINAR BEARER ( LD ASSISTANT EQV.) | E31: FACULTY OF BUSINESS STUDIES | F31: 13 - 11000-26590 | G31: Category-3 | H31: 700 | I31: 910 | J31: 25320 | Q31: Category-3 | R31: 30 | S31: wÎk UvKv | AA31: Barishal - Gaurnadi | AB31: বরিশাল
B32: 04312 | C32: MD. ALAUDDIN | D32: UD ASSISTANT EQV. | E32: FACULTY OF BUSINESS STUDIES | F32: 13 - 11000-26590 | G32: Category-3 | H32: 700 | I32: 910 | J32: 25320 | Q32: Category-3 | R32: 31 | S32: GKwÎk UvKv | AA32: Barishal - Kawnia Thana | AB32: বরিশাল
B33: 04848 | C33: MD. HUMAYUN KABIR | D33: UD ASSISTANT EQV. | E33: FACULTY OF BUSINESS STUDIES | F33: 13 - 11000-26590 | G33: Category-3 | H33: 700 | I33: 910 | J33: 22960 | Q33: Category-3 | R33: 32 | S33: ewÎk UvKv | AA33: Barishal - Muladi | AB33: বরিশাল
B34: 05455 | C34: MD. MESBAHUL HAQUE | D34: UD ASSISTANT EQV. | E34: FACULTY OF BUSINESS STUDIES | F34: 13 - 11000-26590 | G34: Category-3 | H34: 700 | I34: 910 | J34: 23490 | Q34: Category-3 | R34: 33 | S34: †ZwÎk UvKv | AA34: Barishal - Wazirpur | AB34: বরিশাল
B35: 05456 | C35: MD. AFSAR ALI | D35: ROOM BEARER ( LD ASSISTANT EQV.) | E35: FACULTY OF BUSINESS STUDIES | F35: 15 - 9700-23490 | G35: Category-3 | H35: 490 | I35: 637 | J35: 26590 | Q35: Category-3 | R35: 34 | S35: †PŠwÎk UvKv | AA35: Bhola - Bhola Sadar | AB35: অন্য এলাকা
B36: 04729 | C36: MD. ABDUL MATIN | D36: MALI | E36: FACULTY OF BUSINESS STUDIES | F36: 14 - 10200-24680 | G36: Category-3 | H36: 490 | I36: 637 | J36: 22380 | Q36: Category-3 | R36: 35 | S36: cuqwÎk UvKv | AA36: Bhola - Burhanuddin | AB36: অন্য এলাকা
B37: 06457 | C37: MD. RAFIQUL ISLAM SUMON | D37: ORDERLY PEON | E37: FACULTY OF BUSINESS STUDIES | F37: 16 - 9300-22490 | G37: Category-3 | H37: 490 | I37: 637 | J37: 18480 | Q37: Category-3 | R37: 36 | S37: QwÎk UvKv | AA37: Bhola - Char Fasson | AB37: অন্য এলাকা
B38: 06470 | C38: MD. RABIUL ISLAM | D38: SEMINAR BEARER | E38: FACULTY OF BUSINESS STUDIES | F38: 16 - 9300-22490 | G38: Category-3 | H38: 490 | I38: 637 | J38: 18480 | Q38: Category-3 | R38: 37 | S38: mvuBwÎk UvKv | AA38: Bhola - Daulat khan | AB38: অন্য এলাকা
B39: 06489 | C39: SOUMITRA KUMAR DAS | D39: MALI | E39: FACULTY OF BUSINESS STUDIES | F39: 16 - 9300-22490 | G39: Category-3 | H39: 490 | I39: 637 | J39: 17060 | Q39: Category-4 | R39: 38 | S39: AvUwÎk UvKv | AA39: Bhola - Lalmohan | AB39: অন্য এলাকা
B40: 04218 | C40: MD. SHUKUR ALI | D40: SWEEPER | E40: FACULTY OF BUSINESS STUDIES | F40: 13 - 11000-26590 | G40: Category-3 | H40: 700 | I40: 910 | J40: 24110 | Q40: Category-3 | R40: 39 | S40: EbPwjøk UvKv | AA40: Bhola - Manpura | AB40: অন্য এলাকা
B41: 04847 | C41: SREE RAJESH DOME | D41: SWEEPER | E41: FACULTY OF BUSINESS STUDIES | F41: 14 - 10200-24680 | G41: Category-3 | H41: 490 | I41: 637 | J41: 22380 | Q41: Category-3 | R41: 40 | S41: Pwjøk UvKv | AA41: Bhola - Tazumuddin | AB41: অন্য এলাকা
B42: 06539 | C42: MST. MOLINA BEGUM | D42: SWEEPER | E42: FACULTY OF BUSINESS STUDIES | F42: 16 - 9300-22490 | G42: Category-3 | H42: 490 | I42: 637 | J42: 18480 | Q42: Category-3 | R42: 41 | S42: GKPwjøk UvKv | AA42: Bogura - Adamdighi | AB42: অন্য এলাকা
B43: 06543 | C43: SREE JOY BABU | D43: SCAVENGER | E43: FACULTY OF BUSINESS STUDIES | F43: 16 - 9300-22490 | G43: Category-3 | H43: 490 | I43: 637 | J43: 17060 | Q43: Category-4 | R43: 42 | S43: weqvwjøk UvKv | AA43: Bogura - Bogura Sadar | AB43: অন্য এলাকা
B44: 01811 | C44: MD. SHARWAR JAHAN | D44: DEPUTY REGISTRAR | E44: FACULTY OF LAW | F44: 04 - 50000-71200 | G44: Category-1 | H44: 1050 | I44: 1365 | J44: 65820 | Q44: Category-1 | R44: 43 | S44: †ZZvwjøk UvKv | AA44: Bogura - Dhunat | AB44: অন্য এলাকা
B45: 04393 | C45: MD. AYNAL HAQUE | D45: ASSISTANT REGISTRAR | E45: FACULTY OF LAW | F45: 06 - 35500-67010 | G45: Category-2 | H45: 900 | I45: 1170 | J45: 49980 | Q45: Category-2 | R45: 44 | S45: Pzqvwjøk UvKv | AA45: Bogura - Dupchachia | AB45: অন্য এলাকা
B46: 06743 | C46: MD. MAMUNUR RASHID | D46: SECTION OFFICER | E46: FACULTY OF LAW | F46: 09 - 22000-53060 | G46: Category-2 | H46: 875 | I46: 1137.5 | J46: 28100 | Q46: Category-2 | R46: 45 | S46: cuqZvwjøk UvKv | AA46: Bogura - Gabtali | AB46: অন্য এলাকা
B47: 03145 | C47: MD. RAFIQUL ISLAM [3] | D47: OFFICE SUPPORT STAFF ( LD ASSISTANT EQV.) | E47: FACULTY OF LAW | F47: 13 - 11000-26590 | G47: Category-3 | H47: 700 | I47: 910 | J47: 26590 | Q47: Category-3 | R47: 46 | S47: †QPwjøk UvKv | AA47: Bogura - Kahaloo | AB47: অন্য এলাকা
B48: 04410 | C48: MD. ROFIQUL ISLAM | D48: UD ASSISTANT EQV. | E48: FACULTY OF LAW | F48: 13 - 11000-26590 | G48: Category-3 | H48: 700 | I48: 910 | J48: 25320 | Q48: Category-3 | R48: 47 | S48: mvZPwjøk UvKv | AA48: Bogura - Nandigram | AB48: অন্য এলাকা
B49: 06471 | C49: MD. MASUD RANA | D49: OFFICE SUPPORT STAFF | E49: FACULTY OF LAW | F49: 16 - 9300-22490 | G49: Category-3 | H49: 490 | I49: 637 | J49: 18480 | Q49: Category-3 | R49: 48 | S49: AvUPwjøk UvKv | AA49: Bogura - Sariakandi | AB49: অন্য এলাকা
B50: 04219 | C50: RIPON KUMAR | D50: SWEEPER | E50: FACULTY OF LAW | F50: 13 - 11000-26590 | G50: Category-3 | H50: 700 | I50: 910 | J50: 24110 | Q50: Category-3 | R50: 49 | S50: EbcÂvk UvKv | AA50: Bogura - Shajahanpur | AB50: অন্য এলাকা
B51: 05795 | C51: LITON KUMAR | D51: SWEEPER | E51: FACULTY OF LAW | F51: 15 - 9700-23490 | G51: Category-3 | H51: 490 | I51: 637 | J51: 21300 | Q51: Category-3 | R51: 50 | S51: cÂvk UvKv | AA51: Bogura - Sherpur | AB51: অন্য এলাকা
B52: 04792 | C52: MASUD REZA KHAN | D52: DATA ENTRY SUPERVISOR | E52: FACULTY OF SOCIAL SCIENCE | F52: 09 - 22000-53060 | G52: Category-2 | H52: 875 | I52: 1137.5 | J52: 37680 | Q52: Category-1 | R52: 51 | S52: GKvbœ UvKv | AA52: Bogura - Shibganj | AB52: অন্য এলাকা
B53: 05685 | C53: MD. ABDUL MATIN | D53: SECTION OFFICER | E53: FACULTY OF SOCIAL SCIENCE | F53: 09 - 22000-53060 | G53: Category-2 | H53: 875 | I53: 1137.5 | J53: 29510 | Q53: Category-2 | R53: 52 | S53: evqvbœ UvKv | AA53: Bogura - Sonatala | AB53: অন্য এলাকা
B54: 03297 | C54: MD. AFATULLAH | D54: OFFICE ATTENDANT ( LD ASSISTANT EQV.) | E54: FACULTY OF SOCIAL SCIENCE | F54: 13 - 11000-26590 | G54: Category-3 | H54: 700 | I54: 910 | J54: 26590 | Q54: Category-2 | R54: 53 | S54: wZàvbœ UvKv | AA54: Brahmanbaria - Akhaura | AB54: অন্য এলাকা
B55: 04732 | C55: RIAZUL ISLAM | D55: UD ASSISTANT EQV. | E55: FACULTY OF SOCIAL SCIENCE | F55: 13 - 11000-26590 | G55: Category-3 | H55: 700 | I55: 910 | J55: 25320 | Q55: Category-3 | R55: 54 | S55: Pzqvbœ UvKv | AA55: Brahmanbaria - Ashuganj | AB55: অন্য এলাকা
B56: 04733 | C56: SAIDUR RAHMAN | D56: UD ASSISTANT EQV. | E56: FACULTY OF SOCIAL SCIENCE | F56: 13 - 11000-26590 | G56: Category-3 | H56: 700 | I56: 910 | J56: 25320 | Q56: Category-3 | R56: 55 | S56: cÂvbœ UvKv | AA56: Brahmanbaria - Banchharampur | AB56: অন্য এলাকা
B57: 03355 | C57: MOMTAJUL ISLAM | D57: OFFICE ATTENDANT | E57: FACULTY OF SOCIAL SCIENCE | F57: 13 - 11000-26590 | G57: Category-3 | H57: 700 | I57: 910 | J57: 25320 | Q57: Category-3 | R57: 56 | S57: Qvàvbœ UvKv | AA57: Brahmanbaria - Bijoynagar | AB57: অন্য এলাকা
B58: 03777 | C58: MD. ALAUDDIN | D58: BEARER | E58: FACULTY OF SOCIAL SCIENCE | F58: 13 - 11000-26590 | G58: Category-3 | H58: 700 | I58: 910 | J58: 25320 | Q58: Category-3 | R58: 57 | S58: mvZvbœ UvKv | AA58: Brahmanbaria - Brahmanbaria Sadar | AB58: অন্য এলাকা
B59: 04452 | C59: MD. MOKARRAM HOSSAIN | D59: BEARER | E59: FACULTY OF SOCIAL SCIENCE | F59: 13 - 11000-26590 | G59: Category-3 | H59: 700 | I59: 910 | J59: 24110 | Q59: Category-3 | R59: 58 | S59: AvUvbœ UvKv | AA59: Brahmanbaria - Kasba | AB59: অন্য এলাকা
B60: 04695 | C60: ABDUR RAZZAK | D60: MALI | E60: FACULTY OF SOCIAL SCIENCE | F60: 13 - 11000-26590 | G60: Category-3 | H60: 700 | I60: 910 | J60: 22380 | Q60: Category-3 | R60: 59 | S60: EblvU UvKv | AA60: Brahmanbaria - Nabinagar | AB60: অন্য এলাকা
B61: 04834 | C61: MST. SULTANA RAZIA | D61: COMMON ROOM BEARER | E61: FACULTY OF SOCIAL SCIENCE | F61: 14 - 10200-24680 | G61: Category-3 | H61: 490 | I61: 637 | J61: 22380 | Q61: Category-3 | R61: 60 | S61: lvU UvKv | AA61: Brahmanbaria - Nasirnagar | AB61: অন্য এলাকা
B62: 03913 | C62: MOHAN JAMADAR | D62: JAMADAR | E62: FACULTY OF SOCIAL SCIENCE | F62: 13 - 11000-26590 | G62: Category-3 | H62: 700 | I62: 910 | J62: 25320 | Q62: Category-3 | R62: 61 | S62: GKlwÆ UvKv | AA62: Brahmanbaria - Sarail | AB62: অন্য এলাকা
B63: 03941 | C63: ALAMGIR HOSSAIN | D63: SWEEPER | E63: FACULTY OF SOCIAL SCIENCE | F63: 13 - 11000-26590 | G63: Category-3 | H63: 700 | I63: 910 | J63: 25320 | Q63: Category-3 | R63: 62 | S63: evlwÆ UvKv | AA63: Chandpur - Chandpur Sadar | AB63: অন্য এলাকা
B64: 04454 | C64: INNANUR RAHMAN | D64: SWEEPER | E64: FACULTY OF SOCIAL SCIENCE | F64: 13 - 11000-26590 | G64: Category-3 | H64: 700 | I64: 910 | J64: 24110 | Q64: Category-3 | R64: 63 | S64: †ZlwÆ UvKv | AA64: Chandpur - Faridganj | AB64: অন্য এলাকা
B65: 04577 | C65: SWAPAN KUMAR DAS | D65: JAMADAR | E65: FACULTY OF SOCIAL SCIENCE | F65: 13 - 11000-26590 | G65: Category-3 | H65: 700 | I65: 910 | J65: 22380 | Q65: Category-3 | R65: 64 | S65: †PŠlwÆ UvKv | AA65: Chandpur - Haim Char | AB65: অন্য এলাকা
B66: 04696 | C66: DABLU DAS | D66: JAMADAR | E66: FACULTY OF SOCIAL SCIENCE | F66: 13 - 11000-26590 | G66: Category-3 | H66: 700 | I66: 910 | J66: 22380 | Q66: Category-3 | R66: 65 | S66: cuqlwÆ UvKv | AA66: Chandpur - Hajiganj | AB66: অন্য এলাকা
B67: 04734 | C67: AKKAS ALI | D67: SWEEPER | E67: FACULTY OF SOCIAL SCIENCE | F67: 14 - 10200-24680 | G67: Category-3 | H67: =VLOOKUP(F67,$K$2:$N$21,3,0) -> 490 | I67: 637 | J67: 22380 | Q67: Category-3 | R67: 66 | S67: †QlwÆ UvKv | AA67: Chandpur - Shahrasti | AB67: অন্য এলাকা
B68: 04996 | C68: SARDER MOHAMMAD KAMRUL ISLAM | D68: COMPUTER OPERATION MANAGER | E68: FACULTY OF AGRICULTURE | F68: 04 - 50000-71200 | G68: =IFERROR(VLOOKUP(F68,$K$2:$L$21,2,0),0) -> Category-1 | H68: 1050 | I68: =VLOOKUP(F68,$K$2:$N$21,4,0) -> 1365 | J68: 65820 | Q68: Category-3 | R68: 67 | S68: mvZlwÆ UvKv | AA68: Chapai Nababganj - Bholahat | AB68: অন্য এলাকা
B69: 06664 | C69: MD. SOHEL RANA | D69: DEPUTY REGISTRAR | E69: FACULTY OF AGRICULTURE | F69: 04 - 50000-71200 | G69: Category-1 | H69: 1050 | I69: 1365 | J69: 54080 | Q69: Category-3 | R69: 68 | S69: AvUlwÆ UvKv | AA69: Chapai Nababganj - Chapai Nababganj Sadar | AB69: অন্য এলাকা
B70: 05652 | C70: MD. BORHAN UDDIN | D70: SECTION OFFICER | E70: FACULTY OF AGRICULTURE | F70: 09 - 22000-53060 | G70: Category-2 | H70: 875 | I70: 1137.5 | J70: 29510 | Q70: Category-3 | R70: 69 | S70: EbmËi UvKv | AA70: Chapai Nababganj - Gomastapur | AB70: অন্য এলাকা
B71: 06409 | C71: MD. RASEL HASAN MONI | D71: SECURITY GUARD | E71: FACULTY OF AGRICULTURE | F71: 20 - 8250-20010 | G71: Category-4 | H71: 400 | I71: 520 | J71: 14190 | Q71: Category-1 | R71: 70 | S71: mËi UvKv | AA71: Chapai Nababganj - Nachole | AB71: অন্য এলাকা
B72: 06411 | C72: MD. HAQUE SAHEB | D72: SECURITY GUARD | E72: FACULTY OF AGRICULTURE | F72: 20 - 8250-20010 | G72: Category-4 | H72: 400 | I72: 520 | J72: 14190 | Q72: Category-1 | R72: 71 | S72: GKvËi UvKv | AA72: Chapai Nababganj - Shibganj | AB72: অন্য এলাকা
B73: 06412 | C73: MD. NASIBUL ISLAM | D73: SECURITY GUARD | E73: FACULTY OF AGRICULTURE | F73: 20 - 8250-20010 | G73: Category-4 | H73: 400 | I73: 520 | J73: 14190 | Q73: Category-2 | R73: 72 | S73: evnvËi UvKv | AA73: Chattogram - Akborsah Thana | AB73: চট্টগ্রাম
B74: 06496 | C74: MD. SHAFIQUL ISLAM | D74: MALI | E74: FACULTY OF AGRICULTURE | F74: 16 - 9300-22490 | G74: Category-3 | H74: 490 | I74: 637 | J74: 16240 | Q74: Category-3 | R74: 73 | S74: wZqvËi UvKv | AA74: Chattogram - Anwara | AB74: চট্টগ্রাম
B75: 01675 | C75: MD. ABDUL MALEK | D75: DEPUTY REGISTRAR | E75: FACULTY OF ENGINEERING | F75: 04 - 50000-71200 | G75: Category-1 | H75: 1050 | I75: 1365 | J75: 65820 | Q75: Category-4 | R75: 74 | S75: PzqvËi UvKv | AA75: Chattogram - Bakalia Thana | AB75: চট্টগ্রাম
B76: 04056 | C76: MD. SAIDUR RAHMAN | D76: ASSISTANT REGISTRAR | E76: FACULTY OF ENGINEERING | F76: 06 - 35500-67010 | G76: Category-2 | H76: 900 | I76: 1170 | J76: 49980 | Q76: Category-4 | R76: 75 | S76: cuPvËi UvKv | AA76: Chattogram - Bandar Thana | AB76: চট্টগ্রাম
B77: 05582 | C77: MD. NAWSHAD ALI | D77: ASSISTANT REGISTRAR | E77: FACULTY OF ENGINEERING | F77: 06 - 35500-67010 | G77: Category-2 | H77: 900 | I77: 1170 | J77: 47600 | Q77: Category-4 | R77: 76 | S77: wQqvËi UvKv | AA77: Chattogram - Banshkhali | AB77: চট্টগ্রাম
B78: 05534 | C78: MD. SAIFUL ISLAM | D78: SECTION OFFICER | E78: FACULTY OF ENGINEERING | F78: 09 - 22000-53060 | G78: Category-2 | H78: 875 | I78: 1137.5 | J78: 29510 | Q78: Category-4 | R78: 77 | S78: mvZvËi UvKv | AA78: Chattogram - Bayejid Bostami | AB78: চট্টগ্রাম
B79: 07011 | C79: MOST. ZAKIA AKTAR | D79: CARETAKER | E79: FACULTY OF ENGINEERING | F79: 13 - 11000-26590 | G79: Category-3 | H79: 700 | I79: 910 | J79: 18860 | Q79: Category-1 | R79: 78 | S79: AvUvËi UvKv | AA79: Chattogram - Boalkhali | AB79: চট্টগ্রাম
B80: 04059 | C80: MD. SERAZUL ISLAM | D80: ORDERLY PEON | E80: FACULTY OF ENGINEERING | F80: 13 - 11000-26590 | G80: Category-3 | H80: 700 | I80: 910 | J80: 25320 | Q80: Category-2 | R80: 79 | S80: EbAvwk UvKv | AA80: Chattogram - Chakbazar Thana | AB80: চট্টগ্রাম
B81: 04694 | C81: MD. SHARIFUL ISLAM | D81: MALI | E81: FACULTY OF ENGINEERING | F81: 14 - 10200-24680 | G81: Category-3 | H81: 490 | I81: 637 | J81: 22380 | Q81: Category-2 | R81: 80 | S81: Avwk UvKv | AA81: Chattogram - Chandanaish | AB81: চট্টগ্রাম
B82: 06475 | C82: MD. RASHEL | D82: OFFICE SUPPORT STAFF | E82: FACULTY OF ENGINEERING | F82: 16 - 9300-22490 | G82: Category-3 | H82: 490 | I82: 637 | J82: 18480 | Q82: Category-2 | R82: 81 | S82: GKvwk UvKv | AA82: Chattogram - Chandgaon Thana | AB82: চট্টগ্রাম
B83: 06493 | C83: MD. JOINAL ABEDIN NANTU | D83: MALI | E83: FACULTY OF ENGINEERING | F83: 16 - 9300-22490 | G83: Category-3 | H83: 490 | I83: 637 | J83: 17060 | Q83: Category-3 | R83: 82 | S83: weivwk UvKv | AA83: Chattogram - Double Mooring Thana | AB83: চট্টগ্রাম
B84: 06545 | C84: MAKHON ROBI DAS | D84: SWEEPER | E84: FACULTY OF ENGINEERING | F84: 16 - 9300-22490 | G84: Category-3 | H84: 490 | I84: 637 | J84: 18480 | Q84: Category-3 | R84: 83 | S84: wZivwk UvKv | AA84: Chattogram - EPZ Thana | AB84: চট্টগ্রাম
B85: 01727 | C85: MD. GOLAP RAHMAN | D85: DEPUTY REGISTRAR | E85: FACULTY OF FINE ARTS | F85: 04 - 50000-71200 | G85: Category-1 | H85: 1050 | I85: 1365 | J85: 65820 | Q85: Category-3 | R85: 84 | S85: Pzivwk UvKv | AA85: Chattogram - Fatikchhari | AB85: চট্টগ্রাম
B86: 07335 | C86: MD. IQBAL HOSSAIN | D86: SECTION OFFICER | E86: FACULTY OF FINE ARTS | F86: 09 - 22000-53060 | G86: Category-2 | H86: 875 | I86: 1137.5 | J86: 26760 | Q86: Category-3 | R86: 85 | S86: cuPvwk UvKv | AA86: Chattogram - Halishahar Thana | AB86: চট্টগ্রাম
B87: 07025 | C87: MD. KAMRUL HASAN | D87: LIBRARY ASSISTANT ( SR ASISTANT EQV.) | E87: FACULTY OF FINE ARTS | F87: 12 - 11300-27300 | G87: Category-3 | H87: 700 | I87: 910 | J87: 20360 | Q87: Category-4 | R87: 86 | S87: wQqvwk UvKv | AA87: Chattogram - Hathazari | AB87: চট্টগ্রাম
B88: 04180 | C88: MD. SHUKUR ALI | D88: SECURITY GUARD ( LD ASSISTANT EQV.) | E88: FACULTY OF FINE ARTS | F88: 13 - 11000-26590 | G88: Category-3 | H88: 700 | I88: 910 | J88: 23500 | Q88: Category-3 | R88: 87 | S88: mvZvwk UvKv | AA88: Chattogram - Karnafuli | AB88: চট্টগ্রাম
B89: 04448 | C89: MD. JAMIL ERFAN | D89: LD ASSISTANT EQV. | E89: FACULTY OF FINE ARTS | F89: 14 - 10200-24680 | G89: Category-3 | H89: 490 | I89: 637 | J89: 24110 | Q89: Category-1 | R89: 88 | S89: AvUvwk UvKv | AA89: Chattogram - Khulshi Thana | AB89: চট্টগ্রাম
B90: 04181 | C90: MD. CHANDU MIA | D90: MALI | E90: FACULTY OF FINE ARTS | F90: 13 - 11000-26590 | G90: Category-3 | H90: 700 | I90: 910 | J90: 24110 | Q90: Category-1 | R90: 89 | S90: EbbeŸB UvKv | AA90: Chattogram - Kotwali Thana, Chattogram | AB90: চট্টগ্রাম
B91: 06501 | C91: MD. ASHRAF ALI | D91: OFFICE ATTENDANT | E91: FACULTY OF FINE ARTS | F91: 16 - 9300-22490 | G91: Category-3 | H91: 490 | I91: 637 | J91: 18480 | Q91: Category-2 | R91: 90 | S91: beŸB UvKv | AA91: Chattogram - Lohagara | AB91: চট্টগ্রাম
B92: 06523 | C92: MD. ALAUDDIN ALAL | D92: SECURITY GUARD | E92: FACULTY OF FINE ARTS | F92: 16 - 9300-22490 | G92: Category-3 | H92: 490 | I92: 637 | J92: 18480 | Q92: Category-3 | R92: 91 | S92: GKvbeŸB UvKv | AA92: Chattogram - Mirsarai | AB92: চট্টগ্রাম
B93: 04183 | C93: SHUSILA HELA | D93: SWEEPER | E93: FACULTY OF FINE ARTS | F93: 13 - 11000-26590 | G93: Category-3 | H93: 700 | I93: 910 | J93: 24110 | Q93: Category-3 | R93: 92 | S93: weivbeŸB UvKv | AA93: Chattogram - Pahartali Thana | AB93: চট্টগ্রাম
B94: 04805 | C94: SREE SHOMVU LAL | D94: SCAVENGER | E94: FACULTY OF FINE ARTS | F94: 14 - 10200-24680 | G94: Category-3 | H94: 490 | I94: 637 | J94: 22380 | Q94: Category-3 | R94: 93 | S94: wZivbeŸB UvKv | AA94: Chattogram - Panchlaish Thana | AB94: চট্টগ্রাম
B95: 01339 | C95: MD. SOHEL AZAM | D95: DEPUTY REGISTRAR | E95: FACULTY OF GEOSCIENCES | F95: 04 - 50000-71200 | G95: Category-1 | H95: 1050 | I95: 1365 | J95: 71200 | Q95: Category-3 | R95: 94 | S95: PzivbeŸB UvKv | AA95: Chattogram - Patenga Thana | AB95: চট্টগ্রাম
B96: 03931 | C96: MD. GOLAM RABBANI | D96: ASSISTANT REGISTRAR | E96: FACULTY OF GEOSCIENCES | F96: 06 - 35500-67010 | G96: Category-2 | H96: 900 | I96: 1170 | J96: 49980 | Q96: Category-3 | R96: 95 | S96: cuPvbeŸB UvKv | AA96: Chattogram - Patiya | AB96: চট্টগ্রাম
B97: 06479 | C97: MD. TANVIR HOSSAIN | D97: OFFICE SUPPORT STAFF | E97: FACULTY OF GEOSCIENCES | F97: 17 - 9000-21800 | G97: Category-4 | H97: 400 | I97: 520 | J97: 17060 | Q97: Category-3 | R97: 96 | S97: wQqvbeŸB UvKv | AA97: Chattogram - Rangunia | AB97: চট্টগ্রাম
B98: 01897 | C98: MD. MONIMUL HOQUE | D98: DEPUTY REGISTRAR | E98: FACULTY OF BIOLOGICAL SCIENCES | F98: 04 - 50000-71200 | G98: Category-1 | H98: 1050 | I98: 1365 | J98: 65820 | Q98: Category-3 | R98: 97 | S98: mvZvbeŸB UvKv | AA98: Chattogram - Raozan | AB98: চট্টগ্রাম
B99: 06666 | C99: SHOFIUL AHMED SHOHAN | D99: DEPUTY REGISTRAR | E99: FACULTY OF BIOLOGICAL SCIENCES | F99: 04 - 50000-71200 | G99: Category-1 | H99: 1050 | I99: 1365 | J99: 54080 | Q99: Category-3 | R99: 98 | S99: AvUvbeŸB UvKv | AA99: Chattogram - Sandwip | AB99: চট্টগ্রাম
B100: 03356 | C100: MD. FERDOWS ALAM | D100: SECTION OFFICER | E100: FACULTY OF BIOLOGICAL SCIENCES | F100: 10 - 16000-38640 | G100: Category-2 | H100: 875 | I100: 1137.5 | J100: 27430 | Q100: Category-3 | R100: 99 | S100: wbivbeŸB UvKv | AA100: Chattogram - Satkania | AB100: চট্টগ্রাম
B101: 04467 | C101: MD. MOHSIN ALI | D101: OFFICE ATTENDANT | E101: FACULTY OF BIOLOGICAL SCIENCES | F101: 13 - 11000-26590 | G101: Category-3 | H101: 700 | I101: 910 | J101: 24110 | Q101: Category-3 | R101: 100 | S101: GKkZ UvKv | AA101: Chattogram - Shadarghat Thana | AB101: চট্টগ্রাম
B102: 04835 | C102: SREE RATON ZAMADAR | D102: SWEEPER | E102: FACULTY OF BIOLOGICAL SCIENCES | F102: 14 - 10200-24680 | G102: Category-3 | H102: 490 | I102: 637 | J102: 22380 | Q102: Category-1 | R102: 101 | S102: GKkZ GK UvKv | AA102: Chattogram - Sitakunda | AB102: চট্টগ্রাম
B103: 02077 | C103: DR. MOHD. AZIZUL ISLAM | D103: SECRETARY ( DEPUTY REGISTRAR) | E103: FACULTY OF FISHERIES | F103: 04 - 50000-71200 | G103: Category-1 | H103: 1050 | I103: 1365 | J103: 68460 | Q103: Category-2 | R103: 102 | S103: GKkZ `yB UvKv | AA103: Chuadanga - Abhaynagar | AB103: অন্য এলাকা
B104: 07301 | C104: MD. SOLIAMAN SAMRAT | D104: SENIOR ASSISTANT | E104: FACULTY OF FISHERIES | F104: 12 - 11300-27300 | G104: Category-3 | H104: 700 | I104: 910 | J104: 13760 | Q104: Category-4 | R104: 103 | S104: GKkZ wZb UvKv | AA104: Chuadanga - Alamdanga | AB104: অন্য এলাকা
B105: 07023 | C105: ARIFUL ISLAM | D105: RECORD KEEPER | E105: FACULTY OF VETERINARY & ANIMAL SCIENCES | F105: 16 - 9300-22490 | G105: Category-3 | H105: 490 | I105: 637 | J105: 15960 | Q105: Category-1 | R105: 104 | S105: GKkZ Pvi UvKv | AA105: Chuadanga - Chuadanga Sadar | AB105: অন্য এলাকা
B106: 00774 | C106: DR. KH. FARHAD HOSSAIN | D106: PROFESSOR | E106: BENGALI | F106: 01 - 78000/- (Fixed) | G106: Category-1 | H106: 1400 | I106: 1820 | J106: 78000 | Q106: Category-1 | R106: 105 | S106: GKkZ cvuP UvKv | AA106: Chuadanga - Damurhuda | AB106: অন্য এলাকা
B107: 00775 | C107: DR. SHAFIQUNNABEE SAMADI | D107: PROFESSOR | E107: BENGALI | F107: 01 - 78000/- (Fixed) | G107: Category-1 | H107: 1400 | I107: 1820 | J107: 78000 | Q107: Category-3 | R107: 106 | S107: GKkZ Qq UvKv | AA107: Chuadanga - Jiban Nagar | AB107: অন্য এলাকা
B108: 01265 | C108: DR. P. M. SHAFIQUL ISLAM | D108: PROFESSOR | E108: BENGALI | F108: 01 - 78000/- (Fixed) | G108: Category-1 | H108: 1400 | I108: 1820 | J108: 78000 | Q108: Category-3 | R108: 107 | S108: GKkZ mvZ UvKv | AA108: Cox's Bazar - Chakaria | AB108: কক্সবাজার
B109: 01238 | C109: DR. M. SHAHID IQBAL | D109: PROFESSOR | E109: BENGALI | F109: 01 - 78000/- (Fixed) | G109: Category-1 | H109: 1400 | I109: 1820 | J109: 78000 | Q109: Category-3 | R109: 108 | S109: GKkZ AvU UvKv | AA109: Cox's Bazar - Cox's Bazar Sadar | AB109: কক্সবাজার
B110: 01235 | C110: DR. MONIRA QAIS | D110: PROFESSOR | E110: BENGALI | F110: 01 - 78000/- (Fixed) | G110: Category-1 | H110: 1400 | I110: 1820 | J110: 76490 | Q110: Category-1 | R110: 109 | S110: GKkZ bq UvKv | AA110: Cox's Bazar - Kutubdia | AB110: কক্সবাজার
B111: 01234 | C111: DR. SHAMEEMA HAMID | D111: PROFESSOR | E111: BENGALI | F111: 01 - 78000/- (Fixed) | G111: Category-1 | H111: 1400 | I111: 1820 | J111: 76490 | Q111: Category-3 | R111: 110 | S111: GKkZ `k UvKv | AA111: Cox's Bazar - Maheshkhali | AB111: কক্সবাজার
B112: 01237 | C112: DR. A. K. M. MASUD RAZA | D112: PROFESSOR | E112: BENGALI | F112: 01 - 78000/- (Fixed) | G112: Category-1 | H112: 1400 | I112: 1820 | J112: 76490 | Q112: Category-3 | R112: 111 | S112: GKkZ GMvi UvKv | AA112: Cox's Bazar - Pekua | AB112: কক্সবাজার
B113: 01266 | C113: DR. M. MIZANUR RAHMAN KHAN | D113: PROFESSOR | E113: BENGALI | F113: 02 - 66000-76490 | G113: Category-1 | H113: 1225 | I113: 1592.5 | J113: 76490 | Q113: Category-1 | R113: 112 | S113: GKkZ evi UvKv | AA113: Cox's Bazar - Ramu | AB113: কক্সবাজার
B114: 06685 | C114: DR. MD. MANIKUL ISLAM | D114: ASSOCIATE PROFESSOR | E114: BENGALI | F114: 04 - 50000-71200 | G114: Category-1 | H114: 1050 | I114: 1365 | J114: 63280 | Q114: Category-1 | R114: 113 | S114: GKkZ †Zi UvKv | AA114: Cox's Bazar - Teknaf | AB114: কক্সবাজার
B115: 06961 | C115: DR. MST. SHAMSHUN NAHAR | D115: ASSOCIATE PROFESSOR | E115: BENGALI | F115: 04 - 50000-71200 | G115: Category-1 | H115: 1050 | I115: 1365 | J115: 63280 | Q115: Category-1 | R115: 114 | S115: GKkZ †PŠÏ UvKv | AA115: Cox's Bazar - Ukhia | AB115: কক্সবাজার
B116: 06680 | C116: DR. SUMAIA KHANOM | D116: ASSOCIATE PROFESSOR | E116: BENGALI | F116: 04 - 50000-71200 | G116: Category-1 | H116: 1050 | I116: 1365 | J116: 60840 | Q116: Category-1 | R116: 115 | S116: GKkZ c‡bi UvKv | AA116: Cumilla - Barura | AB116: অন্য এলাকা
B117: 06681 | C117: DR. SYED TAUFIQ ZUHORI | D117: ASSOCIATE PROFESSOR | E117: BENGALI | F117: 04 - 50000-71200 | G117: Category-1 | H117: 1050 | I117: 1365 | J117: 60840 | Q117: Category-1 | R117: 116 | S117: GKkZ †lvj UvKv | AA117: Cumilla - Brahman Para | AB117: অন্য এলাকা
B118: 06683 | C118: PURANGIT MAHALDER | D118: ASSOCIATE PROFESSOR | E118: BENGALI | F118: 04 - 50000-71200 | G118: Category-1 | H118: 1050 | I118: 1365 | J118: 58500 | Q118: Category-1 | R118: 117 | S118: GKkZ m‡Zi UvKv | AA118: Cumilla - Burichang | AB118: অন্য এলাকা
B119: 06963 | C119: TANIA TAHMINA SARKAR | D119: ASSOCIATE PROFESSOR | E119: BENGALI | F119: 04 - 50000-71200 | G119: Category-1 | H119: 1050 | I119: 1365 | J119: 58500 | Q119: Category-1 | R119: 118 | S119: GKkZ AvVvi UvKv | AA119: Cumilla - Chandina | AB119: অন্য এলাকা
B120: 06964 | C120: MONORAMA ISLAM | D120: ASSOCIATE PROFESSOR | E120: BENGALI | F120: 04 - 50000-71200 | G120: Category-1 | H120: 1050 | I120: 1365 | J120: 58500 | Q120: Category-1 | R120: 119 | S120: GKkZ Ewbk UvKv | AA120: Cumilla - Chauddagram | AB120: অন্য এলাকা
B121: 06965 | C121: DR. GAUTAM DATTA | D121: ASSOCIATE PROFESSOR | E121: BENGALI | F121: 04 - 50000-71200 | G121: Category-1 | H121: 1050 | I121: 1365 | J121: 58500 | Q121: Category-1 | R121: 120 | S121: GKkZ wek UvKv | AA121: Cumilla - Cumilla Adarsha Sadar | AB121: অন্য এলাকা
B122: 06967 | C122: DR. MD. SUZA UDDULA | D122: ASSOCIATE PROFESSOR | E122: BENGALI | F122: 04 - 50000-71200 | G122: Category-1 | H122: 1050 | I122: 1365 | J122: 58500 | Q122: Category-1 | R122: 121 | S122: GKkZ GKzk UvKv | AA122: Cumilla - Cumilla Sadar Dakshin | AB122: অন্য এলাকা
B123: 06682 | C123: MD. DELAWAR HOSSAIN | D123: ASSOCIATE PROFESSOR | E123: BENGALI | F123: 04 - 50000-71200 | G123: Category-1 | H123: 1050 | I123: 1365 | J123: 58500 | Q123: Category-1 | R123: 122 | S123: GKkZ evBk UvKv | AA123: Cumilla - Debidwar | AB123: অন্য এলাকা
B124: 06962 | C124: MAHAMUDA AKTHER | D124: ASSOCIATE PROFESSOR | E124: BENGALI | F124: 04 - 50000-71200 | G124: Category-1 | H124: 1050 | I124: 1365 | J124: 56250 | Q124: Category-1 | R124: 123 | S124: GKkZ †ZBk UvKv | AA124: Cumilla - Homna | AB124: অন্য এলাকা
B125: 06684 | C125: S. M. SYDUL AMBIA | D125: ASSISTANT PROFESSOR | E125: BENGALI | F125: 06 - 35500-67010 | G125: Category-2 | H125: 900 | I125: 1170 | J125: 55110 | Q125: Category-1 | R125: 124 | S125: GKkZ PweŸk UvKv | AA125: Cumilla - Laksam | AB125: অন্য এলাকা
B126: 06966 | C126: GOUTOM GOSWAMI | D126: ASSISTANT PROFESSOR | E126: BENGALI | F126: 06 - 35500-67010 | G126: Category-2 | H126: 900 | I126: 1170 | J126: 55110 | Q126: Category-1 | R126: 125 | S126: GKkZ cuwPk UvKv | AA126: Cumilla - Lalmai | AB126: অন্য এলাকা
B127: 06968 | C127: SUPRIYA RANI DAS | D127: ASSISTANT PROFESSOR | E127: BENGALI | F127: 06 - 35500-67010 | G127: Category-2 | H127: 900 | I127: 1170 | J127: 55110 | Q127: Category-1 | R127: 126 | S127: GKkZ QvweŸk UvKv | AA127: Cumilla - Manoharganj | AB127: অন্য এলাকা
B128: 01590 | C128: A. H. M. HAFIZUR RAHMAN | D128: DEPUTY REGISTRAR | E128: BENGALI | F128: 04 - 50000-71200 | G128: Category-1 | H128: 1050 | I128: 1365 | J128: 65820 | Q128: Category-1 | R128: 127 | S128: GKkZ mvZvk UvKv | AA128: Cumilla - Meghna | AB128: অন্য এলাকা
B129: 04858 | C129: MD. SERAJUDULA | D129: DEPUTY REGISTRAR | E129: BENGALI | F129: 04 - 50000-71200 | G129: Category-1 | H129: 1050 | I129: 1365 | J129: 56250 | Q129: Category-1 | R129: 128 | S129: GKkZ AvVvk UvKv | AA129: Cumilla - Muradnagar | AB129: অন্য এলাকা
B130: 04859 | C130: DILIP KUMAR SARKER | D130: ASSISTANT REGISTRAR | E130: BENGALI | F130: 06 - 35500-67010 | G130: Category-2 | H130: 900 | I130: 1170 | J130: 45330 | Q130: Category-1 | R130: 129 | S130: GKkZ EbwÎk UvKv | AA130: Cumilla - Nangalkot | AB130: অন্য এলাকা
B131: 03104 | C131: MD. SHAHID ALI SARKAR | D131: OFFICE SUPPORT STAFF | E131: BENGALI | F131: 13 - 11000-26590 | G131: Category-3 | H131: =VLOOKUP(F131,$K$2:$N$21,3,0) -> 700 | I131: 910 | J131: 25320 | Q131: Category-1 | R131: 130 | S131: GKkZ wÎk UvKv | AA131: Cumilla - Titas | AB131: অন্য এলাকা
B132: 03686 | C132: MD. BELAL HOSSAIN | D132: ORDERLY PEON | E132: BENGALI | F132: 13 - 11000-26590 | G132: =IFERROR(VLOOKUP(F132,$K$2:$L$21,2,0),0) -> Category-3 | H132: 700 | I132: =VLOOKUP(F132,$K$2:$N$21,4,0) -> 910 | J132: 25320 | Q132: Category-2 | R132: 131 | S132: GKkZ GKwÎk UvKv | AA132: Dhaka - Adabor Thana | AB132: ঢাকা
B133: 06623 | C133: MD. ABU SAYEED | D133: SEMINAR BEARER | E133: BENGALI | F133: 20 - 8250-20010 | G133: Category-4 | H133: 400 | I133: 520 | J133: 13510 | Q133: Category-2 | R133: 132 | S133: GKkZ ewÎk UvKv | AA133: Dhaka - Badda Thana | AB133: ঢাকা
B134: 00793 | C134: ASHIM KUMAR DAS | D134: PROFESSOR | E134: ENGLISH | F134: 01 - 78000/- (Fixed) | G134: Category-1 | H134: 1400 | I134: 1820 | J134: 78000 | Q134: Category-2 | R134: 133 | S134: GKkZ †ZwÎk UvKv | AA134: Dhaka - Banani Thana | AB134: ঢাকা
B135: 01724 | C135: DR. A. F. M. MASWOOD AKHTER | D135: PROFESSOR | E135: ENGLISH | F135: 02 - 66000-76490 | G135: Category-1 | H135: 1225 | I135: 1592.5 | J135: 76490 | Q135: Category-1 | R135: 134 | S135: GKkZ †PŠwÎk UvKv | AA135: Dhaka - Bangshal Thana | AB135: ঢাকা
B136: 01720 | C136: DR. MD. MOMINUL ISLAM | D136: PROFESSOR | E136: ENGLISH | F136: 03 - 56500-74400 | G136: Category-1 | H136: 1225 | I136: 1592.5 | J136: 74400 | Q136: Category-1 | R136: 135 | S136: GKkZ cuqwÎk UvKv | AA136: Dhaka - Bhasan Tek Thana | AB136: ঢাকা
B137: 01996 | C137: MD. SAKHAWAT HOSSAIN | D137: PROFESSOR | E137: ENGLISH | F137: 03 - 56500-74400 | G137: Category-1 | H137: 1225 | I137: 1592.5 | J137: 68770 | Q137: Category-2 | R137: 136 | S137: GKkZ QwÎk UvKv | AA137: Dhaka - Bhatara Thana | AB137: ঢাকা
B138: 01559 | C138: RUBAIDA AKHTER | D138: ASSOCIATE PROFESSOR | E138: ENGLISH | F138: 04 - 50000-71200 | G138: Category-1 | H138: 1050 | I138: 1365 | J138: 71200 | Q138: Category-3 | R138: 137 | S138: GKkZ mvuBwÎk UvKv | AA138: Dhaka - Biman Bandar Thana | AB138: ঢাকা
B139: 01723 | C139: MUHAMMAD TARIQ - UL - ISLAM | D139: ASSOCIATE PROFESSOR | E139: ENGLISH | F139: 04 - 50000-71200 | G139: Category-1 | H139: 1050 | I139: 1365 | J139: 71200 | Q139: Category-3 | R139: 138 | S139: GKkZ AvUwÎk UvKv | AA139: Dhaka - Cantonment Thana | AB139: ঢাকা
B140: 05962 | C140: MAHBUBA HASINA | D140: ASSOCIATE PROFESSOR | E140: ENGLISH | F140: 04 - 50000-71200 | G140: Category-1 | H140: 1050 | I140: 1365 | J140: 63280 | Q140: Category-4 | R140: 139 | S140: GKkZ EbPwjøk UvKv | AA140: Dhaka - Chak Bazar Thana | AB140: ঢাকা
B141: 05963 | C141: MD. ALAMGIR HOSSAIN | D141: ASSISTANT PROFESSOR | E141: ENGLISH | F141: 18500-800x14-29700/- | G141: 0 | J141: 0 | Q141: Category-1 | R141: 140 | S141: GKkZ Pwjøk UvKv | AA141: Dhaka - Dakshinkhan Thana | AB141: ঢাকা
B142: 07111 | C142: MD. WASIUZZAMAN | D142: ASSISTANT PROFESSOR | E142: ENGLISH | F142: 06 - 35500-67010 | G142: Category-2 | H142: 900 | I142: 1170 | J142: 60770 | Q142: Category-1 | R142: 141 | S142: GKkZ GKPwjøk UvKv | AA142: Dhaka - Darus Salam Thana | AB142: ঢাকা
B143: 07121 | C143: RIDITA MIZAN | D143: ASSISTANT PROFESSOR | E143: ENGLISH | F143: 06 - 35500-67010 | G143: Category-2 | H143: 900 | I143: 1170 | J143: 0 | Q143: Category-1 | R143: 142 | S143: GKkZ weqvwjøk UvKv | AA143: Dhaka - Demra Thana | AB143: ঢাকা
B144: 01312 | C144: SREEPATI KUMAR SARKER | D144: DEPUTY REGISTRAR | E144: ENGLISH | F144: 04 - 50000-71200 | G144: Category-1 | H144: 1050 | I144: 1365 | J144: 71200 | Q144: Category-1 | R144: 143 | S144: GKkZ †ZZvwjøk UvKv | AA144: Dhaka - Dhamrai | AB144: ঢাকা
B145: 07319 | C145: MD. RASHEDUL HASAN | D145: SECTION OFFICER | E145: ENGLISH | F145: 09 - 22000-53060 | G145: Category-2 | H145: 875 | I145: 1137.5 | J145: 26760 | Q145: Category-1 | R145: 144 | S145: GKkZ Pzqvwjøk UvKv | AA145: Dhaka - Dhanmondi Thana | AB145: ঢাকা
B146: 04878 | C146: MD. ABDUS SALAM | D146: ORDERLY PEON | E146: ENGLISH | F146: 14 - 10200-24680 | G146: Category-3 | H146: 490 | I146: 637 | J146: 22380 | Q146: Category-1 | R146: 145 | S146: GKkZ cuqZvwjøk UvKv | AA146: Dhaka - Dohar | AB146: ঢাকা
B147: 06345 | C147: MD. NURUL ISLAM NABI | D147: OFFICE SUPPORT STAFF | E147: ENGLISH | F147: 16 - 9300-22490 | G147: Category-3 | H147: 490 | I147: 637 | J147: 18480 | Q147: Category-1 | R147: 146 | S147: GKkZ †QPwjøk UvKv | AA147: Dhaka - Gendaria Thana | AB147: ঢাকা
B148: 00864 | C148: DR. M. AKHTAR ALI | D148: PROFESSOR | E148: PHILOSOPHY | F148: 01 - 78000/- (Fixed) | G148: Category-1 | H148: 1400 | I148: 1820 | J148: 78000 | Q148: Category-1 | R148: 147 | S148: GKkZ mvZPwjøk UvKv | AA148: Dhaka - Gulshan Thana | AB148: ঢাকা
B149: 00868 | C149: DR. M. ASADUZZAMAN | D149: PROFESSOR | E149: PHILOSOPHY | F149: 02 - 66000-76490 | G149: Category-1 | H149: 1225 | I149: 1592.5 | J149: 78000 | R149: 148 | S149: GKkZ AvUPwjøk UvKv | AA149: Dhaka - Hazaribagh Thana | AB149: ঢাকা
B150: 00862 | C150: SHAMIMA AKTER | D150: PROFESSOR | E150: PHILOSOPHY | F150: 02 - 66000-76490 | G150: Category-1 | H150: 1225 | I150: 1592.5 | J150: 76490 | N150: Category-2 | R150: 149 | S150: GKkZ EbcÂvk UvKv | AA150: Dhaka - Jatrabari Thana | AB150: ঢাকা
B151: 00869 | C151: NILUFAR AHMED | D151: PROFESSOR | E151: PHILOSOPHY | F151: 02 - 66000-76490 | G151: Category-1 | H151: 1225 | I151: 1592.5 | J151: 76490 | N151: Category-2 | R151: 150 | S151: GKkZ cÂvk UvKv | AA151: Dhaka - Kadamtali Thana | AB151: ঢাকা
B152: 01803 | C152: DR. MD. MAZIBAR RAHMAN | D152: PROFESSOR | E152: PHILOSOPHY | F152: 02 - 66000-76490 | G152: Category-1 | H152: 1225 | I152: 1592.5 | J152: 76490 | N152: Category-1 | R152: 151 | S152: GKkZ GKvbœ UvKv | AA152: Dhaka - Kafrul Thana | AB152: ঢাকা
B153: 01805 | C153: DR. MD. ARIFUL ISLAM | D153: PROFESSOR | E153: PHILOSOPHY | F153: 02 - 66000-76490 | G153: Category-1 | H153: 1225 | I153: 1592.5 | J153: 74400 | N153: Category-3 | R153: 152 | S153: GKkZ evqvbœ UvKv | AA153: Dhaka - Kalabagan Thana | AB153: ঢাকা
B154: 01804 | C154: DR. MD. ALTAF HOSSAIN [2] | D154: PROFESSOR | E154: PHILOSOPHY | F154: 02 - 66000-76490 | G154: Category-1 | H154: 1225 | I154: 1592.5 | J154: 76490 | N154: Category-3 | R154: 153 | S154: GKkZ wZàvbœ UvKv | AA154: Dhaka - Kamrangir Char Thana | AB154: ঢাকা
B155: 01953 | C155: DR. MD. MOTASIM BILLAH | D155: PROFESSOR | E155: PHILOSOPHY | F155: 02 - 66000-76490 | G155: Category-1 | H155: 1225 | I155: 1592.5 | J155: 76490 | N155: Category-1 | R155: 154 | S155: GKkZ Pzqvbœ UvKv | AA155: Dhaka - Keraniganj | AB155: ঢাকা
B156: 00866 | C156: M. JAHANGIR ALAM | D156: PROFESSOR | E156: PHILOSOPHY | F156: 03 - 56500-74400 | G156: Category-1 | H156: 1225 | I156: 1592.5 | J156: 76490 | N156: Category-1 | R156: 155 | S156: GKkZ cÂvbœ UvKv | AA156: Dhaka - Khilgaon Thana | AB156: ঢাকা
B157: 00867 | C157: M. ALTAF HOSSAIN [1] | D157: PROFESSOR | E157: PHILOSOPHY | F157: 03 - 56500-74400 | G157: Category-1 | H157: 1225 | I157: 1592.5 | J157: 74400 | N157: Category-1 | R157: 156 | S157: GKkZ Qvàvbœ UvKv | AA157: Dhaka - Khilkhet Thana | AB157: ঢাকা
B158: 01795 | C158: DR. SHARMIN HAMID | D158: PROFESSOR | E158: PHILOSOPHY | F158: 03 - 56500-74400 | G158: Category-1 | H158: 1225 | I158: 1592.5 | J158: 74400 | N158: Category-1 | R158: 157 | S158: GKkZ mvZvbœ UvKv | AA158: Dhaka - Kotwali Thana, Dhaka | AB158: ঢাকা
B159: 01806 | C159: DR. SURAIA AFROSE MITULY | D159: PROFESSOR | E159: PHILOSOPHY | F159: 03 - 56500-74400 | G159: Category-1 | H159: 1225 | I159: 1592.5 | J159: 74400 | N159: Category-1 | R159: 158 | S159: GKkZ AvUvbœ UvKv | AA159: Dhaka - Lalbagh Thana | AB159: ঢাকা
B160: 01802 | C160: DR. MST. FERDOUSI BEGOM | D160: PROFESSOR | E160: PHILOSOPHY | F160: 03 - 56500-74400 | G160: Category-1 | H160: 1225 | I160: 1592.5 | J160: 71530 | N160: Category-1 | R160: 159 | S160: GKkZ EblvU UvKv | AA160: Dhaka - Mirpur Thana | AB160: ঢাকা
B161: 06052 | C161: DR. EKRAM HOSSAIN | D161: PROFESSOR | E161: PHILOSOPHY | F161: 03 - 56500-74400 | G161: Category-1 | H161: 1225 | I161: 1592.5 | J161: 71530 | N161: Category-1 | R161: 160 | S161: GKkZ lvU UvKv | AA161: Dhaka - Mohammadpur Thana | AB161: ঢাকা
B162: 06049 | C162: DR. MD. ANISUZZAMAN | D162: PROFESSOR | E162: PHILOSOPHY | F162: 03 - 56500-74400 | G162: Category-1 | H162: 1225 | I162: 1592.5 | J162: 71530 | N162: Category-1 | R162: 161 | S162: GKkZ GKlwÆ UvKv | AA162: Dhaka - Motijheel Thana | AB162: ঢাকা
B163: 06048 | C163: SANDHYA MALLICK | D163: PROFESSOR | E163: PHILOSOPHY | F163: 03 - 56500-74400 | G163: Category-1 | H163: 1225 | I163: 1592.5 | J163: 68770 | N163: Category-1 | R163: 162 | S163: GKkZ evlwÆ UvKv | AA163: Dhaka - Mugda Para Thana | AB163: ঢাকা
B164: 06050 | C164: MD. ROQNUZZAMAN | D164: PROFESSOR | E164: PHILOSOPHY | F164: 03 - 56500-74400 | G164: Category-1 | H164: 1225 | I164: 1592.5 | J164: 65820 | N164: Category-1 | R164: 163 | S164: GKkZ †ZlwÆ UvKv | AA164: Dhaka - Nawabganj | AB164: ঢাকা
B165: 06051 | C165: MD. ZAHIDUL ISLAM | D165: PROFESSOR | E165: PHILOSOPHY | F165: 03 - 56500-74400 | G165: Category-1 | H165: 1225 | I165: 1592.5 | J165: 65820 | N165: Category-1 | R165: 164 | S165: GKkZ †PŠlwÆ UvKv | AA165: Dhaka - New Market Thana | AB165: ঢাকা
B166: 06046 | C166: AFROZA SULTANA | D166: ASSOCIATE PROFESSOR | E166: PHILOSOPHY | F166: 04 - 50000-71200 | G166: Category-1 | H166: 1050 | I166: 1365 | J166: 65820 | N166: Category-1 | R166: 165 | S166: GKkZ cuqlwÆ UvKv | AA166: Dhaka - Pallabi Thana | AB166: ঢাকা
B167: 06047 | C167: DR. MD. ABDULLAH AL MAMUN | D167: ASSOCIATE PROFESSOR | E167: PHILOSOPHY | F167: 04 - 50000-71200 | G167: Category-1 | H167: 1050 | I167: 1365 | J167: 60840 | N167: Category-1 | R167: 166 | S167: GKkZ †QlwÆ UvKv | AA167: Dhaka - Paltan Thana | AB167: ঢাকা
B168: 07077 | C168: TASNIM NAZIRA RIDA | D168: ASSISTANT PROFESSOR | E168: PHILOSOPHY | F168: 06 - 35500-67010 | G168: Category-2 | H168: 900 | I168: 1170 | J168: 63280 | N168: Category-1 | R168: 167 | S168: GKkZ mvZlwÆ UvKv | AA168: Dhaka - Ramna Thana | AB168: ঢাকা
B169: 03660 | C169: MD. BORHAN UDDIN | D169: DEPUTY REGISTRAR | E169: PHILOSOPHY | F169: 04 - 50000-71200 | G169: Category-1 | H169: 1050 | I169: 1365 | J169: 52480 | N169: Category-1 | R169: 168 | S169: GKkZ AvUlwÆ UvKv | AA169: Dhaka - Rampura Thana | AB169: ঢাকা
B170: 04220 | C170: MD. SAYED ALI MONDAL | D170: ASSISTANT REGISTRAR | E170: PHILOSOPHY | F170: 07 - 29000-63410 | G170: Category-2 | H170: 900 | I170: 1170 | J170: 54080 | N170: Category-1 | R170: 169 | S170: GKkZ EbmËi UvKv | AA170: Dhaka - Rupnagar Thana | AB170: ঢাকা
B171: 05607 | C171: MD. MASUD RANA | D171: ASSISTANT REGISTRAR | E171: PHILOSOPHY | F171: 06 - 35500-67010 | G171: Category-2 | H171: 900 | I171: 1170 | J171: 40840 | N171: Category-1 | R171: 170 | S171: GKkZ mËi UvKv | AA171: Dhaka - Sabujbagh Thana | AB171: ঢাকা
B172: 04658 | C172: MD. ROHIZ UDDIN | D172: SEMINAR BEARER | E172: PHILOSOPHY | F172: 13 - 11000-26590 | G172: Category-3 | H172: 700 | I172: 910 | J172: 47600 | N172: Category-1 | R172: 171 | S172: GKkZ GKvËi UvKv | AA172: Dhaka - Savar | AB172: ঢাকা
B173: 06622 | C173: RAJAT KUMAR DEY | D173: ORDERLY PEON | E173: PHILOSOPHY | F173: 20 - 8250-20010 | G173: Category-4 | H173: 400 | I173: 520 | J173: 22380 | N173: Category-1 | R173: 172 | S173: GKkZ evnvËi UvKv | AA173: Dhaka - Shah Ali Thana | AB173: ঢাকা
B174: 00814 | C174: DR. MD. ABUL KASHEM | D174: PROFESSOR | E174: HISTORY | F174: 01 - 78000/- (Fixed) | G174: Category-1 | H174: 1400 | I174: 1820 | J174: 13510 | N174: Category-1 | R174: 173 | S174: GKkZ wZqvËi UvKv | AA174: Dhaka - Shahbagh Thana | AB174: ঢাকা
B175: 00813 | C175: DR. M. MOYEZUL ISLAM | D175: PROFESSOR | E175: HISTORY | F175: 01 - 78000/- (Fixed) | G175: Category-1 | H175: 1400 | I175: 1820 | J175: 78000 | N175: Category-1 | R175: 174 | S175: GKkZ PzqvËi UvKv | AA175: Dhaka - Shahjahanpur Thana | AB175: ঢাকা
B176: 00816 | C176: DR. MORTUZA KHALED | D176: PROFESSOR | E176: HISTORY | F176: 01 - 78000/- (Fixed) | G176: Category-1 | H176: 1400 | I176: 1820 | J176: 78000 | N176: Category-2 | R176: 175 | S176: GKkZ cuPvËi UvKv | AA176: Dhaka - Sher-E-Bangla Nagar Thana | AB176: ঢাকা
B177: 00817 | C177: DR. MAHMUDA KHATUN | D177: PROFESSOR | E177: HISTORY | F177: 01 - 78000/- (Fixed) | G177: Category-1 | H177: 1400 | I177: 1820 | J177: 78000 | N177: Category-1 | R177: 176 | S177: GKkZ wQqvËi UvKv | AA177: Dhaka - Shyampur Thana | AB177: ঢাকা
B178: 00820 | C178: DR. FERDOUSI KHATUN | D178: PROFESSOR | E178: HISTORY | F178: 01 - 78000/- (Fixed) | G178: Category-1 | H178: 1400 | I178: 1820 | J178: 78000 | N178: Category-2 | R178: 177 | S178: GKkZ mvZvËi UvKv | AA178: Dhaka - Sutrapur Thana | AB178: ঢাকা
B179: 00821 | C179: DR. M. SHEREZZAMAN | D179: PROFESSOR | E179: HISTORY | F179: 01 - 78000/- (Fixed) | G179: Category-1 | H179: 1400 | I179: 1820 | J179: 78000 | N179: Category-2 | R179: 178 | S179: GKkZ AvUvËi UvKv | AA179: Dhaka - Tejgaon Ind. Area Thana | AB179: ঢাকা
B180: 01476 | C180: SAIKHUL ISLAM MAMUN ZIAD | D180: PROFESSOR | E180: HISTORY | F180: 02 - 66000-76490 | G180: Category-1 | H180: 1225 | I180: 1592.5 | J180: 78000 | N180: Category-3 | R180: 179 | S180: GKkZ EbAvwk UvKv | AA180: Dhaka - Tejgaon Thana | AB180: ঢাকা
B181: 05964 | C181: MST. SHAHINA AKTAR | D181: ASSOCIATE PROFESSOR | E181: HISTORY | F181: 04 - 50000-71200 | G181: Category-1 | H181: 1050 | I181: 1365 | J181: 78000 | N181: Category-4 | R181: 180 | S181: GKkZ Avwk UvKv | AA181: Dhaka - Turag Thana | AB181: ঢাকা
B182: 05967 | C182: MD. GOLAM SAROWAR | D182: ASSOCIATE PROFESSOR | E182: HISTORY | F182: 04 - 50000-71200 | G182: Category-1 | H182: 1050 | I182: 1365 | J182: 76490 | N182: Category-1 | R182: 181 | S182: GKkZ GKvwk UvKv | AA182: Dhaka - Uttar Khan Thana | AB182: ঢাকা
B183: 05968 | C183: HOSNE ARA KHANAM | D183: ASSOCIATE PROFESSOR | E183: HISTORY | F183: 04 - 50000-71200 | G183: Category-1 | H183: 1050 | I183: 1365 | J183: 63280 | N183: Category-1 | R183: 182 | S183: GKkZ weivwk UvKv | AA183: Dhaka - Uttara Paschim Thana | AB183: ঢাকা
B184: 05966 | C184: MD. HELAL UDDIN | D184: ASSOCIATE PROFESSOR | E184: HISTORY | F184: 04 - 50000-71200 | G184: Category-1 | H184: 1050 | I184: 1365 | J184: 63280 | N184: Category-1 | R184: 183 | S184: GKkZ wZivwk UvKv | AA184: Dhaka - Uttara Purba Thana | AB184: ঢাকা
B185: 01736 | C185: MD. ABDUL BAREK | D185: DEPUTY REGISTRAR | E185: HISTORY | F185: 04 - 50000-71200 | G185: Category-1 | H185: 1050 | I185: 1365 | J185: 63280 | N185: Category-1 | R185: 184 | S185: GKkZ Pzivwk UvKv | AA185: Dhaka - Wari Thana | AB185: ঢাকা
B186: 04224 | C186: MD. SHOHIDUL ISLAM | D186: SECTION OFFICER | E186: HISTORY | F186: 09 - 22000-53060 | G186: Category-2 | H186: 875 | I186: 1137.5 | J186: 63280 | N186: Category-1 | R186: 185 | S186: GKkZ cuPvwk UvKv | AA186: Dinajpur - Biral | AB186: অন্য এলাকা
B187: 05542 | C187: MD. ABUL KALAM | D187: SECTION OFFICER | E187: HISTORY | F187: 10 - 16000-38640 | G187: Category-2 | H187: 875 | I187: 1137.5 | J187: 65820 | N187: Category-1 | R187: 186 | S187: GKkZ wQqvwk UvKv | AA187: Dinajpur - Birampur | AB187: অন্য এলাকা
B188: 04194 | C188: KAZI ZAMIRUL ALAM | D188: OFFICE SUPPORT STAFF | E188: HISTORY | F188: 13 - 11000-26590 | G188: Category-3 | H188: 700 | I188: 910 | J188: 28100 | N188: Category-1 | R188: 187 | S188: GKkZ mvZvwk UvKv | AA188: Dinajpur - Birganj | AB188: অন্য এলাকা
B189: 04614 | C189: MD. ALAUDDIN | D189: SEMINAR BEARER | E189: HISTORY | F189: 13 - 11000-26590 | G189: Category-3 | H189: 700 | I189: 910 | J189: 23680 | N189: Category-1 | R189: 188 | S189: GKkZ AvUvwk UvKv | AA189: Dinajpur - Bochaganj | AB189: অন্য এলাকা
B190: 06506 | C190: MD. SHARIFUL ALAM | D190: ORDERLY PEON | E190: HISTORY | F190: 16 - 9300-22490 | G190: Category-3 | H190: 490 | I190: 637 | J190: 24110 | N190: Category-1 | R190: 189 | S190: GKkZ EbbeŸB UvKv | AA190: Dinajpur - Chirirbandar | AB190: অন্য এলাকা
B191: 00827 | C191: DR. A. K. M. YAKUB ALI | D191: PROFESSOR EMERITUS | E191: ISLAMIC HISTORY & CULTURE | F191: 01 - 78000/- (Fixed) | G191: Category-1 | H191: 1400 | I191: 1820 | J191: 22960 | N191: Category-1 | R191: 190 | S191: GKkZ beŸB UvKv | AA191: Dinajpur - Dinajpur Sadar | AB191: অন্য এলাকা
B192: 00835 | C192: DR. SYEDA NOOR - E - KASEDA KHATUN | D192: PROFESSOR | E192: ISLAMIC HISTORY & CULTURE | F192: 01 - 78000/- (Fixed) | G192: Category-1 | H192: 1400 | I192: 1820 | J192: 18480 | N192: Category-1 | R192: 191 | S192: GKkZ GKvbeŸB UvKv | AA192: Dinajpur - Fulbari | AB192: অন্য এলাকা
B193: 00837 | C193: DR. KAZI M. MOSTAFIZUR RAHMAN | D193: PROFESSOR | E193: ISLAMIC HISTORY & CULTURE | F193: 01 - 78000/- (Fixed) | G193: Category-1 | H193: 1400 | I193: 1820 | J193: 66000 | N193: Category-1 | R193: 192 | S193: GKkZ weivbeŸB UvKv | AA193: Dinajpur - Ghoraghat | AB193: অন্য এলাকা
B194: 00839 | C194: DR. M. FAZLUL HAQUE | D194: PROFESSOR | E194: ISLAMIC HISTORY & CULTURE | F194: 01 - 78000/- (Fixed) | G194: Category-1 | H194: 1400 | I194: 1820 | J194: 78000 | N194: Category-1 | R194: 193 | S194: GKkZ wZivbeŸB UvKv | AA194: Dinajpur - Hakimpur | AB194: অন্য এলাকা
B195: 00840 | C195: DR. MOHAMMAD FAYEK UZZAMAN | D195: PROFESSOR | E195: ISLAMIC HISTORY & CULTURE | F195: 01 - 78000/- (Fixed) | G195: Category-1 | H195: =VLOOKUP(F195,$K$2:$N$21,3,0) -> 1400 | I195: 1820 | J195: 78000 | N195: Category-2 | R195: 194 | S195: GKkZ PzivbeŸB UvKv | AA195: Dinajpur - Kaharole | AB195: অন্য এলাকা
B196: 00842 | C196: DR. M. AZIZUL HAQUE | D196: PROFESSOR | E196: ISLAMIC HISTORY & CULTURE | F196: 01 - 78000/- (Fixed) | G196: =IFERROR(VLOOKUP(F196,$K$2:$L$21,2,0),0) -> Category-1 | H196: 1400 | I196: =VLOOKUP(F196,$K$2:$N$21,4,0) -> 1820 | J196: 78000 | N196: Category-2 | R196: 195 | S196: GKkZ cuPvbeŸB UvKv | AA196: Dinajpur - Khansama | AB196: অন্য এলাকা
B197: 00838 | C197: DR. MUNSHI MUNJURUL HAQUE | D197: PROFESSOR | E197: ISLAMIC HISTORY & CULTURE | F197: 01 - 78000/- (Fixed) | G197: Category-1 | H197: 1400 | I197: 1820 | J197: 78000 | N197: Category-3 | R197: 196 | S197: GKkZ wQqvbeŸB UvKv | AA197: Dinajpur - Nawabganj | AB197: অন্য এলাকা
B198: 00841 | C198: EMTIAZ AHMED | D198: PROFESSOR | E198: ISLAMIC HISTORY & CULTURE | F198: 01 - 78000/- (Fixed) | G198: Category-1 | H198: 1400 | I198: 1820 | J198: 78000 | N198: Category-3 | R198: 197 | S198: GKkZ mvZvbeŸB UvKv | AA198: Dinajpur - Parbatipur | AB198: অন্য এলাকা
B199: 01216 | C199: DR. DILSHAD ARA BULU | D199: PROFESSOR | E199: ISLAMIC HISTORY & CULTURE | F199: 01 - 78000/- (Fixed) | G199: Category-1 | H199: 1400 | I199: 1820 | J199: 78000 | N199: Category-3 | R199: 198 | S199: GKkZ AvUvbeŸB UvKv | AA199: Faridpur - Alfadanga | AB199: অন্য এলাকা
B200: 01217 | C200: DR. MST. SAYEEDA AKHTER | D200: PROFESSOR | E200: ISLAMIC HISTORY & CULTURE | F200: 02 - 66000-76490 | G200: Category-1 | H200: 1225 | I200: 1592.5 | J200: 78000 | N200: Category-1 | R200: 199 | S200: GKkZ wbivbeŸB UvKv | AA200: Faridpur - Bhanga | AB200: অন্য এলাকা
... 4300 more rows

Sheet Sheet1
P1: search | Q1: frequenty | R1: final list | W1: 1 | X1: 2 | Y1: 3 | Z1: 4 | AA1: 5 | AB1: 6 | AC1: 7 | AD1: 8 | AE1: 9 | AF1: 10 | AG1: 11 | AH1: 12 | AI1: 13 | AJ1: 14 | AK1: 15 | AL1: 16 | AM1: 17 | AN1: 18 | AO1: 19 | AP1: 20 | AQ1: 21 | AR1: 22 | AS1: 23 | AT1: 24 | AU1: 25 | AV1: 26 | AW1: 27 | AX1: 28 | AY1: 29 | AZ1: 30 | BA1: 31 | BB1: 32 | BC1: 33 | BD1: 34 | BE1: 35 | BF1: 36 | BG1: 37 | BH1: 38 | BI1: 39 | BJ1: 40 | BK1: 41 | BL1: 42 | BM1: 43 | BN1: 44 | BO1: 45 | BP1: 46 | BQ1: 47 | BR1: 48 | BS1: 49 | BT1: 50 | BU1: 51 | BV1: 52 | BW1: 53 | BX1: 54 | BY1: 55 | BZ1: 56 | CA1: 57 | CB1: 58 | CC1: 59 | CD1: 60 | CE1: 61 | CF1: 62 | CG1: 63 | CH1: 64 | CI1: 65 | CJ1: 66 | CK1: 67 | CL1: 68 | CM1: 69 | CN1: 70 | CO1: 71 | CP1: 72 | CQ1: 73 | CR1: 74 | CS1: 75 | CT1: 76 | CU1: 77 | CV1: 78 | CW1: 79 | CX1: 80 | CY1: 81 | CZ1: 82 | DA1: 83 | DB1: 84 | DC1: 85 | DD1: 86 | DE1: 87 | DF1: 88 | DG1: 89 | DH1: 90 | DI1: 91 | DJ1: 92 | DK1: 93 | DL1: 94 | DM1: 95 | DN1: 96 | DO1: 97 | DP1: 98 | DQ1: 99 | DR1: 100 | DS1: 101 | DT1: 102 | DU1: 103 | DV1: 104 | DW1: 105 | DX1: 106 | DY1: 107 | DZ1: 108 | EA1: 109 | EB1: 110 | EC1: 111 | ED1: 112 | EE1: 113 | EF1: 114 | EG1: 115 | EH1: 116 | EI1: 117 | EJ1: 118 | EK1: 119 | EL1: 120 | EM1: 121 | EN1: 122 | EO1: 123 | EP1: 124 | EQ1: 125 | ER1: 126 | ES1: 127 | ET1: 128 | EU1: 129 | EV1: 130 | EW1: 131 | EX1: 132 | EY1: 133 | EZ1: 134 | FA1: 135 | FB1: 136 | FC1: 137 | FD1: 138 | FE1: 139 | FF1: 140 | FG1: 141 | FH1: 142 | FI1: 143 | FJ1: 144 | FK1: 145 | FL1: 146 | FM1: 147 | FN1: 148 | FO1: 149 | FP1: 150 | FQ1: 151 | FR1: 152 | FS1: 153 | FT1: 154 | FU1: 155 | FV1: 156 | FW1: 157 | FX1: 158 | FY1: 159 | FZ1: 160 | GA1: 161 | GB1: 162 | GC1: 163 | GD1: 164 | GE1: 165 | GF1: 166 | GG1: 167 | GH1: 168 | GI1: 169 | GJ1: 170 | GK1: 171 | GL1: 172 | GM1: 173 | GN1: 174 | GO1: 175 | GP1: 176 | GQ1: 177 | GR1: 178 | GS1: 179 | GT1: 180 | GU1: 181 | GV1: 182 | GW1: 183 | GX1: 184 | GY1: 185 | GZ1: 186 | HA1: 187 | HB1: 188 | HC1: 189 | HD1: 190 | HE1: 191 | HF1: 192 | HG1: 193 | HH1: 194 | HI1: 195 | HJ1: 196 | HK1: 197 | HL1: 198 | HM1: 199 | HN1: 200 | HO1: 201 | HP1: 202 | HQ1: 203 | HR1: 204 | HS1: 205 | HT1: 206 | HU1: 207 | HV1: 208 | HW1: 209 | HX1: 210 | HY1: 211 | HZ1: 212 | IA1: 213 | IB1: 214 | IC1: 215 | ID1: 216 | IE1: 217 | IF1: 218 | IG1: 219 | IH1: 220 | II1: 221 | IJ1: 222 | IK1: 223 | IL1: 224 | IM1: 225 | IN1: 226 | IO1: 227 | IP1: 228 | IQ1: 229 | IR1: 230 | IS1: 231 | IT1: 232 | IU1: 233 | IV1: 234 | IW1: 235 | IX1: 236 | IY1: 237 | IZ1: 238 | JA1: 239 | JB1: 240 | JC1: 241 | JD1: 242 | JE1: 243 | JF1: 244 | JG1: 245 | JH1: 246 | JI1: 247 | JJ1: 248 | JK1: 249 | JL1: 250 | JM1: 251 | JN1: 252 | JO1: 253 | JP1: 254 | JQ1: 255 | JR1: 256 | JS1: 257 | JT1: 258 | JU1: 259 | JV1: 260 | JW1: 261 | JX1: 262 | JY1: 263 | JZ1: 264 | KA1: 265 | KB1: 266 | KC1: 267 | KD1: 268 | KE1: 269 | KF1: 270 | KG1: 271 | KH1: 272 | KI1: 273 | KJ1: 274 | KK1: 275 | KL1: 276 | KM1: 277 | KN1: 278 | KO1: 279 | KP1: 280 | KQ1: 281 | KR1: 282 | KS1: 283 | KT1: 284 | KU1: 285 | KV1: 286 | KW1: 287 | KX1: 288 | KY1: 289 | KZ1: 290 | LA1: 291 | LB1: 292 | LC1: 293 | LD1: 294 | LE1: 295 | LF1: 296 | LG1: 297 | LH1: 298 | LI1: 299 | LJ1: 300 | LK1: 301 | LL1: 302 | LM1: 303 | LN1: 304 | LO1: 305 | LP1: 306 | LQ1: 307 | LR1: 308 | LS1: 309 | LT1: 310 | LU1: 311 | LV1: 312 | LW1: 313 | LX1: 314 | LY1: 315 | LZ1: 316 | MA1: 317 | MB1: 318 | MC1: 319 | MD1: 320 | ME1: 321 | MF1: 322 | MG1: 323 | MH1: 324 | MI1: 325 | MJ1: 326 | MK1: 327 | ML1: 328 | MM1: 329 | MN1: 330 | MO1: 331 | MP1: 332 | MQ1: 333 | MR1: 334 | MS1: 335 | MT1: 336 | MU1: 337 | MV1: 338 | MW1: 339 | MX1: 340 | MY1: 341 | MZ1: 342 | NA1: 343 | NB1: 344 | NC1: 345 | ND1: 346 | NE1: 347 | NF1: 348 | NG1: 349 | NH1: 350 | NI1: 351 | NJ1: 352 | NK1: 353 | NL1: 354 | NM1: 355 | NN1: 356 | NO1: 357 | NP1: 358 | NQ1: 359 | NR1: 360 | NS1: 361 | NT1: 362 | NU1: 363 | NV1: 364 | NW1: 365 | NX1: 366 | NY1: 367 | NZ1: 368 | OA1: 369 | OB1: 370 | OC1: 371 | OD1: 372 | OE1: 373 | OF1: 374 | OG1: 375 | OH1: 376 | OI1: 377 | OJ1: 378 | OK1: 379 | OL1: 380 | OM1: 381 | ON1: 382 | OO1: 383 | OP1: 384 | OQ1: 385 | OR1: 386 | OS1: 387 | OT1: 388 | OU1: 389 | OV1: 390 | OW1: 391 | OX1: 392 | OY1: 393 | OZ1: 394 | PA1: 395 | PB1: 396 | PC1: 397 | PD1: 398 | PE1: 399 | PF1: 400 | PG1: 401 | PH1: 402 | PI1: 403 | PJ1: 404 | PK1: 405 | PL1: 406 | PM1: 407 | PN1: 408 | PO1: 409 | PP1: 410 | PQ1: 411 | PR1: 412 | PS1: 413 | PT1: 414 | PU1: 415 | PV1: 416 | PW1: 417 | PX1: 418 | PY1: 419 | PZ1: 420 | QA1: 421 | QB1: 422 | QC1: 423 | QD1: 424 | QE1: 425 | QF1: 426 | QG1: 427 | QH1: 428 | QI1: 429 | QJ1: 430 | QK1: 431 | QL1: 432 | QM1: 433 | QN1: 434 | QO1: 435 | QP1: 436 | QQ1: 437 | QR1: 438 | QS1: 439 | QT1: 440 | QU1: 441 | QV1: 442 | QW1: 443 | QX1: 444 | QY1: 445 | QZ1: 446 | RA1: 447 | RB1: 448 | RC1: 449 | RD1: 450 | RE1: 451 | RF1: 452 | RG1: 453 | RH1: 454 | RI1: 455 | RJ1: 456 | RK1: 457 | RL1: 458 | RM1: 459 | RN1: 460 | RO1: 461 | RP1: 462 | RQ1: 463 | RR1: 464 | RS1: 465 | RT1: 466 | RU1: 467 | RV1: 468 | RW1: 469 | RX1: 470 | RY1: 471 | RZ1: 472 | SA1: 473 | SB1: 474 | SC1: 475 | SD1: 476 | SE1: 477 | SF1: 478 | SG1: 479 | SH1: 480 | SI1: 481 | SJ1: 482 | SK1: 483 | SL1: 484 | SM1: 485 | SN1: 486 | SO1: 487 | SP1: 488 | SQ1: 489 | SR1: 490 | SS1: 491 | ST1: 492 | SU1: 493 | SV1: 494 | SW1: 495 | SX1: 496 | SY1: 497 | SZ1: 498 | TA1: 499 | TB1: 500 | TC1: 501 | TD1: 502 | TE1: 503 | TF1: 504 | TG1: 505 | TH1: 506 | TI1: 507 | TJ1: 508 | TK1: 509 | TL1: 510 | TM1: 511 | TN1: 512 | TO1: 513 | TP1: 514 | TQ1: 515 | TR1: 516 | TS1: 517 | TT1: 518 | TU1: 519 | TV1: 520 | TW1: 521 | TX1: 522 | TY1: 523 | TZ1: 524 | UA1: 525 | UB1: 526 | UC1: 527 | UD1: 528 | UE1: 529 | UF1: 530 | UG1: 531 | UH1: 532 | UI1: 533 | UJ1: 534 | UK1: 535 | UL1: 536 | UM1: 537 | UN1: 538 | UO1: 539 | UP1: 540 | UQ1: 541 | UR1: 542 | US1: 543 | UT1: 544 | UU1: 545 | UV1: 546 | UW1: 547 | UX1: 548 | UY1: 549 | UZ1: 550 | VA1: 551 | VB1: 552 | VC1: 553 | VD1: 554 | VE1: 555 | VF1: 556 | VG1: 557 | VH1: 558
A2: শুধুমাত্র রাজশাহী বিশ্ববিদ্যালয়ে কর্মরত শিক্ষক / কর্মকর্তা / কর্মচারীগণের জন্য | I2: বেতন আইডি | J2: =B4 -> 0 | P2: =IFERROR(SEARCH(INDIRECT(CELL("address")),U3),0) -> 1 | Q2: =IF(P2=0,"",COUNTIF($P$2:P2,">0")) -> 1 | R2: =IFERROR(INDEX(U:U,MATCH(ROW(P2),Q:Q,0)),"") -> Bagerhat - Bagerhat Sadar | V2: Upazila/ Thana | W2: Barguna - Amtali | X2: Barguna - Bamna | Y2: Barguna - Barguna Sadar | Z2: Barguna - Betagi | AA2: Barguna - Patharghata | AB2: Barguna - Taltali | AC2: Barishal - Agailjhara | AD2: Barishal - Babuganj | AE2: Barishal - Bakerganj | AF2: Barishal - Banari Para | AG2: Barishal - Gaurnadi | AH2: Barishal - Barishal Sadar | AI2: Barishal - Airport Thana, Barishal | AJ2: Barishal - Bondar Thana, Barishal | AK2: Barishal - Kawnia Thana | AL2: Barishal - Muladi | AM2: Barishal - Wazirpur | AN2: Bhola - Bhola Sadar | AO2: Bhola - Burhanuddin | AP2: Bhola - Char Fasson | AQ2: Bhola - Daulat khan | AR2: Bhola - Lalmohan | AS2: Bhola - Manpura | AT2: Bhola - Tazumuddin | AU2: Jhalokati - Jhalokati Sadar | AV2: Jhalokati - Kanthalia | AW2: Jhalokati - Nalchhity | AX2: Jhalokati - Rajapur | AY2: Patuakhali - Bauphal | AZ2: Patuakhali - Dashmina | BA2: Patuakhali - Dumki | BB2: Patuakhali - Galachipa | BC2: Patuakhali - Kalapara | BD2: Patuakhali - Mirzaganj | BE2: Patuakhali - Patuakhali Sadar | BF2: Pirojpur - Bhandaria | BG2: Pirojpur - Kawkhali | BH2: Pirojpur - Mathbaria | BI2: Pirojpur - Nazirpur | BJ2: Pirojpur - Pirojpur Sadar | BK2: Pirojpur - Nesarabad | BL2: Pirojpur - Indurkani | BM2: Bandarban - Alikadam | BN2: Bandarban - Bandarban Sadar | BO2: Bandarban - Lama | BP2: Bandarban - Naikhongchhari | BQ2: Bandarban - Rowangchhari | BR2: Bandarban - Ruma | BS2: Bandarban - Thanchi | BT2: Brahmanbaria - Akhaura | BU2: Brahmanbaria - Banchharampur | BV2: Brahmanbaria - Bijoynagar | BW2: Brahmanbaria - Brahmanbaria Sadar | BX2: Brahmanbaria - Ashuganj | BY2: Brahmanbaria - Kasba | BZ2: Brahmanbaria - Nabinagar | CA2: Brahmanbaria - Nasirnagar | CB2: Brahmanbaria - Sarail | CC2: Chandpur - Chandpur Sadar | CD2: Chandpur - Faridganj | CE2: Chandpur - Haim Char | CF2: Chandpur - Hajiganj | CG2: Chandpur - Shahrasti | CH2: Chattogram - Akborsah Thana | CI2: Chattogram - Anwara | CJ2: Chattogram - Bayejid Bostami | CK2: Chattogram - Banshkhali | CL2: Chattogram - Bakalia Thana | CM2: Chattogram - Boalkhali | CN2: Chattogram - Chakbazar Thana | CO2: Chattogram - Chandanaish | CP2: Chattogram - Chandgaon Thana | CQ2: Chattogram - Bandar Thana | CR2: Chattogram - Double Mooring Thana | CS2: Chattogram - EPZ Thana | CT2: Chattogram - Fatikchhari | CU2: Chattogram - Halishahar Thana | CV2: Chattogram - Hathazari | CW2: Chattogram - Karnafuli | CX2: Chattogram - Kotwali Thana, Chattogram | CY2: Chattogram - Khulshi Thana | CZ2: Chattogram - Lohagara | DA2: Chattogram - Mirsarai | DB2: Chattogram - Pahartali Thana | DC2: Chattogram - Panchlaish Thana | DD2: Chattogram - Patiya | DE2: Chattogram - Patenga Thana | DF2: Chattogram - Rangunia | DG2: Chattogram - Raozan | DH2: Chattogram - Shadarghat Thana | DI2: Chattogram - Sandwip | DJ2: Chattogram - Satkania | DK2: Chattogram - Sitakunda | DL2: Cumilla - Barura | DM2: Cumilla - Brahman Para | DN2: Cumilla - Burichang | DO2: Cumilla - Chandina | DP2: Cumilla - Chauddagram | DQ2: Cumilla - Cumilla Sadar Dakshin | DR2: Cumilla - Debidwar | DS2: Cumilla - Homna | DT2: Cumilla - Cumilla Adarsha Sadar | DU2: Cumilla - Laksam | DV2: Cumilla - Manoharganj | DW2: Cumilla - Meghna | DX2: Cumilla - Muradnagar | DY2: Cumilla - Nangalkot | DZ2: Cumilla - Titas | EA2: Cumilla - Lalmai | EB2: Cox's Bazar - Chakaria | EC2: Cox's Bazar - Cox's Bazar Sadar | ED2: Cox's Bazar - Kutubdia | EE2: Cox's Bazar - Maheshkhali | EF2: Cox's Bazar - Pekua | EG2: Cox's Bazar - Ramu | EH2: Cox's Bazar - Teknaf | EI2: Cox's Bazar - Ukhia | EJ2: Feni - Chhagalnaiya | EK2: Feni - Daganbhuiyan | EL2: Feni - Feni Sadar | EM2: Feni - Fulgazi | EN2: Feni - Parshuram | EO2: Feni - Sonagazi | EP2: Khagrachhari - Guimara | EQ2: Khagrachhari - Khagrachhari Sadar | ER2: Khagrachhari - Lakkhichhari | ES2: Khagrachhari - Mahalchhari | ET2: Khagrachhari - Manikchhari | EU2: Khagrachhari - Matiranga | EV2: Khagrachhari - Ramgarh | EW2: Lakshmipur - Kamalnagar | EX2: Lakshmipur - Lakshmipur Sadar | EY2: Lakshmipur - Raipur | EZ2: Lakshmipur - Ramganj | FA2: Lakshmipur - Ramgati | FB2: Noakhali - Begumganj | FC2: Noakhali - Chatkhil | FD2: Noakhali - Companiganj | FE2: Noakhali - Kabirhat | FF2: Noakhali - Senbag | FG2: Noakhali - Sonaimuri | FH2: Noakhali - Subarnachar | FI2: Noakhali - Noakhali Sadar | FJ2: Rangamati - Baghaichhari | FK2: Rangamati - Kawkhali | FL2: Rangamati - Kaptai | FM2: Rangamati - Rajasthali | FN2: Rangamati - Rangamati Sadar | FO2: Dhaka - Adabor Thana | FP2: Dhaka - Badda Thana | FQ2: Dhaka - Bangshal Thana | FR2: Dhaka - Biman Bandar Thana | FS2: Dhaka - Banani Thana | FT2: Dhaka - Cantonment Thana | FU2: Dhaka - Chak Bazar Thana | FV2: Dhaka - Dakshinkhan Thana | FW2: Dhaka - Darus Salam Thana | FX2: Dhaka - Demra Thana | FY2: Dhaka - Dhamrai | FZ2: Dhaka - Dhanmondi Thana | GA2: Dhaka - Dohar | GB2: Dhaka - Bhasan Tek Thana | GC2: Dhaka - Bhatara Thana | GD2: Dhaka - Gendaria Thana | GE2: Dhaka - Gulshan Thana | GF2: Dhaka - Hazaribagh Thana | GG2: Dhaka - Jatrabari Thana | GH2: Dhaka - Kafrul Thana | GI2: Dhaka - Kadamtali Thana | GJ2: Dhaka - Kalabagan Thana | GK2: Dhaka - Kamrangir Char Thana | GL2: Dhaka - Khilgaon Thana | GM2: Dhaka - Khilkhet Thana | GN2: Dhaka - Keraniganj | GO2: Dhaka - Kotwali Thana, Dhaka | GP2: Dhaka - Lalbagh Thana | GQ2: Dhaka - Mirpur Thana | GR2: Dhaka - Mohammadpur Thana | GS2: Dhaka - Motijheel Thana | GT2: Dhaka - Mugda Para Thana | GU2: Dhaka - Nawabganj | GV2: Dhaka - New Market Thana | GW2: Dhaka - Pallabi Thana | GX2: Dhaka - Paltan Thana | GY2: Dhaka - Ramna Thana | GZ2: Dhaka - Rampura Thana | HA2: Dhaka - Sabujbagh Thana | HB2: Dhaka - Rupnagar Thana | HC2: Dhaka - Savar | HD2: Dhaka - Shahjahanpur Thana | HE2: Dhaka - Shah Ali Thana | HF2: Dhaka - Shahbagh Thana | HG2: Dhaka - Shyampur Thana | HH2: Dhaka - Sher-E-Bangla Nagar Thana | HI2: Dhaka - Sutrapur Thana | HJ2: Dhaka - Tejgaon Thana | HK2: Dhaka - Tejgaon Ind. Area Thana | HL2: Dhaka - Turag Thana | HM2: Dhaka - Uttara Paschim Thana | HN2: Dhaka - Uttara Purba Thana | HO2: Dhaka - Uttar Khan Thana | HP2: Dhaka - Wari Thana | HQ2: Faridpur - Alfadanga | HR2: Faridpur - Bhanga | HS2: Faridpur - Boalmari | HT2: Faridpur - Char Bhadrasan | HU2: Faridpur - Faridpur Sadar | HV2: Faridpur - Madhukhali | HW2: Faridpur - Nagarkanda | HX2: Faridpur - Sadarpur | HY2: Faridpur - Saltha | HZ2: Gazipur - Gazipur Sadar | IA2: Gazipur - Kaliakair | IB2: Gazipur - Kaliganj | IC2: Gazipur - Kapasia | ID2: Gazipur - Sreepur | IE2: Gazipur - Tongi Thana | IF2: Gopalganj - Gopalganj Sadar | IG2: Gopalganj - Kashiani | IH2: Gopalganj - Kotalipara | II2: Gopalganj - Muksudpur | IJ2: Gopalganj - Tungipara | IK2: Kishoreganj - Austagram | IL2: Kishoreganj - Bajitpur | IM2: Kishoreganj - Bhairab | IN2: Kishoreganj - Hossainpur | IO2: Kishoreganj - Itna | IP2: Kishoreganj - Karimganj | IQ2: Kishoreganj - Katiadi | IR2: Kishoreganj - Kishoreganj Sadar | IS2: Kishoreganj - Kuliar Char | IT2: Kishoreganj - Mithamain | IU2: Kishoreganj - Nikli | IV2: Kishoreganj - Pakundia | IW2: Kishoreganj - Tarail | IX2: Madaripur - Kalkini | IY2: Madaripur - Madaripur Sadar | IZ2: Madaripur - Rajoir | JA2: Madaripur - Shibchar | JB2: Manikganj - Daulatpur | JC2: Manikganj - Ghior | JD2: Manikganj - Harirampur | JE2: Manikganj - Manikganj Sadar | JF2: Manikganj - Saturia | JG2: Manikganj - Shibalay | JH2: Manikganj - Singair | JI2: Munshiganj - Gazaria | JJ2: Munshiganj - Louhajang | JK2: Munshiganj - Munshiganj Sadar | JL2: Munshiganj - Sirajdikhan | JM2: Munshiganj - Sreenagar | JN2: Munshiganj - Tongibari | JO2: Narayanganj - Araihazar | JP2: Narayanganj - Sonargaon | JQ2: Narayanganj - Bandar | JR2: Narayanganj - Narayanganj Sadar | JS2: Narayanganj - Rupganj | JT2: Narsingdi - Belabo | JU2: Narsingdi - Manohardi | JV2: Narsingdi - Narsingdi Sadar | JW2: Narsingdi - Palash | JX2: Narsingdi - Raipura | JY2: Narsingdi - Shibpur | JZ2: Rajbari - Baliakandi | KA2: Rajbari - Goalanda | KB2: Rajbari - Kalukhali | KC2: Rajbari - Pangsha | KD2: Rajbari - Rajbari Sadar | KE2: Shariatpur - Bhedarganj | KF2: Shariatpur - Damudya | KG2: Shariatpur - Gosairhat | KH2: Shariatpur - Naria | KI2: Shariatpur - Shariatpur Sadar | KJ2: Shariatpur - Zajira | KK2: Tangail - Basail | KL2: Tangail - Bhuanpur | KM2: Tangail - Delduar | KN2: Tangail - Dhanbari | KO2: Tangail - Ghatail | KP2: Tangail - Gopalpur | KQ2: Tangail - Kalihati | KR2: Tangail - Madhupur | KS2: Tangail - Mirzapur | KT2: Tangail - Nagarpur | KU2: Tangail - Sakhipur | KV2: Tangail - Tangail Sadar | KW2: Bagerhat - Bagerhat Sadar | KX2: Bagerhat - Chitalmari | KY2: Bagerhat - Fakirhat | KZ2: Bagerhat - Kachua | LA2: Bagerhat - Mollahat | LB2: Bagerhat - Mongla | LC2: Bagerhat - Morrelganj | LD2: Bagerhat - Rampal | LE2: Bagerhat - Sharankhola | LF2: Chuadanga - Alamdanga | LG2: Chuadanga - Chuadanga Sadar | LH2: Chuadanga - Damurhuda | LI2: Chuadanga - Jiban Nagar | LJ2: Chuadanga - Abhaynagar | LK2: Jashore - Bagharpara | LL2: Jashore - Chaugachha | LM2: Jashore - Jhikargachha | LN2: Jashore - Keshabpur | LO2: Jashore - Jashore Sadar | LP2: Jashore - Manirampur | LQ2: Jashore - Sharsha | LR2: Jhenaidah - Harinakunda | LS2: Jhenaidah - Jhenaidah Sadar | LT2: Jhenaidah - Kaliganj | LU2: Jhenaidah - Kotchandpur | LV2: Jhenaidah - Maheshpur | LW2: Jhenaidah - Shailkupa | LX2: Khulna - Aronghata Thana | LY2: Khulna - Batiaghata | LZ2: Khulna - Daulatpur Thana | MA2: Khulna - Dumuria | MB2: Khulna - Dighalia | MC2: Khulna - Harintana Thana | MD2: Khulna - Khalishpur Thana | ME2: Khulna - Khan Jahan Ali Thana | MF2: Khulna - Khulna Sadar Thana | MG2: Khulna - Koyra | MH2: Khulna - Labonchara Thana | MI2: Khulna - Paikgachha | MJ2: Khulna - Phultala | MK2: Khulna - Rupsa | ML2: Khulna - Sonadanga Thana | MM2: Khulna - Terokhada | MN2: Kushtia - Bheramara | MO2: Kushtia - Daulatpur | MP2: Kushtia - Khoksa | MQ2: Kushtia - Kumarkhali | MR2: Kushtia - Kushtia Sadar | MS2: Kushtia - Mirpur | MT2: Magura - Magura Sadar | MU2: Magura - Mohammadpur | MV2: Magura - Shalikha | MW2: Magura - Sreepur | MX2: Meherpur - Gangni | MY2: Meherpur - Mujib Nagar | MZ2: Meherpur - Meherpur Sadar | NA2: Narail - Kalia | NB2: Narail - Lohagara | NC2: Narail - Narail Sadar | ND2: Satkhira - Ashashuni | NE2: Satkhira - Debhata | NF2: Satkhira - Kalaroa | NG2: Satkhira - Kaliganj | NH2: Satkhira - Satkhira Sadar | NI2: Satkhira - Shyamnagar | NJ2: Satkhira - Tala | NK2: Jamalpur - Bakshiganj | NL2: Jamalpur - Dewanganj | NM2: Jamalpur - Islampur | NN2: Jamalpur - Jamalpur Sadar | NO2: Jamalpur - Madarganj | NP2: Jamalpur - Melandaha | NQ2: Jamalpur - Sarishabari | NR2: Mymensingh - Bhaluka | NS2: Mymensingh - Dhobaura | NT2: Mymensingh - Fulbaria | NU2: Mymensingh - Gafargaon | NV2: Mymensingh - Gouripur | NW2: Mymensingh - Haluaghat | NX2: Mymensingh - Ishwarganj | NY2: Mymensingh - Mymensingh Sadar | NZ2: Mymensingh - Muktagachha | OA2: Mymensingh - Nandail | OB2: Mymensingh - Phulpur | OC2: Mymensingh - Tarakanda | OD2: Mymensingh - Trishal | OE2: Netrakona - Atpara | OF2: Netrakona - Barhatta | OG2: Netrakona - Durgapur | OH2: Netrakona - Khaliajuri | OI2: Netrakona - Kalmakanda | OJ2: Netrakona - Kendua | OK2: Netrakona - Madan | OL2: Netrakona - Mohanganj | OM2: Netrakona - Netrakona Sadar | ON2: Netrakona - Purbadhala | OO2: Sherpur - Jhenaigati | OP2: Sherpur - Nakla | OQ2: Sherpur - Nalitabari | OR2: Sherpur - Sherpur Sadar | OS2: Sherpur - Sreebardi | OT2: Bogura - Adamdighi | OU2: Bogura - Bogura Sadar | OV2: Bogura - Dhunat | OW2: Bogura - Dupchachia | OX2: Bogura - Gabtali | OY2: Bogura - Kahaloo | OZ2: Bogura - Nandigram | PA2: Bogura - Sariakandi | PB2: Bogura - Shajahanpur | PC2: Bogura - Sherpur | PD2: Bogura - Shibganj | PE2: Bogura - Sonatala | PF2: Joypurhat - Akkelpur | PG2: Joypurhat - Joypurhat Sadar | PH2: Joypurhat - Kalai | PI2: Joypurhat - Khetlal | PJ2: Joypurhat - Panchbibi | PK2: Naogaon - Atrai | PL2: Naogaon - Badalgachhi | PM2: Naogaon - Dhamoirhat | PN2: Naogaon - Manda | PO2: Naogaon - Mahadebpur | PP2: Naogaon - Naogaon Sadar | PQ2: Naogaon - Niamatpur | PR2: Naogaon - Patnitala | PS2: Naogaon - Porsha | PT2: Naogaon - Raninagar | PU2: Naogaon - Sapahar | PV2: Natore - Bagatipara | PW2: Natore - Baraigram | PX2: Natore - Gurudaspur | PY2: Natore - Lalpur | PZ2: Natore - Naldanga | QA2: Natore - Natore Sadar | QB2: Natore - Singra | QC2: Chapai Nababganj - Bholahat | QD2: Chapai Nababganj - Gomastapur | QE2: Chapai Nababganj - Nachole | QF2: Chapai Nababganj - Chapai Nababganj Sadar | QG2: Chapai Nababganj - Shibganj | QH2: Pabna - Atgharia | QI2: Pabna - Bera | QJ2: Pabna - Bhangura | QK2: Pabna - Chatmohar | QL2: Pabna - Faridpur | QM2: Pabna - Ishwardi | QN2: Pabna - Pabna Sadar | QO2: Pabna - Santhia | QP2: Pabna - Sujanagar | QQ2: Rajshahi - Bagha | QR2: Rajshahi - Bagmara | QS2: Rajshahi - Boalia Thana | QT2: Rajshahi - Charghat | QU2: Rajshahi - Durgapur | QV2: Rajshahi - Godagari | QW2: Rajshahi - Matihar Thana | QX2: Rajshahi - Mohanpur | QY2: Rajshahi - Paba | QZ2: Rajshahi - Puthia | RA2: Rajshahi - Rajpara Thana | RB2: Rajshahi - Shah Makhdum Thana | RC2: Rajshahi - Tanore | RD2: Sirajganj - Belkuchi | RE2: Sirajganj - Kamarkhanda | RF2: Sirajganj - Kazipur | RG2: Sirajganj - Rayganj | RH2: Sirajganj - Shahjadpur | RI2: Sirajganj - Sirajganj Sadar | RJ2: Sirajganj - Tarash | RK2: Sirajganj - Ullah Para | RL2: Dinajpur - Birampur | RM2: Dinajpur - Birganj | RN2: Dinajpur - Biral | RO2: Dinajpur - Bochaganj | RP2: Dinajpur - Chirirbandar | RQ2: Dinajpur - Fulbari | RR2: Dinajpur - Ghoraghat | RS2: Dinajpur - Hakimpur | RT2: Dinajpur - Kaharole | RU2: Dinajpur - Khansama | RV2: Dinajpur - Dinajpur Sadar | RW2: Dinajpur - Nawabganj | RX2: Dinajpur - Parbatipur | RY2: Gaibandha - Phulchhari | RZ2: Gaibandha - Gaibandha Sadar | SA2: Gaibandha - Gobindaganj | SB2: Gaibandha - Palashbari | SC2: Gaibandha - Sadullapur | SD2: Gaibandha - Saghata | SE2: Gaibandha - Sundarganj | SF2: Kurigram - Bhurungamari | SG2: Kurigram - Rajibpur | SH2: Kurigram - Chilmari | SI2: Kurigram - Phulbari | SJ2: Kurigram - Kurigram Sadar | SK2: Kurigram - Nageshwari | SL2: Kurigram - Rajarhat | SM2: Kurigram - Raumari | SN2: Kurigram - Ulipur | SO2: Lalmonirhat - Aditmari | SP2: Lalmonirhat - Hatibandha | SQ2: Lalmonirhat - Kaliganj | SR2: Lalmonirhat - Lalmonirhat Sadar | SS2: Lalmonirhat - Patgram | ST2: Nilphamari - Dimla | SU2: Nilphamari - Domar | SV2: Nilphamari - Jaldhaka | SW2: Nilphamari - Kishoreganj | SX2: Nilphamari - Nilphamari Sadar | SY2: Nilphamari - Saidpur | SZ2: Panchagarh - Atwari | TA2: Panchagarh - Boda | TB2: Panchagarh - Debiganj | TC2: Panchagarh - Panchagarh Sadar | TD2: Panchagarh - Tentulia | TE2: Rangpur - Badarganj | TF2: Rangpur - Gangachara | TG2: Rangpur - Kaunia | TH2: Rangpur - Rangpur Sadar | TI2: Rangpur - Mitha Pukur | TJ2: Rangpur - Pirgachha | TK2: Rangpur - Pirganj | TL2: Rangpur - Taraganj | TM2: Thakurgaon - Baliadangi | TN2: Thakurgaon - Haripur | TO2: Thakurgaon - Pirganj | TP2: Thakurgaon - Ranishankail | TQ2: Thakurgaon - Thakurgaon Sadar | TR2: Habiganj - Ajmiriganj | TS2: Habiganj - Bahubal | TT2: Habiganj - Baniachong | TU2: Habiganj - Chunarughat | TV2: Habiganj - Habiganj Sadar | TW2: Habiganj - Lakhai | TX2: Habiganj - Madhabpur | TY2: Habiganj - Nabiganj | TZ2: Maulvibazar - Barlekha | UA2: Maulvibazar - Juri | UB2: Maulvibazar - Kamalganj | UC2: Maulvibazar - Kulaura | UD2: Maulvibazar - Maulvibazar Sadar | UE2: Maulvibazar - Rajnagar | UF2: Maulvibazar - Sreemangal | UG2: Sunamganj - Bishwambarpur | UH2: Sunamganj - Chhatak | UI2: Sunamganj - Dakshin Sunamganj | UJ2: Sunamganj - Derai | UK2: Sunamganj - Dharampasha | UL2: Sunamganj - Dowarabazar | UM2: Sunamganj - Jagannathpur | UN2: Sunamganj - Jamalganj | UO2: Sunamganj - Shalla | UP2: Sunamganj - Sunamganj Sadar | UQ2: Sunamganj - Tahirpur | UR2: Sylhet - Airport Thana, Sylhet | US2: Sylhet - Balaganj | UT2: Sylhet - Beani Bazar | UU2: Sylhet - Bishwanath | UV2: Sylhet - Companiganj | UW2: Sylhet - Dakshin Surma | UX2: Sylhet - Fenchuganj | UY2: Sylhet - Golapganj | UZ2: Sylhet - Gowainghat | VA2: Sylhet - Jaintapur | VB2: Sylhet - Jalalabad thana | VC2: Sylhet - Kanaighat | VD2: Sylhet - Osmaninagar | VE2: Sylhet - Moglabazar Thana | VF2: Sylhet - Sylhet Sadar | VG2: Sylhet - Sahporan Thana | VH2: Sylhet - Zakiganj
E3: তারিখ : | F3: =NOW() -> 2023-11-29T14:35:07.800 | H3: idno | J3: =IFERROR(IF(B4=0,0,VLOOKUP(B4,data!B1:G3252,6,0)),0) -> 0 | P3: =IFERROR(SEARCH(INDIRECT(CELL("address")),U4),0) -> 1 | Q3: =IF(P3=0,"",COUNTIF($P$2:P3,">0")) -> 2 | R3: =IFERROR(INDEX(U:U,MATCH(ROW(P3),Q:Q,0)),"") -> Bagerhat - Chitalmari | T3: =IF(ISNUMBER(SEARCH($C$13,U3)),MAX($T$2,T2)+1,0) -> 1 | U3: Bagerhat - Bagerhat Sadar | V3: Barguna - Amtali | W3: 0 | X3: 52 | Y3: 15 | Z3: 48 | AA3: 43 | AB3: 23 | AC3: 114 | AD3: 88 | AE3: 50 | AF3: 98 | AG3: 108 | AH3: 72 | AI3: 79 | AJ3: 73 | AK3: 76 | AL3: 102 | AM3: 92 | AN3: 105 | AO3: 129 | AP3: 96 | AQ3: 123 | AR3: 110 | AS3: 179 | AT3: 151 | AU3: 85 | AV3: 53 | AW3: 66 | AX3: 98 | AY3: 65 | AZ3: 62 | BA3: 46 | BB3: 36 | BC3: 19 | BD3: 42 | BE3: 32 | BF3: 112 | BG3: 107 | BH3: 47 | BI3: 165 | BJ3: 118 | BK3: 107 | BL3: 83 | BM3: 437 | BN3: 374 | BO3: 406 | BP3: 444 | BQ3: 392 | BR3: 408 | BS3: 437 | BT3: 363 | BU3: 290 | BV3: 348 | BW3: 345 | BX3: 321 | BY3: 348 | BZ3: 353 | CA3: 349 | CB3: 333 | CC3: 185 | CD3: 168 | CE3: 156 | CF3: 182 | CG3: 185 | CH3: 295 | CI3: 322 | CJ3: 297 | CK3: 344 | CL3: 305 | CM3: 314 | CN3: 303 | CO3: 334 | CP3: 304 | CQ3: 304 | CR3: 302 | CS3: 306 | CT3: 270 | CU3: 304 | CV3: 308 | CW3: 296 | CX3: 304 | CY3: 299 | CZ3: 361 | DA3: 245 | DB3: 295 | DC3: 302 | DD3: 325 | DE3: 316 | DF3: 328 | DG3: 318 | DH3: 307 | DI3: 294 | DJ3: 353 | DK3: 266 | DL3: 203 | DM3: 344 | DN3: 335 | DO3: 310 | DP3: 352 | DQ3: 331 | DR3: 325 | DS3: 303 | DT3: 328 | DU3: 212 | DV3: 193 | DW3: 279 | DX3: 335 | DY3: 209 | DZ3: 295 | EA3: 222 | EB3: 395 | EC3: 446 | ED3: 379 | EE3: 410 | EF3: 368 | EG3: 436 | EH3: 517 | EI3: 466 | EJ3: 224 | EK3: 199 | EL3: 212 | EM3: 228 | EN3: 235 | EO3: 213 | EP3: 289 | EQ3: 316 | ER3: 319 | ES3: 311 | ET3: 278 | EU3: 300 | EV3: 270 | EW3: 193 | EX3: 145 | EY3: 157 | EZ3: 165 | FA3: 168 | FB3: 174 | FC3: 176 | FD3: 202 | FE3: 199 | FF3: 189 | FG3: 186 | FH3: 197 | FI3: 187 | FJ3: 368 | FK3: 296 | FL3: 350 | FM3: 349 | FN3: 357 | FO3: 251 | FP3: 249 | FQ3: 239 | FR3: 260 | FS3: 251 | FT3: 254 | FU3: 240 | FV3: 264 | FW3: 254 | FX3: 245 | FY3: 287 | FZ3: 248 | GA3: 241 | GB3: 256 | GC3: 251 | GD3: 238 | GE3: 252 | GF3: 247 | GG3: 245 | GH3: 252 | GI3: 244 | GJ3: 248 | GK3: 243 | GL3: 250 | GM3: 256 | GN3: 236 | GO3: 239 | GP3: 240 | GQ3: 258 | GR3: 251 | GS3: 245 | GT3: 242 | GU3: 242 | GV3: 245 | GW3: 259 | GX3: 245 | GY3: 245 | GZ3: 246 | HA3: 243 | HB3: 257 | HC3: 260 | HD3: 244 | HE3: 255 | HF3: 245 | HG3: 239 | HH3: 251 | HI3: 240 | HJ3: 248 | HK3: 248 | HL3: 265 | HM3: 263 | HN3: 262 | HO3: 267 | HP3: 241 | HQ3: 196 | HR3: 166 | HS3: 211 | HT3: 200 | HU3: 197 | HV3: 219 | HW3: 181 | HX3: 183 | HY3: 200 | HZ3: 277 | IA3: 297 | IB3: 294 | IC3: 299 | ID3: 306 | IE3: 264 | IF3: 156 | IG3: 188 | IH3: 131 | II3: 183 | IJ3: 153 | IK3: 600 | IL3: 332 | IM3: 315 | IN3: 343 | IO3: 565 | IP3: 358 | IQ3: 325 | IR3: 347 | IS3: 327 | IT3: 582 | IU3: 346 | IV3: 333 | IW3: 379 | IX3: 121 | IY3: 131 | IZ3: 143 | JA3: 160 | JB3: 257 | JC3: 249 | JD3: 271 | JE3: 289 | JF3: 302 | JG3: 240 | JH3: 257 | JI3: 268 | JJ3: 215 | JK3: 239 | JL3: 248 | JM3: 213 | JN3: 234 | JO3: 268 | JP3: 260 | JQ3: 259 | JR3: 248 | JS3: 259 | JT3: 308 | JU3: 307 | JV3: 282 | JW3: 282 | JX3: 301 | JY3: 288 | JZ3: 234 | KA3: 221 | KB3: 240 | KC3: 249 | KD3: 224 | KE3: 164 | KF3: 161 | KG3: 155 | KH3: 163 | KI3: 150 | KJ3: 165 | KK3: 344 | KL3: 361 | KM3: 324 | KN3: 393 | KO3: 364 | KP3: 376 | KQ3: 343 | KR3: 380 | KS3: 311 | KT3: 273 | KU3: 329 | KV3: 334 | KW3: 144 | KX3: 155 | KY3: 185 | KZ3: 139 | LA3: 173 | LB3: 179 | LC3: 73 | LD3: 158 | LE3: 76 | LF3: 313 | LG3: 310 | LH3: 319 | LI3: 322 | LJ3: 207 | LK3: 231 | LL3: 260 | LM3: 246 | LN3: 211 | LO3: 245 | LP3: 225 | LQ3: 263 | LR3: 293 | LS3: 272 | LT3: 264 | LU3: 300 | LV3: 276 | LW3: 290 | LX3: 175 | LY3: 181 | LZ3: 188 | MA3: 180 | MB3: 191 | MC3: 174 | MD3: 183 | ME3: 196 | MF3: 175 | MG3: 267 | MH3: 175 | MI3: 235 | MJ3: 201 | MK3: 169 | ML3: 179 | MM3: 180 | MN3: 323 | MO3: 321 | MP3: 262 | MQ3: 272 | MR3: 288 | MS3: 302 | MT3: 245 | MU3: 226 | MV3: 268 | MW3: 251 | MX3: 334 | MY3: 352 | MZ3: 337 | NA3: 183 | NB3: 187 | NC3: 204 | ND3: 254 | NE3: 250 | NF3: 241 | NG3: 264 | NH3: 229 | NI3: 280 | NJ3: 213 | NK3: 461 | NL3: 458 | NM3: 448 | NN3: 419 | NO3: 445 | NP3: 436 | NQ3: 412 | NR3: 323 | NS3: 409 | NT3: 360 | NU3: 335 | NV3: 380 | NW3: 411 | NX3: 385 | NY3: 370 | NZ3: 379 | OA3: 370 | OB3: 391 | OC3: 363 | OD3: 355 | OE3: 419 | OF3: 419 | OG3: 417 | OH3: 454 | OI3: 433 | OJ3: 385 | OK3: 430 | OL3: 430 | OM3: 401 | ON3: 394 | OO3: 456 | OP3: 411 | OQ3: 431 | OR3: 437 | OS3: 455 | OT3: 428 | OU3: 431 | OV3: 410 | OW3: 433 | OX3: 444 | OY3: 439 | OZ3: 405 | PA3: 456 | PB3: 431 | PC3: 417 | PD3: 449 | PE3: 466 | PF3: 454 | PG3: 469 | PH3: 468 | PI3: 459 | PJ3: 480 | PK3: 396 | PL3: 444 | PM3: 509 | PN3: 453 | PO3: 473 | PP3: 421 | PQ3: 472 | PR3: 491 | PS3: 509 | PT3: 415 | PU3: 507 | PV3: 365 | PW3: 357 | PX3: 370 | PY3: 336 | PZ3: 382 | QA3: 368 | QB3: 384 | QC3: 510 | QD3: 485 | QE3: 476 | QF3: 457 | QG3: 477 | QH3: 307 | QI3: 333 | QJ3: 331 | QK3: 323 | QL3: 333 | QM3: 322 | QN3: 292 | QO3: 325 | QP3: 312 | QQ3: 348 | QR3: 401 | QS3: 409 | QT3: 364 | QU3: 398 | QV3: 441 | QW3: 405 | QX3: 427 | QY3: 411 | QZ3: 383 | RA3: 411 | RB3: 409 | RC3: 420 | RD3: 378 | RE3: 375 | RF3: 405 | RG3: 398 | RH3: 343 | RI3: 377 | RJ3: 387 | RK3: 359 | RL3: 518 | RM3: 603 | RN3: 581 | RO3: 599 | RP3: 567 | RQ3: 531 | RR3: 495 | RS3: 490 | RT3: 594 | RU3: 596 | RV3: 572 | RW3: 512 | RX3: 551 | RY3: 500 | RZ3: 495 | SA3: 465 | SB3: 481 | SC3: 504 | SD3: 480 | SE3: 524 | SF3: 609 | SG3: 495 | SH3: 595 | SI3: 579 | SJ3: 581 | SK3: 597 | SL3: 565 | SM3: 512 | SN3: 585 | SO3: 574 | SP3: 591 | SQ3: 563 | SR3: 564 | SS3: 627 | ST3: 599 | SU3: 607 | SV3: 578 | SW3: 568 | SX3: 588 | SY3: 568 | SZ3: 653 | TA3: 636 | TB3: 614 | TC3: 654 | TD3: 691 | TE3: 557 | TF3: 552 | TG3: 552 | TH3: 537 | TI3: 514 | TJ3: 530 | TK3: 500 | TL3: 561 | TM3: 648 | TN3: 642 | TO3: 612 | TP3: 623 | TQ3: 627 | TR3: 426 | TS3: 396 | TT3: 410 | TU3: 386 | TV3: 392 | TW3: 368 | TX3: 353 | TY3: 417 | TZ3: 495 | UA3: 479 | UB3: 432 | UC3: 468 | UD3: 435 | UE3: 448 | UF3: 415 | UG3: 509 | UH3: 495 | UI3: 476 | UJ3: 512 | UK3: 435 | UL3: 508 | UM3: 456 | UN3: 510 | UO3: 533 | UP3: 499 | UQ3: 529 | UR3: 482 | US3: 462 | UT3: 508 | UU3: 464 | UV3: 503 | UW3: 474 | UX3: 470 | UY3: 492 | UZ3: 513 | VA3: 519 | VB3: 476 | VC3: 525 | VD3: 448 | VE3: 483 | VF3: 473 | VG3: 478 | VH3: 532
A4: বেতন আইডি | C4: =IF(B4="","শুধুমাত্র হলুদ রঙের ঘরগুলিতে প্রয়োজনীয় তথ্য দিন",0) -> শুধুমাত্র হলুদ রঙের ঘরগুলিতে প্রয়োজনীয় তথ্য দিন | H4: 01726 | P4: 1 | Q4: =IF(P4=0,"",COUNTIF($P$2:P4,">0")) -> 3 | R4: =IFERROR(INDEX(U:U,MATCH(ROW(P4),Q:Q,0)),"") -> Bagerhat - Fakirhat | T4: 2 | U4: Bagerhat - Chitalmari | V4: Barguna - Bamna | W4: 52 | X4: 0 | Y4: 37 | Z4: 16 | AA4: 40 | AB4: 73 | AC4: 116 | AD4: 90 | AE4: 43 | AF4: 73 | AG4: 110 | AH4: 73 | AI4: 81 | AJ4: 74 | AK4: 77 | AL4: 104 | AM4: 94 | AN4: 114 | AO4: 138 | AP4: 178 | AQ4: 132 | AR4: 160 | AS4: 187 | AT4: 160 | AU4: 54 | AV4: 21 | AW4: 65 | AX4: 41 | AY4: 79 | AZ4: 95 | BA4: 59 | BB4: 87 | BC4: 70 | BD4: 26 | BE4: 37 | BF4: 28 | BG4: 44 | BH4: 18 | BI4: 84 | BJ4: 45 | BK4: 65 | BL4: 40 | BM4: 446 | BN4: 383 | BO4: 414 | BP4: 453 | BQ4: 401 | BR4: 417 | BS4: 446 | BT4: 367 | BU4: 294 | BV4: 352 | BW4: 349 | BX4: 325 | BY4: 352 | BZ4: 357 | CA4: 353 | CB4: 337 | CC4: 193 | CD4: 176 | CE4: 158 | CF4: 190 | CG4: 194 | CH4: 304 | CI4: 330 | CJ4: 306 | CK4: 353 | CL4: 313 | CM4: 322 | CN4: 311 | CO4: 343 | CP4: 313 | CQ4: 312 | CR4: 310 | CS4: 315 | CT4: 279 | CU4: 312 | CV4: 316 | CW4: 305 | CX4: 312 | CY4: 308 | CZ4: 369 | DA4: 254 | DB4: 304 | DC4: 311 | DD4: 334 | DE4: 324 | DF4: 336 | DG4: 327 | DH4: 316 | DI4: 303 | DJ4: 362 | DK4: 275 | DL4: 211 | DM4: 348 | DN4: 339 | DO4: 314 | DP4: 357 | DQ4: 335 | DR4: 344 | DS4: 307 | DT4: 332 | DU4: 221 | DV4: 202 | DW4: 284 | DX4: 339 | DY4: 218 | DZ4: 300 | EA4: 344 | EB4: 403 | EC4: 454 | ED4: 388 | EE4: 419 | EF4: 377 | EG4: 445 | EH4: 526 | EI4: 475 | EJ4: 233 | EK4: 208 | EL4: 221 | EM4: 237 | EN4: 244 | EO4: 221 | EP4: 297 | EQ4: 325 | ER4: 328 | ES4: 320 | ET4: 287 | EU4: 309 | EV4: 279 | EW4: 202 | EX4: 154 | EY4: 165 | EZ4: 173 | FA4: 177 | FB4: 183 | FC4: 185 | FD4: 211 | FE4: 208 | FF4: 198 | FG4: 195 | FH4: 206 | FI4: 195 | FJ4: 377 | FK4: 305 | FL4: 359 | FM4: 358 | FN4: 366 | FO4: 255 | FP4: 253 | FQ4: 243 | FR4: 264 | FS4: 255 | FT4: 259 | FU4: 244 | FV4: 268 | FW4: 259 | FX4: 249 | FY4: 291 | FZ4: 252 | GA4: 246 | GB4: 260 | GC4: 255 | GD4: 243 | GE4: 256 | GF4: 251 | GG4: 249 | GH4: 256 | GI4: 248 | GJ4: 252 | GK4: 247 | GL4: 254 | GM4: 260 | GN4: 241 | GO4: 243 | GP4: 245 | GQ4: 262 | GR4: 255 | GS4: 249 | GT4: 246 | GU4: 246 | GV4: 249 | GW4: 264 | GX4: 249 | GY4: 249 | GZ4: 251 | HA4: 248 | HB4: 261 | HC4: 265 | HD4: 249 | HE4: 259 | HF4: 249 | HG4: 243 | HH4: 255 | HI4: 245 | HJ4: 252 | HK4: 253 | HL4: 269 | HM4: 267 | HN4: 266 | HO4: 271 | HP4: 245 | HQ4: 144 | HR4: 172 | HS4: 159 | HT4: 200 | HU4: 196 | HV4: 189 | HW4: 175 | HX4: 182 | HY4: 169 | HZ4: 281 | IA4: 301 | IB4: 298 | IC4: 303 | ID4: 310 | IE4: 268 | IF4: 102 | IG4: 136 | IH4: 109 | II4: 154 | IJ4: 86 | IK4: 604 | IL4: 336 | IM4: 320 | IN4: 347 | IO4: 569 | IP4: 363 | IQ4: 329 | IR4: 351 | IS4: 331 | IT4: 587 | IU4: 350 | IV4: 337 | IW4: 384 | IX4: 123 | IY4: 132 | IZ4: 144 | JA4: 162 | JB4: 256 | JC4: 249 | JD4: 276 | JE4: 293 | JF4: 306 | JG4: 239 | JH4: 262 | JI4: 272 | JJ4: 219 | JK4: 243 | JL4: 252 | JM4: 218 | JN4: 239 | JO4: 272 | JP4: 264 | JQ4: 263 | JR4: 252 | JS4: 263 | JT4: 312 | JU4: 312 | JV4: 286 | JW4: 286 | JX4: 305 | JY4: 292 | JZ4: 203 | KA4: 221 | KB4: 239 | KC4: 248 | KD4: 223 | KE4: 165 | KF4: 163 | KG4: 157 | KH4: 165 | KI4: 152 | KJ4: 167 | KK4: 348 | KL4: 365 | KM4: 328 | KN4: 397 | KO4: 368 | KP4: 380 | KQ4: 348 | KR4: 384 | KS4: 315 | KT4: 272 | KU4: 334 | KV4: 339 | KW4: 68 | KX4: 83 | KY4: 92 | KZ4: 64 | LA4: 110 | LB4: 104 | LC4: 39 | LD4: 82 | LE4: 43 | LF4: 253 | LG4: 236 | LH4: 245 | LI4: 214 | LJ4: 131 | LK4: 155 | LL4: 184 | LM4: 171 | LN4: 135 | LO4: 169 | LP4: 149 | LQ4: 187 | LR4: 229 | LS4: 208 | LT4: 188 | LU4: 203 | LV4: 201 | LW4: 226 | LX4: 100 | LY4: 106 | LZ4: 112 | MA4: 104 | MB4: 115 | MC4: 99 | MD4: 108 | ME4: 120 | MF4: 100 | MG4: 191 | MH4: 100 | MI4: 159 | MJ4: 125 | MK4: 93 | ML4: 103 | MM4: 122 | MN4: 284 | MO4: 282 | MP4: 262 | MQ4: 271 | MR4: 248 | MS4: 263 | MT4: 195 | MU4: 174 | MV4: 167 | MW4: 210 | MX4: 269 | MY4: 256 | MZ4: 263 | NA4: 121 | NB4: 135 | NC4: 163 | ND4: 178 | NE4: 174 | NF4: 165 | NG4: 189 | NH4: 153 | NI4: 204 | NJ4: 137 | NK4: 465 | NL4: 462 | NM4: 452 | NN4: 423 | NO4: 449 | NP4: 440 | NQ4: 416 | NR4: 328 | NS4: 413 | NT4: 365 | NU4: 339 | NV4: 384 | NW4: 415 | NX4: 389 | NY4: 375 | NZ4: 383 | OA4: 374 | OB4: 395 | OC4: 367 | OD4: 359 | OE4: 423 | OF4: 423 | OG4: 422 | OH4: 459 | OI4: 438 | OJ4: 390 | OK4: 434 | OL4: 434 | OM4: 405 | ON4: 399 | OO4: 461 | OP4: 415 | OQ4: 435 | OR4: 441 | OS4: 459 | OT4: 389 | OU4: 392 | OV4: 414 | OW4: 394 | OX4: 405 | OY4: 400 | OZ4: 366 | PA4: 417 | PB4: 391 | PC4: 377 | PD4: 410 | PE4: 427 | PF4: 415 | PG4: 431 | PH4: 429 | PI4: 420 | PJ4: 441 | PK4: 357 | PL4: 405 | PM4: 470 | PN4: 414 | PO4: 435 | PP4: 382 | PQ4: 433 | PR4: 452 | PS4: 470 | PT4: 376 | PU4: 469 | PV4: 326 | PW4: 318 | PX4: 331 | PY4: 297 | PZ4: 343 | QA4: 329 | QB4: 345 | QC4: 472 | QD4: 446 | QE4: 437 | QF4: 419 | QG4: 438 | QH4: 306 | QI4: 332 | QJ4: 331 | QK4: 322 | QL4: 332 | QM4: 284 | QN4: 292 | QO4: 325 | QP4: 312 | QQ4: 310 | QR4: 363 | QS4: 370 | QT4: 325 | QU4: 359 | QV4: 402 | QW4: 367 | QX4: 389 | QY4: 372 | QZ4: 344 | RA4: 376 | RB4: 370 | RC4: 382 | RD4: 382 | RE4: 379 | RF4: 409 | RG4: 403 | RH4: 342 | RI4: 381 | RJ4: 348 | RK4: 359 | RL4: 479 | RM4: 565 | RN4: 542 | RO4: 560 | RP4: 528 | RQ4: 492 | RR4: 456 | RS4: 451 | RT4: 555 | RU4: 557 | RV4: 533 | RW4: 473 | RX4: 513 | RY4: 461 | RZ4: 456 | SA4: 426 | SB4: 442 | SC4: 466 | SD4: 441 | SE4: 485 | SF4: 570 | SG4: 499 | SH4: 556 | SI4: 540 | SJ4: 542 | SK4: 558 | SL4: 526 | SM4: 516 | SN4: 546 | SO4: 536 | SP4: 552 | SQ4: 525 | SR4: 525 | SS4: 588 | ST4: 560 | SU4: 568 | SV4: 539 | SW4: 529 | SX4: 550 | SY4: 529 | SZ4: 614 | TA4: 598 | TB4: 575 | TC4: 615 | TD4: 652 | TE4: 518 | TF4: 514 | TG4: 513 | TH4: 498 | TI4: 475 | TJ4: 491 | TK4: 461 | TL4: 522 | TM4: 609 | TN4: 603 | TO4: 573 | TP4: 584 | TQ4: 588 | TR4: 430 | TS4: 401 | TT4: 414 | TU4: 390 | TV4: 396 | TW4: 372 | TX4: 357 | TY4: 421 | TZ4: 499 | UA4: 483 | UB4: 436 | UC4: 472 | UD4: 439 | UE4: 452 | UF4: 419 | UG4: 513 | UH4: 499 | UI4: 480 | UJ4: 517 | UK4: 439 | UL4: 512 | UM4: 460 | UN4: 514 | UO4: 537 | UP4: 503 | UQ4: 533 | UR4: 486 | US4: 466 | UT4: 512 | UU4: 468 | UV4: 507 | UW4: 478 | UX4: 474 | UY4: 496 | UZ4: 517 | VA4: 523 | VB4: 480 | VC4: 530 | VD4: 452 | VE4: 487 | VF4: 477 | VG4: 482 | VH4: 537
A5: নাম | B5: =IFERROR(IF($J$2=0,0,PROPER(VLOOKUP($J$2,data!$B$1:$I$3338,2,0))),"") -> 0 | H5: 06655 | M5: বিমান | N5: =IF(O5="Category-1",30,0) -> 0 | O5: =IF($J$2=0,0,VLOOKUP($J$2,data!B1:I3316,6,0)) -> 0 | P5: 1 | Q5: =IF(P5=0,"",COUNTIF($P$2:P5,">0")) -> 4 | R5: Bagerhat - Kachua | T5: 3 | U5: Bagerhat - Fakirhat | V5: Barguna - Barguna Sadar | W5: 15 | X5: 37 | Y5: 0 | Z5: 33 | AA5: 28 | AB5: 37 | AC5: 120 | AD5: 94 | AE5: 56 | AF5: 104 | AG5: 113 | AH5: 77 | AI5: 85 | AJ5: 78 | AK5: 81 | AL5: 108 | AM5: 97 | AN5: 111 | AO5: 135 | AP5: 110 | AQ5: 129 | AR5: 157 | AS5: 184 | AT5: 157 | AU5: 91 | AV5: 37 | AW5: 65 | AX5: 79 | AY5: 80 | AZ5: 77 | BA5: 60 | BB5: 50 | BC5: 33 | BD5: 29 | BE5: 46 | BF5: 66 | BG5: 83 | BH5: 32 | BI5: 112 | BJ5: 73 | BK5: 113 | BL5: 68 | BM5: 443 | BN5: 380 | BO5: 411 | BP5: 450 | BQ5: 398 | BR5: 414 | BS5: 443 | BT5: 369 | BU5: 295 | BV5: 354 | BW5: 350 | BX5: 326 | BY5: 354 | BZ5: 358 | CA5: 355 | CB5: 339 | CC5: 190 | CD5: 173 | CE5: 162 | CF5: 187 | CG5: 191 | CH5: 301 | CI5: 327 | CJ5: 303 | CK5: 350 | CL5: 310 | CM5: 319 | CN5: 308 | CO5: 340 | CP5: 310 | CQ5: 309 | CR5: 307 | CS5: 312 | CT5: 276 | CU5: 309 | CV5: 313 | CW5: 302 | CX5: 309 | CY5: 305 | CZ5: 366 | DA5: 250 | DB5: 301 | DC5: 308 | DD5: 331 | DE5: 321 | DF5: 333 | DG5: 324 | DH5: 313 | DI5: 300 | DJ5: 359 | DK5: 272 | DL5: 208 | DM5: 349 | DN5: 341 | DO5: 315 | DP5: 358 | DQ5: 336 | DR5: 339 | DS5: 309 | DT5: 334 | DU5: 218 | DV5: 199 | DW5: 285 | DX5: 340 | DY5: 215 | DZ5: 301 | EA5: 227 | EB5: 400 | EC5: 451 | ED5: 385 | EE5: 416 | EF5: 374 | EG5: 441 | EH5: 523 | EI5: 472 | EJ5: 230 | EK5: 205 | EL5: 217 | EM5: 234 | EN5: 241 | EO5: 218 | EP5: 294 | EQ5: 322 | ER5: 325 | ES5: 317 | ET5: 284 | EU5: 306 | EV5: 275 | EW5: 199 | EX5: 151 | EY5: 162 | EZ5: 170 | FA5: 174 | FB5: 180 | FC5: 182 | FD5: 208 | FE5: 205 | FF5: 195 | FG5: 192 | FH5: 202 | FI5: 192 | FJ5: 374 | FK5: 302 | FL5: 356 | FM5: 355 | FN5: 363 | FO5: 257 | FP5: 254 | FQ5: 245 | FR5: 266 | FS5: 256 | FT5: 260 | FU5: 245 | FV5: 270 | FW5: 260 | FX5: 250 | FY5: 292 | FZ5: 253 | GA5: 247 | GB5: 261 | GC5: 257 | GD5: 244 | GE5: 258 | GF5: 253 | GG5: 250 | GH5: 257 | GI5: 250 | GJ5: 254 | GK5: 249 | GL5: 255 | GM5: 261 | GN5: 242 | GO5: 245 | GP5: 246 | GQ5: 264 | GR5: 256 | GS5: 250 | GT5: 248 | GU5: 248 | GV5: 251 | GW5: 265 | GX5: 251 | GY5: 251 | GZ5: 252 | HA5: 249 | HB5: 263 | HC5: 266 | HD5: 250 | HE5: 261 | HF5: 251 | HG5: 245 | HH5: 256 | HI5: 246 | HJ5: 253 | HK5: 254 | HL5: 270 | HM5: 269 | HN5: 268 | HO5: 273 | HP5: 247 | HQ5: 172 | HR5: 171 | HS5: 187 | HT5: 206 | HU5: 202 | HV5: 225 | HW5: 186 | HX5: 188 | HY5: 205 | HZ5: 282 | IA5: 303 | IB5: 300 | IC5: 305 | ID5: 311 | IE5: 270 | IF5: 130 | IG5: 164 | IH5: 137 | II5: 189 | IJ5: 114 | IK5: 605 | IL5: 337 | IM5: 321 | IN5: 349 | IO5: 571 | IP5: 364 | IQ5: 330 | IR5: 353 | IS5: 332 | IT5: 588 | IU5: 351 | IV5: 338 | IW5: 385 | IX5: 127 | IY5: 136 | IZ5: 148 | JA5: 166 | JB5: 262 | JC5: 255 | JD5: 277 | JE5: 295 | JF5: 307 | JG5: 245 | JH5: 263 | JI5: 273 | JJ5: 221 | JK5: 245 | JL5: 253 | JM5: 219 | JN5: 240 | JO5: 273 | JP5: 266 | JQ5: 264 | JR5: 253 | JS5: 265 | JT5: 314 | JU5: 313 | JV5: 288 | JW5: 287 | JX5: 307 | JY5: 293 | JZ5: 240 | KA5: 227 | KB5: 245 | KC5: 254 | KD5: 230 | KE5: 169 | KF5: 167 | KG5: 161 | KH5: 169 | KI5: 156 | KJ5: 171 | KK5: 349 | KL5: 367 | KM5: 329 | KN5: 398 | KO5: 369 | KP5: 381 | KQ5: 349 | KR5: 386 | KS5: 317 | KT5: 278 | KU5: 335 | KV5: 340 | KW5: 96 | KX5: 111 | KY5: 120 | KZ5: 92 | LA5: 138 | LB5: 132 | LC5: 58 | LD5: 110 | LE5: 61 | LF5: 281 | LG5: 264 | LH5: 273 | LI5: 242 | LJ5: 159 | LK5: 183 | LL5: 212 | LM5: 199 | LN5: 163 | LO5: 197 | LP5: 177 | LQ5: 215 | LR5: 257 | LS5: 236 | LT5: 216 | LU5: 231 | LV5: 228 | LW5: 254 | LX5: 128 | LY5: 134 | LZ5: 140 | MA5: 132 | MB5: 143 | MC5: 127 | MD5: 136 | ME5: 148 | MF5: 128 | MG5: 219 | MH5: 128 | MI5: 187 | MJ5: 153 | MK5: 121 | ML5: 131 | MM5: 150 | MN5: 329 | MO5: 326 | MP5: 268 | MQ5: 277 | MR5: 293 | MS5: 307 | MT5: 250 | MU5: 202 | MV5: 195 | MW5: 257 | MX5: 297 | MY5: 284 | MZ5: 291 | NA5: 149 | NB5: 163 | NC5: 191 | ND5: 206 | NE5: 202 | NF5: 193 | NG5: 217 | NH5: 181 | NI5: 232 | NJ5: 165 | NK5: 467 | NL5: 463 | NM5: 454 | NN5: 424 | NO5: 450 | NP5: 441 | NQ5: 418 | NR5: 329 | NS5: 414 | NT5: 366 | NU5: 341 | NV5: 386 | NW5: 417 | NX5: 390 | NY5: 376 | NZ5: 385 | OA5: 375 | OB5: 397 | OC5: 369 | OD5: 361 | OE5: 425 | OF5: 425 | OG5: 423 | OH5: 460 | OI5: 439 | OJ5: 391 | OK5: 436 | OL5: 435 | OM5: 407 | ON5: 400 | OO5: 462 | OP5: 417 | OQ5: 437 | OR5: 442 | OS5: 460 | OT5: 433 | OU5: 436 | OV5: 416 | OW5: 439 | OX5: 450 | OY5: 444 | OZ5: 410 | PA5: 462 | PB5: 436 | PC5: 422 | PD5: 455 | PE5: 471 | PF5: 460 | PG5: 475 | PH5: 474 | PI5: 465 | PJ5: 485 | PK5: 402 | PL5: 449 | PM5: 514 | PN5: 459 | PO5: 479 | PP5: 426 | PQ5: 477 | PR5: 497 | PS5: 515 | PT5: 420 | PU5: 513 | PV5: 371 | PW5: 362 | PX5: 376 | PY5: 341 | PZ5: 388 | QA5: 374 | QB5: 389 | QC5: 516 | QD5: 491 | QE5: 482 | QF5: 463 | QG5: 482 | QH5: 312 | QI5: 338 | QJ5: 337 | QK5: 328 | QL5: 338 | QM5: 328 | QN5: 298 | QO5: 331 | QP5: 318 | QQ5: 354 | QR5: 407 | QS5: 415 | QT5: 370 | QU5: 404 | QV5: 447 | QW5: 411 | QX5: 433 | QY5: 416 | QZ5: 389 | RA5: 421 | RB5: 414 | RC5: 426 | RD5: 384 | RE5: 380 | RF5: 410 | RG5: 404 | RH5: 349 | RI5: 383 | RJ5: 392 | RK5: 365 | RL5: 523 | RM5: 609 | RN5: 586 | RO5: 605 | RP5: 572 | RQ5: 537 | RR5: 500 | RS5: 496 | RT5: 600 | RU5: 602 | RV5: 578 | RW5: 517 | RX5: 557 | RY5: 506 | RZ5: 500 | SA5: 470 | SB5: 487 | SC5: 510 | SD5: 486 | SE5: 530 | SF5: 615 | SG5: 501 | SH5: 600 | SI5: 585 | SJ5: 586 | SK5: 603 | SL5: 571 | SM5: 518 | SN5: 591 | SO5: 580 | SP5: 597 | SQ5: 569 | SR5: 570 | SS5: 633 | ST5: 604 | SU5: 613 | SV5: 584 | SW5: 573 | SX5: 594 | SY5: 574 | SZ5: 659 | TA5: 642 | TB5: 619 | TC5: 660 | TD5: 697 | TE5: 563 | TF5: 558 | TG5: 557 | TH5: 543 | TI5: 520 | TJ5: 536 | TK5: 506 | TL5: 567 | TM5: 653 | TN5: 648 | TO5: 618 | TP5: 628 | TQ5: 633 | TR5: 431 | TS5: 402 | TT5: 415 | TU5: 392 | TV5: 398 | TW5: 373 | TX5: 359 | TY5: 423 | TZ5: 501 | UA5: 485 | UB5: 437 | UC5: 473 | UD5: 441 | UE5: 453 | UF5: 420 | UG5: 515 | UH5: 500 | UI5: 481 | UJ5: 518 | UK5: 440 | UL5: 514 | UM5: 461 | UN5: 515 | UO5: 539 | UP5: 505 | UQ5: 535 | UR5: 487 | US5: 468 | UT5: 513 | UU5: 469 | UV5: 509 | UW5: 480 | UX5: 476 | UY5: 498 | UZ5: 518 | VA5: 525 | VB5: 482 | VC5: 531 | VD5: 454 | VE5: 479 | VF5: 479 | VG5: 483 | VH5: 538
A6: পদবী | B6: =IFERROR(IF($J$2=0,0,PROPER(VLOOKUP($J$2,data!$B$1:$I$3338,3,0))),"") -> 0 | H6: 05675 | M6: সড়ক / রেল | N6: =IF(J2=0,0,IF(O5="Category-1",18,IF(AND(O5="Category-2",D13>=199),12,IF(AND(O5="Category-2",D13<200),15,IF(AND(O5="Category-3",D13>=200),6,IF(AND(O5="Category-3",D13<200),8,IF(AND(O5="Category-4",D13>=200),6,IF(AND(O5="Category-4",D13<200),8)))))))) -> 0 | P6: 1 | Q6: =IF(P6=0,"",COUNTIF($P$2:P6,">0")) -> 5 | R6: Bagerhat - Mollahat | T6: 4 | U6: Bagerhat - Kachua | V6: Barguna - Betagi | W6: 48 | X6: 16 | Y6: 33 | Z6: 0 | AA6: 61 | AB6: 70 | AC6: 92 | AD6: 66 | AE6: 28 | AF6: 76 | AG6: 86 | AH6: 49 | AI6: 57 | AJ6: 50 | AK6: 53 | AL6: 80 | AM6: 70 | AN6: 83 | AO6: 107 | AP6: 109 | AQ6: 101 | AR6: 129 | AS6: 156 | AT6: 129 | AU6: 63 | AV6: 5 | AW6: 34 | AX6: 28 | AY6: 63 | AZ6: 80 | BA6: 43 | BB6: 49 | BC6: 67 | BD6: 10 | BE6: 22 | BF6: 16 | BG6: 32 | BH6: 32 | BI6: 76 | BJ6: 37 | BK6: 85 | BL6: 32 | BM6: 415 | BN6: 352 | BO6: 383 | BP6: 422 | BQ6: 370 | BR6: 386 | BS6: 415 | BT6: 341 | BU6: 268 | BV6: 326 | BW6: 322 | BX6: 298 | BY6: 326 | BZ6: 331 | CA6: 327 | CB6: 311 | CC6: 163 | CD6: 145 | CE6: 134 | CF6: 160 | CG6: 163 | CH6: 273 | CI6: 299 | CJ6: 275 | CK6: 322 | CL6: 282 | CM6: 291 | CN6: 280 | CO6: 312 | CP6: 282 | CQ6: 281 | CR6: 280 | CS6: 284 | CT6: 248 | CU6: 282 | CV6: 285 | CW6: 274 | CX6: 281 | CY6: 277 | CZ6: 339 | DA6: 223 | DB6: 273 | DC6: 280 | DD6: 303 | DE6: 294 | DF6: 305 | DG6: 296 | DH6: 285 | DI6: 272 | DJ6: 331 | DK6: 244 | DL6: 181 | DM6: 321 | DN6: 313 | DO6: 287 | DP6: 330 | DQ6: 309 | DR6: 302 | DS6: 281 | DT6: 306 | DU6: 190 | DV6: 171 | DW6: 257 | DX6: 313 | DY6: 187 | DZ6: 273 | EA6: 200 | EB6: 372 | EC6: 423 | ED6: 357 | EE6: 388 | EF6: 346 | EG6: 414 | EH6: 495 | EI6: 444 | EJ6: 202 | EK6: 177 | EL6: 190 | EM6: 206 | EN6: 213 | EO6: 190 | EP6: 267 | EQ6: 294 | ER6: 297 | ES6: 289 | ET6: 256 | EU6: 278 | EV6: 248 | EW6: 171 | EX6: 123 | EY6: 134 | EZ6: 142 | FA6: 146 | FB6: 152 | FC6: 154 | FD6: 180 | FE6: 177 | FF6: 167 | FG6: 164 | FH6: 175 | FI6: 165 | FJ6: 346 | FK6: 274 | FL6: 328 | FM6: 327 | FN6: 335 | FO6: 229 | FP6: 226 | FQ6: 217 | FR6: 238 | FS6: 228 | FT6: 232 | FU6: 217 | FV6: 242 | FW6: 232 | FX6: 222 | FY6: 264 | FZ6: 225 | GA6: 219 | GB6: 233 | GC6: 229 | GD6: 216 | GE6: 230 | GF6: 225 | GG6: 222 | GH6: 229 | GI6: 222 | GJ6: 226 | GK6: 221 | GL6: 228 | GM6: 234 | GN6: 214 | GO6: 217 | GP6: 218 | GQ6: 236 | GR6: 228 | GS6: 222 | GT6: 220 | GU6: 220 | GV6: 223 | GW6: 237 | GX6: 223 | GY6: 223 | GZ6: 224 | HA6: 221 | HB6: 235 | HC6: 238 | HD6: 222 | HE6: 233 | HF6: 223 | HG6: 217 | HH6: 229 | HI6: 218 | HJ6: 226 | HK6: 226 | HL6: 243 | HM6: 241 | HN6: 240 | HO6: 245 | HP6: 219 | HQ6: 174 | HR6: 143 | HS6: 188 | HT6: 178 | HU6: 175 | HV6: 197 | HW6: 159 | HX6: 160 | HY6: 178 | HZ6: 254 | IA6: 275 | IB6: 272 | IC6: 277 | ID6: 284 | IE6: 242 | IF6: 134 | IG6: 166 | IH6: 109 | II6: 161 | IJ6: 78 | IK6: 577 | IL6: 309 | IM6: 293 | IN6: 321 | IO6: 543 | IP6: 336 | IQ6: 302 | IR6: 325 | IS6: 304 | IT6: 560 | IU6: 324 | IV6: 310 | IW6: 357 | IX6: 99 | IY6: 108 | IZ6: 120 | JA6: 138 | JB6: 234 | JC6: 227 | JD6: 249 | JE6: 267 | JF6: 279 | JG6: 217 | JH6: 235 | JI6: 246 | JJ6: 193 | JK6: 217 | JL6: 226 | JM6: 191 | JN6: 212 | JO6: 246 | JP6: 238 | JQ6: 237 | JR6: 226 | JS6: 237 | JT6: 286 | JU6: 285 | JV6: 260 | JW6: 259 | JX6: 279 | JY6: 266 | JZ6: 212 | KA6: 199 | KB6: 217 | KC6: 226 | KD6: 202 | KE6: 141 | KF6: 139 | KG6: 133 | KH6: 141 | KI6: 128 | KJ6: 143 | KK6: 322 | KL6: 339 | KM6: 302 | KN6: 370 | KO6: 341 | KP6: 354 | KQ6: 321 | KR6: 358 | KS6: 289 | KT6: 250 | KU6: 307 | KV6: 312 | KW6: 60 | KX6: 75 | KY6: 84 | KZ6: 56 | LA6: 102 | LB6: 96 | LC6: 44 | LD6: 75 | LE6: 55 | LF6: 290 | LG6: 228 | LH6: 237 | LI6: 206 | LJ6: 123 | LK6: 147 | LL6: 177 | LM6: 163 | LN6: 127 | LO6: 161 | LP6: 141 | LQ6: 179 | LR6: 221 | LS6: 250 | LT6: 180 | LU6: 195 | LV6: 193 | LW6: 268 | LX6: 92 | LY6: 98 | LZ6: 105 | MA6: 96 | MB6: 107 | MC6: 91 | MD6: 100 | ME6: 112 | MF6: 92 | MG6: 183 | MH6: 92 | MI6: 151 | MJ6: 117 | MK6: 85 | ML6: 95 | MM6: 114 | MN6: 301 | MO6: 299 | MP6: 240 | MQ6: 250 | MR6: 265 | MS6: 280 | MT6: 223 | MU6: 204 | MV6: 159 | MW6: 229 | MX6: 311 | MY6: 248 | MZ6: 255 | NA6: 113 | NB6: 165 | NC6: 155 | ND6: 170 | NE6: 166 | NF6: 157 | NG6: 181 | NH6: 145 | NI6: 196 | NJ6: 129 | NK6: 439 | NL6: 436 | NM6: 426 | NN6: 397 | NO6: 423 | NP6: 414 | NQ6: 390 | NR6: 301 | NS6: 387 | NT6: 338 | NU6: 313 | NV6: 358 | NW6: 389 | NX6: 363 | NY6: 348 | NZ6: 357 | OA6: 347 | OB6: 369 | OC6: 341 | OD6: 333 | OE6: 397 | OF6: 397 | OG6: 395 | OH6: 432 | OI6: 411 | OJ6: 363 | OK6: 408 | OL6: 408 | OM6: 379 | ON6: 372 | OO6: 434 | OP6: 389 | OQ6: 409 | OR6: 415 | OS6: 433 | OT6: 405 | OU6: 408 | OV6: 388 | OW6: 411 | OX6: 422 | OY6: 416 | OZ6: 383 | PA6: 434 | PB6: 408 | PC6: 394 | PD6: 427 | PE6: 444 | PF6: 432 | PG6: 447 | PH6: 446 | PI6: 437 | PJ6: 458 | PK6: 374 | PL6: 421 | PM6: 486 | PN6: 431 | PO6: 451 | PP6: 398 | PQ6: 449 | PR6: 469 | PS6: 487 | PT6: 392 | PU6: 485 | PV6: 343 | PW6: 335 | PX6: 348 | PY6: 313 | PZ6: 360 | QA6: 346 | QB6: 362 | QC6: 488 | QD6: 463 | QE6: 454 | QF6: 435 | QG6: 455 | QH6: 285 | QI6: 311 | QJ6: 309 | QK6: 300 | QL6: 311 | QM6: 300 | QN6: 270 | QO6: 303 | QP6: 290 | QQ6: 326 | QR6: 379 | QS6: 387 | QT6: 342 | QU6: 376 | QV6: 419 | QW6: 383 | QX6: 405 | QY6: 388 | QZ6: 361 | RA6: 393 | RB6: 386 | RC6: 398 | RD6: 356 | RE6: 352 | RF6: 383 | RG6: 376 | RH6: 321 | RI6: 355 | RJ6: 364 | RK6: 337 | RL6: 496 | RM6: 581 | RN6: 558 | RO6: 577 | RP6: 545 | RQ6: 509 | RR6: 472 | RS6: 468 | RT6: 572 | RU6: 574 | RV6: 550 | RW6: 490 | RX6: 529 | RY6: 478 | RZ6: 473 | SA6: 442 | SB6: 459 | SC6: 482 | SD6: 458 | SE6: 502 | SF6: 587 | SG6: 473 | SH6: 573 | SI6: 557 | SJ6: 559 | SK6: 575 | SL6: 543 | SM6: 490 | SN6: 563 | SO6: 552 | SP6: 569 | SQ6: 541 | SR6: 542 | SS6: 605 | ST6: 577 | SU6: 585 | SV6: 556 | SW6: 545 | SX6: 566 | SY6: 546 | SZ6: 631 | TA6: 614 | TB6: 592 | TC6: 632 | TD6: 669 | TE6: 535 | TF6: 530 | TG6: 530 | TH6: 515 | TI6: 492 | TJ6: 508 | TK6: 478 | TL6: 539 | TM6: 625 | TN6: 620 | TO6: 590 | TP6: 600 | TQ6: 605 | TR6: 403 | TS6: 374 | TT6: 387 | TU6: 364 | TV6: 370 | TW6: 346 | TX6: 331 | TY6: 395 | TZ6: 473 | UA6: 457 | UB6: 410 | UC6: 445 | UD6: 413 | UE6: 425 | UF6: 392 | UG6: 487 | UH6: 473 | UI6: 453 | UJ6: 490 | UK6: 413 | UL6: 486 | UM6: 433 | UN6: 487 | UO6: 511 | UP6: 477 | UQ6: 507 | UR6: 459 | US6: 440 | UT6: 486 | UU6: 441 | UV6: 481 | UW6: 452 | UX6: 448 | UY6: 470 | UZ6: 490 | VA6: 497 | VB6: 454 | VC6: 503 | VD6: 426 | VE6: 451 | VF6: 451 | VG6: 455 | VH6: 510
A7: বিভাগ | B7: =IFERROR(IF($J$2=0,0,PROPER(VLOOKUP($J$2,data!$B$1:$I$3338,4,0))),"") -> 0 | H7: 03604 | P7: 1 | Q7: =IF(P7=0,"",COUNTIF($P$2:P7,">0")) -> 6 | R7: Bagerhat - Mongla | T7: 5 | U7: Bagerhat - Mollahat | V7: Barguna - Patharghata | W7: 43 | X7: 40 | Y7: 28 | Z7: 61 | AA7: 0 | AB7: 64 | AC7: 153 | AD7: 127 | AE7: 84 | AF7: 110 | AG7: 147 | AH7: 110 | AI7: 118 | AJ7: 111 | AK7: 114 | AL7: 141 | AM7: 131 | AN7: 151 | AO7: 175 | AP7: 138 | AQ7: 169 | AR7: 197 | AS7: 224 | AT7: 197 | AU7: 91 | AV7: 61 | AW7: 102 | AX7: 78 | AY7: 108 | AZ7: 104 | BA7: 88 | BB7: 78 | BC7: 61 | BD7: 57 | BE7: 74 | BF7: 64 | BG7: 81 | BH7: 30 | BI7: 110 | BJ7: 72 | BK7: 102 | BL7: 66 | BM7: 644 | BN7: 580 | BO7: 612 | BP7: 650 | BQ7: 598 | BR7: 614 | BS7: 643 | BT7: 394 | BU7: 320 | BV7: 379 | BW7: 375 | BX7: 351 | BY7: 379 | BZ7: 383 | CA7: 380 | CB7: 364 | CC7: 230 | CD7: 213 | CE7: 195 | CF7: 227 | CG7: 231 | CH7: 501 | CI7: 528 | CJ7: 504 | CK7: 550 | CL7: 511 | CM7: 520 | CN7: 509 | CO7: 540 | CP7: 510 | CQ7: 510 | CR7: 508 | CS7: 512 | CT7: 476 | CU7: 510 | CV7: 514 | CW7: 503 | CX7: 510 | CY7: 505 | CZ7: 567 | DA7: 451 | DB7: 502 | DC7: 509 | DD7: 531 | DE7: 522 | DF7: 534 | DG7: 524 | DH7: 513 | DI7: 500 | DJ7: 559 | DK7: 473 | DL7: 387 | DM7: 374 | DN7: 365 | DO7: 340 | DP7: 383 | DQ7: 361 | DR7: 356 | DS7: 334 | DT7: 359 | DU7: 385 | DV7: 239 | DW7: 310 | DX7: 365 | DY7: 255 | DZ7: 326 | EA7: 370 | EB7: 601 | EC7: 652 | ED7: 586 | EE7: 616 | EF7: 574 | EG7: 642 | EH7: 723 | EI7: 672 | EJ7: 428 | EK7: 245 | EL7: 415 | EM7: 431 | EN7: 438 | EO7: 258 | EP7: 495 | EQ7: 522 | ER7: 525 | ES7: 517 | ET7: 484 | EU7: 506 | EV7: 476 | EW7: 239 | EX7: 191 | EY7: 202 | EZ7: 210 | FA7: 214 | FB7: 220 | FC7: 222 | FD7: 248 | FE7: 245 | FF7: 235 | FG7: 232 | FH7: 243 | FI7: 232 | FJ7: 574 | FK7: 503 | FL7: 557 | FM7: 555 | FN7: 563 | FO7: 282 | FP7: 279 | FQ7: 270 | FR7: 291 | FS7: 281 | FT7: 285 | FU7: 270 | FV7: 295 | FW7: 285 | FX7: 275 | FY7: 317 | FZ7: 278 | GA7: 272 | GB7: 286 | GC7: 282 | GD7: 269 | GE7: 282 | GF7: 278 | GG7: 275 | GH7: 282 | GI7: 275 | GJ7: 278 | GK7: 273 | GL7: 280 | GM7: 286 | GN7: 267 | GO7: 269 | GP7: 271 | GQ7: 289 | GR7: 281 | GS7: 275 | GT7: 273 | GU7: 273 | GV7: 275 | GW7: 290 | GX7: 275 | GY7: 275 | GZ7: 277 | HA7: 274 | HB7: 287 | HC7: 291 | HD7: 275 | HE7: 286 | HF7: 275 | HG7: 269 | HH7: 281 | HI7: 271 | HJ7: 278 | HK7: 279 | HL7: 295 | HM7: 293 | HN7: 293 | HO7: 297 | HP7: 272 | HQ7: 171 | HR7: 198 | HS7: 185 | HT7: 226 | HU7: 223 | HV7: 215 | HW7: 201 | HX7: 208 | HY7: 195 | HZ7: 307 | IA7: 328 | IB7: 324 | IC7: 330 | ID7: 336 | IE7: 295 | IF7: 128 | IG7: 163 | IH7: 135 | II7: 180 | IJ7: 112 | IK7: 630 | IL7: 362 | IM7: 346 | IN7: 374 | IO7: 596 | IP7: 389 | IQ7: 355 | IR7: 378 | IS7: 357 | IT7: 613 | IU7: 376 | IV7: 363 | IW7: 410 | IX7: 160 | IY7: 169 | IZ7: 160 | JA7: 228 | JB7: 282 | JC7: 275 | JD7: 302 | JE7: 320 | JF7: 332 | JG7: 265 | JH7: 288 | JI7: 298 | JJ7: 245 | JK7: 269 | JL7: 278 | JM7: 244 | JN7: 265 | JO7: 298 | JP7: 290 | JQ7: 289 | JR7: 278 | JS7: 290 | JT7: 339 | JU7: 338 | JV7: 313 | JW7: 312 | JX7: 331 | JY7: 318 | JZ7: 230 | KA7: 247 | KB7: 265 | KC7: 274 | KD7: 250 | KE7: 202 | KF7: 200 | KG7: 194 | KH7: 202 | KI7: 189 | KJ7: 239 | KK7: 374 | KL7: 392 | KM7: 354 | KN7: 423 | KO7: 394 | KP7: 406 | KQ7: 374 | KR7: 411 | KS7: 342 | KT7: 298 | KU7: 360 | KV7: 365 | KW7: 94 | KX7: 109 | KY7: 118 | KZ7: 90 | LA7: 137 | LB7: 130 | LC7: 56 | LD7: 109 | LE7: 59 | LF7: 280 | LG7: 262 | LH7: 272 | LI7: 240 | LJ7: 157 | LK7: 181 | LL7: 211 | LM7: 197 | LN7: 162 | LO7: 195 | LP7: 176 | LQ7: 214 | LR7: 255 | LS7: 234 | LT7: 214 | LU7: 229 | LV7: 227 | LW7: 252 | LX7: 126 | LY7: 132 | LZ7: 139 | MA7: 130 | MB7: 141 | MC7: 125 | MD7: 134 | ME7: 146 | MF7: 126 | MG7: 217 | MH7: 126 | MI7: 186 | MJ7: 151 | MK7: 120 | ML7: 130 | MM7: 148 | MN7: 310 | MO7: 308 | MP7: 288 | MQ7: 298 | MR7: 274 | MS7: 289 | MT7: 221 | MU7: 200 | MV7: 194 | MW7: 236 | MX7: 295 | MY7: 283 | MZ7: 289 | NA7: 148 | NB7: 162 | NC7: 190 | ND7: 205 | NE7: 200 | NF7: 192 | NG7: 215 | NH7: 179 | NI7: 231 | NJ7: 163 | NK7: 492 | NL7: 488 | NM7: 479 | NN7: 449 | NO7: 475 | NP7: 466 | NQ7: 443 | NR7: 354 | NS7: 439 | NT7: 391 | NU7: 366 | NV7: 411 | NW7: 442 | NX7: 415 | NY7: 401 | NZ7: 410 | OA7: 400 | OB7: 422 | OC7: 394 | OD7: 385 | OE7: 450 | OF7: 449 | OG7: 448 | OH7: 485 | OI7: 464 | OJ7: 416 | OK7: 461 | OL7: 460 | OM7: 432 | ON7: 425 | OO7: 487 | OP7: 442 | OQ7: 462 | OR7: 467 | OS7: 485 | OT7: 415 | OU7: 418 | OV7: 441 | OW7: 420 | OX7: 431 | OY7: 426 | OZ7: 392 | PA7: 443 | PB7: 417 | PC7: 403 | PD7: 437 | PE7: 453 | PF7: 441 | PG7: 457 | PH7: 455 | PI7: 447 | PJ7: 467 | PK7: 384 | PL7: 431 | PM7: 496 | PN7: 441 | PO7: 461 | PP7: 408 | PQ7: 459 | PR7: 478 | PS7: 496 | PT7: 402 | PU7: 495 | PV7: 353 | PW7: 344 | PX7: 358 | PY7: 323 | PZ7: 369 | QA7: 356 | QB7: 371 | QC7: 498 | QD7: 473 | QE7: 464 | QF7: 445 | QG7: 464 | QH7: 333 | QI7: 359 | QJ7: 357 | QK7: 349 | QL7: 359 | QM7: 310 | QN7: 318 | QO7: 351 | QP7: 338 | QQ7: 336 | QR7: 389 | QS7: 396 | QT7: 351 | QU7: 386 | QV7: 429 | QW7: 393 | QX7: 415 | QY7: 398 | QZ7: 371 | RA7: 402 | RB7: 396 | RC7: 408 | RD7: 409 | RE7: 405 | RF7: 435 | RG7: 429 | RH7: 369 | RI7: 407 | RJ7: 374 | RK7: 385 | RL7: 505 | RM7: 591 | RN7: 568 | RO7: 586 | RP7: 554 | RQ7: 519 | RR7: 482 | RS7: 477 | RT7: 581 | RU7: 583 | RV7: 559 | RW7: 499 | RX7: 539 | RY7: 488 | RZ7: 482 | SA7: 452 | SB7: 469 | SC7: 492 | SD7: 468 | SE7: 512 | SF7: 597 | SG7: 526 | SH7: 582 | SI7: 567 | SJ7: 568 | SK7: 584 | SL7: 553 | SM7: 543 | SN7: 572 | SO7: 562 | SP7: 579 | SQ7: 551 | SR7: 552 | SS7: 614 | ST7: 586 | SU7: 594 | SV7: 565 | SW7: 555 | SX7: 576 | SY7: 556 | SZ7: 641 | TA7: 624 | TB7: 601 | TC7: 642 | TD7: 679 | TE7: 544 | TF7: 540 | TG7: 539 | TH7: 525 | TI7: 501 | TJ7: 517 | TK7: 488 | TL7: 549 | TM7: 635 | TN7: 630 | TO7: 599 | TP7: 610 | TQ7: 614 | TR7: 456 | TS7: 427 | TT7: 440 | TU7: 417 | TV7: 423 | TW7: 398 | TX7: 384 | TY7: 448 | TZ7: 525 | UA7: 510 | UB7: 462 | UC7: 498 | UD7: 466 | UE7: 478 | UF7: 445 | UG7: 540 | UH7: 525 | UI7: 506 | UJ7: 543 | UK7: 465 | UL7: 539 | UM7: 486 | UN7: 540 | UO7: 564 | UP7: 530 | UQ7: 559 | UR7: 512 | US7: 493 | UT7: 538 | UU7: 494 | UV7: 534 | UW7: 505 | UX7: 500 | UY7: 523 | UZ7: 543 | VA7: 550 | VB7: 507 | VC7: 556 | VD7: 479 | VE7: 504 | VF7: 504 | VG7: 508 | VH7: 563
A8: বেতন স্কেল | B8: =IFERROR(IF($J$2=0,0,VLOOKUP($J$2,data!$B$1:$I$3316,5,0)),0) -> 0 | C8: =IF(B4=0,"তারিখ লেখার সময় প্রথমে দিন, মাস এবং বছর এভাবে লিখুন। যদি কোন কারণে ফলাফল না আসে তবে প্রথমে মাস, দিন এবং বছর এভাবে লিখুন।",0) -> তারিখ লেখার সময় প্রথমে দিন, মাস এবং বছর এভাবে লিখুন। যদি কোন কারণে ফলাফল না আসে তবে প্রথমে মাস, দিন এবং বছর এভাবে লিখুন। | H8: 03102 | M8: ঢাকা | P8: 1 | Q8: =IF(P8=0,"",COUNTIF($P$2:P8,">0")) -> 7 | R8: Bagerhat - Morrelganj | T8: 6 | U8: Bagerhat - Mongla | V8: Barguna - Taltali | W8: 23 | X8: 73 | Y8: 37 | Z8: 70 | AA8: 64 | AB8: 0 | AC8: 137 | AD8: 111 | AE8: 72 | AF8: 120 | AG8: 130 | AH8: 94 | AI8: 101 | AJ8: 95 | AK8: 98 | AL8: 124 | AM8: 114 | AN8: 127 | AO8: 151 | AP8: 118 | AQ8: 145 | AR8: 133 | AS8: 201 | AT8: 173 | AU8: 107 | AV8: 73 | AW8: 89 | AX8: 120 | AY8: 88 | AZ8: 84 | BA8: 68 | BB8: 58 | BC8: 26 | BD8: 64 | BE8: 54 | BF8: 135 | BG8: 129 | BH8: 69 | BI8: 188 | BJ8: 140 | BK8: 129 | BL8: 104 | BM8: 460 | BN8: 396 | BO8: 428 | BP8: 466 | BQ8: 414 | BR8: 430 | BS8: 459 | BT8: 385 | BU8: 312 | BV8: 370 | BW8: 367 | BX8: 343 | BY8: 370 | BZ8: 375 | CA8: 371 | CB8: 355 | CC8: 207 | CD8: 190 | CE8: 179 | CF8: 204 | CG8: 208 | CH8: 317 | CI8: 344 | CJ8: 320 | CK8: 366 | CL8: 327 | CM8: 336 | CN8: 325 | CO8: 356 | CP8: 327 | CQ8: 326 | CR8: 324 | CS8: 329 | CT8: 292 | CU8: 326 | CV8: 330 | CW8: 319 | CX8: 326 | CY8: 321 | CZ8: 383 | DA8: 267 | DB8: 318 | DC8: 325 | DD8: 347 | DE8: 338 | DF8: 350 | DG8: 340 | DH8: 329 | DI8: 316 | DJ8: 375 | DK8: 289 | DL8: 225 | DM8: 366 | DN8: 357 | DO8: 332 | DP8: 375 | DQ8: 353 | DR8: 347 | DS8: 326 | DT8: 350 | DU8: 234 | DV8: 215 | DW8: 302 | DX8: 357 | DY8: 231 | DZ8: 318 | EA8: 244 | EB8: 417 | EC8: 468 | ED8: 402 | EE8: 432 | EF8: 390 | EG8: 458 | EH8: 539 | EI8: 488 | EJ8: 247 | EK8: 221 | EL8: 234 | EM8: 250 | EN8: 257 | EO8: 235 | EP8: 311 | EQ8: 338 | ER8: 341 | ES8: 333 | ET8: 300 | EU8: 322 | EV8: 292 | EW8: 215 | EX8: 167 | EY8: 179 | EZ8: 187 | FA8: 190 | FB8: 197 | FC8: 199 | FD8: 225 | FE8: 222 | FF8: 211 | FG8: 209 | FH8: 219 | FI8: 209 | FJ8: 390 | FK8: 319 | FL8: 373 | FM8: 371 | FN8: 379 | FO8: 273 | FP8: 271 | FQ8: 261 | FR8: 282 | FS8: 273 | FT8: 277 | FU8: 262 | FV8: 286 | FW8: 277 | FX8: 267 | FY8: 309 | FZ8: 270 | GA8: 264 | GB8: 278 | GC8: 273 | GD8: 261 | GE8: 274 | GF8: 269 | GG8: 267 | GH8: 274 | GI8: 266 | GJ8: 270 | GK8: 265 | GL8: 272 | GM8: 278 | GN8: 259 | GO8: 261 | GP8: 263 | GQ8: 281 | GR8: 273 | GS8: 267 | GT8: 264 | GU8: 264 | GV8: 267 | GW8: 282 | GX8: 267 | GY8: 267 | GZ8: 269 | HA8: 266 | HB8: 279 | HC8: 283 | HD8: 267 | HE8: 277 | HF8: 267 | HG8: 261 | HH8: 273 | HI8: 263 | HJ8: 270 | HK8: 271 | HL8: 287 | HM8: 285 | HN8: 284 | HO8: 289 | HP8: 263 | HQ8: 219 | HR8: 188 | HS8: 233 | HT8: 223 | HU8: 219 | HV8: 242 | HW8: 203 | HX8: 205 | HY8: 222 | HZ8: 299 | IA8: 319 | IB8: 316 | IC8: 321 | ID8: 328 | IE8: 286 | IF8: 179 | IG8: 210 | IH8: 153 | II8: 205 | IJ8: 175 | IK8: 622 | IL8: 354 | IM8: 338 | IN8: 365 | IO8: 587 | IP8: 381 | IQ8: 347 | IR8: 369 | IS8: 349 | IT8: 605 | IU8: 368 | IV8: 355 | IW8: 402 | IX8: 143 | IY8: 153 | IZ8: 165 | JA8: 183 | JB8: 279 | JC8: 271 | JD8: 294 | JE8: 311 | JF8: 324 | JG8: 262 | JH8: 280 | JI8: 290 | JJ8: 237 | JK8: 261 | JL8: 270 | JM8: 236 | JN8: 257 | JO8: 290 | JP8: 282 | JQ8: 281 | JR8: 270 | JS8: 281 | JT8: 330 | JU8: 330 | JV8: 304 | JW8: 304 | JX8: 323 | JY8: 310 | JZ8: 256 | KA8: 244 | KB8: 262 | KC8: 271 | KD8: 246 | KE8: 186 | KF8: 184 | KG8: 178 | KH8: 186 | KI8: 172 | KJ8: 187 | KK8: 366 | KL8: 384 | KM8: 346 | KN8: 415 | KO8: 386 | KP8: 398 | KQ8: 366 | KR8: 402 | KS8: 333 | KT8: 295 | KU8: 352 | KV8: 357 | KW8: 166 | KX8: 177 | KY8: 207 | KZ8: 162 | LA8: 195 | LB8: 202 | LC8: 94 | LD8: 180 | LE8: 97 | LF8: 335 | LG8: 332 | LH8: 342 | LI8: 344 | LJ8: 229 | LK8: 253 | LL8: 282 | LM8: 269 | LN8: 233 | LO8: 267 | LP8: 247 | LQ8: 285 | LR8: 316 | LS8: 294 | LT8: 286 | LU8: 322 | LV8: 298 | LW8: 313 | LX8: 198 | LY8: 204 | LZ8: 210 | MA8: 202 | MB8: 213 | MC8: 197 | MD8: 205 | ME8: 218 | MF8: 198 | MG8: 289 | MH8: 198 | MI8: 257 | MJ8: 223 | MK8: 191 | ML8: 201 | MM8: 202 | MN8: 345 | MO8: 343 | MP8: 284 | MQ8: 294 | MR8: 310 | MS8: 324 | MT8: 267 | MU8: 248 | MV8: 290 | MW8: 273 | MX8: 356 | MY8: 374 | MZ8: 359 | NA8: 205 | NB8: 210 | NC8: 226 | ND8: 276 | NE8: 272 | NF8: 263 | NG8: 287 | NH8: 251 | NI8: 302 | NJ8: 235 | NK8: 483 | NL8: 480 | NM8: 470 | NN8: 441 | NO8: 467 | NP8: 458 | NQ8: 435 | NR8: 346 | NS8: 431 | NT8: 383 | NU8: 357 | NV8: 403 | NW8: 433 | NX8: 407 | NY8: 393 | NZ8: 401 | OA8: 392 | OB8: 414 | OC8: 385 | OD8: 377 | OE8: 442 | OF8: 441 | OG8: 440 | OH8: 477 | OI8: 456 | OJ8: 408 | OK8: 452 | OL8: 452 | OM8: 423 | ON8: 417 | OO8: 479 | OP8: 433 | OQ8: 453 | OR8: 459 | OS8: 477 | OT8: 450 | OU8: 453 | OV8: 432 | OW8: 455 | OX8: 466 | OY8: 461 | OZ8: 427 | PA8: 478 | PB8: 453 | PC8: 439 | PD8: 472 | PE8: 488 | PF8: 476 | PG8: 492 | PH8: 490 | PI8: 482 | PJ8: 502 | PK8: 418 | PL8: 466 | PM8: 531 | PN8: 475 | PO8: 496 | PP8: 443 | PQ8: 494 | PR8: 513 | PS8: 531 | PT8: 437 | PU8: 530 | PV8: 387 | PW8: 379 | PX8: 393 | PY8: 358 | PZ8: 404 | QA8: 390 | QB8: 406 | QC8: 533 | QD8: 507 | QE8: 498 | QF8: 480 | QG8: 499 | QH8: 329 | QI8: 355 | QJ8: 354 | QK8: 345 | QL8: 355 | QM8: 345 | QN8: 314 | QO8: 347 | QP8: 335 | QQ8: 371 | QR8: 424 | QS8: 431 | QT8: 386 | QU8: 420 | QV8: 464 | QW8: 428 | QX8: 450 | QY8: 433 | QZ8: 406 | RA8: 437 | RB8: 431 | RC8: 443 | RD8: 400 | RE8: 397 | RF8: 427 | RG8: 421 | RH8: 365 | RI8: 399 | RJ8: 409 | RK8: 382 | RL8: 540 | RM8: 626 | RN8: 603 | RO8: 621 | RP8: 589 | RQ8: 553 | RR8: 517 | RS8: 512 | RT8: 616 | RU8: 618 | RV8: 594 | RW8: 534 | RX8: 574 | RY8: 522 | RZ8: 517 | SA8: 487 | SB8: 504 | SC8: 527 | SD8: 502 | SE8: 546 | SF8: 632 | SG8: 517 | SH8: 617 | SI8: 601 | SJ8: 603 | SK8: 619 | SL8: 587 | SM8: 534 | SN8: 607 | SO8: 597 | SP8: 613 | SQ8: 586 | SR8: 587 | SS8: 649 | ST8: 621 | SU8: 629 | SV8: 600 | SW8: 590 | SX8: 611 | SY8: 590 | SZ8: 675 | TA8: 659 | TB8: 636 | TC8: 676 | TD8: 713 | TE8: 579 | TF8: 575 | TG8: 574 | TH8: 560 | TI8: 536 | TJ8: 552 | TK8: 522 | TL8: 584 | TM8: 670 | TN8: 664 | TO8: 634 | TP8: 645 | TQ8: 649 | TR8: 448 | TS8: 419 | TT8: 432 | TU8: 408 | TV8: 414 | TW8: 390 | TX8: 375 | TY8: 439 | TZ8: 517 | UA8: 502 | UB8: 454 | UC8: 490 | UD8: 457 | UE8: 470 | UF8: 437 | UG8: 532 | UH8: 517 | UI8: 498 | UJ8: 535 | UK8: 457 | UL8: 530 | UM8: 478 | UN8: 532 | UO8: 555 | UP8: 522 | UQ8: 551 | UR8: 504 | US8: 484 | UT8: 530 | UU8: 486 | UV8: 526 | UW8: 496 | UX8: 492 | UY8: 514 | UZ8: 535 | VA8: 541 | VB8: 498 | VC8: 548 | VD8: 470 | VE8: 495 | VF8: 495 | VG8: 500 | VH8: 555
H9: 03667 | M9: চট্টগ্রাম | P9: 1 | Q9: =IF(P9=0,"",COUNTIF($P$2:P9,">0")) -> 8 | R9: Bagerhat - Rampal | T9: 7 | U9: Bagerhat - Morrelganj | V9: Barishal - Agailjhara | W9: 114 | X9: 116 | Y9: 120 | Z9: 92 | AA9: 153 | AB9: 137 | AC9: 0 | AD9: 36 | AE9: 64 | AF9: 51 | AG9: 7 | AH9: 43 | AI9: 35 | AJ9: 45 | AK9: 45 | AL9: 50 | AM9: 26 | AN9: 90 | AO9: 113 | AP9: 154 | AQ9: 107 | AR9: 135 | AS9: 163 | AT9: 135 | AU9: 63 | AV9: 101 | AW9: 63 | AX9: 76 | AY9: 99 | AZ9: 116 | BA9: 79 | BB9: 115 | BC9: 133 | BD9: 95 | BE9: 88 | BF9: 90 | BG9: 84 | BH9: 123 | BI9: 51 | BJ9: 80 | BK9: 60 | BL9: 98 | BM9: 512 | BN9: 449 | BO9: 481 | BP9: 519 | BQ9: 467 | BR9: 483 | BS9: 512 | BT9: 262 | BU9: 189 | BV9: 247 | BW9: 244 | BX9: 220 | BY9: 247 | BZ9: 252 | CA9: 248 | CB9: 232 | CC9: 232 | CD9: 246 | CE9: 104 | CF9: 225 | CG9: 231 | CH9: 370 | CI9: 396 | CJ9: 372 | CK9: 419 | CL9: 379 | CM9: 388 | CN9: 377 | CO9: 409 | CP9: 379 | CQ9: 378 | CR9: 377 | CS9: 381 | CT9: 345 | CU9: 379 | CV9: 382 | CW9: 371 | CX9: 378 | CY9: 374 | CZ9: 436 | DA9: 320 | DB9: 370 | DC9: 377 | DD9: 400 | DE9: 391 | DF9: 402 | DG9: 393 | DH9: 382 | DI9: 369 | DJ9: 428 | DK9: 341 | DL9: 256 | DM9: 243 | DN9: 234 | DO9: 209 | DP9: 252 | DQ9: 230 | DR9: 224 | DS9: 202 | DT9: 227 | DU9: 254 | DV9: 268 | DW9: 179 | DX9: 234 | DY9: 264 | DZ9: 195 | EA9: 239 | EB9: 469 | EC9: 520 | ED9: 454 | EE9: 485 | EF9: 443 | EG9: 511 | EH9: 592 | EI9: 541 | EJ9: 296 | EK9: 298 | EL9: 284 | EM9: 300 | EN9: 307 | EO9: 328 | EP9: 364 | EQ9: 391 | ER9: 394 | ES9: 386 | ET9: 353 | EU9: 375 | EV9: 345 | EW9: 177 | EX9: 129 | EY9: 141 | EZ9: 243 | FA9: 152 | FB9: 159 | FC9: 257 | FD9: 303 | FE9: 315 | FF9: 307 | FG9: 274 | FH9: 181 | FI9: 171 | FJ9: 443 | FK9: 371 | FL9: 425 | FM9: 424 | FN9: 432 | FO9: 150 | FP9: 148 | FQ9: 138 | FR9: 159 | FS9: 150 | FT9: 154 | FU9: 139 | FV9: 163 | FW9: 154 | FX9: 144 | FY9: 186 | FZ9: 147 | GA9: 141 | GB9: 155 | GC9: 150 | GD9: 138 | GE9: 151 | GF9: 146 | GG9: 144 | GH9: 151 | GI9: 143 | GJ9: 147 | GK9: 142 | GL9: 149 | GM9: 155 | GN9: 136 | GO9: 138 | GP9: 140 | GQ9: 157 | GR9: 150 | GS9: 144 | GT9: 141 | GU9: 141 | GV9: 144 | GW9: 159 | GX9: 144 | GY9: 144 | GZ9: 146 | HA9: 143 | HB9: 156 | HC9: 160 | HD9: 144 | HE9: 154 | HF9: 144 | HG9: 138 | HH9: 150 | HI9: 140 | HJ9: 147 | HK9: 148 | HL9: 164 | HM9: 162 | HN9: 161 | HO9: 166 | HP9: 140 | HQ9: 82 | HR9: 65 | HS9: 96 | HT9: 100 | HU9: 96 | HV9: 119 | HW9: 80 | HX9: 82 | HY9: 106 | HZ9: 176 | IA9: 196 | IB9: 193 | IC9: 198 | ID9: 205 | IE9: 163 | IF9: 42 | IG9: 74 | IH9: 17 | II9: 91 | IJ9: 39 | IK9: 499 | IL9: 231 | IM9: 215 | IN9: 242 | IO9: 464 | IP9: 258 | IQ9: 224 | IR9: 246 | IS9: 226 | IT9: 482 | IU9: 245 | IV9: 232 | IW9: 279 | IX9: 20 | IY9: 30 | IZ9: 42 | JA9: 60 | JB9: 156 | JC9: 148 | JD9: 171 | JE9: 188 | JF9: 201 | JG9: 139 | JH9: 157 | JI9: 167 | JJ9: 114 | JK9: 138 | JL9: 147 | JM9: 113 | JN9: 134 | JO9: 167 | JP9: 159 | JQ9: 158 | JR9: 147 | JS9: 158 | JT9: 207 | JU9: 207 | JV9: 181 | JW9: 181 | JX9: 200 | JY9: 187 | JZ9: 133 | KA9: 121 | KB9: 139 | KC9: 148 | KD9: 123 | KE9: 63 | KF9: 60 | KG9: 55 | KH9: 63 | KI9: 49 | KJ9: 64 | KK9: 243 | KL9: 260 | KM9: 223 | KN9: 292 | KO9: 263 | KP9: 275 | KQ9: 243 | KR9: 279 | KS9: 210 | KT9: 172 | KU9: 229 | KV9: 234 | KW9: 94 | KX9: 59 | KY9: 71 | KZ9: 79 | LA9: 58 | LB9: 106 | LC9: 123 | LD9: 102 | LE9: 143 | LF9: 212 | LG9: 198 | LH9: 207 | LI9: 209 | LJ9: 126 | LK9: 150 | LL9: 179 | LM9: 166 | LN9: 130 | LO9: 164 | LP9: 144 | LQ9: 182 | LR9: 181 | LS9: 160 | LT9: 183 | LU9: 188 | LV9: 195 | LW9: 178 | LX9: 95 | LY9: 101 | LZ9: 107 | MA9: 99 | MB9: 93 | MC9: 94 | MD9: 103 | ME9: 115 | MF9: 95 | MG9: 186 | MH9: 95 | MI9: 154 | MJ9: 120 | MK9: 88 | ML9: 98 | MM9: 66 | MN9: 222 | MO9: 220 | MP9: 161 | MQ9: 171 | MR9: 187 | MS9: 201 | MT9: 132 | MU9: 112 | MV9: 155 | MW9: 150 | MX9: 233 | MY9: 240 | MZ9: 225 | NA9: 69 | NB9: 73 | NC9: 90 | ND9: 173 | NE9: 169 | NF9: 160 | NG9: 184 | NH9: 148 | NI9: 199 | NJ9: 132 | NK9: 360 | NL9: 357 | NM9: 347 | NN9: 318 | NO9: 344 | NP9: 335 | NQ9: 311 | NR9: 223 | NS9: 308 | NT9: 260 | NU9: 234 | NV9: 279 | NW9: 310 | NX9: 284 | NY9: 270 | NZ9: 278 | OA9: 269 | OB9: 290 | OC9: 262 | OD9: 254 | OE9: 318 | OF9: 318 | OG9: 317 | OH9: 354 | OI9: 333 | OJ9: 285 | OK9: 329 | OL9: 329 | OM9: 300 | ON9: 294 | OO9: 356 | OP9: 310 | OQ9: 330 | OR9: 336 | OS9: 354 | OT9: 327 | OU9: 330 | OV9: 309 | OW9: 332 | OX9: 343 | OY9: 338 | OZ9: 304 | PA9: 355 | PB9: 330 | PC9: 316 | PD9: 349 | PE9: 365 | PF9: 353 | PG9: 369 | PH9: 367 | PI9: 359 | PJ9: 379 | PK9: 295 | PL9: 343 | PM9: 408 | PN9: 352 | PO9: 373 | PP9: 320 | PQ9: 371 | PR9: 390 | PS9: 408 | PT9: 314 | PU9: 407 | PV9: 264 | PW9: 256 | PX9: 269 | PY9: 235 | PZ9: 281 | QA9: 267 | QB9: 283 | QC9: 410 | QD9: 384 | QE9: 375 | QF9: 357 | QG9: 376 | QH9: 206 | QI9: 232 | QJ9: 231 | QK9: 222 | QL9: 232 | QM9: 222 | QN9: 191 | QO9: 224 | QP9: 212 | QQ9: 248 | QR9: 301 | QS9: 308 | QT9: 263 | QU9: 297 | QV9: 341 | QW9: 305 | QX9: 327 | QY9: 310 | QZ9: 282 | RA9: 314 | RB9: 308 | RC9: 320 | RD9: 277 | RE9: 274 | RF9: 304 | RG9: 298 | RH9: 242 | RI9: 276 | RJ9: 286 | RK9: 259 | RL9: 417 | RM9: 503 | RN9: 480 | RO9: 498 | RP9: 466 | RQ9: 430 | RR9: 394 | RS9: 389 | RT9: 493 | RU9: 495 | RV9: 471 | RW9: 411 | RX9: 451 | RY9: 399 | RZ9: 394 | SA9: 364 | SB9: 380 | SC9: 404 | SD9: 379 | SE9: 423 | SF9: 509 | SG9: 394 | SH9: 494 | SI9: 478 | SJ9: 480 | SK9: 496 | SL9: 464 | SM9: 411 | SN9: 484 | SO9: 474 | SP9: 490 | SQ9: 463 | SR9: 463 | SS9: 526 | ST9: 498 | SU9: 506 | SV9: 477 | SW9: 467 | SX9: 488 | SY9: 467 | SZ9: 552 | TA9: 536 | TB9: 513 | TC9: 553 | TD9: 590 | TE9: 456 | TF9: 452 | TG9: 451 | TH9: 437 | TI9: 413 | TJ9: 429 | TK9: 399 | TL9: 460 | TM9: 547 | TN9: 541 | TO9: 511 | TP9: 522 | TQ9: 526 | TR9: 325 | TS9: 296 | TT9: 309 | TU9: 285 | TV9: 291 | TW9: 267 | TX9: 252 | TY9: 316 | TZ9: 394 | UA9: 379 | UB9: 331 | UC9: 367 | UD9: 334 | UE9: 347 | UF9: 314 | UG9: 408 | UH9: 394 | UI9: 375 | UJ9: 412 | UK9: 334 | UL9: 407 | UM9: 355 | UN9: 409 | UO9: 432 | UP9: 398 | UQ9: 428 | UR9: 381 | US9: 361 | UT9: 407 | UU9: 363 | UV9: 402 | UW9: 373 | UX9: 369 | UY9: 391 | UZ9: 412 | VA9: 418 | VB9: 375 | VC9: 425 | VD9: 347 | VE9: 382 | VF9: 372 | VG9: 377 | VH9: 432
A10: ভ্রমণের উদ্দেশ্য | H10: 05816 | M10: খুলনা | P10: 1 | Q10: =IF(P10=0,"",COUNTIF($P$2:P10,">0")) -> 9 | R10: Bagerhat - Sharankhola | T10: 8 | U10: Bagerhat - Rampal | V10: Barishal - Babuganj | W10: 88 | X10: 90 | Y10: 94 | Z10: 66 | AA10: 127 | AB10: 111 | AC10: 36 | AD10: 0 | AE10: 38 | AF10: 25 | AG10: 30 | AH10: 17 | AI10: 9 | AJ10: 16 | AK10: 14 | AL10: 14 | AM10: 14 | AN10: 64 | AO10: 88 | AP10: 128 | AQ10: 81 | AR10: 109 | AS10: 137 | AT10: 109 | AU10: 37 | AV10: 76 | AW10: 37 | AX10: 50 | AY10: 73 | AZ10: 90 | BA10: 54 | BB10: 90 | BC10: 107 | BD10: 69 | BE10: 62 | BF10: 64 | BG10: 58 | BH10: 97 | BI10: 87 | BJ10: 69 | BK10: 34 | BL10: 80 | BM10: 535 | BN10: 472 | BO10: 503 | BP10: 542 | BQ10: 490 | BR10: 506 | BS10: 535 | BT10: 285 | BU10: 212 | BV10: 270 | BW10: 267 | BX10: 242 | BY10: 270 | BZ10: 275 | CA10: 271 | CB10: 255 | CC10: 143 | CD10: 126 | CE10: 68 | CF10: 248 | CG10: 253 | CH10: 393 | CI10: 419 | CJ10: 395 | CK10: 442 | CL10: 402 | CM10: 411 | CN10: 400 | CO10: 432 | CP10: 402 | CQ10: 401 | CR10: 399 | CS10: 404 | CT10: 368 | CU10: 401 | CV10: 405 | CW10: 394 | CX10: 401 | CY10: 397 | CZ10: 458 | DA10: 342 | DB10: 393 | DC10: 400 | DD10: 423 | DE10: 413 | DF10: 425 | DG10: 416 | DH10: 405 | DI10: 391 | DJ10: 451 | DK10: 364 | DL10: 279 | DM10: 266 | DN10: 257 | DO10: 231 | DP10: 274 | DQ10: 253 | DR10: 247 | DS10: 225 | DT10: 250 | DU10: 276 | DV10: 151 | DW10: 201 | DX10: 257 | DY10: 287 | DZ10: 217 | EA10: 262 | EB10: 492 | EC10: 543 | ED10: 477 | EE10: 508 | EF10: 466 | EG10: 533 | EH10: 615 | EI10: 564 | EJ10: 319 | EK10: 158 | EL10: 307 | EM10: 323 | EN10: 330 | EO10: 171 | EP10: 386 | EQ10: 414 | ER10: 416 | ES10: 409 | ET10: 375 | EU10: 398 | EV10: 367 | EW10: 152 | EX10: 104 | EY10: 115 | EZ10: 123 | FA10: 126 | FB10: 133 | FC10: 135 | FD10: 161 | FE10: 158 | FF10: 147 | FG10: 145 | FH10: 155 | FI10: 145 | FJ10: 466 | FK10: 394 | FL10: 448 | FM10: 447 | FN10: 454 | FO10: 173 | FP10: 170 | FQ10: 161 | FR10: 182 | FS10: 173 | FT10: 176 | FU10: 162 | FV10: 186 | FW10: 176 | FX10: 166 | FY10: 208 | FZ10: 169 | GA10: 163 | GB10: 177 | GC10: 173 | GD10: 160 | GE10: 174 | GF10: 169 | GG10: 166 | GH10: 174 | GI10: 166 | GJ10: 170 | GK10: 165 | GL10: 172 | GM10: 178 | GN10: 158 | GO10: 161 | GP10: 162 | GQ10: 180 | GR10: 173 | GS10: 166 | GT10: 164 | GU10: 164 | GV10: 167 | GW10: 181 | GX10: 167 | GY10: 167 | GZ10: 168 | HA10: 165 | HB10: 179 | HC10: 182 | HD10: 166 | HE10: 177 | HF10: 167 | HG10: 161 | HH10: 173 | HI10: 162 | HJ10: 170 | HK10: 170 | HL10: 187 | HM10: 185 | HN10: 184 | HO10: 189 | HP10: 163 | HQ10: 118 | HR10: 87 | HS10: 133 | HT10: 122 | HU10: 119 | HV10: 141 | HW10: 103 | HX10: 105 | HY10: 122 | HZ10: 199 | IA10: 219 | IB10: 216 | IC10: 221 | ID10: 228 | IE10: 186 | IF10: 78 | IG10: 110 | IH10: 53 | II10: 105 | IJ10: 75 | IK10: 522 | IL10: 254 | IM10: 237 | IN10: 265 | IO10: 487 | IP10: 280 | IQ10: 247 | IR10: 269 | IS10: 249 | IT10: 504 | IU10: 268 | IV10: 255 | IW10: 301 | IX10: 43 | IY10: 53 | IZ10: 65 | JA10: 82 | JB10: 178 | JC10: 171 | JD10: 193 | JE10: 211 | JF10: 223 | JG10: 161 | JH10: 179 | JI10: 190 | JJ10: 137 | JK10: 161 | JL10: 170 | JM10: 135 | JN10: 156 | JO10: 190 | JP10: 182 | JQ10: 181 | JR10: 170 | JS10: 181 | JT10: 230 | JU10: 229 | JV10: 204 | JW10: 204 | JX10: 223 | JY10: 210 | JZ10: 156 | KA10: 143 | KB10: 161 | KC10: 170 | KD10: 146 | KE10: 85 | KF10: 83 | KG10: 77 | KH10: 85 | KI10: 72 | KJ10: 87 | KK10: 266 | KL10: 283 | KM10: 246 | KN10: 315 | KO10: 286 | KP10: 298 | KQ10: 265 | KR10: 302 | KS10: 233 | KT10: 194 | KU10: 251 | KV10: 256 | KW10: 131 | KX10: 96 | KY10: 107 | KZ10: 91 | LA10: 95 | LB10: 142 | LC10: 92 | LD10: 138 | LE10: 103 | LF10: 234 | LG10: 232 | LH10: 241 | LI10: 244 | LJ10: 162 | LK10: 186 | LL10: 216 | LM10: 202 | LN10: 166 | LO10: 200 | LP10: 180 | LQ10: 219 | LR10: 215 | LS10: 194 | LT10: 216 | LU10: 222 | LV10: 236 | LW10: 212 | LX10: 131 | LY10: 137 | LZ10: 144 | MA10: 135 | MB10: 129 | MC10: 130 | MD10: 139 | ME10: 151 | MF10: 131 | MG10: 222 | MH10: 131 | MI10: 191 | MJ10: 156 | MK10: 125 | ML10: 134 | MM10: 102 | MN10: 245 | MO10: 243 | MP10: 184 | MQ10: 194 | MR10: 209 | MS10: 224 | MT10: 167 | MU10: 148 | MV10: 189 | MW10: 173 | MX10: 256 | MY10: 274 | MZ10: 259 | NA10: 105 | NB10: 109 | NC10: 126 | ND10: 210 | NE10: 205 | NF10: 197 | NG10: 220 | NH10: 184 | NI10: 235 | NJ10: 168 | NK10: 383 | NL10: 380 | NM10: 370 | NN10: 341 | NO10: 367 | NP10: 358 | NQ10: 334 | NR10: 245 | NS10: 331 | NT10: 282 | NU10: 257 | NV10: 302 | NW10: 333 | NX10: 307 | NY10: 292 | NZ10: 301 | OA10: 292 | OB10: 313 | OC10: 285 | OD10: 277 | OE10: 341 | OF10: 341 | OG10: 339 | OH10: 376 | OI10: 355 | OJ10: 307 | OK10: 352 | OL10: 352 | OM10: 323 | ON10: 316 | OO10: 378 | OP10: 333 | OQ10: 353 | OR10: 359 | OS10: 377 | OT10: 349 | OU10: 353 | OV10: 332 | OW10: 355 | OX10: 366 | OY10: 361 | OZ10: 327 | PA10: 378 | PB10: 352 | PC10: 339 | PD10: 371 | PE10: 388 | PF10: 376 | PG10: 391 | PH10: 390 | PI10: 381 | PJ10: 402 | PK10: 318 | PL10: 366 | PM10: 430 | PN10: 375 | PO10: 395 | PP10: 343 | PQ10: 393 | PR10: 413 | PS10: 431 | PT10: 337 | PU10: 429 | PV10: 287 | PW10: 279 | PX10: 292 | PY10: 258 | PZ10: 304 | QA10: 290 | QB10: 306 | QC10: 432 | QD10: 407 | QE10: 398 | QF10: 379 | QG10: 399 | QH10: 229 | QI10: 255 | QJ10: 253 | QK10: 245 | QL10: 255 | QM10: 244 | QN10: 214 | QO10: 247 | QP10: 234 | QQ10: 270 | QR10: 323 | QS10: 331 | QT10: 286 | QU10: 320 | QV10: 363 | QW10: 327 | QX10: 349 | QY10: 333 | QZ10: 305 | RA10: 337 | RB10: 331 | RC10: 342 | RD10: 300 | RE10: 296 | RF10: 327 | RG10: 320 | RH10: 265 | RI10: 299 | RJ10: 309 | RK10: 281 | RL10: 440 | RM10: 525 | RN10: 503 | RO10: 521 | RP10: 489 | RQ10: 453 | RR10: 416 | RS10: 412 | RT10: 516 | RU10: 518 | RV10: 494 | RW10: 434 | RX10: 473 | RY10: 422 | RZ10: 417 | SA10: 386 | SB10: 403 | SC10: 426 | SD10: 402 | SE10: 446 | SF10: 531 | SG10: 417 | SH10: 517 | SI10: 501 | SJ10: 503 | SK10: 519 | SL10: 487 | SM10: 434 | SN10: 507 | SO10: 496 | SP10: 513 | SQ10: 485 | SR10: 486 | SS10: 549 | ST10: 521 | SU10: 529 | SV10: 500 | SW10: 489 | SX10: 510 | SY10: 490 | SZ10: 575 | TA10: 558 | TB10: 536 | TC10: 576 | TD10: 613 | TE10: 479 | TF10: 474 | TG10: 474 | TH10: 459 | TI10: 436 | TJ10: 452 | TK10: 422 | TL10: 483 | TM10: 570 | TN10: 564 | TO10: 534 | TP10: 545 | TQ10: 549 | TR10: 348 | TS10: 318 | TT10: 331 | TU10: 308 | TV10: 314 | TW10: 290 | TX10: 275 | TY10: 339 | TZ10: 417 | UA10: 401 | UB10: 354 | UC10: 390 | UD10: 357 | UE10: 369 | UF10: 337 | UG10: 431 | UH10: 417 | UI10: 397 | UJ10: 434 | UK10: 357 | UL10: 430 | UM10: 377 | UN10: 431 | UO10: 455 | UP10: 421 | UQ10: 451 | UR10: 404 | US10: 384 | UT10: 430 | UU10: 386 | UV10: 425 | UW10: 396 | UX10: 392 | UY10: 414 | UZ10: 435 | VA10: 441 | VB10: 398 | VC10: 447 | VD10: 370 | VE10: 395 | VF10: 395 | VG10: 400 | VH10: 454
C11: ভ্রমণ ভাতা | H11: 04838 | M11: রাজশাহী | P11: 1 | Q11: =IF(P11=0,"",COUNTIF($P$2:P11,">0")) -> 10 | R11: Bandarban - Alikadam | T11: 9 | U11: Bagerhat - Sharankhola | V11: Barishal - Bakerganj | W11: 50 | X11: 43 | Y11: 56 | Z11: 28 | AA11: 84 | AB11: 72 | AC11: 64 | AD11: 38 | AE11: 0 | AF11: 48 | AG11: 58 | AH11: 21 | AI11: 29 | AJ11: 22 | AK11: 26 | AL11: 52 | AM11: 42 | AN11: 55 | AO11: 79 | AP11: 112 | AQ11: 73 | AR11: 101 | AS11: 128 | AT11: 101 | AU11: 35 | AV11: 33 | AW11: 16 | AX11: 48 | AY11: 35 | AZ11: 52 | BA11: 15 | BB11: 51 | BC11: 69 | BD11: 31 | BE11: 24 | BF11: 62 | BG11: 57 | BH11: 96 | BI11: 115 | BJ11: 67 | BK11: 57 | BL11: 78 | BM11: 387 | BN11: 324 | BO11: 356 | BP11: 394 | BQ11: 342 | BR11: 358 | BS11: 387 | BT11: 313 | BU11: 240 | BV11: 298 | BW11: 295 | BX11: 270 | BY11: 298 | BZ11: 303 | CA11: 299 | CB11: 283 | CC11: 135 | CD11: 117 | CE11: 106 | CF11: 132 | CG11: 135 | CH11: 245 | CI11: 271 | CJ11: 247 | CK11: 294 | CL11: 254 | CM11: 263 | CN11: 252 | CO11: 284 | CP11: 254 | CQ11: 253 | CR11: 252 | CS11: 256 | CT11: 220 | CU11: 254 | CV11: 257 | CW11: 246 | CX11: 253 | CY11: 249 | CZ11: 311 | DA11: 195 | DB11: 245 | DC11: 252 | DD11: 275 | DE11: 266 | DF11: 277 | DG11: 268 | DH11: 257 | DI11: 244 | DJ11: 303 | DK11: 216 | DL11: 153 | DM11: 293 | DN11: 285 | DO11: 259 | DP11: 302 | DQ11: 281 | DR11: 275 | DS11: 253 | DT11: 278 | DU11: 162 | DV11: 143 | DW11: 229 | DX11: 285 | DY11: 159 | DZ11: 245 | EA11: 172 | EB11: 344 | EC11: 395 | ED11: 329 | EE11: 360 | EF11: 318 | EG11: 386 | EH11: 467 | EI11: 416 | EJ11: 174 | EK11: 149 | EL11: 162 | EM11: 178 | EN11: 185 | EO11: 163 | EP11: 239 | EQ11: 266 | ER11: 269 | ES11: 261 | ET11: 228 | EU11: 250 | EV11: 220 | EW11: 143 | EX11: 95 | EY11: 107 | EZ11: 114 | FA11: 118 | FB11: 124 | FC11: 126 | FD11: 152 | FE11: 149 | FF11: 139 | FG11: 136 | FH11: 147 | FI11: 137 | FJ11: 318 | FK11: 246 | FL11: 300 | FM11: 299 | FN11: 307 | FO11: 201 | FP11: 198 | FQ11: 189 | FR11: 210 | FS11: 201 | FT11: 204 | FU11: 189 | FV11: 214 | FW11: 204 | FX11: 194 | FY11: 236 | FZ11: 197 | GA11: 191 | GB11: 205 | GC11: 201 | GD11: 188 | GE11: 202 | GF11: 197 | GG11: 194 | GH11: 201 | GI11: 194 | GJ11: 198 | GK11: 193 | GL11: 200 | GM11: 206 | GN11: 186 | GO11: 189 | GP11: 190 | GQ11: 208 | GR11: 200 | GS11: 194 | GT11: 192 | GU11: 192 | GV11: 195 | GW11: 209 | GX11: 195 | GY11: 195 | GZ11: 196 | HA11: 193 | HB11: 207 | HC11: 210 | HD11: 194 | HE11: 205 | HF11: 195 | HG11: 189 | HH11: 201 | HI11: 190 | HJ11: 198 | HK11: 198 | HL11: 215 | HM11: 213 | HN11: 212 | HO11: 217 | HP11: 191 | HQ11: 146 | HR11: 115 | HS11: 161 | HT11: 150 | HU11: 147 | HV11: 169 | HW11: 131 | HX11: 132 | HY11: 150 | HZ11: 226 | IA11: 247 | IB11: 244 | IC11: 249 | ID11: 256 | IE11: 214 | IF11: 106 | IG11: 138 | IH11: 81 | II11: 133 | IJ11: 103 | IK11: 550 | IL11: 281 | IM11: 265 | IN11: 293 | IO11: 515 | IP11: 308 | IQ11: 275 | IR11: 297 | IS11: 276 | IT11: 532 | IU11: 296 | IV11: 283 | IW11: 329 | IX11: 71 | IY11: 81 | IZ11: 93 | JA11: 110 | JB11: 206 | JC11: 199 | JD11: 221 | JE11: 239 | JF11: 251 | JG11: 189 | JH11: 207 | JI11: 218 | JJ11: 165 | JK11: 189 | JL11: 198 | JM11: 163 | JN11: 184 | JO11: 218 | JP11: 210 | JQ11: 209 | JR11: 198 | JS11: 209 | JT11: 258 | JU11: 257 | JV11: 232 | JW11: 231 | JX11: 251 | JY11: 238 | JZ11: 184 | KA11: 171 | KB11: 189 | KC11: 198 | KD11: 174 | KE11: 113 | KF11: 111 | KG11: 105 | KH11: 113 | KI11: 100 | KJ11: 115 | KK11: 294 | KL11: 311 | KM11: 274 | KN11: 343 | KO11: 314 | KP11: 326 | KQ11: 293 | KR11: 330 | KS11: 261 | KT11: 222 | KU11: 279 | KV11: 284 | KW11: 94 | KX11: 105 | KY11: 135 | KZ11: 89 | LA11: 123 | LB11: 129 | LC11: 90 | LD11: 108 | LE11: 101 | LF11: 262 | LG11: 260 | LH11: 269 | LI11: 272 | LJ11: 157 | LK11: 181 | LL11: 210 | LM11: 196 | LN11: 161 | LO11: 194 | LP11: 175 | LQ11: 213 | LR11: 243 | LS11: 222 | LT11: 214 | LU11: 250 | LV11: 226 | LW11: 240 | LX11: 125 | LY11: 131 | LZ11: 138 | MA11: 129 | MB11: 141 | MC11: 124 | MD11: 133 | ME11: 146 | MF11: 125 | MG11: 216 | MH11: 125 | MI11: 185 | MJ11: 150 | MK11: 119 | ML11: 129 | MM11: 130 | MN11: 273 | MO11: 271 | MP11: 212 | MQ11: 222 | MR11: 237 | MS11: 252 | MT11: 195 | MU11: 176 | MV11: 217 | MW11: 201 | MX11: 284 | MY11: 302 | MZ11: 287 | NA11: 133 | NB11: 137 | NC11: 154 | ND11: 204 | NE11: 200 | NF11: 191 | NG11: 214 | NH11: 179 | NI11: 230 | NJ11: 162 | NK11: 411 | NL11: 408 | NM11: 398 | NN11: 369 | NO11: 395 | NP11: 386 | NQ11: 362 | NR11: 273 | NS11: 359 | NT11: 310 | NU11: 285 | NV11: 330 | NW11: 361 | NX11: 335 | NY11: 320 | NZ11: 329 | OA11: 320 | OB11: 341 | OC11: 313 | OD11: 305 | OE11: 369 | OF11: 369 | OG11: 367 | OH11: 404 | OI11: 383 | OJ11: 335 | OK11: 380 | OL11: 380 | OM11: 351 | ON11: 344 | OO11: 406 | OP11: 361 | OQ11: 381 | OR11: 387 | OS11: 405 | OT11: 377 | OU11: 381 | OV11: 360 | OW11: 383 | OX11: 394 | OY11: 388 | OZ11: 355 | PA11: 406 | PB11: 380 | PC11: 367 | PD11: 399 | PE11: 416 | PF11: 404 | PG11: 419 | PH11: 418 | PI11: 409 | PJ11: 430 | PK11: 346 | PL11: 394 | PM11: 458 | PN11: 403 | PO11: 423 | PP11: 371 | PQ11: 421 | PR11: 441 | PS11: 459 | PT11: 364 | PU11: 457 | PV11: 315 | PW11: 307 | PX11: 320 | PY11: 286 | PZ11: 332 | QA11: 318 | QB11: 334 | QC11: 460 | QD11: 435 | QE11: 426 | QF11: 407 | QG11: 427 | QH11: 257 | QI11: 283 | QJ11: 281 | QK11: 273 | QL11: 283 | QM11: 272 | QN11: 242 | QO11: 275 | QP11: 262 | QQ11: 298 | QR11: 351 | QS11: 359 | QT11: 314 | QU11: 348 | QV11: 391 | QW11: 355 | QX11: 377 | QY11: 360 | QZ11: 333 | RA11: 365 | RB11: 359 | RC11: 370 | RD11: 328 | RE11: 324 | RF11: 355 | RG11: 348 | RH11: 293 | RI11: 327 | RJ11: 337 | RK11: 309 | RL11: 468 | RM11: 553 | RN11: 530 | RO11: 549 | RP11: 517 | RQ11: 481 | RR11: 444 | RS11: 440 | RT11: 544 | RU11: 546 | RV11: 522 | RW11: 462 | RX11: 501 | RY11: 450 | RZ11: 445 | SA11: 414 | SB11: 431 | SC11: 454 | SD11: 430 | SE11: 474 | SF11: 559 | SG11: 445 | SH11: 545 | SI11: 529 | SJ11: 531 | SK11: 547 | SL11: 515 | SM11: 462 | SN11: 535 | SO11: 524 | SP11: 541 | SQ11: 513 | SR11: 514 | SS11: 577 | ST11: 549 | SU11: 557 | SV11: 528 | SW11: 517 | SX11: 538 | SY11: 518 | SZ11: 603 | TA11: 586 | TB11: 564 | TC11: 604 | TD11: 641 | TE11: 507 | TF11: 502 | TG11: 502 | TH11: 487 | TI11: 464 | TJ11: 480 | TK11: 450 | TL11: 511 | TM11: 597 | TN11: 592 | TO11: 562 | TP11: 573 | TQ11: 577 | TR11: 376 | TS11: 346 | TT11: 359 | TU11: 336 | TV11: 342 | TW11: 318 | TX11: 303 | TY11: 367 | TZ11: 445 | UA11: 429 | UB11: 382 | UC11: 418 | UD11: 385 | UE11: 397 | UF11: 364 | UG11: 459 | UH11: 445 | UI11: 425 | UJ11: 462 | UK11: 385 | UL11: 458 | UM11: 405 | UN11: 459 | UO11: 483 | UP11: 449 | UQ11: 479 | UR11: 431 | US11: 412 | UT11: 458 | UU11: 414 | UV11: 453 | UW11: 424 | UX11: 420 | UY11: 442 | UZ11: 463 | VA11: 469 | VB11: 426 | VC11: 475 | VD11: 398 | VE11: 423 | VF11: 423 | VG11: 428 | VH11: 482
A12: ভ্রমনের তারিখ | B12: যাত্রা শুরুর থানার নাম | C12: গন্তব্যের থানার নাম | D12: দূরত্ব (কিমি) | E12: মাধ্যম | F12: ভাড়ার হার | G12: টাকার পরিমাণ | H12: 05738 | M12: বরিশাল | P12: 1 | Q12: =IF(P12=0,"",COUNTIF($P$2:P12,">0")) -> 11 | R12: Bandarban - Bandarban Sadar | T12: 10 | U12: Bandarban - Alikadam | V12: Barishal - Banari Para | W12: 98 | X12: 73 | Y12: 104 | Z12: 76 | AA12: 110 | AB12: 120 | AC12: 51 | AD12: 25 | AE12: 48 | AF12: 0 | AG12: 45 | AH12: 26 | AI12: 21 | AJ12: 29 | AK12: 28 | AL12: 39 | AM12: 28 | AN12: 73 | AO12: 97 | AP12: 137 | AQ12: 91 | AR12: 119 | AS12: 146 | AT12: 119 | AU12: 21 | AV12: 58 | AW12: 47 | AX12: 32 | AY12: 83 | AZ12: 99 | BA12: 63 | BB12: 99 | BC12: 117 | BD12: 78 | BE12: 72 | BF12: 47 | BG12: 27 | BH12: 80 | BI12: 102 | BJ12: 41 | BK12: 10 | BL12: 62 | BM12: 550 | BN12: 487 | BO12: 518 | BP12: 557 | BQ12: 504 | BR12: 520 | BS12: 549 | BT12: 300 | BU12: 227 | BV12: 285 | BW12: 281 | BX12: 257 | BY12: 285 | BZ12: 289 | CA12: 286 | CB12: 270 | CC12: 153 | CD12: 136 | CE12: 93 | CF12: 150 | CG12: 153 | CH12: 408 | CI12: 434 | CJ12: 410 | CK12: 456 | CL12: 417 | CM12: 426 | CN12: 415 | CO12: 446 | CP12: 417 | CQ12: 416 | CR12: 414 | CS12: 419 | CT12: 382 | CU12: 416 | CV12: 420 | CW12: 409 | CX12: 416 | CY12: 411 | CZ12: 473 | DA12: 357 | DB12: 408 | DC12: 415 | DD12: 437 | DE12: 428 | DF12: 440 | DG12: 431 | DH12: 420 | DI12: 406 | DJ12: 465 | DK12: 379 | DL12: 294 | DM12: 280 | DN12: 272 | DO12: 246 | DP12: 289 | DQ12: 268 | DR12: 258 | DS12: 240 | DT12: 265 | DU12: 291 | DV12: 161 | DW12: 216 | DX12: 272 | DY12: 177 | DZ12: 232 | EA12: 277 | EB12: 507 | EC12: 558 | ED12: 492 | EE12: 523 | EF12: 481 | EG12: 548 | EH12: 630 | EI12: 579 | EJ12: 334 | EK12: 167 | EL12: 321 | EM12: 337 | EN12: 345 | EO12: 181 | EP12: 401 | EQ12: 429 | ER12: 431 | ES12: 424 | ET12: 390 | EU12: 413 | EV12: 382 | EW12: 161 | EX12: 113 | EY12: 125 | EZ12: 132 | FA12: 136 | FB12: 142 | FC12: 144 | FD12: 170 | FE12: 167 | FF12: 157 | FG12: 154 | FH12: 165 | FI12: 155 | FJ12: 480 | FK12: 409 | FL12: 463 | FM12: 462 | FN12: 469 | FO12: 188 | FP12: 185 | FQ12: 176 | FR12: 197 | FS12: 187 | FT12: 191 | FU12: 176 | FV12: 201 | FW12: 191 | FX12: 181 | FY12: 223 | FZ12: 184 | GA12: 178 | GB12: 192 | GC12: 188 | GD12: 175 | GE12: 189 | GF12: 184 | GG12: 181 | GH12: 188 | GI12: 181 | GJ12: 185 | GK12: 180 | GL12: 187 | GM12: 193 | GN12: 173 | GO12: 176 | GP12: 177 | GQ12: 195 | GR12: 187 | GS12: 181 | GT12: 179 | GU12: 179 | GV12: 182 | GW12: 196 | GX12: 182 | GY12: 182 | GZ12: 183 | HA12: 180 | HB12: 194 | HC12: 197 | HD12: 181 | HE12: 192 | HF12: 182 | HG12: 176 | HH12: 187 | HI12: 177 | HJ12: 184 | HK12: 185 | HL12: 202 | HM12: 200 | HN12: 199 | HO12: 204 | HP12: 178 | HQ12: 133 | HR12: 102 | HS12: 147 | HT12: 137 | HU12: 134 | HV12: 156 | HW12: 118 | HX12: 119 | HY12: 136 | HZ12: 213 | IA12: 234 | IB12: 231 | IC12: 236 | ID12: 243 | IE12: 201 | IF12: 93 | IG12: 125 | IH12: 68 | II12: 120 | IJ12: 90 | IK12: 536 | IL12: 268 | IM12: 252 | IN12: 280 | IO12: 502 | IP12: 295 | IQ12: 261 | IR12: 284 | IS12: 263 | IT12: 519 | IU12: 283 | IV12: 269 | IW12: 316 | IX12: 58 | IY12: 67 | IZ12: 79 | JA12: 97 | JB12: 193 | JC12: 186 | JD12: 208 | JE12: 226 | JF12: 238 | JG12: 176 | JH12: 194 | JI12: 205 | JJ12: 152 | JK12: 176 | JL12: 185 | JM12: 150 | JN12: 171 | JO12: 204 | JP12: 197 | JQ12: 195 | JR12: 185 | JS12: 196 | JT12: 245 | JU12: 244 | JV12: 219 | JW12: 218 | JX12: 238 | JY12: 225 | JZ12: 171 | KA12: 158 | KB12: 176 | KC12: 185 | KD12: 161 | KE12: 100 | KF12: 98 | KG12: 92 | KH12: 100 | KI12: 87 | KJ12: 102 | KK12: 280 | KL12: 298 | KM12: 261 | KN12: 329 | KO12: 300 | KP12: 313 | KQ12: 280 | KR12: 317 | KS12: 248 | KT12: 209 | KU12: 266 | KV12: 271 | KW12: 67 | KX12: 78 | KY12: 122 | KZ12: 62 | LA12: 110 | LB12: 102 | LC12: 74 | LD12: 81 | LE12: 94 | LF12: 249 | LG12: 247 | LH12: 256 | LI12: 259 | LJ12: 177 | LK12: 201 | LL12: 231 | LM12: 217 | LN12: 181 | LO12: 215 | LP12: 195 | LQ12: 233 | LR12: 230 | LS12: 209 | LT12: 231 | LU12: 237 | LV12: 250 | LW12: 227 | LX12: 146 | LY12: 152 | LZ12: 159 | MA12: 150 | MB12: 144 | MC12: 145 | MD12: 154 | ME12: 166 | MF12: 146 | MG12: 237 | MH12: 146 | MI12: 205 | MJ12: 171 | MK12: 139 | ML12: 149 | MM12: 117 | MN12: 260 | MO12: 258 | MP12: 199 | MQ12: 208 | MR12: 224 | MS12: 239 | MT12: 181 | MU12: 163 | MV12: 204 | MW12: 188 | MX12: 270 | MY12: 289 | MZ12: 274 | NA12: 120 | NB12: 124 | NC12: 141 | ND12: 224 | NE12: 220 | NF12: 211 | NG12: 235 | NH12: 199 | NI12: 250 | NJ12: 183 | NK12: 398 | NL12: 395 | NM12: 385 | NN12: 356 | NO12: 382 | NP12: 373 | NQ12: 349 | NR12: 260 | NS12: 346 | NT12: 297 | NU12: 272 | NV12: 317 | NW12: 348 | NX12: 322 | NY12: 307 | NZ12: 316 | OA12: 306 | OB12: 328 | OC12: 300 | OD12: 292 | OE12: 356 | OF12: 356 | OG12: 354 | OH12: 391 | OI12: 370 | OJ12: 322 | OK12: 367 | OL12: 367 | OM12: 338 | ON12: 331 | OO12: 393 | OP12: 348 | OQ12: 368 | OR12: 374 | OS12: 391 | OT12: 364 | OU12: 367 | OV12: 347 | OW12: 370 | OX12: 381 | OY12: 375 | OZ12: 342 | PA12: 393 | PB12: 367 | PC12: 353 | PD12: 386 | PE12: 403 | PF12: 391 | PG12: 406 | PH12: 405 | PI12: 396 | PJ12: 416 | PK12: 333 | PL12: 380 | PM12: 445 | PN12: 390 | PO12: 410 | PP12: 357 | PQ12: 408 | PR12: 428 | PS12: 446 | PT12: 351 | PU12: 444 | PV12: 302 | PW12: 294 | PX12: 307 | PY12: 272 | PZ12: 319 | QA12: 305 | QB12: 321 | QC12: 447 | QD12: 422 | QE12: 413 | QF12: 394 | QG12: 414 | QH12: 244 | QI12: 270 | QJ12: 268 | QK12: 259 | QL12: 270 | QM12: 259 | QN12: 229 | QO12: 262 | QP12: 249 | QQ12: 285 | QR12: 338 | QS12: 346 | QT12: 301 | QU12: 335 | QV12: 378 | QW12: 342 | QX12: 364 | QY12: 347 | QZ12: 320 | RA12: 352 | RB12: 345 | RC12: 357 | RD12: 315 | RE12: 311 | RF12: 341 | RG12: 335 | RH12: 280 | RI12: 314 | RJ12: 323 | RK12: 296 | RL12: 454 | RM12: 540 | RN12: 517 | RO12: 536 | RP12: 504 | RQ12: 468 | RR12: 431 | RS12: 427 | RT12: 531 | RU12: 533 | RV12: 509 | RW12: 449 | RX12: 488 | RY12: 437 | RZ12: 432 | SA12: 401 | SB12: 418 | SC12: 441 | SD12: 417 | SE12: 461 | SF12: 546 | SG12: 432 | SH12: 532 | SI12: 516 | SJ12: 517 | SK12: 534 | SL12: 502 | SM12: 449 | SN12: 522 | SO12: 511 | SP12: 528 | SQ12: 500 | SR12: 501 | SS12: 564 | ST12: 535 | SU12: 544 | SV12: 515 | SW12: 504 | SX12: 525 | SY12: 505 | SZ12: 590 | TA12: 573 | TB12: 551 | TC12: 591 | TD12: 628 | TE12: 494 | TF12: 489 | TG12: 489 | TH12: 474 | TI12: 451 | TJ12: 467 | TK12: 437 | TL12: 498 | TM12: 584 | TN12: 579 | TO12: 549 | TP12: 559 | TQ12: 564 | TR12: 362 | TS12: 333 | TT12: 346 | TU12: 323 | TV12: 329 | TW12: 305 | TX12: 290 | TY12: 354 | TZ12: 432 | UA12: 416 | UB12: 368 | UC12: 404 | UD12: 372 | UE12: 384 | UF12: 351 | UG12: 446 | UH12: 432 | UI12: 412 | UJ12: 449 | UK12: 371 | UL12: 445 | UM12: 392 | UN12: 446 | UO12: 470 | UP12: 436 | UQ12: 466 | UR12: 418 | US12: 399 | UT12: 445 | UU12: 400 | UV12: 440 | UW12: 411 | UX12: 407 | UY12: 429 | UZ12: 449 | VA12: 456 | VB12: 413 | VC12: 462 | VD12: 385 | VE12: 410 | VF12: 410 | VG12: 414 | VH12: 469
D13: =IFERROR(IF(OR(B13=0,C13=0),0,VLOOKUP(B13,$V$3:$VH$560,MATCH(C13,$W$2:$VH$2,0)+1,0)),0) -> 0 | F13: =IF($J$3=0,0,IF(E13=0,0,IF($J$3="Category-1",VLOOKUP(E13,$M$5:$N$6,2,0),IF(AND($J$3="Category-2",D13>199),"15 ও 12",IF(OR($J$3="Category-3","Category-4",D13>199),"8 ও 6",0))))) -> 0 | G13: =IF($J$3="Category-1",D13*F13,IF(AND($J$3="Category-2",D13<=199),D13*15,IF(AND($J$3="Category-2",D13>199),(199*15+(D13-199)*12),IF(AND($J$3="Category-3",D13<=199),D13*8,IF(AND($J$3="Category-3",D13>199),(199*8+(D13-199)*6),IF(AND($J$3="Category-4",D13<=199),D13*8,IF(AND($J$3="Category-4",D13>199),(199*8+(D13-199)*6),0))))))) -> 0 | H13: 07076 | M13: রংপুর | P13: 1 | Q13: =IF(P13=0,"",COUNTIF($P$2:P13,">0")) -> 12 | R13: Bandarban - Lama | T13: 11 | U13: Bandarban - Bandarban Sadar | V13: Barishal - Gaurnadi | W13: 108 | X13: 110 | Y13: 113 | Z13: 86 | AA13: 147 | AB13: 130 | AC13: 7 | AD13: 30 | AE13: 58 | AF13: 45 | AG13: 0 | AH13: 36 | AI13: 29 | AJ13: 39 | AK13: 38 | AL13: 43 | AM13: 19 | AN13: 83 | AO13: 107 | AP13: 147 | AQ13: 101 | AR13: 129 | AS13: 156 | AT13: 129 | AU13: 56 | AV13: 95 | AW13: 57 | AX13: 69 | AY13: 93 | AZ13: 109 | BA13: 73 | BB13: 109 | BC13: 127 | BD13: 88 | BE13: 81 | BF13: 83 | BG13: 78 | BH13: 117 | BI13: 58 | BJ13: 87 | BK13: 53 | BL13: 105 | BM13: 505 | BN13: 442 | BO13: 474 | BP13: 512 | BQ13: 460 | BR13: 476 | BS13: 505 | BT13: 255 | BU13: 182 | BV13: 240 | BW13: 237 | BX13: 213 | BY13: 240 | BZ13: 245 | CA13: 241 | CB13: 225 | CC13: 225 | CD13: 239 | CE13: 98 | CF13: 218 | CG13: 224 | CH13: 363 | CI13: 390 | CJ13: 365 | CK13: 412 | CL13: 372 | CM13: 382 | CN13: 370 | CO13: 402 | CP13: 372 | CQ13: 371 | CR13: 370 | CS13: 374 | CT13: 338 | CU13: 372 | CV13: 375 | CW13: 364 | CX13: 371 | CY13: 367 | CZ13: 429 | DA13: 313 | DB13: 363 | DC13: 370 | DD13: 393 | DE13: 384 | DF13: 396 | DG13: 386 | DH13: 375 | DI13: 362 | DJ13: 421 | DK13: 334 | DL13: 249 | DM13: 236 | DN13: 227 | DO13: 202 | DP13: 245 | DQ13: 223 | DR13: 217 | DS13: 196 | DT13: 220 | DU13: 247 | DV13: 261 | DW13: 172 | DX13: 227 | DY13: 257 | DZ13: 188 | EA13: 232 | EB13: 462 | EC13: 513 | ED13: 447 | EE13: 478 | EF13: 436 | EG13: 504 | EH13: 585 | EI13: 534 | EJ13: 289 | EK13: 291 | EL13: 277 | EM13: 293 | EN13: 300 | EO13: 321 | EP13: 357 | EQ13: 384 | ER13: 387 | ES13: 379 | ET13: 346 | EU13: 368 | EV13: 338 | EW13: 171 | EX13: 123 | EY13: 134 | EZ13: 236 | FA13: 146 | FB13: 152 | FC13: 250 | FD13: 296 | FE13: 308 | FF13: 300 | FG13: 267 | FH13: 175 | FI13: 165 | FJ13: 436 | FK13: 364 | FL13: 418 | FM13: 417 | FN13: 425 | FO13: 143 | FP13: 141 | FQ13: 131 | FR13: 152 | FS13: 143 | FT13: 147 | FU13: 132 | FV13: 157 | FW13: 147 | FX13: 137 | FY13: 179 | FZ13: 140 | GA13: 134 | GB13: 148 | GC13: 143 | GD13: 131 | GE13: 144 | GF13: 139 | GG13: 137 | GH13: 144 | GI13: 136 | GJ13: 140 | GK13: 135 | GL13: 142 | GM13: 148 | GN13: 129 | GO13: 131 | GP13: 133 | GQ13: 151 | GR13: 143 | GS13: 137 | GT13: 134 | GU13: 134 | GV13: 137 | GW13: 152 | GX13: 137 | GY13: 137 | GZ13: 139 | HA13: 136 | HB13: 149 | HC13: 153 | HD13: 137 | HE13: 147 | HF13: 137 | HG13: 131 | HH13: 143 | HI13: 133 | HJ13: 140 | HK13: 141 | HL13: 157 | HM13: 155 | HN13: 154 | HO13: 159 | HP13: 133 | HQ13: 89 | HR13: 58 | HS13: 103 | HT13: 93 | HU13: 89 | HV13: 112 | HW13: 73 | HX13: 75 | HY13: 92 | HZ13: 169 | IA13: 189 | IB13: 186 | IC13: 191 | ID13: 198 | IE13: 156 | IF13: 49 | IG13: 81 | IH13: 24 | II13: 75 | IJ13: 46 | IK13: 492 | IL13: 224 | IM13: 208 | IN13: 235 | IO13: 457 | IP13: 251 | IQ13: 217 | IR13: 239 | IS13: 219 | IT13: 475 | IU13: 238 | IV13: 225 | IW13: 272 | IX13: 13 | IY13: 23 | IZ13: 35 | JA13: 53 | JB13: 149 | JC13: 141 | JD13: 164 | JE13: 181 | JF13: 194 | JG13: 132 | JH13: 150 | JI13: 160 | JJ13: 107 | JK13: 131 | JL13: 140 | JM13: 106 | JN13: 127 | JO13: 160 | JP13: 152 | JQ13: 151 | JR13: 140 | JS13: 151 | JT13: 200 | JU13: 200 | JV13: 174 | JW13: 174 | JX13: 193 | JY13: 180 | JZ13: 126 | KA13: 114 | KB13: 132 | KC13: 141 | KD13: 116 | KE13: 56 | KF13: 54 | KG13: 48 | KH13: 56 | KI13: 42 | KJ13: 57 | KK13: 236 | KL13: 254 | KM13: 216 | KN13: 285 | KO13: 256 | KP13: 268 | KQ13: 236 | KR13: 272 | KS13: 203 | KT13: 165 | KU13: 222 | KV13: 227 | KW13: 101 | KX13: 66 | KY13: 78 | KZ13: 86 | LA13: 65 | LB13: 113 | LC13: 130 | LD13: 109 | LE13: 150 | LF13: 205 | LG13: 202 | LH13: 212 | LI13: 214 | LJ13: 133 | LK13: 157 | LL13: 186 | LM13: 173 | LN13: 137 | LO13: 171 | LP13: 151 | LQ13: 189 | LR13: 186 | LS13: 165 | LT13: 186 | LU13: 192 | LV13: 206 | LW13: 183 | LX13: 102 | LY13: 108 | LZ13: 114 | MA13: 106 | MB13: 100 | MC13: 100 | MD13: 109 | ME13: 122 | MF13: 102 | MG13: 193 | MH13: 98 | MI13: 161 | MJ13: 127 | MK13: 95 | ML13: 105 | MM13: 73 | MN13: 215 | MO13: 213 | MP13: 154 | MQ13: 164 | MR13: 180 | MS13: 194 | MT13: 137 | MU13: 119 | MV13: 160 | MW13: 143 | MX13: 226 | MY13: 244 | MZ13: 230 | NA13: 76 | NB13: 80 | NC13: 97 | ND13: 180 | NE13: 176 | NF13: 167 | NG13: 191 | NH13: 155 | NI13: 206 | NJ13: 139 | NK13: 353 | NL13: 350 | NM13: 340 | NN13: 311 | NO13: 337 | NP13: 328 | NQ13: 305 | NR13: 216 | NS13: 301 | NT13: 253 | NU13: 228 | NV13: 273 | NW13: 304 | NX13: 277 | NY13: 263 | NZ13: 271 | OA13: 262 | OB13: 284 | OC13: 255 | OD13: 247 | OE13: 312 | OF13: 311 | OG13: 310 | OH13: 347 | OI13: 326 | OJ13: 278 | OK13: 322 | OL13: 322 | OM13: 293 | ON13: 287 | OO13: 349 | OP13: 303 | OQ13: 323 | OR13: 329 | OS13: 347 | OT13: 320 | OU13: 323 | OV13: 302 | OW13: 325 | OX13: 336 | OY13: 331 | OZ13: 297 | PA13: 348 | PB13: 323 | PC13: 309 | PD13: 342 | PE13: 358 | PF13: 346 | PG13: 362 | PH13: 360 | PI13: 352 | PJ13: 372 | PK13: 289 | PL13: 336 | PM13: 401 | PN13: 345 | PO13: 366 | PP13: 313 | PQ13: 364 | PR13: 383 | PS13: 401 | PT13: 307 | PU13: 400 | PV13: 258 | PW13: 249 | PX13: 263 | PY13: 228 | PZ13: 274 | QA13: 261 | QB13: 276 | QC13: 403 | QD13: 377 | QE13: 368 | QF13: 350 | QG13: 369 | QH13: 199 | QI13: 225 | QJ13: 224 | QK13: 215 | QL13: 225 | QM13: 215 | QN13: 184 | QO13: 217 | QP13: 205 | QQ13: 241 | QR13: 294 | QS13: 301 | QT13: 256 | QU13: 290 | QV13: 334 | QW13: 298 | QX13: 320 | QY13: 303 | QZ13: 276 | RA13: 307 | RB13: 301 | RC13: 313 | RD13: 270 | RE13: 267 | RF13: 297 | RG13: 291 | RH13: 235 | RI13: 269 | RJ13: 279 | RK13: 252 | RL13: 410 | RM13: 496 | RN13: 473 | RO13: 491 | RP13: 459 | RQ13: 423 | RR13: 387 | RS13: 382 | RT13: 486 | RU13: 488 | RV13: 464 | RW13: 404 | RX13: 444 | RY13: 393 | RZ13: 387 | SA13: 357 | SB13: 374 | SC13: 397 | SD13: 372 | SE13: 416 | SF13: 502 | SG13: 387 | SH13: 487 | SI13: 471 | SJ13: 473 | SK13: 489 | SL13: 457 | SM13: 404 | SN13: 477 | SO13: 467 | SP13: 483 | SQ13: 456 | SR13: 457 | SS13: 519 | ST13: 491 | SU13: 499 | SV13: 470 | SW13: 460 | SX13: 481 | SY13: 460 | SZ13: 545 | TA13: 529 | TB13: 506 | TC13: 546 | TD13: 583 | TE13: 449 | TF13: 445 | TG13: 444 | TH13: 430 | TI13: 406 | TJ13: 422 | TK13: 392 | TL13: 454 | TM13: 540 | TN13: 534 | TO13: 504 | TP13: 515 | TQ13: 519 | TR13: 318 | TS13: 289 | TT13: 302 | TU13: 278 | TV13: 284 | TW13: 260 | TX13: 245 | TY13: 309 | TZ13: 387 | UA13: 372 | UB13: 324 | UC13: 360 | UD13: 327 | UE13: 340 | UF13: 307 | UG13: 402 | UH13: 387 | UI13: 368 | UJ13: 405 | UK13: 327 | UL13: 400 | UM13: 348 | UN13: 402 | UO13: 426 | UP13: 392 | UQ13: 421 | UR13: 374 | US13: 354 | UT13: 400 | UU13: 356 | UV13: 396 | UW13: 366 | UX13: 362 | UY13: 384 | UZ13: 405 | VA13: 411 | VB13: 368 | VC13: 418 | VD13: 340 | VE13: 375 | VF13: 365 | VG13: 370 | VH13: 425
D14: 0 | F14: 0 | G14: =IF(AND($J$3="Category-2",D14<=199),D14*15,IF(AND($J$3="Category-2",D14>199),(199*15+(D14-199)*12),IF(AND($J$3="Category-3",D14<=199),D14*8,IF(AND($J$3="Category-3",D14>199),(199*8+(D14-199)*6),IF(AND($J$3="Category-4",D14<=199),D14*8,IF(AND($J$3="Category-4",D14>199),(199*8+(D14-199)*6),IF(D14>0,FLOOR(D14*F14,1),0))))))) -> 0 | H14: 04690 | M14: সিলেট | P14: =IFERROR(SEARCH(INDIRECT(CELL("address")),U15),0) -> 1 | Q14: =IF(P14=0,"",COUNTIF($P$2:P14,">0")) -> 13 | R14: Bandarban - Naikhongchhari | T14: 12 | U14: Bandarban - Lama | V14: Barishal - Barishal Sadar | W14: 72 | X14: 73 | Y14: 77 | Z14: 49 | AA14: 110 | AB14: 94 | AC14: 43 | AD14: 17 | AE14: 21 | AF14: 26 | AG14: 36 | AH14: 0 | AI14: 8 | AJ14: 2 | AK14: 4 | AL14: 31 | AM14: 20 | AN14: 47 | AO14: 71 | AP14: 111 | AQ14: 65 | AR14: 92 | AS14: 120 | AT14: 92 | AU14: 20 | AV14: 59 | AW14: 20 | AX14: 33 | AY14: 56 | AZ14: 73 | BA14: 37 | BB14: 73 | BC14: 90 | BD14: 52 | BE14: 45 | BF14: 47 | BG14: 42 | BH14: 80 | BI14: 94 | BJ14: 52 | BK14: 35 | BL14: 63 | BM14: 379 | BN14: 316 | BO14: 347 | BP14: 386 | BQ14: 333 | BR14: 350 | BS14: 379 | BT14: 292 | BU14: 218 | BV14: 276 | BW14: 273 | BX14: 249 | BY14: 277 | BZ14: 281 | CA14: 278 | CB14: 262 | CC14: 126 | CD14: 109 | CE14: 85 | CF14: 123 | CG14: 127 | CH14: 237 | CI14: 263 | CJ14: 239 | CK14: 286 | CL14: 246 | CM14: 255 | CN14: 244 | CO14: 275 | CP14: 246 | CQ14: 245 | CR14: 243 | CS14: 248 | CT14: 212 | CU14: 245 | CV14: 249 | CW14: 238 | CX14: 245 | CY14: 240 | CZ14: 302 | DA14: 186 | DB14: 237 | DC14: 244 | DD14: 267 | DE14: 257 | DF14: 269 | DG14: 260 | DH14: 249 | DI14: 235 | DJ14: 295 | DK14: 208 | DL14: 144 | DM14: 272 | DN14: 263 | DO14: 238 | DP14: 281 | DQ14: 259 | DR14: 254 | DS14: 232 | DT14: 257 | DU14: 153 | DV14: 135 | DW14: 208 | DX14: 263 | DY14: 151 | DZ14: 224 | EA14: 268 | EB14: 336 | EC14: 387 | ED14: 321 | EE14: 352 | EF14: 310 | EG14: 377 | EH14: 459 | EI14: 408 | EJ14: 166 | EK14: 141 | EL14: 153 | EM14: 169 | EN14: 176 | EO14: 154 | EP14: 230 | EQ14: 258 | ER14: 260 | ES14: 253 | ET14: 219 | EU14: 242 | EV14: 211 | EW14: 135 | EX14: 87 | EY14: 98 | EZ14: 106 | FA14: 109 | FB14: 116 | FC14: 118 | FD14: 144 | FE14: 141 | FF14: 131 | FG14: 128 | FH14: 138 | FI14: 128 | FJ14: 309 | FK14: 238 | FL14: 292 | FM14: 291 | FN14: 298 | FO14: 180 | FP14: 177 | FQ14: 167 | FR14: 189 | FS14: 179 | FT14: 183 | FU14: 168 | FV14: 193 | FW14: 183 | FX14: 173 | FY14: 215 | FZ14: 176 | GA14: 170 | GB14: 184 | GC14: 180 | GD14: 167 | GE14: 180 | GF14: 176 | GG14: 173 | GH14: 180 | GI14: 173 | GJ14: 176 | GK14: 171 | GL14: 178 | GM14: 184 | GN14: 165 | GO14: 167 | GP14: 169 | GQ14: 187 | GR14: 179 | GS14: 173 | GT14: 171 | GU14: 171 | GV14: 173 | GW14: 188 | GX14: 173 | GY14: 173 | GZ14: 175 | HA14: 172 | HB14: 185 | HC14: 189 | HD14: 173 | HE14: 184 | HF14: 173 | HG14: 167 | HH14: 179 | HI14: 169 | HJ14: 176 | HK14: 177 | HL14: 193 | HM14: 191 | HN14: 191 | HO14: 195 | HP14: 170 | HQ14: 125 | HR14: 94 | HS14: 139 | HT14: 129 | HU14: 125 | HV14: 148 | HW14: 109 | HX14: 111 | HY14: 128 | HZ14: 205 | IA14: 226 | IB14: 222 | IC14: 228 | ID14: 234 | IE14: 192 | IF14: 85 | IG14: 117 | IH14: 60 | II14: 112 | IJ14: 82 | IK14: 528 | IL14: 260 | IM14: 244 | IN14: 272 | IO14: 494 | IP14: 287 | IQ14: 253 | IR14: 276 | IS14: 255 | IT14: 511 | IU14: 274 | IV14: 261 | IW14: 308 | IX14: 50 | IY14: 59 | IZ14: 71 | JA14: 89 | JB14: 185 | JC14: 178 | JD14: 200 | JE14: 218 | JF14: 230 | JG14: 168 | JH14: 186 | JI14: 196 | JJ14: 143 | JK14: 167 | JL14: 176 | JM14: 142 | JN14: 163 | JO14: 196 | JP14: 188 | JQ14: 187 | JR14: 176 | JS14: 188 | JT14: 237 | JU14: 236 | JV14: 211 | JW14: 210 | JX14: 229 | JY14: 216 | JZ14: 163 | KA14: 150 | KB14: 168 | KC14: 177 | KD14: 152 | KE14: 92 | KF14: 90 | KG14: 84 | KH14: 92 | KI14: 78 | KJ14: 93 | KK14: 272 | KL14: 290 | KM14: 252 | KN14: 321 | KO14: 292 | KP14: 304 | KQ14: 272 | KR14: 309 | KS14: 240 | KT14: 201 | KU14: 258 | KV14: 263 | KW14: 79 | KX14: 102 | KY14: 113 | KZ14: 74 | LA14: 101 | LB14: 114 | LC14: 75 | LD14: 93 | LE14: 86 | LF14: 241 | LG14: 238 | LH14: 248 | LI14: 250 | LJ14: 169 | LK14: 193 | LL14: 222 | LM14: 208 | LN14: 173 | LO14: 207 | LP14: 187 | LQ14: 225 | LR14: 222 | LS14: 201 | LT14: 223 | LU14: 229 | LV14: 242 | LW14: 219 | LX14: 137 | LY14: 143 | LZ14: 150 | MA14: 142 | MB14: 136 | MC14: 136 | MD14: 145 | ME14: 158 | MF14: 137 | MG14: 229 | MH14: 137 | MI14: 197 | MJ14: 163 | MK14: 131 | ML14: 141 | MM14: 108 | MN14: 252 | MO14: 249 | MP14: 191 | MQ14: 200 | MR14: 216 | MS14: 230 | MT14: 173 | MU14: 154 | MV14: 196 | MW14: 179 | MX14: 262 | MY14: 280 | MZ14: 266 | NA14: 112 | NB14: 116 | NC14: 133 | ND14: 216 | NE14: 212 | NF14: 203 | NG14: 226 | NH14: 191 | NI14: 242 | NJ14: 175 | NK14: 390 | NL14: 386 | NM14: 377 | NN14: 347 | NO14: 373 | NP14: 364 | NQ14: 341 | NR14: 252 | NS14: 337 | NT14: 289 | NU14: 264 | NV14: 309 | NW14: 340 | NX14: 313 | NY14: 299 | NZ14: 308 | OA14: 298 | OB14: 320 | OC14: 292 | OD14: 283 | OE14: 348 | OF14: 347 | OG14: 346 | OH14: 383 | OI14: 362 | OJ14: 314 | OK14: 359 | OL14: 358 | OM14: 330 | ON14: 323 | OO14: 385 | OP14: 340 | OQ14: 360 | OR14: 365 | OS14: 383 | OT14: 356 | OU14: 359 | OV14: 339 | OW14: 362 | OX14: 372 | OY14: 367 | OZ14: 333 | PA14: 384 | PB14: 359 | PC14: 345 | PD14: 378 | PE14: 394 | PF14: 383 | PG14: 398 | PH14: 396 | PI14: 388 | PJ14: 408 | PK14: 325 | PL14: 372 | PM14: 437 | PN14: 382 | PO14: 402 | PP14: 349 | PQ14: 400 | PR14: 419 | PS14: 437 | PT14: 343 | PU14: 436 | PV14: 294 | PW14: 285 | PX14: 299 | PY14: 264 | PZ14: 310 | QA14: 297 | QB14: 312 | QC14: 439 | QD14: 414 | QE14: 405 | QF14: 386 | QG14: 405 | QH14: 235 | QI14: 261 | QJ14: 260 | QK14: 251 | QL14: 261 | QM14: 251 | QN14: 221 | QO14: 254 | QP14: 241 | QQ14: 277 | QR14: 330 | QS14: 337 | QT14: 292 | QU14: 327 | QV14: 370 | QW14: 334 | QX14: 356 | QY14: 339 | QZ14: 312 | RA14: 343 | RB14: 337 | RC14: 349 | RD14: 307 | RE14: 303 | RF14: 333 | RG14: 327 | RH14: 271 | RI14: 305 | RJ14: 315 | RK14: 288 | RL14: 446 | RM14: 532 | RN14: 509 | RO14: 527 | RP14: 495 | RQ14: 460 | RR14: 423 | RS14: 418 | RT14: 522 | RU14: 524 | RV14: 500 | RW14: 440 | RX14: 480 | RY14: 429 | RZ14: 423 | SA14: 393 | SB14: 410 | SC14: 433 | SD14: 409 | SE14: 453 | SF14: 538 | SG14: 424 | SH14: 523 | SI14: 508 | SJ14: 509 | SK14: 525 | SL14: 494 | SM14: 441 | SN14: 513 | SO14: 503 | SP14: 520 | SQ14: 492 | SR14: 493 | SS14: 555 | ST14: 527 | SU14: 535 | SV14: 506 | SW14: 496 | SX14: 517 | SY14: 497 | SZ14: 582 | TA14: 565 | TB14: 542 | TC14: 583 | TD14: 620 | TE14: 485 | TF14: 481 | TG14: 480 | TH14: 466 | TI14: 442 | TJ14: 458 | TK14: 429 | TL14: 490 | TM14: 576 | TN14: 571 | TO14: 540 | TP14: 551 | TQ14: 555 | TR14: 354 | TS14: 325 | TT14: 338 | TU14: 315 | TV14: 321 | TW14: 296 | TX14: 281 | TY14: 346 | TZ14: 423 | UA14: 408 | UB14: 360 | UC14: 396 | UD14: 364 | UE14: 376 | UF14: 343 | UG14: 438 | UH14: 423 | UI14: 404 | UJ14: 441 | UK14: 363 | UL14: 437 | UM14: 384 | UN14: 438 | UO14: 462 | UP14: 428 | UQ14: 457 | UR14: 410 | US14: 391 | UT14: 436 | UU14: 392 | UV14: 432 | UW14: 403 | UX14: 398 | UY14: 421 | UZ14: 441 | VA14: 448 | VB14: 405 | VC14: 454 | VD14: 377 | VE14: 411 | VF14: 402 | VG14: 406 | VH14: 461
D15: 0 | F15: 0 | G15: =IF(AND($J$3="Category-2",D15<=199),D15*15,IF(AND($J$3="Category-2",D15>199),(199*15+(D15-199)*12),IF(AND($J$3="Category-3",D15<=199),D15*8,IF(AND($J$3="Category-3",D15>199),(199*8+(D15-199)*6),IF(AND($J$3="Category-4",D15<=199),D15*8,IF(AND($J$3="Category-4",D15>199),(199*8+(D15-199)*6),IF(D15>0,FLOOR(D15*F15,1),0))))))) -> 0 | H15: 04891 | M15: নারায়নগঞ্জ | P15: =IFERROR(SEARCH(INDIRECT(CELL("address")),U16),0) -> 1 | Q15: =IF(P15=0,"",COUNTIF($P$2:P15,">0")) -> 14 | R15: =IFERROR(INDEX(U:U,MATCH(ROW(P15),Q:Q,0)),"") -> Bandarban - Rowangchhari | T15: =IF(ISNUMBER(SEARCH($C$13,U15)),MAX($T$2,T14)+1,0) -> 13 | U15: Bandarban - Naikhongchhari | V15: Barishal - Airport Thana, Barishal | W15: 79 | X15: 81 | Y15: 85 | Z15: 57 | AA15: 118 | AB15: 101 | AC15: 35 | AD15: 9 | AE15: 29 | AF15: 21 | AG15: 29 | AH15: 8 | AI15: 0 | AJ15: 10 | AK15: 10 | AL15: 23 | AM15: 13 | AN15: 54 | AO15: 78 | AP15: 118 | AQ15: 72 | AR15: 100 | AS15: 128 | AT15: 100 | AU15: 27 | AV15: 66 | AW15: 28 | AX15: 40 | AY15: 64 | AZ15: 81 | BA15: 44 | BB15: 80 | BC15: 98 | BD15: 60 | BE15: 53 | BF15: 55 | BG15: 49 | BH15: 88 | BI15: 86 | BJ15: 60 | BK15: 30 | BL15: 70 | BM15: 534 | BN15: 471 | BO15: 502 | BP15: 541 | BQ15: 489 | BR15: 505 | BS15: 534 | BT15: 284 | BU15: 211 | BV15: 269 | BW15: 266 | BX15: 241 | BY15: 269 | BZ15: 274 | CA15: 270 | CB15: 254 | CC15: 134 | CD15: 117 | CE15: 77 | CF15: 131 | CG15: 135 | CH15: 392 | CI15: 418 | CJ15: 394 | CK15: 441 | CL15: 401 | CM15: 410 | CN15: 399 | CO15: 431 | CP15: 401 | CQ15: 400 | CR15: 398 | CS15: 403 | CT15: 367 | CU15: 400 | CV15: 404 | CW15: 393 | CX15: 400 | CY15: 396 | CZ15: 457 | DA15: 341 | DB15: 392 | DC15: 399 | DD15: 422 | DE15: 412 | DF15: 424 | DG15: 415 | DH15: 404 | DI15: 390 | DJ15: 450 | DK15: 363 | DL15: 278 | DM15: 265 | DN15: 256 | DO15: 230 | DP15: 273 | DQ15: 252 | DR15: 246 | DS15: 224 | DT15: 249 | DU15: 275 | DV15: 142 | DW15: 200 | DX15: 256 | DY15: 286 | DZ15: 216 | EA15: 261 | EB15: 491 | EC15: 542 | ED15: 476 | EE15: 507 | EF15: 465 | EG15: 532 | EH15: 614 | EI15: 563 | EJ15: 318 | EK15: 148 | EL15: 306 | EM15: 322 | EN15: 329 | EO15: 162 | EP15: 385 | EQ15: 413 | ER15: 415 | ES15: 408 | ET15: 374 | EU15: 397 | EV15: 366 | EW15: 142 | EX15: 94 | EY15: 106 | EZ15: 114 | FA15: 117 | FB15: 124 | FC15: 125 | FD15: 151 | FE15: 148 | FF15: 138 | FG15: 135 | FH15: 146 | FI15: 136 | FJ15: 465 | FK15: 393 | FL15: 447 | FM15: 446 | FN15: 453 | FO15: 172 | FP15: 169 | FQ15: 160 | FR15: 181 | FS15: 172 | FT15: 175 | FU15: 161 | FV15: 185 | FW15: 175 | FX15: 165 | FY15: 207 | FZ15: 168 | GA15: 162 | GB15: 176 | GC15: 172 | GD15: 159 | GE15: 173 | GF15: 168 | GG15: 165 | GH15: 173 | GI15: 165 | GJ15: 169 | GK15: 164 | GL15: 171 | GM15: 177 | GN15: 157 | GO15: 160 | GP15: 161 | GQ15: 179 | GR15: 172 | GS15: 165 | GT15: 163 | GU15: 163 | GV15: 166 | GW15: 180 | GX15: 166 | GY15: 166 | GZ15: 167 | HA15: 164 | HB15: 178 | HC15: 181 | HD15: 165 | HE15: 176 | HF15: 166 | HG15: 160 | HH15: 172 | HI15: 161 | HJ15: 169 | HK15: 169 | HL15: 186 | HM15: 184 | HN15: 183 | HO15: 188 | HP15: 162 | HQ15: 117 | HR15: 86 | HS15: 132 | HT15: 121 | HU15: 118 | HV15: 140 | HW15: 102 | HX15: 104 | HY15: 121 | HZ15: 198 | IA15: 218 | IB15: 215 | IC15: 220 | ID15: 227 | IE15: 185 | IF15: 77 | IG15: 109 | IH15: 52 | II15: 104 | IJ15: 74 | IK15: 521 | IL15: 253 | IM15: 236 | IN15: 264 | IO15: 486 | IP15: 279 | IQ15: 246 | IR15: 268 | IS15: 248 | IT15: 503 | IU15: 267 | IV15: 254 | IW15: 300 | IX15: 42 | IY15: 52 | IZ15: 64 | JA15: 81 | JB15: 177 | JC15: 170 | JD15: 192 | JE15: 210 | JF15: 222 | JG15: 160 | JH15: 178 | JI15: 189 | JJ15: 136 | JK15: 160 | JL15: 169 | JM15: 134 | JN15: 155 | JO15: 189 | JP15: 181 | JQ15: 180 | JR15: 169 | JS15: 180 | JT15: 229 | JU15: 228 | JV15: 203 | JW15: 203 | JX15: 222 | JY15: 209 | JZ15: 155 | KA15: 142 | KB15: 160 | KC15: 169 | KD15: 145 | KE15: 84 | KF15: 82 | KG15: 76 | KH15: 84 | KI15: 71 | KJ15: 86 | KK15: 265 | KL15: 282 | KM15: 245 | KN15: 314 | KO15: 285 | KP15: 297 | KQ15: 264 | KR15: 301 | KS15: 232 | KT15: 193 | KU15: 250 | KV15: 255 | KW15: 86 | KX15: 95 | KY15: 106 | KZ15: 82 | LA15: 94 | LB15: 141 | LC15: 83 | LD15: 137 | LE15: 94 | LF15: 233 | LG15: 231 | LH15: 240 | LI15: 243 | LJ15: 161 | LK15: 185 | LL15: 215 | LM15: 201 | LN15: 165 | LO15: 199 | LP15: 179 | LQ15: 218 | LR15: 214 | LS15: 193 | LT15: 215 | LU15: 221 | LV15: 235 | LW15: 211 | LX15: 130 | LY15: 136 | LZ15: 143 | MA15: 134 | MB15: 128 | MC15: 129 | MD15: 138 | ME15: 150 | MF15: 130 | MG15: 221 | MH15: 130 | MI15: 190 | MJ15: 155 | MK15: 124 | ML15: 133 | MM15: 101 | MN15: 244 | MO15: 242 | MP15: 183 | MQ15: 193 | MR15: 208 | MS15: 223 | MT15: 166 | MU15: 147 | MV15: 188 | MW15: 172 | MX15: 255 | MY15: 273 | MZ15: 258 | NA15: 104 | NB15: 108 | NC15: 125 | ND15: 209 | NE15: 204 | NF15: 196 | NG15: 219 | NH15: 183 | NI15: 234 | NJ15: 167 | NK15: 382 | NL15: 379 | NM15: 369 | NN15: 340 | NO15: 366 | NP15: 357 | NQ15: 333 | NR15: 244 | NS15: 330 | NT15: 281 | NU15: 256 | NV15: 301 | NW15: 332 | NX15: 306 | NY15: 291 | NZ15: 300 | OA15: 291 | OB15: 312 | OC15: 284 | OD15: 276 | OE15: 340 | OF15: 340 | OG15: 338 | OH15: 375 | OI15: 354 | OJ15: 306 | OK15: 351 | OL15: 351 | OM15: 322 | ON15: 315 | OO15: 377 | OP15: 332 | OQ15: 352 | OR15: 358 | OS15: 376 | OT15: 348 | OU15: 352 | OV15: 331 | OW15: 354 | OX15: 365 | OY15: 360 | OZ15: 326 | PA15: 377 | PB15: 351 | PC15: 338 | PD15: 370 | PE15: 387 | PF15: 375 | PG15: 390 | PH15: 389 | PI15: 380 | PJ15: 401 | PK15: 317 | PL15: 365 | PM15: 429 | PN15: 374 | PO15: 394 | PP15: 342 | PQ15: 392 | PR15: 412 | PS15: 430 | PT15: 336 | PU15: 428 | PV15: 286 | PW15: 278 | PX15: 291 | PY15: 257 | PZ15: 303 | QA15: 289 | QB15: 305 | QC15: 431 | QD15: 406 | QE15: 397 | QF15: 378 | QG15: 398 | QH15: 228 | QI15: 254 | QJ15: 252 | QK15: 244 | QL15: 254 | QM15: 243 | QN15: 213 | QO15: 246 | QP15: 233 | QQ15: 269 | QR15: 322 | QS15: 330 | QT15: 285 | QU15: 319 | QV15: 362 | QW15: 326 | QX15: 348 | QY15: 332 | QZ15: 304 | RA15: 336 | RB15: 330 | RC15: 341 | RD15: 299 | RE15: 295 | RF15: 326 | RG15: 319 | RH15: 264 | RI15: 298 | RJ15: 308 | RK15: 280 | RL15: 439 | RM15: 524 | RN15: 502 | RO15: 520 | RP15: 488 | RQ15: 452 | RR15: 415 | RS15: 411 | RT15: 515 | RU15: 517 | RV15: 493 | RW15: 433 | RX15: 472 | RY15: 421 | RZ15: 416 | SA15: 385 | SB15: 402 | SC15: 425 | SD15: 401 | SE15: 445 | SF15: 530 | SG15: 416 | SH15: 516 | SI15: 500 | SJ15: 502 | SK15: 518 | SL15: 486 | SM15: 433 | SN15: 506 | SO15: 495 | SP15: 512 | SQ15: 484 | SR15: 485 | SS15: 548 | ST15: 520 | SU15: 528 | SV15: 499 | SW15: 488 | SX15: 509 | SY15: 489 | SZ15: 574 | TA15: 557 | TB15: 535 | TC15: 575 | TD15: 612 | TE15: 478 | TF15: 473 | TG15: 473 | TH15: 458 | TI15: 435 | TJ15: 451 | TK15: 421 | TL15: 482 | TM15: 569 | TN15: 563 | TO15: 533 | TP15: 544 | TQ15: 548 | TR15: 347 | TS15: 317 | TT15: 330 | TU15: 307 | TV15: 313 | TW15: 289 | TX15: 274 | TY15: 338 | TZ15: 416 | UA15: 400 | UB15: 353 | UC15: 389 | UD15: 356 | UE15: 368 | UF15: 336 | UG15: 430 | UH15: 416 | UI15: 396 | UJ15: 433 | UK15: 356 | UL15: 429 | UM15: 376 | UN15: 430 | UO15: 454 | UP15: 420 | UQ15: 450 | UR15: 403 | US15: 383 | UT15: 429 | UU15: 385 | UV15: 424 | UW15: 395 | UX15: 391 | UY15: 413 | UZ15: 434 | VA15: 440 | VB15: 397 | VC15: 446 | VD15: 369 | VE15: 394 | VF15: 394 | VG15: 399 | VH15: 453
D16: 0 | F16: 0 | G16: =IF(AND($J$3="Category-2",D16<=199),D16*15,IF(AND($J$3="Category-2",D16>199),(199*15+(D16-199)*12),IF(AND($J$3="Category-3",D16<=199),D16*8,IF(AND($J$3="Category-3",D16>199),(199*8+(D16-199)*6),IF(AND($J$3="Category-4",D16<=199),D16*8,IF(AND($J$3="Category-4",D16>199),(199*8+(D16-199)*6),IF(D16>0,FLOOR(D16*F16,1),0))))))) -> 0 | H16: 05791 | M16: ময়মনসিংহ | P16: 1 | Q16: =IF(P16=0,"",COUNTIF($P$2:P16,">0")) -> 15 | R16: Bandarban - Ruma | T16: =IF(ISNUMBER(SEARCH($C$13,U16)),MAX($T$2,T15)+1,0) -> 14 | U16: Bandarban - Rowangchhari | V16: Barishal - Bondar Thana, Barishal | W16: 73 | X16: 74 | Y16: 78 | Z16: 50 | AA16: 111 | AB16: 95 | AC16: 45 | AD16: 16 | AE16: 22 | AF16: 29 | AG16: 39 | AH16: 2 | AI16: 10 | AJ16: 0 | AK16: 4 | AL16: 35 | AM16: 25 | AN16: 48 | AO16: 72 | AP16: 112 | AQ16: 66 | AR16: 93 | AS16: 121 | AT16: 93 | AU16: 21 | AV16: 60 | AW16: 21 | AX16: 34 | AY16: 57 | AZ16: 74 | BA16: 38 | BB16: 74 | BC16: 91 | BD16: 53 | BE16: 46 | BF16: 48 | BG16: 43 | BH16: 81 | BI16: 99 | BJ16: 53 | BK16: 40 | BL16: 64 | BM16: 380 | BN16: 317 | BO16: 348 | BP16: 387 | BQ16: 335 | BR16: 351 | BS16: 380 | BT16: 296 | BU16: 223 | BV16: 281 | BW16: 278 | BX16: 254 | BY16: 281 | BZ16: 286 | CA16: 282 | CB16: 266 | CC16: 127 | CD16: 110 | CE16: 89 | CF16: 124 | CG16: 128 | CH16: 238 | CI16: 264 | CJ16: 240 | CK16: 287 | CL16: 247 | CM16: 256 | CN16: 245 | CO16: 276 | CP16: 247 | CQ16: 246 | CR16: 244 | CS16: 249 | CT16: 213 | CU16: 246 | CV16: 250 | CW16: 239 | CX16: 246 | CY16: 241 | CZ16: 303 | DA16: 187 | DB16: 238 | DC16: 245 | DD16: 268 | DE16: 258 | DF16: 270 | DG16: 261 | DH16: 250 | DI16: 236 | DJ16: 296 | DK16: 209 | DL16: 145 | DM16: 277 | DN16: 268 | DO16: 243 | DP16: 286 | DQ16: 264 | DR16: 256 | DS16: 236 | DT16: 261 | DU16: 154 | DV16: 136 | DW16: 213 | DX16: 268 | DY16: 152 | DZ16: 229 | EA16: 273 | EB16: 337 | EC16: 388 | ED16: 322 | EE16: 353 | EF16: 311 | EG16: 378 | EH16: 460 | EI16: 409 | EJ16: 167 | EK16: 142 | EL16: 154 | EM16: 170 | EN16: 178 | EO16: 155 | EP16: 231 | EQ16: 259 | ER16: 261 | ES16: 254 | ET16: 220 | EU16: 243 | EV16: 212 | EW16: 136 | EX16: 88 | EY16: 99 | EZ16: 107 | FA16: 110 | FB16: 117 | FC16: 119 | FD16: 145 | FE16: 142 | FF16: 132 | FG16: 129 | FH16: 139 | FI16: 129 | FJ16: 311 | FK16: 239 | FL16: 293 | FM16: 292 | FN16: 299 | FO16: 184 | FP16: 182 | FQ16: 172 | FR16: 193 | FS16: 184 | FT16: 187 | FU16: 173 | FV16: 197 | FW16: 188 | FX16: 178 | FY16: 220 | FZ16: 181 | GA16: 174 | GB16: 189 | GC16: 184 | GD16: 171 | GE16: 185 | GF16: 180 | GG16: 178 | GH16: 185 | GI16: 177 | GJ16: 181 | GK16: 176 | GL16: 183 | GM16: 189 | GN16: 169 | GO16: 172 | GP16: 173 | GQ16: 191 | GR16: 184 | GS16: 178 | GT16: 175 | GU16: 175 | GV16: 178 | GW16: 192 | GX16: 178 | GY16: 178 | GZ16: 179 | HA16: 176 | HB16: 190 | HC16: 193 | HD16: 177 | HE16: 188 | HF16: 178 | HG16: 172 | HH16: 184 | HI16: 174 | HJ16: 181 | HK16: 181 | HL16: 198 | HM16: 196 | HN16: 195 | HO16: 200 | HP16: 174 | HQ16: 129 | HR16: 99 | HS16: 144 | HT16: 134 | HU16: 130 | HV16: 152 | HW16: 114 | HX16: 116 | HY16: 133 | HZ16: 210 | IA16: 230 | IB16: 227 | IC16: 232 | ID16: 239 | IE16: 197 | IF16: 90 | IG16: 121 | IH16: 64 | II16: 116 | IJ16: 86 | IK16: 533 | IL16: 265 | IM16: 248 | IN16: 276 | IO16: 498 | IP16: 291 | IQ16: 258 | IR16: 280 | IS16: 260 | IT16: 515 | IU16: 279 | IV16: 266 | IW16: 313 | IX16: 54 | IY16: 64 | IZ16: 76 | JA16: 93 | JB16: 190 | JC16: 182 | JD16: 204 | JE16: 222 | JF16: 235 | JG16: 173 | JH16: 190 | JI16: 201 | JJ16: 148 | JK16: 172 | JL16: 181 | JM16: 146 | JN16: 168 | JO16: 201 | JP16: 193 | JQ16: 192 | JR16: 181 | JS16: 192 | JT16: 241 | JU16: 241 | JV16: 215 | JW16: 215 | JX16: 234 | JY16: 221 | JZ16: 167 | KA16: 155 | KB16: 173 | KC16: 182 | KD16: 157 | KE16: 97 | KF16: 94 | KG16: 88 | KH16: 96 | KI16: 83 | KJ16: 98 | KK16: 277 | KL16: 294 | KM16: 257 | KN16: 326 | KO16: 297 | KP16: 309 | KQ16: 277 | KR16: 313 | KS16: 244 | KT16: 206 | KU16: 263 | KV16: 267 | KW16: 80 | KX16: 91 | KY16: 118 | KZ16: 75 | LA16: 106 | LB16: 115 | LC16: 76 | LD16: 94 | LE16: 87 | LF16: 246 | LG16: 243 | LH16: 253 | LI16: 255 | LJ16: 142 | LK16: 167 | LL16: 196 | LM16: 182 | LN16: 147 | LO16: 180 | LP16: 161 | LQ16: 199 | LR16: 226 | LS16: 205 | LT16: 227 | LU16: 233 | LV16: 247 | LW16: 223 | LX16: 111 | LY16: 117 | LZ16: 124 | MA16: 115 | MB16: 126 | MC16: 110 | MD16: 119 | ME16: 131 | MF16: 111 | MG16: 202 | MH16: 111 | MI16: 171 | MJ16: 136 | MK16: 105 | ML16: 115 | MM16: 113 | MN16: 256 | MO16: 254 | MP16: 195 | MQ16: 205 | MR16: 221 | MS16: 235 | MT16: 178 | MU16: 159 | MV16: 201 | MW16: 184 | MX16: 267 | MY16: 285 | MZ16: 270 | NA16: 116 | NB16: 120 | NC16: 137 | ND16: 190 | NE16: 185 | NF16: 177 | NG16: 200 | NH16: 165 | NI16: 216 | NJ16: 148 | NK16: 394 | NL16: 391 | NM16: 381 | NN16: 352 | NO16: 378 | NP16: 369 | NQ16: 345 | NR16: 257 | NS16: 342 | NT16: 294 | NU16: 268 | NV16: 313 | NW16: 344 | NX16: 318 | NY16: 304 | NZ16: 312 | OA16: 303 | OB16: 324 | OC16: 296 | OD16: 288 | OE16: 352 | OF16: 352 | OG16: 350 | OH16: 388 | OI16: 367 | OJ16: 318 | OK16: 363 | OL16: 363 | OM16: 334 | ON16: 328 | OO16: 389 | OP16: 344 | OQ16: 364 | OR16: 370 | OS16: 388 | OT16: 361 | OU16: 364 | OV16: 343 | OW16: 366 | OX16: 377 | OY16: 372 | OZ16: 338 | PA16: 389 | PB16: 364 | PC16: 350 | PD16: 382 | PE16: 399 | PF16: 387 | PG16: 402 | PH16: 401 | PI16: 392 | PJ16: 413 | PK16: 329 | PL16: 377 | PM16: 442 | PN16: 386 | PO16: 407 | PP16: 354 | PQ16: 405 | PR16: 424 | PS16: 442 | PT16: 348 | PU16: 440 | PV16: 298 | PW16: 290 | PX16: 303 | PY16: 269 | PZ16: 315 | QA16: 301 | QB16: 317 | QC16: 444 | QD16: 418 | QE16: 409 | QF16: 391 | QG16: 410 | QH16: 240 | QI16: 266 | QJ16: 265 | QK16: 256 | QL16: 266 | QM16: 255 | QN16: 225 | QO16: 258 | QP16: 245 | QQ16: 281 | QR16: 334 | QS16: 342 | QT16: 297 | QU16: 331 | QV16: 374 | QW16: 339 | QX16: 361 | QY16: 344 | QZ16: 316 | RA16: 348 | RB16: 342 | RC16: 353 | RD16: 311 | RE16: 308 | RF16: 338 | RG16: 332 | RH16: 276 | RI16: 310 | RJ16: 320 | RK16: 293 | RL16: 451 | RM16: 537 | RN16: 514 | RO16: 532 | RP16: 500 | RQ16: 464 | RR16: 428 | RS16: 423 | RT16: 527 | RU16: 529 | RV16: 505 | RW16: 445 | RX16: 485 | RY16: 433 | RZ16: 428 | SA16: 398 | SB16: 414 | SC16: 437 | SD16: 413 | SE16: 457 | SF16: 542 | SG16: 428 | SH16: 528 | SI16: 512 | SJ16: 514 | SK16: 530 | SL16: 498 | SM16: 445 | SN16: 518 | SO16: 508 | SP16: 524 | SQ16: 497 | SR16: 497 | SS16: 560 | ST16: 532 | SU16: 540 | SV16: 511 | SW16: 501 | SX16: 522 | SY16: 501 | SZ16: 586 | TA16: 570 | TB16: 547 | TC16: 587 | TD16: 624 | TE16: 490 | TF16: 486 | TG16: 485 | TH16: 470 | TI16: 447 | TJ16: 463 | TK16: 433 | TL16: 494 | TM16: 581 | TN16: 575 | TO16: 545 | TP16: 556 | TQ16: 560 | TR16: 359 | TS16: 329 | TT16: 343 | TU16: 319 | TV16: 325 | TW16: 301 | TX16: 286 | TY16: 350 | TZ16: 428 | UA16: 412 | UB16: 365 | UC16: 401 | UD16: 368 | UE16: 381 | UF16: 348 | UG16: 442 | UH16: 428 | UI16: 409 | UJ16: 446 | UK16: 368 | UL16: 441 | UM16: 389 | UN16: 443 | UO16: 466 | UP16: 432 | UQ16: 462 | UR16: 415 | US16: 395 | UT16: 441 | UU16: 397 | UV16: 436 | UW16: 407 | UX16: 403 | UY16: 425 | UZ16: 446 | VA16: 452 | VB16: 409 | VC16: 458 | VD16: 381 | VE16: 406 | VF16: 406 | VG16: 411 | VH16: 465
D17: 0 | F17: 0 | G17: =IF(AND($J$3="Category-2",D17<=199),D17*15,IF(AND($J$3="Category-2",D17>199),(199*15+(D17-199)*12),IF(AND($J$3="Category-3",D17<=199),D17*8,IF(AND($J$3="Category-3",D17>199),(199*8+(D17-199)*6),IF(AND($J$3="Category-4",D17<=199),D17*8,IF(AND($J$3="Category-4",D17>199),(199*8+(D17-199)*6),IF(D17>0,FLOOR(D17*F17,1),0))))))) -> 0 | H17: 05792 | M17: কক্সবাজার | P17: 1 | Q17: =IF(P17=0,"",COUNTIF($P$2:P17,">0")) -> 16 | R17: Bandarban - Thanchi | T17: 15 | U17: Bandarban - Ruma | V17: Barishal - Kawnia Thana | W17: 76 | X17: 77 | Y17: 81 | Z17: 53 | AA17: 114 | AB17: 98 | AC17: 45 | AD17: 14 | AE17: 26 | AF17: 28 | AG17: 38 | AH17: 4 | AI17: 10 | AJ17: 4 | AK17: 0 | AL17: 28 | AM17: 22 | AN17: 51 | AO17: 75 | AP17: 115 | AQ17: 69 | AR17: 96 | AS17: 124 | AT17: 96 | AU17: 24 | AV17: 63 | AW17: 25 | AX17: 37 | AY17: 61 | AZ17: 77 | BA17: 41 | BB17: 77 | BC17: 94 | BD17: 56 | BE17: 49 | BF17: 51 | BG17: 46 | BH17: 84 | BI17: 96 | BJ17: 56 | BK17: 37 | BL17: 67 | BM17: 383 | BN17: 320 | BO17: 351 | BP17: 390 | BQ17: 338 | BR17: 354 | BS17: 383 | BT17: 293 | BU17: 220 | BV17: 278 | BW17: 275 | BX17: 251 | BY17: 278 | BZ17: 283 | CA17: 280 | CB17: 264 | CC17: 130 | CD17: 113 | CE17: 82 | CF17: 127 | CG17: 131 | CH17: 241 | CI17: 267 | CJ17: 243 | CK17: 290 | CL17: 250 | CM17: 259 | CN17: 248 | CO17: 280 | CP17: 250 | CQ17: 249 | CR17: 247 | CS17: 252 | CT17: 216 | CU17: 249 | CV17: 253 | CW17: 242 | CX17: 249 | CY17: 245 | CZ17: 306 | DA17: 190 | DB17: 241 | DC17: 248 | DD17: 271 | DE17: 261 | DF17: 273 | DG17: 264 | DH17: 253 | DI17: 239 | DJ17: 299 | DK17: 212 | DL17: 148 | DM17: 274 | DN17: 265 | DO17: 240 | DP17: 283 | DQ17: 261 | DR17: 256 | DS17: 234 | DT17: 259 | DU17: 157 | DV17: 139 | DW17: 210 | DX17: 265 | DY17: 155 | DZ17: 226 | EA17: 270 | EB17: 340 | EC17: 391 | ED17: 325 | EE17: 356 | EF17: 314 | EG17: 381 | EH17: 463 | EI17: 412 | EJ17: 170 | EK17: 145 | EL17: 157 | EM17: 173 | EN17: 181 | EO17: 158 | EP17: 234 | EQ17: 262 | ER17: 264 | ES17: 257 | ET17: 223 | EU17: 246 | EV17: 215 | EW17: 139 | EX17: 91 | EY17: 102 | EZ17: 110 | FA17: 114 | FB17: 120 | FC17: 122 | FD17: 148 | FE17: 145 | FF17: 135 | FG17: 132 | FH17: 142 | FI17: 132 | FJ17: 314 | FK17: 242 | FL17: 296 | FM17: 295 | FN17: 302 | FO17: 182 | FP17: 179 | FQ17: 169 | FR17: 191 | FS17: 181 | FT17: 185 | FU17: 170 | FV17: 195 | FW17: 185 | FX17: 175 | FY17: 217 | FZ17: 178 | GA17: 172 | GB17: 186 | GC17: 181 | GD17: 169 | GE17: 182 | GF17: 178 | GG17: 175 | GH17: 182 | GI17: 175 | GJ17: 178 | GK17: 173 | GL17: 180 | GM17: 186 | GN17: 167 | GO17: 169 | GP17: 171 | GQ17: 189 | GR17: 181 | GS17: 175 | GT17: 172 | GU17: 172 | GV17: 175 | GW17: 190 | GX17: 175 | GY17: 175 | GZ17: 177 | HA17: 174 | HB17: 187 | HC17: 191 | HD17: 175 | HE17: 186 | HF17: 175 | HG17: 169 | HH17: 181 | HI17: 171 | HJ17: 178 | HK17: 179 | HL17: 195 | HM17: 193 | HN17: 193 | HO17: 197 | HP17: 171 | HQ17: 127 | HR17: 96 | HS17: 141 | HT17: 131 | HU17: 127 | HV17: 150 | HW17: 111 | HX17: 113 | HY17: 130 | HZ17: 207 | IA17: 227 | IB17: 224 | IC17: 230 | ID17: 236 | IE17: 194 | IF17: 87 | IG17: 119 | IH17: 61 | II17: 113 | IJ17: 83 | IK17: 530 | IL17: 262 | IM17: 246 | IN17: 273 | IO17: 496 | IP17: 289 | IQ17: 255 | IR17: 277 | IS17: 257 | IT17: 513 | IU17: 276 | IV17: 263 | IW17: 310 | IX17: 52 | IY17: 61 | IZ17: 73 | JA17: 91 | JB17: 187 | JC17: 180 | JD17: 202 | JE17: 219 | JF17: 232 | JG17: 170 | JH17: 188 | JI17: 198 | JJ17: 145 | JK17: 169 | JL17: 178 | JM17: 144 | JN17: 165 | JO17: 198 | JP17: 190 | JQ17: 189 | JR17: 178 | JS17: 190 | JT17: 239 | JU17: 238 | JV17: 212 | JW17: 212 | JX17: 231 | JY17: 218 | JZ17: 164 | KA17: 152 | KB17: 170 | KC17: 179 | KD17: 154 | KE17: 94 | KF17: 92 | KG17: 86 | KH17: 94 | KI17: 80 | KJ17: 95 | KK17: 274 | KL17: 292 | KM17: 254 | KN17: 323 | KO17: 294 | KP17: 306 | KQ17: 274 | KR17: 311 | KS17: 242 | KT17: 203 | KU17: 260 | KV17: 265 | KW17: 83 | KX17: 104 | KY17: 115 | KZ17: 78 | LA17: 103 | LB17: 150 | LC17: 79 | LD17: 97 | LE17: 90 | LF17: 243 | LG17: 240 | LH17: 250 | LI17: 252 | LJ17: 171 | LK17: 195 | LL17: 224 | LM17: 210 | LN17: 175 | LO17: 209 | LP17: 189 | LQ17: 227 | LR17: 224 | LS17: 203 | LT17: 225 | LU17: 231 | LV17: 244 | LW17: 221 | LX17: 139 | LY17: 145 | LZ17: 152 | MA17: 144 | MB17: 138 | MC17: 138 | MD17: 147 | ME17: 160 | MF17: 139 | MG17: 231 | MH17: 139 | MI17: 199 | MJ17: 165 | MK17: 133 | ML17: 143 | MM17: 110 | MN17: 253 | MO17: 251 | MP17: 193 | MQ17: 202 | MR17: 218 | MS17: 232 | MT17: 175 | MU17: 156 | MV17: 198 | MW17: 181 | MX17: 264 | MY17: 282 | MZ17: 268 | NA17: 114 | NB17: 118 | NC17: 135 | ND17: 218 | NE17: 214 | NF17: 205 | NG17: 228 | NH17: 193 | NI17: 244 | NJ17: 177 | NK17: 391 | NL17: 388 | NM17: 379 | NN17: 349 | NO17: 375 | NP17: 366 | NQ17: 343 | NR17: 254 | NS17: 339 | NT17: 291 | NU17: 266 | NV17: 311 | NW17: 342 | NX17: 315 | NY17: 301 | NZ17: 309 | OA17: 300 | OB17: 322 | OC17: 294 | OD17: 285 | OE17: 350 | OF17: 349 | OG17: 348 | OH17: 385 | OI17: 364 | OJ17: 316 | OK17: 360 | OL17: 360 | OM17: 331 | ON17: 325 | OO17: 387 | OP17: 341 | OQ17: 361 | OR17: 367 | OS17: 385 | OT17: 358 | OU17: 361 | OV17: 341 | OW17: 363 | OX17: 374 | OY17: 369 | OZ17: 335 | PA17: 386 | PB17: 361 | PC17: 347 | PD17: 380 | PE17: 396 | PF17: 384 | PG17: 400 | PH17: 398 | PI17: 390 | PJ17: 410 | PK17: 327 | PL17: 374 | PM17: 439 | PN17: 383 | PO17: 404 | PP17: 351 | PQ17: 402 | PR17: 421 | PS17: 439 | PT17: 345 | PU17: 438 | PV17: 296 | PW17: 287 | PX17: 301 | PY17: 266 | PZ17: 312 | QA17: 299 | QB17: 314 | QC17: 441 | QD17: 415 | QE17: 407 | QF17: 388 | QG17: 407 | QH17: 237 | QI17: 263 | QJ17: 262 | QK17: 253 | QL17: 263 | QM17: 253 | QN17: 222 | QO17: 256 | QP17: 243 | QQ17: 279 | QR17: 332 | QS17: 339 | QT17: 294 | QU17: 329 | QV17: 372 | QW17: 336 | QX17: 358 | QY17: 341 | QZ17: 314 | RA17: 345 | RB17: 339 | RC17: 351 | RD17: 308 | RE17: 305 | RF17: 335 | RG17: 329 | RH17: 273 | RI17: 307 | RJ17: 317 | RK17: 290 | RL17: 448 | RM17: 534 | RN17: 511 | RO17: 529 | RP17: 497 | RQ17: 462 | RR17: 425 | RS17: 420 | RT17: 524 | RU17: 526 | RV17: 502 | RW17: 442 | RX17: 482 | RY17: 431 | RZ17: 425 | SA17: 395 | SB17: 412 | SC17: 435 | SD17: 411 | SE17: 455 | SF17: 540 | SG17: 425 | SH17: 525 | SI17: 510 | SJ17: 511 | SK17: 527 | SL17: 495 | SM17: 442 | SN17: 515 | SO17: 505 | SP17: 521 | SQ17: 494 | SR17: 495 | SS17: 557 | ST17: 529 | SU17: 537 | SV17: 508 | SW17: 498 | SX17: 519 | SY17: 499 | SZ17: 584 | TA17: 567 | TB17: 544 | TC17: 584 | TD17: 622 | TE17: 487 | TF17: 483 | TG17: 482 | TH17: 468 | TI17: 444 | TJ17: 460 | TK17: 431 | TL17: 492 | TM17: 578 | TN17: 573 | TO17: 542 | TP17: 553 | TQ17: 557 | TR17: 356 | TS17: 327 | TT17: 340 | TU17: 317 | TV17: 323 | TW17: 298 | TX17: 283 | TY17: 348 | TZ17: 425 | UA17: 410 | UB17: 362 | UC17: 398 | UD17: 366 | UE17: 378 | UF17: 345 | UG17: 440 | UH17: 425 | UI17: 406 | UJ17: 443 | UK17: 365 | UL17: 438 | UM17: 386 | UN17: 440 | UO17: 464 | UP17: 430 | UQ17: 459 | UR17: 412 | US17: 393 | UT17: 438 | UU17: 394 | UV17: 434 | UW17: 405 | UX17: 400 | UY17: 423 | UZ17: 443 | VA17: 449 | VB17: 407 | VC17: 456 | VD17: 379 | VE17: 413 | VF17: 403 | VG17: 408 | VH17: 463
D18: 0 | F18: 0 | G18: =IF(AND($J$3="Category-2",D18<=199),D18*15,IF(AND($J$3="Category-2",D18>199),(199*15+(D18-199)*12),IF(AND($J$3="Category-3",D18<=199),D18*8,IF(AND($J$3="Category-3",D18>199),(199*8+(D18-199)*6),IF(AND($J$3="Category-4",D18<=199),D18*8,IF(AND($J$3="Category-4",D18>199),(199*8+(D18-199)*6),IF(D18>0,FLOOR(D18*F18,1),0))))))) -> 0 | H18: 03138 | M18: সাভার | P18: 1 | Q18: =IF(P18=0,"",COUNTIF($P$2:P18,">0")) -> 17 | R18: Barguna - Amtali | T18: 16 | U18: Bandarban - Thanchi | V18: Barishal - Muladi | W18: 102 | X18: 104 | Y18: 108 | Z18: 80 | AA18: 141 | AB18: 124 | AC18: 50 | AD18: 14 | AE18: 52 | AF18: 39 | AG18: 43 | AH18: 31 | AI18: 23 | AJ18: 35 | AK18: 28 | AL18: 0 | AM18: 27 | AN18: 77 | AO18: 101 | AP18: 141 | AQ18: 95 | AR18: 123 | AS18: 151 | AT18: 123 | AU18: 50 | AV18: 89 | AW18: 51 | AX18: 63 | AY18: 87 | AZ18: 104 | BA18: 67 | BB18: 103 | BC18: 121 | BD18: 83 | BE18: 76 | BF18: 78 | BG18: 72 | BH18: 111 | BI18: 101 | BJ18: 83 | BK18: 48 | BL18: 93 | BM18: 549 | BN18: 485 | BO18: 517 | BP18: 556 | BQ18: 503 | BR18: 519 | BS18: 548 | BT18: 299 | BU18: 225 | BV18: 284 | BW18: 280 | BX18: 256 | BY18: 284 | BZ18: 288 | CA18: 285 | CB18: 269 | CC18: 157 | CD18: 140 | CE18: 54 | CF18: 262 | CG18: 267 | CH18: 406 | CI18: 433 | CJ18: 409 | CK18: 455 | CL18: 416 | CM18: 425 | CN18: 414 | CO18: 445 | CP18: 416 | CQ18: 415 | CR18: 413 | CS18: 418 | CT18: 381 | CU18: 415 | CV18: 419 | CW18: 408 | CX18: 415 | CY18: 410 | CZ18: 472 | DA18: 356 | DB18: 407 | DC18: 414 | DD18: 436 | DE18: 427 | DF18: 439 | DG18: 430 | DH18: 418 | DI18: 405 | DJ18: 464 | DK18: 378 | DL18: 293 | DM18: 279 | DN18: 271 | DO18: 245 | DP18: 288 | DQ18: 266 | DR18: 265 | DS18: 239 | DT18: 264 | DU18: 290 | DV18: 165 | DW18: 215 | DX18: 270 | DY18: 301 | DZ18: 231 | EA18: 275 | EB18: 506 | EC18: 557 | ED18: 491 | EE18: 521 | EF18: 479 | EG18: 547 | EH18: 628 | EI18: 577 | EJ18: 333 | EK18: 171 | EL18: 320 | EM18: 336 | EN18: 343 | EO18: 185 | EP18: 400 | EQ18: 427 | ER18: 430 | ES18: 422 | ET18: 389 | EU18: 411 | EV18: 381 | EW18: 165 | EX18: 117 | EY18: 129 | EZ18: 137 | FA18: 140 | FB18: 147 | FC18: 148 | FD18: 174 | FE18: 171 | FF18: 161 | FG18: 158 | FH18: 169 | FI18: 159 | FJ18: 479 | FK18: 408 | FL18: 462 | FM18: 460 | FN18: 468 | FO18: 187 | FP18: 184 | FQ18: 175 | FR18: 196 | FS18: 186 | FT18: 190 | FU18: 175 | FV18: 200 | FW18: 190 | FX18: 180 | FY18: 222 | FZ18: 183 | GA18: 177 | GB18: 191 | GC18: 187 | GD18: 174 | GE18: 188 | GF18: 183 | GG18: 180 | GH18: 187 | GI18: 180 | GJ18: 183 | GK18: 179 | GL18: 185 | GM18: 191 | GN18: 172 | GO18: 174 | GP18: 176 | GQ18: 194 | GR18: 186 | GS18: 180 | GT18: 178 | GU18: 178 | GV18: 181 | GW18: 195 | GX18: 181 | GY18: 181 | GZ18: 182 | HA18: 179 | HB18: 192 | HC18: 196 | HD18: 180 | HE18: 191 | HF18: 181 | HG18: 175 | HH18: 186 | HI18: 176 | HJ18: 183 | HK18: 184 | HL18: 200 | HM18: 199 | HN18: 198 | HO18: 203 | HP18: 177 | HQ18: 132 | HR18: 101 | HS18: 146 | HT18: 136 | HU18: 132 | HV18: 155 | HW18: 116 | HX18: 118 | HY18: 135 | HZ18: 212 | IA18: 233 | IB18: 229 | IC18: 235 | ID18: 241 | IE18: 200 | IF18: 92 | IG18: 124 | IH18: 67 | II18: 119 | IJ18: 89 | IK18: 535 | IL18: 267 | IM18: 251 | IN18: 279 | IO18: 501 | IP18: 294 | IQ18: 260 | IR18: 283 | IS18: 262 | IT18: 518 | IU18: 281 | IV18: 268 | IW18: 315 | IX18: 57 | IY18: 66 | IZ18: 78 | JA18: 96 | JB18: 192 | JC18: 185 | JD18: 207 | JE18: 225 | JF18: 237 | JG18: 175 | JH18: 193 | JI18: 203 | JJ18: 151 | JK18: 175 | JL18: 183 | JM18: 149 | JN18: 170 | JO18: 203 | JP18: 196 | JQ18: 194 | JR18: 183 | JS18: 195 | JT18: 244 | JU18: 243 | JV18: 218 | JW18: 217 | JX18: 237 | JY18: 223 | JZ18: 170 | KA18: 157 | KB18: 175 | KC18: 184 | KD18: 160 | KE18: 99 | KF18: 97 | KG18: 91 | KH18: 99 | KI18: 86 | KJ18: 101 | KK18: 279 | KL18: 297 | KM18: 259 | KN18: 328 | KO18: 299 | KP18: 311 | KQ18: 279 | KR18: 316 | KS18: 247 | KT18: 208 | KU18: 265 | KV18: 270 | KW18: 144 | KX18: 109 | KY18: 121 | KZ18: 105 | LA18: 108 | LB18: 156 | LC18: 106 | LD18: 152 | LE18: 117 | LF18: 248 | LG18: 245 | LH18: 255 | LI18: 258 | LJ18: 176 | LK18: 200 | LL18: 229 | LM18: 215 | LN18: 180 | LO18: 214 | LP18: 194 | LQ18: 232 | LR18: 229 | LS18: 208 | LT18: 230 | LU18: 236 | LV18: 249 | LW18: 226 | LX18: 145 | LY18: 151 | LZ18: 157 | MA18: 149 | MB18: 143 | MC18: 143 | MD18: 152 | ME18: 165 | MF18: 145 | MG18: 236 | MH18: 145 | MI18: 204 | MJ18: 170 | MK18: 138 | ML18: 148 | MM18: 116 | MN18: 259 | MO18: 256 | MP18: 198 | MQ18: 207 | MR18: 223 | MS18: 237 | MT18: 180 | MU18: 162 | MV18: 203 | MW18: 187 | MX18: 269 | MY18: 288 | MZ18: 273 | NA18: 119 | NB18: 123 | NC18: 140 | ND18: 223 | NE18: 219 | NF18: 210 | NG18: 234 | NH18: 198 | NI18: 249 | NJ18: 182 | NK18: 397 | NL18: 393 | NM18: 384 | NN18: 354 | NO18: 380 | NP18: 371 | NQ18: 348 | NR18: 259 | NS18: 344 | NT18: 296 | NU18: 271 | NV18: 316 | NW18: 347 | NX18: 320 | NY18: 306 | NZ18: 315 | OA18: 305 | OB18: 327 | OC18: 299 | OD18: 291 | OE18: 355 | OF18: 355 | OG18: 353 | OH18: 390 | OI18: 369 | OJ18: 321 | OK18: 366 | OL18: 365 | OM18: 337 | ON18: 330 | OO18: 392 | OP18: 347 | OQ18: 367 | OR18: 372 | OS18: 390 | OT18: 363 | OU18: 366 | OV18: 346 | OW18: 369 | OX18: 379 | OY18: 374 | OZ18: 340 | PA18: 392 | PB18: 366 | PC18: 352 | PD18: 385 | PE18: 401 | PF18: 390 | PG18: 405 | PH18: 404 | PI18: 395 | PJ18: 415 | PK18: 332 | PL18: 379 | PM18: 444 | PN18: 389 | PO18: 409 | PP18: 356 | PQ18: 407 | PR18: 427 | PS18: 445 | PT18: 350 | PU18: 443 | PV18: 301 | PW18: 292 | PX18: 306 | PY18: 271 | PZ18: 318 | QA18: 304 | QB18: 319 | QC18: 446 | QD18: 421 | QE18: 412 | QF18: 393 | QG18: 412 | QH18: 242 | QI18: 268 | QJ18: 267 | QK18: 258 | QL18: 268 | QM18: 258 | QN18: 228 | QO18: 261 | QP18: 248 | QQ18: 284 | QR18: 337 | QS18: 345 | QT18: 300 | QU18: 334 | QV18: 377 | QW18: 341 | QX18: 363 | QY18: 346 | QZ18: 319 | RA18: 351 | RB18: 344 | RC18: 356 | RD18: 314 | RE18: 310 | RF18: 340 | RG18: 334 | RH18: 278 | RI18: 312 | RJ18: 322 | RK18: 295 | RL18: 453 | RM18: 539 | RN18: 516 | RO18: 535 | RP18: 502 | RQ18: 467 | RR18: 430 | RS18: 426 | RT18: 529 | RU18: 532 | RV18: 508 | RW18: 447 | RX18: 487 | RY18: 436 | RZ18: 430 | SA18: 400 | SB18: 417 | SC18: 440 | SD18: 416 | SE18: 460 | SF18: 545 | SG18: 431 | SH18: 530 | SI18: 515 | SJ18: 516 | SK18: 533 | SL18: 501 | SM18: 448 | SN18: 521 | SO18: 510 | SP18: 527 | SQ18: 499 | SR18: 500 | SS18: 563 | ST18: 534 | SU18: 542 | SV18: 514 | SW18: 503 | SX18: 524 | SY18: 504 | SZ18: 589 | TA18: 572 | TB18: 549 | TC18: 590 | TD18: 627 | TE18: 493 | TF18: 488 | TG18: 487 | TH18: 473 | TI18: 450 | TJ18: 466 | TK18: 436 | TL18: 497 | TM18: 583 | TN18: 578 | TO18: 548 | TP18: 558 | TQ18: 563 | TR18: 361 | TS18: 332 | TT18: 345 | TU18: 322 | TV18: 328 | TW18: 303 | TX18: 289 | TY18: 353 | TZ18: 431 | UA18: 415 | UB18: 367 | UC18: 403 | UD18: 371 | UE18: 383 | UF18: 350 | UG18: 445 | UH18: 430 | UI18: 411 | UJ18: 448 | UK18: 370 | UL18: 444 | UM18: 391 | UN18: 445 | UO18: 469 | UP18: 435 | UQ18: 464 | UR18: 417 | US18: 398 | UT18: 443 | UU18: 399 | UV18: 439 | UW18: 410 | UX18: 406 | UY18: 428 | UZ18: 448 | VA18: 455 | VB18: 412 | VC18: 461 | VD18: 384 | VE18: 409 | VF18: 409 | VG18: 413 | VH18: 468
H19: 05625 | M19: গাজীপুর | P19: 1 | Q19: =IF(P19=0,"",COUNTIF($P$2:P19,">0")) -> 18 | R19: Barguna - Bamna | T19: 17 | U19: Barguna - Amtali | V19: Barishal - Wazirpur | W19: 92 | X19: 94 | Y19: 97 | Z19: 70 | AA19: 131 | AB19: 114 | AC19: 26 | AD19: 14 | AE19: 42 | AF19: 28 | AG19: 19 | AH19: 20 | AI19: 13 | AJ19: 25 | AK19: 22 | AL19: 27 | AM19: 0 | AN19: 67 | AO19: 91 | AP19: 131 | AQ19: 85 | AR19: 113 | AS19: 140 | AT19: 113 | AU19: 40 | AV19: 79 | AW19: 41 | AX19: 53 | AY19: 77 | AZ19: 93 | BA19: 57 | BB19: 93 | BC19: 110 | BD19: 72 | BE19: 65 | BF19: 67 | BG19: 62 | BH19: 101 | BI19: 77 | BJ19: 72 | BK19: 37 | BL19: 83 | BM19: 525 | BN19: 462 | BO19: 493 | BP19: 532 | BQ19: 479 | BR19: 495 | BS19: 524 | BT19: 275 | BU19: 201 | BV19: 260 | BW19: 256 | BX19: 232 | BY19: 260 | BZ19: 264 | CA19: 261 | CB19: 245 | CC19: 244 | CD19: 129 | CE19: 82 | CF19: 238 | CG19: 243 | CH19: 382 | CI19: 409 | CJ19: 385 | CK19: 431 | CL19: 392 | CM19: 401 | CN19: 390 | CO19: 421 | CP19: 392 | CQ19: 391 | CR19: 389 | CS19: 394 | CT19: 357 | CU19: 391 | CV19: 395 | CW19: 384 | CX19: 391 | CY19: 386 | CZ19: 448 | DA19: 332 | DB19: 383 | DC19: 390 | DD19: 412 | DE19: 403 | DF19: 415 | DG19: 406 | DH19: 394 | DI19: 381 | DJ19: 440 | DK19: 354 | DL19: 269 | DM19: 255 | DN19: 247 | DO19: 221 | DP19: 264 | DQ19: 243 | DR19: 237 | DS19: 215 | DT19: 240 | DU19: 266 | DV19: 280 | DW19: 191 | DX19: 246 | DY19: 277 | DZ19: 207 | EA19: 251 | EB19: 482 | EC19: 533 | ED19: 467 | EE19: 498 | EF19: 455 | EG19: 523 | EH19: 604 | EI19: 553 | EJ19: 309 | EK19: 161 | EL19: 296 | EM19: 312 | EN19: 319 | EO19: 340 | EP19: 376 | EQ19: 403 | ER19: 406 | ES19: 399 | ET19: 365 | EU19: 388 | EV19: 357 | EW19: 155 | EX19: 107 | EY19: 118 | EZ19: 126 | FA19: 130 | FB19: 136 | FC19: 138 | FD19: 164 | FE19: 161 | FF19: 151 | FG19: 148 | FH19: 159 | FI19: 148 | FJ19: 455 | FK19: 384 | FL19: 438 | FM19: 436 | FN19: 444 | FO19: 163 | FP19: 160 | FQ19: 151 | FR19: 172 | FS19: 162 | FT19: 166 | FU19: 151 | FV19: 176 | FW19: 166 | FX19: 156 | FY19: 193 | FZ19: 159 | GA19: 153 | GB19: 167 | GC19: 163 | GD19: 150 | GE19: 164 | GF19: 159 | GG19: 156 | GH19: 163 | GI19: 156 | GJ19: 160 | GK19: 155 | GL19: 162 | GM19: 168 | GN19: 148 | GO19: 151 | GP19: 152 | GQ19: 170 | GR19: 162 | GS19: 156 | GT19: 154 | GU19: 154 | GV19: 157 | GW19: 171 | GX19: 157 | GY19: 157 | GZ19: 158 | HA19: 155 | HB19: 169 | HC19: 172 | HD19: 156 | HE19: 167 | HF19: 157 | HG19: 151 | HH19: 162 | HI19: 152 | HJ19: 159 | HK19: 160 | HL19: 176 | HM19: 175 | HN19: 174 | HO19: 179 | HP19: 153 | HQ19: 108 | HR19: 77 | HS19: 122 | HT19: 112 | HU19: 109 | HV19: 131 | HW19: 92 | HX19: 94 | HY19: 111 | HZ19: 188 | IA19: 209 | IB19: 206 | IC19: 211 | ID19: 218 | IE19: 176 | IF19: 68 | IG19: 100 | IH19: 43 | II19: 95 | IJ19: 65 | IK19: 511 | IL19: 243 | IM19: 227 | IN19: 255 | IO19: 477 | IP19: 270 | IQ19: 236 | IR19: 259 | IS19: 238 | IT19: 494 | IU19: 258 | IV19: 244 | IW19: 291 | IX19: 33 | IY19: 42 | IZ19: 54 | JA19: 72 | JB19: 168 | JC19: 161 | JD19: 183 | JE19: 201 | JF19: 213 | JG19: 151 | JH19: 169 | JI19: 180 | JJ19: 127 | JK19: 151 | JL19: 160 | JM19: 125 | JN19: 146 | JO19: 179 | JP19: 172 | JQ19: 170 | JR19: 159 | JS19: 171 | JT19: 220 | JU19: 219 | JV19: 194 | JW19: 193 | JX19: 213 | JY19: 200 | JZ19: 146 | KA19: 133 | KB19: 151 | KC19: 160 | KD19: 136 | KE19: 75 | KF19: 73 | KG19: 67 | KH19: 75 | KI19: 62 | KJ19: 77 | KK19: 255 | KL19: 273 | KM19: 236 | KN19: 304 | KO19: 275 | KP19: 287 | KQ19: 255 | KR19: 292 | KS19: 223 | KT19: 184 | KU19: 241 | KV19: 246 | KW19: 120 | KX19: 85 | KY19: 97 | KZ19: 105 | LA19: 85 | LB19: 132 | LC19: 95 | LD19: 128 | LE19: 106 | LF19: 224 | LG19: 221 | LH19: 231 | LI19: 234 | LJ19: 152 | LK19: 176 | LL19: 205 | LM19: 192 | LN19: 156 | LO19: 190 | LP19: 170 | LQ19: 208 | LR19: 205 | LS19: 184 | LT19: 206 | LU19: 212 | LV19: 225 | LW19: 202 | LX19: 121 | LY19: 127 | LZ19: 133 | MA19: 125 | MB19: 119 | MC19: 120 | MD19: 129 | ME19: 141 | MF19: 121 | MG19: 212 | MH19: 121 | MI19: 180 | MJ19: 146 | MK19: 114 | ML19: 124 | MM19: 92 | MN19: 235 | MO19: 233 | MP19: 174 | MQ19: 183 | MR19: 199 | MS19: 213 | MT19: 156 | MU19: 138 | MV19: 179 | MW19: 163 | MX19: 245 | MY19: 264 | MZ19: 249 | NA19: 95 | NB19: 99 | NC19: 116 | ND19: 199 | NE19: 195 | NF19: 186 | NG19: 210 | NH19: 174 | NI19: 225 | NJ19: 158 | NK19: 373 | NL19: 369 | NM19: 360 | NN19: 330 | NO19: 357 | NP19: 348 | NQ19: 324 | NR19: 235 | NS19: 321 | NT19: 272 | NU19: 247 | NV19: 292 | NW19: 323 | NX19: 296 | NY19: 282 | NZ19: 291 | OA19: 281 | OB19: 303 | OC19: 275 | OD19: 267 | OE19: 331 | OF19: 331 | OG19: 329 | OH19: 366 | OI19: 345 | OJ19: 297 | OK19: 342 | OL19: 342 | OM19: 313 | ON19: 306 | OO19: 368 | OP19: 323 | OQ19: 343 | OR19: 349 | OS19: 366 | OT19: 339 | OU19: 342 | OV19: 322 | OW19: 345 | OX19: 356 | OY19: 350 | OZ19: 316 | PA19: 368 | PB19: 342 | PC19: 328 | PD19: 361 | PE19: 378 | PF19: 366 | PG19: 381 | PH19: 380 | PI19: 371 | PJ19: 391 | PK19: 308 | PL19: 355 | PM19: 420 | PN19: 365 | PO19: 385 | PP19: 332 | PQ19: 383 | PR19: 403 | PS19: 421 | PT19: 326 | PU19: 419 | PV19: 277 | PW19: 269 | PX19: 282 | PY19: 247 | PZ19: 294 | QA19: 280 | QB19: 295 | QC19: 422 | QD19: 397 | QE19: 388 | QF19: 369 | QG19: 389 | QH19: 218 | QI19: 244 | QJ19: 243 | QK19: 234 | QL19: 245 | QM19: 234 | QN19: 204 | QO19: 237 | QP19: 224 | QQ19: 260 | QR19: 313 | QS19: 321 | QT19: 276 | QU19: 310 | QV19: 353 | QW19: 317 | QX19: 339 | QY19: 322 | QZ19: 295 | RA19: 327 | RB19: 320 | RC19: 332 | RD19: 290 | RE19: 286 | RF19: 316 | RG19: 310 | RH19: 255 | RI19: 289 | RJ19: 298 | RK19: 271 | RL19: 429 | RM19: 515 | RN19: 492 | RO19: 511 | RP19: 479 | RQ19: 443 | RR19: 406 | RS19: 402 | RT19: 506 | RU19: 508 | RV19: 484 | RW19: 423 | RX19: 463 | RY19: 412 | RZ19: 406 | SA19: 376 | SB19: 393 | SC19: 416 | SD19: 392 | SE19: 436 | SF19: 521 | SG19: 407 | SH19: 507 | SI19: 491 | SJ19: 492 | SK19: 509 | SL19: 477 | SM19: 424 | SN19: 497 | SO19: 486 | SP19: 503 | SQ19: 475 | SR19: 476 | SS19: 539 | ST19: 510 | SU19: 519 | SV19: 490 | SW19: 479 | SX19: 500 | SY19: 480 | SZ19: 565 | TA19: 548 | TB19: 526 | TC19: 566 | TD19: 603 | TE19: 469 | TF19: 464 | TG19: 463 | TH19: 449 | TI19: 426 | TJ19: 442 | TK19: 412 | TL19: 473 | TM19: 559 | TN19: 554 | TO19: 524 | TP19: 534 | TQ19: 539 | TR19: 337 | TS19: 308 | TT19: 321 | TU19: 298 | TV19: 304 | TW19: 280 | TX19: 265 | TY19: 329 | TZ19: 407 | UA19: 391 | UB19: 343 | UC19: 379 | UD19: 347 | UE19: 359 | UF19: 326 | UG19: 421 | UH19: 406 | UI19: 387 | UJ19: 424 | UK19: 346 | UL19: 420 | UM19: 367 | UN19: 421 | UO19: 445 | UP19: 411 | UQ19: 441 | UR19: 393 | US19: 374 | UT19: 420 | UU19: 375 | UV19: 415 | UW19: 386 | UX19: 382 | UY19: 404 | UZ19: 424 | VA19: 431 | VB19: 388 | VC19: 437 | VD19: 360 | VE19: 394 | VF19: 385 | VG19: 389 | VH19: 444
C20: দৈনিক ভাতা | H20: 06753 | M20: অন্য এলাকা | P20: 1 | Q20: =IF(P20=0,"",COUNTIF($P$2:P20,">0")) -> 19 | R20: Barguna - Barguna Sadar | T20: 18 | U20: Barguna - Bamna | V20: Bhola - Bhola Sadar | W20: 105 | X20: 114 | Y20: 111 | Z20: 83 | AA20: 151 | AB20: 127 | AC20: 90 | AD20: 64 | AE20: 55 | AF20: 73 | AG20: 83 | AH20: 47 | AI20: 54 | AJ20: 48 | AK20: 51 | AL20: 77 | AM20: 67 | AN20: 0 | AO20: 24 | AP20: 64 | AQ20: 18 | AR20: 46 | AS20: 73 | AT20: 46 | AU20: 60 | AV20: 99 | AW20: 54 | AX20: 73 | AY20: 90 | AZ20: 107 | BA20: 70 | BB20: 106 | BC20: 124 | BD20: 86 | BE20: 79 | BF20: 88 | BG20: 82 | BH20: 121 | BI20: 141 | BJ20: 93 | BK20: 82 | BL20: 103 | BM20: 343 | BN20: 280 | BO20: 311 | BP20: 350 | BQ20: 298 | BR20: 314 | BS20: 343 | BT20: 210 | BU20: 157 | BV20: 233 | BW20: 213 | BX20: 237 | BY20: 181 | BZ20: 200 | CA20: 245 | CB20: 229 | CC20: 90 | CD20: 73 | CE20: 132 | CF20: 87 | CG20: 91 | CH20: 201 | CI20: 227 | CJ20: 203 | CK20: 250 | CL20: 210 | CM20: 219 | CN20: 208 | CO20: 240 | CP20: 210 | CQ20: 209 | CR20: 207 | CS20: 212 | CT20: 176 | CU20: 209 | CV20: 213 | CW20: 202 | CX20: 209 | CY20: 205 | CZ20: 265 | DA20: 150 | DB20: 201 | DC20: 208 | DD20: 231 | DE20: 221 | DF20: 233 | DG20: 224 | DH20: 213 | DI20: 200 | DJ20: 259 | DK20: 172 | DL20: 108 | DM20: 164 | DN20: 155 | DO20: 135 | DP20: 137 | DQ20: 139 | DR20: 168 | DS20: 147 | DT20: 145 | DU20: 118 | DV20: 99 | DW20: 173 | DX20: 182 | DY20: 115 | DZ20: 140 | EA20: 127 | EB20: 300 | EC20: 351 | ED20: 285 | EE20: 316 | EF20: 274 | EG20: 341 | EH20: 423 | EI20: 372 | EJ20: 130 | EK20: 105 | EL20: 117 | EM20: 134 | EN20: 141 | EO20: 118 | EP20: 194 | EQ20: 222 | ER20: 225 | ES20: 217 | ET20: 184 | EU20: 206 | EV20: 175 | EW20: 99 | EX20: 51 | EY20: 62 | EZ20: 70 | FA20: 74 | FB20: 80 | FC20: 82 | FD20: 108 | FE20: 105 | FF20: 95 | FG20: 92 | FH20: 103 | FI20: 92 | FJ20: 274 | FK20: 202 | FL20: 256 | FM20: 255 | FN20: 263 | FO20: 186 | FP20: 181 | FQ20: 179 | FR20: 195 | FS20: 186 | FT20: 190 | FU20: 179 | FV20: 199 | FW20: 190 | FX20: 171 | FY20: 222 | FZ20: 183 | GA20: 217 | GB20: 191 | GC20: 184 | GD20: 177 | GE20: 187 | GF20: 182 | GG20: 171 | GH20: 187 | GI20: 172 | GJ20: 183 | GK20: 183 | GL20: 176 | GM20: 191 | GN20: 180 | GO20: 179 | GP20: 181 | GQ20: 193 | GR20: 186 | GS20: 180 | GT20: 177 | GU20: 217 | GV20: 180 | GW20: 194 | GX20: 180 | GY20: 180 | GZ20: 177 | HA20: 179 | HB20: 192 | HC20: 196 | HD20: 180 | HE20: 190 | HF20: 180 | HG20: 174 | HH20: 186 | HI20: 176 | HJ20: 183 | HK20: 183 | HL20: 200 | HM20: 198 | HN20: 197 | HO20: 199 | HP20: 176 | HQ20: 172 | HR20: 141 | HS20: 186 | HT20: 176 | HU20: 172 | HV20: 195 | HW20: 156 | HX20: 158 | HY20: 175 | HZ20: 207 | IA20: 232 | IB20: 205 | IC20: 233 | ID20: 249 | IE20: 199 | IF20: 132 | IG20: 163 | IH20: 106 | II20: 158 | IJ20: 128 | IK20: 496 | IL20: 248 | IM20: 231 | IN20: 259 | IO20: 461 | IP20: 274 | IQ20: 241 | IR20: 263 | IS20: 243 | IT20: 478 | IU20: 262 | IV20: 249 | IW20: 296 | IX20: 96 | IY20: 106 | IZ20: 118 | JA20: 136 | JB20: 263 | JC20: 246 | JD20: 247 | JE20: 224 | JF20: 237 | JG20: 215 | JH20: 209 | JI20: 161 | JJ20: 190 | JK20: 191 | JL20: 196 | JM20: 189 | JN20: 210 | JO20: 177 | JP20: 156 | JQ20: 161 | JR20: 177 | JS20: 185 | JT20: 224 | JU20: 224 | JV20: 196 | JW20: 199 | JX20: 215 | JY20: 204 | JZ20: 209 | KA20: 197 | KB20: 215 | KC20: 224 | KD20: 199 | KE20: 139 | KF20: 137 | KG20: 131 | KH20: 139 | KI20: 125 | KJ20: 140 | KK20: 279 | KL20: 296 | KM20: 259 | KN20: 328 | KO20: 299 | KP20: 311 | KQ20: 279 | KR20: 315 | KS20: 246 | KT20: 261 | KU20: 265 | KV20: 270 | KW20: 119 | KX20: 130 | KY20: 160 | KZ20: 115 | LA20: 148 | LB20: 154 | LC20: 116 | LD20: 133 | LE20: 127 | LF20: 288 | LG20: 285 | LH20: 295 | LI20: 297 | LJ20: 182 | LK20: 206 | LL20: 235 | LM20: 222 | LN20: 186 | LO20: 220 | LP20: 200 | LQ20: 238 | LR20: 269 | LS20: 247 | LT20: 239 | LU20: 275 | LV20: 251 | LW20: 266 | LX20: 151 | LY20: 157 | LZ20: 163 | MA20: 155 | MB20: 166 | MC20: 150 | MD20: 158 | ME20: 171 | MF20: 151 | MG20: 242 | MH20: 151 | MI20: 210 | MJ20: 176 | MK20: 144 | ML20: 154 | MM20: 155 | MN20: 298 | MO20: 296 | MP20: 237 | MQ20: 247 | MR20: 263 | MS20: 277 | MT20: 220 | MU20: 201 | MV20: 243 | MW20: 226 | MX20: 309 | MY20: 327 | MZ20: 312 | NA20: 158 | NB20: 162 | NC20: 179 | ND20: 229 | NE20: 225 | NF20: 216 | NG20: 240 | NH20: 204 | NI20: 255 | NJ20: 188 | NK20: 396 | NL20: 393 | NM20: 383 | NN20: 354 | NO20: 380 | NP20: 371 | NQ20: 347 | NR20: 258 | NS20: 344 | NT20: 295 | NU20: 260 | NV20: 320 | NW20: 346 | NX20: 308 | NY20: 305 | NZ20: 314 | OA20: 286 | OB20: 326 | OC20: 298 | OD20: 290 | OE20: 324 | OF20: 354 | OG20: 352 | OH20: 346 | OI20: 368 | OJ20: 302 | OK20: 322 | OL20: 365 | OM20: 336 | ON20: 329 | OO20: 392 | OP20: 346 | OQ20: 366 | OR20: 372 | OS20: 390 | OT20: 403 | OU20: 374 | OV20: 345 | OW20: 395 | OX20: 384 | OY20: 386 | OZ20: 380 | PA20: 375 | PB20: 366 | PC20: 352 | PD20: 394 | PE20: 411 | PF20: 417 | PG20: 432 | PH20: 413 | PI20: 422 | PJ20: 443 | PK20: 371 | PL20: 428 | PM20: 452 | PN20: 428 | PO20: 449 | PP20: 396 | PQ20: 447 | PR20: 466 | PS20: 484 | PT20: 390 | PU20: 483 | PV20: 340 | PW20: 332 | PX20: 345 | PY20: 311 | PZ20: 357 | QA20: 343 | QB20: 359 | QC20: 486 | QD20: 460 | QE20: 451 | QF20: 433 | QG20: 452 | QH20: 282 | QI20: 308 | QJ20: 307 | QK20: 298 | QL20: 308 | QM20: 298 | QN20: 267 | QO20: 300 | QP20: 288 | QQ20: 324 | QR20: 377 | QS20: 384 | QT20: 339 | QU20: 373 | QV20: 417 | QW20: 381 | QX20: 403 | QY20: 386 | QZ20: 359 | RA20: 390 | RB20: 384 | RC20: 396 | RD20: 313 | RE20: 310 | RF20: 340 | RG20: 334 | RH20: 318 | RI20: 312 | RJ20: 342 | RK20: 331 | RL20: 463 | RM20: 549 | RN20: 526 | RO20: 544 | RP20: 512 | RQ20: 476 | RR20: 440 | RS20: 453 | RT20: 539 | RU20: 541 | RV20: 517 | RW20: 457 | RX20: 497 | RY20: 445 | RZ20: 440 | SA20: 410 | SB20: 426 | SC20: 450 | SD20: 420 | SE20: 469 | SF20: 554 | SG20: 430 | SH20: 540 | SI20: 524 | SJ20: 526 | SK20: 542 | SL20: 510 | SM20: 447 | SN20: 530 | SO20: 520 | SP20: 536 | SQ20: 509 | SR20: 509 | SS20: 572 | ST20: 544 | SU20: 552 | SV20: 523 | SW20: 513 | SX20: 534 | SY20: 513 | SZ20: 598 | TA20: 582 | TB20: 559 | TC20: 599 | TD20: 636 | TE20: 502 | TF20: 498 | TG20: 497 | TH20: 482 | TI20: 459 | TJ20: 475 | TK20: 445 | TL20: 506 | TM20: 593 | TN20: 587 | TO20: 557 | TP20: 568 | TQ20: 572 | TR20: 322 | TS20: 292 | TT20: 305 | TU20: 282 | TV20: 288 | TW20: 264 | TX20: 249 | TY20: 313 | TZ20: 391 | UA20: 375 | UB20: 328 | UC20: 364 | UD20: 331 | UE20: 343 | UF20: 310 | UG20: 405 | UH20: 391 | UI20: 371 | UJ20: 408 | UK20: 370 | UL20: 404 | UM20: 351 | UN20: 405 | UO20: 429 | UP20: 395 | UQ20: 425 | UR20: 377 | US20: 358 | UT20: 404 | UU20: 360 | UV20: 399 | UW20: 370 | UX20: 366 | UY20: 388 | UZ20: 409 | VA20: 415 | VB20: 372 | VC20: 421 | VD20: 344 | VE20: 379 | VF20: 369 | VG20: 374 | VH20: 428
A21: অবস্থান শুরুর তারিখ | B21: অবস্থানের শেষ তারিখ | C21: দিন সংখ্যা | D21: এলকার নাম | E21: ক্যাটাগরি | F21: ভাতার হার | G21: টাকার পরিমাণ | H21: 06803 | P21: 1 | Q21: =IF(P21=0,"",COUNTIF($P$2:P21,">0")) -> 20 | R21: Barguna - Betagi | T21: 19 | U21: Barguna - Barguna Sadar | V21: Bhola - Burhanuddin | W21: 129 | X21: 138 | Y21: 135 | Z21: 107 | AA21: 175 | AB21: 151 | AC21: 113 | AD21: 88 | AE21: 79 | AF21: 97 | AG21: 107 | AH21: 71 | AI21: 78 | AJ21: 72 | AK21: 75 | AL21: 101 | AM21: 91 | AN21: 24 | AO21: 0 | AP21: 40 | AQ21: 15 | AR21: 22 | AS21: 50 | AT21: 22 | AU21: 84 | AV21: 123 | AW21: 78 | AX21: 97 | AY21: 114 | AZ21: 131 | BA21: 94 | BB21: 96 | BC21: 148 | BD21: 110 | BE21: 103 | BF21: 112 | BG21: 106 | BH21: 145 | BI21: 165 | BJ21: 117 | BK21: 106 | BL21: 127 | BM21: 367 | BN21: 304 | BO21: 335 | BP21: 374 | BQ21: 321 | BR21: 338 | BS21: 367 | BT21: 234 | BU21: 181 | BV21: 257 | BW21: 237 | BX21: 260 | BY21: 205 | BZ21: 224 | CA21: 269 | CB21: 253 | CC21: 114 | CD21: 97 | CE21: 155 | CF21: 111 | CG21: 115 | CH21: 225 | CI21: 251 | CJ21: 227 | CK21: 274 | CL21: 234 | CM21: 243 | CN21: 232 | CO21: 263 | CP21: 234 | CQ21: 233 | CR21: 231 | CS21: 236 | CT21: 200 | CU21: 233 | CV21: 237 | CW21: 226 | CX21: 233 | CY21: 228 | CZ21: 290 | DA21: 174 | DB21: 225 | DC21: 232 | DD21: 255 | DE21: 245 | DF21: 257 | DG21: 248 | DH21: 237 | DI21: 223 | DJ21: 283 | DK21: 196 | DL21: 132 | DM21: 188 | DN21: 179 | DO21: 159 | DP21: 161 | DQ21: 163 | DR21: 191 | DS21: 171 | DT21: 168 | DU21: 141 | DV21: 123 | DW21: 196 | DX21: 206 | DY21: 139 | DZ21: 163 | EA21: 151 | EB21: 324 | EC21: 375 | ED21: 309 | EE21: 340 | EF21: 298 | EG21: 365 | EH21: 447 | EI21: 396 | EJ21: 154 | EK21: 129 | EL21: 141 | EM21: 157 | EN21: 165 | EO21: 142 | EP21: 218 | EQ21: 246 | ER21: 248 | ES21: 241 | ET21: 207 | EU21: 230 | EV21: 199 | EW21: 49 | EX21: 75 | EY21: 86 | EZ21: 94 | FA21: 45 | FB21: 104 | FC21: 106 | FD21: 132 | FE21: 78 | FF21: 119 | FG21: 116 | FH21: 63 | FI21: 65 | FJ21: 297 | FK21: 226 | FL21: 280 | FM21: 279 | FN21: 286 | FO21: 210 | FP21: 205 | FQ21: 203 | FR21: 219 | FS21: 210 | FT21: 213 | FU21: 203 | FV21: 223 | FW21: 214 | FX21: 195 | FY21: 240 | FZ21: 207 | GA21: 240 | GB21: 215 | GC21: 208 | GD21: 201 | GE21: 211 | GF21: 206 | GG21: 195 | GH21: 211 | GI21: 196 | GJ21: 207 | GK21: 207 | GL21: 199 | GM21: 215 | GN21: 204 | GO21: 203 | GP21: 205 | GQ21: 217 | GR21: 210 | GS21: 204 | GT21: 201 | GU21: 241 | GV21: 204 | GW21: 218 | GX21: 204 | GY21: 204 | GZ21: 201 | HA21: 202 | HB21: 216 | HC21: 219 | HD21: 203 | HE21: 214 | HF21: 204 | HG21: 198 | HH21: 210 | HI21: 200 | HJ21: 207 | HK21: 207 | HL21: 224 | HM21: 222 | HN21: 221 | HO21: 223 | HP21: 200 | HQ21: 196 | HR21: 165 | HS21: 210 | HT21: 200 | HU21: 196 | HV21: 219 | HW21: 180 | HX21: 182 | HY21: 199 | HZ21: 231 | IA21: 256 | IB21: 229 | IC21: 257 | ID21: 273 | IE21: 223 | IF21: 156 | IG21: 187 | IH21: 130 | II21: 182 | IJ21: 152 | IK21: 519 | IL21: 272 | IM21: 255 | IN21: 283 | IO21: 485 | IP21: 298 | IQ21: 265 | IR21: 287 | IS21: 267 | IT21: 502 | IU21: 286 | IV21: 273 | IW21: 319 | IX21: 120 | IY21: 130 | IZ21: 142 | JA21: 159 | JB21: 287 | JC21: 270 | JD21: 270 | JE21: 248 | JF21: 261 | JG21: 239 | JH21: 233 | JI21: 185 | JJ21: 214 | JK21: 215 | JL21: 219 | JM21: 212 | JN21: 234 | JO21: 201 | JP21: 180 | JQ21: 185 | JR21: 201 | JS21: 209 | JT21: 248 | JU21: 247 | JV21: 220 | JW21: 223 | JX21: 239 | JY21: 228 | JZ21: 233 | KA21: 221 | KB21: 239 | KC21: 248 | KD21: 223 | KE21: 163 | KF21: 160 | KG21: 154 | KH21: 163 | KI21: 149 | KJ21: 164 | KK21: 303 | KL21: 320 | KM21: 283 | KN21: 352 | KO21: 323 | KP21: 335 | KQ21: 303 | KR21: 339 | KS21: 270 | KT21: 284 | KU21: 289 | KV21: 293 | KW21: 143 | KX21: 154 | KY21: 184 | KZ21: 138 | LA21: 172 | LB21: 178 | LC21: 140 | LD21: 157 | LE21: 151 | LF21: 312 | LG21: 309 | LH21: 319 | LI21: 321 | LJ21: 206 | LK21: 230 | LL21: 259 | LM21: 245 | LN21: 210 | LO21: 244 | LP21: 224 | LQ21: 262 | LR21: 293 | LS21: 271 | LT21: 263 | LU21: 299 | LV21: 275 | LW21: 289 | LX21: 175 | LY21: 180 | LZ21: 187 | MA21: 179 | MB21: 190 | MC21: 173 | MD21: 182 | ME21: 195 | MF21: 175 | MG21: 266 | MH21: 175 | MI21: 234 | MJ21: 200 | MK21: 168 | ML21: 178 | MM21: 179 | MN21: 322 | MO21: 320 | MP21: 261 | MQ21: 271 | MR21: 287 | MS21: 301 | MT21: 244 | MU21: 225 | MV21: 267 | MW21: 250 | MX21: 333 | MY21: 351 | MZ21: 336 | NA21: 182 | NB21: 186 | NC21: 203 | ND21: 253 | NE21: 249 | NF21: 240 | NG21: 264 | NH21: 228 | NI21: 279 | NJ21: 212 | NK21: 420 | NL21: 417 | NM21: 407 | NN21: 378 | NO21: 404 | NP21: 395 | NQ21: 371 | NR21: 282 | NS21: 368 | NT21: 319 | NU21: 284 | NV21: 344 | NW21: 370 | NX21: 332 | NY21: 329 | NZ21: 338 | OA21: 310 | OB21: 350 | OC21: 322 | OD21: 314 | OE21: 348 | OF21: 378 | OG21: 376 | OH21: 370 | OI21: 392 | OJ21: 325 | OK21: 345 | OL21: 389 | OM21: 360 | ON21: 353 | OO21: 415 | OP21: 370 | OQ21: 390 | OR21: 396 | OS21: 414 | OT21: 427 | OU21: 398 | OV21: 369 | OW21: 419 | OX21: 408 | OY21: 409 | OZ21: 404 | PA21: 399 | PB21: 390 | PC21: 376 | PD21: 418 | PE21: 435 | PF21: 441 | PG21: 456 | PH21: 437 | PI21: 446 | PJ21: 466 | PK21: 395 | PL21: 452 | PM21: 476 | PN21: 452 | PO21: 473 | PP21: 420 | PQ21: 471 | PR21: 490 | PS21: 508 | PT21: 414 | PU21: 507 | PV21: 364 | PW21: 356 | PX21: 369 | PY21: 335 | PZ21: 381 | QA21: 367 | QB21: 383 | QC21: 510 | QD21: 484 | QE21: 475 | QF21: 457 | QG21: 476 | QH21: 306 | QI21: 332 | QJ21: 331 | QK21: 322 | QL21: 332 | QM21: 321 | QN21: 291 | QO21: 324 | QP21: 312 | QQ21: 348 | QR21: 401 | QS21: 408 | QT21: 363 | QU21: 397 | QV21: 440 | QW21: 405 | QX21: 427 | QY21: 410 | QZ21: 382 | RA21: 414 | RB21: 408 | RC21: 419 | RD21: 337 | RE21: 334 | RF21: 364 | RG21: 358 | RH21: 342 | RI21: 336 | RJ21: 365 | RK21: 355 | RL21: 487 | RM21: 572 | RN21: 550 | RO21: 568 | RP21: 536 | RQ21: 500 | RR21: 464 | RS21: 477 | RT21: 563 | RU21: 565 | RV21: 541 | RW21: 481 | RX21: 520 | RY21: 469 | RZ21: 464 | SA21: 434 | SB21: 450 | SC21: 473 | SD21: 444 | SE21: 493 | SF21: 578 | SG21: 454 | SH21: 564 | SI21: 548 | SJ21: 550 | SK21: 566 | SL21: 534 | SM21: 471 | SN21: 554 | SO21: 543 | SP21: 560 | SQ21: 532 | SR21: 533 | SS21: 596 | ST21: 568 | SU21: 576 | SV21: 547 | SW21: 537 | SX21: 557 | SY21: 537 | SZ21: 622 | TA21: 605 | TB21: 583 | TC21: 623 | TD21: 660 | TE21: 526 | TF21: 521 | TG21: 521 | TH21: 506 | TI21: 483 | TJ21: 499 | TK21: 469 | TL21: 530 | TM21: 617 | TN21: 611 | TO21: 581 | TP21: 592 | TQ21: 596 | TR21: 345 | TS21: 316 | TT21: 329 | TU21: 306 | TV21: 312 | TW21: 288 | TX21: 273 | TY21: 337 | TZ21: 415 | UA21: 399 | UB21: 351 | UC21: 387 | UD21: 355 | UE21: 367 | UF21: 334 | UG21: 429 | UH21: 415 | UI21: 395 | UJ21: 432 | UK21: 394 | UL21: 428 | UM21: 375 | UN21: 429 | UO21: 453 | UP21: 419 | UQ21: 449 | UR21: 401 | US21: 382 | UT21: 428 | UU21: 383 | UV21: 423 | UW21: 394 | UX21: 390 | UY21: 412 | UZ21: 432 | VA21: 439 | VB21: 396 | VC21: 445 | VD21: 368 | VE21: 402 | VF21: 393 | VG21: 397 | VH21: 452
D22: =IF(OR(A22=0,B22=0),0,IF(OR($B$4=0,$C$13=0),0,VLOOKUP($C$13,data!$AA$2:$AB$579,2,0))) -> 0 | E22: =IF(D22=0,0,IF($J$2=0,0,VLOOKUP($J$2,data!$B$1:$J$3295,6,0))) -> 0 | F22: =IF(OR(C22=0,D22=0),0,IF(D22="অন্য এলাকা",VLOOKUP($J$2,data!$B$1:$I$3316,7,0),VLOOKUP($J$2,data!$B$1:$I$3316,8,0))) -> 0 | G22: =FLOOR(F22*C22,1) -> 0 | H22: 06817 | P22: 1 | Q22: =IF(P22=0,"",COUNTIF($P$2:P22,">0")) -> 21 | R22: Barguna - Patharghata | T22: 20 | U22: Barguna - Betagi | V22: Bhola - Char Fasson | W22: 96 | X22: 178 | Y22: 110 | Z22: 109 | AA22: 138 | AB22: 118 | AC22: 154 | AD22: 128 | AE22: 112 | AF22: 137 | AG22: 147 | AH22: 111 | AI22: 118 | AJ22: 112 | AK22: 115 | AL22: 141 | AM22: 131 | AN22: 64 | AO22: 40 | AP22: 0 | AQ22: 55 | AR22: 19 | AS22: 62 | AT22: 40 | AU22: 124 | AV22: 163 | AW22: 118 | AX22: 137 | AY22: 102 | AZ22: 85 | BA22: 107 | BB22: 61 | BC22: 115 | BD22: 103 | BE22: 94 | BF22: 152 | BG22: 146 | BH22: 142 | BI22: 205 | BJ22: 157 | BK22: 146 | BL22: 167 | BM22: 407 | BN22: 344 | BO22: 375 | BP22: 414 | BQ22: 362 | BR22: 378 | BS22: 407 | BT22: 274 | BU22: 221 | BV22: 297 | BW22: 277 | BX22: 301 | BY22: 245 | BZ22: 264 | CA22: 309 | CB22: 293 | CC22: 155 | CD22: 137 | CE22: 196 | CF22: 152 | CG22: 155 | CH22: 265 | CI22: 291 | CJ22: 267 | CK22: 314 | CL22: 274 | CM22: 283 | CN22: 272 | CO22: 304 | CP22: 274 | CQ22: 273 | CR22: 272 | CS22: 276 | CT22: 240 | CU22: 274 | CV22: 277 | CW22: 266 | CX22: 273 | CY22: 269 | CZ22: 331 | DA22: 215 | DB22: 265 | DC22: 272 | DD22: 295 | DE22: 285 | DF22: 297 | DG22: 288 | DH22: 277 | DI22: 264 | DJ22: 323 | DK22: 236 | DL22: 173 | DM22: 228 | DN22: 219 | DO22: 199 | DP22: 201 | DQ22: 203 | DR22: 231 | DS22: 212 | DT22: 209 | DU22: 182 | DV22: 163 | DW22: 237 | DX22: 246 | DY22: 179 | DZ22: 204 | EA22: 192 | EB22: 364 | EC22: 415 | ED22: 349 | EE22: 380 | EF22: 338 | EG22: 406 | EH22: 487 | EI22: 436 | EJ22: 194 | EK22: 169 | EL22: 182 | EM22: 198 | EN22: 205 | EO22: 133 | EP22: 258 | EQ22: 286 | ER22: 289 | ES22: 281 | ET22: 248 | EU22: 270 | EV22: 240 | EW22: 80 | EX22: 115 | EY22: 126 | EZ22: 134 | FA22: 76 | FB22: 144 | FC22: 146 | FD22: 117 | FE22: 109 | FF22: 159 | FG22: 156 | FH22: 94 | FI22: 96 | FJ22: 338 | FK22: 266 | FL22: 320 | FM22: 319 | FN22: 327 | FO22: 250 | FP22: 245 | FQ22: 243 | FR22: 259 | FS22: 250 | FT22: 254 | FU22: 243 | FV22: 264 | FW22: 254 | FX22: 235 | FY22: 280 | FZ22: 247 | GA22: 281 | GB22: 255 | GC22: 248 | GD22: 241 | GE22: 251 | GF22: 246 | GG22: 235 | GH22: 251 | GI22: 236 | GJ22: 247 | GK22: 247 | GL22: 240 | GM22: 255 | GN22: 244 | GO22: 243 | GP22: 245 | GQ22: 258 | GR22: 250 | GS22: 244 | GT22: 241 | GU22: 281 | GV22: 244 | GW22: 259 | GX22: 244 | GY22: 244 | GZ22: 241 | HA22: 243 | HB22: 256 | HC22: 260 | HD22: 244 | HE22: 254 | HF22: 244 | HG22: 239 | HH22: 250 | HI22: 240 | HJ22: 247 | HK22: 248 | HL22: 264 | HM22: 262 | HN22: 261 | HO22: 263 | HP22: 240 | HQ22: 236 | HR22: 205 | HS22: 250 | HT22: 240 | HU22: 236 | HV22: 259 | HW22: 220 | HX22: 222 | HY22: 239 | HZ22: 271 | IA22: 296 | IB22: 269 | IC22: 297 | ID22: 313 | IE22: 263 | IF22: 196 | IG22: 228 | IH22: 170 | II22: 222 | IJ22: 192 | IK22: 560 | IL22: 312 | IM22: 296 | IN22: 323 | IO22: 525 | IP22: 339 | IQ22: 305 | IR22: 327 | IS22: 307 | IT22: 542 | IU22: 326 | IV22: 313 | IW22: 360 | IX22: 161 | IY22: 170 | IZ22: 182 | JA22: 200 | JB22: 327 | JC22: 310 | JD22: 311 | JE22: 288 | JF22: 301 | JG22: 279 | JH22: 273 | JI22: 225 | JJ22: 254 | JK22: 255 | JL22: 260 | JM22: 253 | JN22: 274 | JO22: 241 | JP22: 220 | JQ22: 225 | JR22: 241 | JS22: 249 | JT22: 288 | JU22: 288 | JV22: 261 | JW22: 263 | JX22: 279 | JY22: 268 | JZ22: 273 | KA22: 261 | KB22: 279 | KC22: 288 | KD22: 263 | KE22: 203 | KF22: 201 | KG22: 195 | KH22: 203 | KI22: 189 | KJ22: 204 | KK22: 343 | KL22: 361 | KM22: 323 | KN22: 392 | KO22: 363 | KP22: 375 | KQ22: 343 | KR22: 379 | KS22: 310 | KT22: 325 | KU22: 329 | KV22: 334 | KW22: 183 | KX22: 194 | KY22: 224 | KZ22: 179 | LA22: 212 | LB22: 219 | LC22: 180 | LD22: 198 | LE22: 191 | LF22: 352 | LG22: 349 | LH22: 359 | LI22: 361 | LJ22: 246 | LK22: 270 | LL22: 300 | LM22: 286 | LN22: 250 | LO22: 284 | LP22: 264 | LQ22: 303 | LR22: 333 | LS22: 312 | LT22: 303 | LU22: 340 | LV22: 316 | LW22: 330 | LX22: 215 | LY22: 221 | LZ22: 228 | MA22: 219 | MB22: 230 | MC22: 214 | MD22: 223 | ME22: 235 | MF22: 215 | MG22: 306 | MH22: 215 | MI22: 274 | MJ22: 240 | MK22: 208 | ML22: 218 | MM22: 219 | MN22: 362 | MO22: 360 | MP22: 301 | MQ22: 311 | MR22: 327 | MS22: 341 | MT22: 284 | MU22: 265 | MV22: 307 | MW22: 290 | MX22: 373 | MY22: 391 | MZ22: 377 | NA22: 222 | NB22: 227 | NC22: 244 | ND22: 293 | NE22: 289 | NF22: 280 | NG22: 304 | NH22: 268 | NI22: 319 | NJ22: 252 | NK22: 460 | NL22: 457 | NM22: 447 | NN22: 418 | NO22: 444 | NP22: 435 | NQ22: 412 | NR22: 322 | NS22: 408 | NT22: 359 | NU22: 324 | NV22: 384 | NW22: 410 | NX22: 372 | NY22: 369 | NZ22: 378 | OA22: 350 | OB22: 390 | OC22: 362 | OD22: 354 | OE22: 389 | OF22: 418 | OG22: 416 | OH22: 410 | OI22: 432 | OJ22: 366 | OK22: 386 | OL22: 429 | OM22: 400 | ON22: 393 | OO22: 456 | OP22: 410 | OQ22: 430 | OR22: 436 | OS22: 454 | OT22: 467 | OU22: 438 | OV22: 409 | OW22: 459 | OX22: 448 | OY22: 450 | OZ22: 444 | PA22: 439 | PB22: 430 | PC22: 416 | PD22: 459 | PE22: 475 | PF22: 481 | PG22: 496 | PH22: 477 | PI22: 486 | PJ22: 507 | PK22: 436 | PL22: 492 | PM22: 516 | PN22: 492 | PO22: 513 | PP22: 460 | PQ22: 511 | PR22: 530 | PS22: 548 | PT22: 454 | PU22: 547 | PV22: 405 | PW22: 396 | PX22: 410 | PY22: 375 | PZ22: 421 | QA22: 408 | QB22: 423 | QC22: 550 | QD22: 524 | QE22: 515 | QF22: 497 | QG22: 516 | QH22: 346 | QI22: 372 | QJ22: 371 | QK22: 362 | QL22: 372 | QM22: 362 | QN22: 331 | QO22: 365 | QP22: 352 | QQ22: 388 | QR22: 441 | QS22: 448 | QT22: 403 | QU22: 437 | QV22: 481 | QW22: 445 | QX22: 467 | QY22: 450 | QZ22: 423 | RA22: 454 | RB22: 448 | RC22: 460 | RD22: 377 | RE22: 374 | RF22: 404 | RG22: 398 | RH22: 382 | RI22: 376 | RJ22: 406 | RK22: 396 | RL22: 527 | RM22: 613 | RN22: 590 | RO22: 608 | RP22: 576 | RQ22: 540 | RR22: 504 | RS22: 517 | RT22: 603 | RU22: 605 | RV22: 581 | RW22: 521 | RX22: 561 | RY22: 509 | RZ22: 504 | SA22: 474 | SB22: 491 | SC22: 514 | SD22: 484 | SE22: 533 | SF22: 619 | SG22: 494 | SH22: 604 | SI22: 588 | SJ22: 590 | SK22: 606 | SL22: 574 | SM22: 511 | SN22: 594 | SO22: 584 | SP22: 600 | SQ22: 573 | SR22: 574 | SS22: 636 | ST22: 608 | SU22: 616 | SV22: 587 | SW22: 577 | SX22: 598 | SY22: 577 | SZ22: 662 | TA22: 646 | TB22: 623 | TC22: 663 | TD22: 700 | TE22: 566 | TF22: 562 | TG22: 561 | TH22: 547 | TI22: 523 | TJ22: 539 | TK22: 509 | TL22: 571 | TM22: 657 | TN22: 651 | TO22: 621 | TP22: 632 | TQ22: 636 | TR22: 386 | TS22: 356 | TT22: 369 | TU22: 346 | TV22: 352 | TW22: 328 | TX22: 313 | TY22: 377 | TZ22: 455 | UA22: 439 | UB22: 392 | UC22: 428 | UD22: 395 | UE22: 408 | UF22: 375 | UG22: 469 | UH22: 455 | UI22: 435 | UJ22: 472 | UK22: 434 | UL22: 468 | UM22: 416 | UN22: 470 | UO22: 493 | UP22: 459 | UQ22: 489 | UR22: 442 | US22: 422 | UT22: 468 | UU22: 424 | UV22: 463 | UW22: 434 | UX22: 430 | UY22: 452 | UZ22: 473 | VA22: 479 | VB22: 436 | VC22: 485 | VD22: 408 | VE22: 443 | VF22: 433 | VG22: 438 | VH22: 492
D23: =IF(OR(A23=0,B23=0),0,IF(OR($B$4=0,$C$13=0),0,VLOOKUP($C$13,data!$AA$2:$AB$579,2,0))) -> 0 | E23: =IF(D23=0,0,IF($J$2=0,0,VLOOKUP($J$2,data!$B$1:$J$3295,6,0))) -> 0 | F23: =IF(OR(C23=0,D23=0),0,IF(D23="অন্য এলাকা",VLOOKUP($J$2,data!$B$1:$I$3316,7,0),VLOOKUP($J$2,data!$B$1:$I$3316,8,0))) -> 0 | G23: =FLOOR(F23*C23,1) -> 0 | H23: 03925 | P23: 1 | Q23: =IF(P23=0,"",COUNTIF($P$2:P23,">0")) -> 22 | R23: Barguna - Taltali | T23: 21 | U23: Barguna - Patharghata | V23: Bhola - Daulat khan | W23: 123 | X23: 132 | Y23: 129 | Z23: 101 | AA23: 169 | AB23: 145 | AC23: 107 | AD23: 81 | AE23: 73 | AF23: 91 | AG23: 101 | AH23: 65 | AI23: 72 | AJ23: 66 | AK23: 69 | AL23: 95 | AM23: 85 | AN23: 18 | AO23: 15 | AP23: 55 | AQ23: 0 | AR23: 36 | AS23: 64 | AT23: 36 | AU23: 78 | AV23: 117 | AW23: 72 | AX23: 91 | AY23: 108 | AZ23: 124 | BA23: 88 | BB23: 124 | BC23: 142 | BD23: 103 | BE23: 97 | BF23: 105 | BG23: 100 | BH23: 139 | BI23: 158 | BJ23: 111 | BK23: 100 | BL23: 121 | BM23: 361 | BN23: 298 | BO23: 329 | BP23: 368 | BQ23: 315 | BR23: 332 | BS23: 360 | BT23: 228 | BU23: 175 | BV23: 251 | BW23: 231 | BX23: 254 | BY23: 199 | BZ23: 218 | CA23: 263 | CB23: 247 | CC23: 108 | CD23: 91 | CE23: 149 | CF23: 105 | CG23: 109 | CH23: 219 | CI23: 245 | CJ23: 221 | CK23: 267 | CL23: 228 | CM23: 237 | CN23: 226 | CO23: 257 | CP23: 228 | CQ23: 227 | CR23: 225 | CS23: 230 | CT23: 193 | CU23: 227 | CV23: 231 | CW23: 220 | CX23: 227 | CY23: 222 | CZ23: 284 | DA23: 168 | DB23: 219 | DC23: 226 | DD23: 248 | DE23: 239 | DF23: 251 | DG23: 242 | DH23: 231 | DI23: 217 | DJ23: 276 | DK23: 190 | DL23: 126 | DM23: 182 | DN23: 173 | DO23: 153 | DP23: 155 | DQ23: 157 | DR23: 185 | DS23: 165 | DT23: 162 | DU23: 135 | DV23: 116 | DW23: 190 | DX23: 200 | DY23: 132 | DZ23: 157 | EA23: 145 | EB23: 318 | EC23: 369 | ED23: 303 | EE23: 334 | EF23: 292 | EG23: 359 | EH23: 441 | EI23: 390 | EJ23: 148 | EK23: 123 | EL23: 135 | EM23: 151 | EN23: 158 | EO23: 90 | EP23: 212 | EQ23: 240 | ER23: 242 | ES23: 235 | ET23: 201 | EU23: 224 | EV23: 193 | EW23: 37 | EX23: 69 | EY23: 80 | EZ23: 88 | FA23: 34 | FB23: 98 | FC23: 100 | FD23: 75 | FE23: 66 | FF23: 112 | FG23: 110 | FH23: 51 | FI23: 54 | FJ23: 291 | FK23: 220 | FL23: 274 | FM23: 273 | FN23: 280 | FO23: 204 | FP23: 199 | FQ23: 197 | FR23: 213 | FS23: 204 | FT23: 207 | FU23: 197 | FV23: 217 | FW23: 207 | FX23: 189 | FY23: 234 | FZ23: 200 | GA23: 234 | GB23: 208 | GC23: 202 | GD23: 195 | GE23: 205 | GF23: 200 | GG23: 189 | GH23: 205 | GI23: 190 | GJ23: 201 | GK23: 200 | GL23: 193 | GM23: 209 | GN23: 198 | GO23: 196 | GP23: 199 | GQ23: 211 | GR23: 204 | GS23: 198 | GT23: 195 | GU23: 235 | GV23: 198 | GW23: 212 | GX23: 198 | GY23: 198 | GZ23: 195 | HA23: 196 | HB23: 210 | HC23: 213 | HD23: 197 | HE23: 208 | HF23: 198 | HG23: 192 | HH23: 204 | HI23: 194 | HJ23: 201 | HK23: 201 | HL23: 218 | HM23: 216 | HN23: 215 | HO23: 217 | HP23: 194 | HQ23: 189 | HR23: 159 | HS23: 204 | HT23: 194 | HU23: 190 | HV23: 212 | HW23: 174 | HX23: 176 | HY23: 193 | HZ23: 225 | IA23: 250 | IB23: 223 | IC23: 251 | ID23: 267 | IE23: 217 | IF23: 150 | IG23: 181 | IH23: 124 | II23: 176 | IJ23: 146 | IK23: 513 | IL23: 265 | IM23: 249 | IN23: 277 | IO23: 479 | IP23: 292 | IQ23: 259 | IR23: 281 | IS23: 260 | IT23: 496 | IU23: 280 | IV23: 267 | IW23: 313 | IX23: 114 | IY23: 124 | IZ23: 136 | JA23: 153 | JB23: 281 | JC23: 264 | JD23: 264 | JE23: 242 | JF23: 255 | JG23: 233 | JH23: 227 | JI23: 179 | JJ23: 208 | JK23: 208 | JL23: 213 | JM23: 206 | JN23: 227 | JO23: 195 | JP23: 174 | JQ23: 179 | JR23: 195 | JS23: 203 | JT23: 242 | JU23: 241 | JV23: 214 | JW23: 217 | JX23: 233 | JY23: 222 | JZ23: 227 | KA23: 214 | KB23: 233 | KC23: 242 | KD23: 217 | KE23: 157 | KF23: 154 | KG23: 148 | KH23: 156 | KI23: 143 | KJ23: 158 | KK23: 297 | KL23: 314 | KM23: 277 | KN23: 346 | KO23: 317 | KP23: 329 | KQ23: 296 | KR23: 333 | KS23: 264 | KT23: 278 | KU23: 282 | KV23: 287 | KW23: 137 | KX23: 148 | KY23: 178 | KZ23: 132 | LA23: 166 | LB23: 172 | LC23: 134 | LD23: 151 | LE23: 145 | LF23: 306 | LG23: 303 | LH23: 313 | LI23: 315 | LJ23: 200 | LK23: 224 | LL23: 253 | LM23: 239 | LN23: 204 | LO23: 238 | LP23: 218 | LQ23: 256 | LR23: 286 | LS23: 265 | LT23: 257 | LU23: 293 | LV23: 269 | LW23: 283 | LX23: 168 | LY23: 174 | LZ23: 181 | MA23: 173 | MB23: 184 | MC23: 167 | MD23: 176 | ME23: 189 | MF23: 168 | MG23: 260 | MH23: 168 | MI23: 228 | MJ23: 194 | MK23: 162 | ML23: 172 | MM23: 173 | MN23: 316 | MO23: 314 | MP23: 255 | MQ23: 265 | MR23: 281 | MS23: 295 | MT23: 238 | MU23: 219 | MV23: 261 | MW23: 244 | MX23: 327 | MY23: 345 | MZ23: 330 | NA23: 176 | NB23: 180 | NC23: 197 | ND23: 247 | NE23: 243 | NF23: 234 | NG23: 257 | NH23: 222 | NI23: 273 | NJ23: 206 | NK23: 414 | NL23: 411 | NM23: 401 | NN23: 372 | NO23: 398 | NP23: 389 | NQ23: 365 | NR23: 276 | NS23: 362 | NT23: 313 | NU23: 278 | NV23: 338 | NW23: 364 | NX23: 326 | NY23: 323 | NZ23: 332 | OA23: 304 | OB23: 344 | OC23: 316 | OD23: 308 | OE23: 342 | OF23: 372 | OG23: 370 | OH23: 364 | OI23: 386 | OJ23: 319 | OK23: 339 | OL23: 383 | OM23: 354 | ON23: 347 | OO23: 409 | OP23: 364 | OQ23: 384 | OR23: 390 | OS23: 408 | OT23: 421 | OU23: 392 | OV23: 363 | OW23: 413 | OX23: 402 | OY23: 403 | OZ23: 398 | PA23: 393 | PB23: 384 | PC23: 370 | PD23: 412 | PE23: 429 | PF23: 435 | PG23: 450 | PH23: 431 | PI23: 440 | PJ23: 460 | PK23: 389 | PL23: 446 | PM23: 470 | PN23: 446 | PO23: 466 | PP23: 414 | PQ23: 465 | PR23: 484 | PS23: 502 | PT23: 408 | PU23: 500 | PV23: 358 | PW23: 350 | PX23: 363 | PY23: 329 | PZ23: 375 | QA23: 361 | QB23: 377 | QC23: 504 | QD23: 478 | QE23: 469 | QF23: 450 | QG23: 470 | QH23: 300 | QI23: 326 | QJ23: 324 | QK23: 316 | QL23: 326 | QM23: 315 | QN23: 285 | QO23: 318 | QP23: 305 | QQ23: 341 | QR23: 394 | QS23: 402 | QT23: 357 | QU23: 391 | QV23: 434 | QW23: 398 | QX23: 421 | QY23: 404 | QZ23: 376 | RA23: 408 | RB23: 402 | RC23: 413 | RD23: 331 | RE23: 328 | RF23: 358 | RG23: 351 | RH23: 336 | RI23: 330 | RJ23: 359 | RK23: 349 | RL23: 481 | RM23: 566 | RN23: 544 | RO23: 562 | RP23: 530 | RQ23: 494 | RR23: 457 | RS23: 471 | RT23: 557 | RU23: 559 | RV23: 535 | RW23: 475 | RX23: 514 | RY23: 463 | RZ23: 458 | SA23: 427 | SB23: 444 | SC23: 467 | SD23: 438 | SE23: 487 | SF23: 572 | SG23: 448 | SH23: 558 | SI23: 542 | SJ23: 544 | SK23: 560 | SL23: 528 | SM23: 465 | SN23: 548 | SO23: 537 | SP23: 554 | SQ23: 526 | SR23: 527 | SS23: 590 | ST23: 562 | SU23: 570 | SV23: 541 | SW23: 530 | SX23: 551 | SY23: 531 | SZ23: 616 | TA23: 599 | TB23: 577 | TC23: 617 | TD23: 654 | TE23: 520 | TF23: 515 | TG23: 515 | TH23: 500 | TI23: 477 | TJ23: 493 | TK23: 463 | TL23: 524 | TM23: 611 | TN23: 605 | TO23: 575 | TP23: 586 | TQ23: 590 | TR23: 339 | TS23: 310 | TT23: 323 | TU23: 300 | TV23: 306 | TW23: 281 | TX23: 267 | TY23: 331 | TZ23: 409 | UA23: 393 | UB23: 345 | UC23: 381 | UD23: 349 | UE23: 361 | UF23: 328 | UG23: 423 | UH23: 408 | UI23: 389 | UJ23: 426 | UK23: 387 | UL23: 422 | UM23: 369 | UN23: 423 | UO23: 447 | UP23: 413 | UQ23: 443 | UR23: 395 | US23: 376 | UT23: 422 | UU23: 377 | UV23: 417 | UW23: 388 | UX23: 384 | UY23: 406 | UZ23: 426 | VA23: 433 | VB23: 390 | VC23: 439 | VD23: 362 | VE23: 387 | VF23: 387 | VG23: 391 | VH23: 446
D24: =IF(OR(A24=0,B24=0),0,IF(OR($B$4=0,$C$13=0),0,VLOOKUP($C$13,data!$AA$2:$AB$579,2,0))) -> 0 | F24: =IF(OR(C24=0,D24=0),0,IF(D24="অন্য এলাকা",VLOOKUP($J$2,data!$B$1:$I$3316,7,0),VLOOKUP($J$2,data!$B$1:$I$3316,8,0))) -> 0 | G24: 0 | H24: 04459 | P24: 1 | Q24: =IF(P24=0,"",COUNTIF($P$2:P24,">0")) -> 23 | R24: Barishal - Agailjhara | T24: 22 | U24: Barguna - Taltali | V24: Bhola - Lalmohan | W24: 110 | X24: 160 | Y24: 157 | Z24: 129 | AA24: 197 | AB24: 133 | AC24: 135 | AD24: 109 | AE24: 101 | AF24: 119 | AG24: 129 | AH24: 92 | AI24: 100 | AJ24: 93 | AK24: 96 | AL24: 123 | AM24: 113 | AN24: 46 | AO24: 22 | AP24: 19 | AQ24: 36 | AR24: 0 | AS24: 44 | AT24: 22 | AU24: 106 | AV24: 145 | AW24: 100 | AX24: 119 | AY24: 116 | AZ24: 99 | BA24: 116 | BB24: 75 | BC24: 129 | BD24: 131 | BE24: 124 | BF24: 133 | BG24: 128 | BH24: 167 | BI24: 186 | BJ24: 138 | BK24: 128 | BL24: 149 | BM24: 389 | BN24: 326 | BO24: 357 | BP24: 396 | BQ24: 343 | BR24: 359 | BS24: 388 | BT24: 256 | BU24: 203 | BV24: 279 | BW24: 259 | BX24: 282 | BY24: 227 | BZ24: 246 | CA24: 291 | CB24: 275 | CC24: 136 | CD24: 119 | CE24: 177 | CF24: 133 | CG24: 137 | CH24: 246 | CI24: 273 | CJ24: 249 | CK24: 295 | CL24: 256 | CM24: 265 | CN24: 254 | CO24: 285 | CP24: 256 | CQ24: 255 | CR24: 253 | CS24: 258 | CT24: 221 | CU24: 255 | CV24: 259 | CW24: 248 | CX24: 255 | CY24: 250 | CZ24: 312 | DA24: 196 | DB24: 247 | DC24: 254 | DD24: 276 | DE24: 267 | DF24: 279 | DG24: 270 | DH24: 258 | DI24: 245 | DJ24: 304 | DK24: 218 | DL24: 154 | DM24: 209 | DN24: 201 | DO24: 181 | DP24: 183 | DQ24: 185 | DR24: 213 | DS24: 193 | DT24: 190 | DU24: 163 | DV24: 144 | DW24: 218 | DX24: 228 | DY24: 160 | DZ24: 185 | EA24: 173 | EB24: 346 | EC24: 397 | ED24: 331 | EE24: 361 | EF24: 319 | EG24: 387 | EH24: 468 | EI24: 417 | EJ24: 176 | EK24: 150 | EL24: 163 | EM24: 179 | EN24: 186 | EO24: 114 | EP24: 240 | EQ24: 267 | ER24: 270 | ES24: 263 | ET24: 229 | EU24: 252 | EV24: 221 | EW24: 61 | EX24: 96 | EY24: 108 | EZ24: 116 | FA24: 58 | FB24: 126 | FC24: 128 | FD24: 99 | FE24: 90 | FF24: 140 | FG24: 138 | FH24: 75 | FI24: 78 | FJ24: 319 | FK24: 248 | FL24: 302 | FM24: 300 | FN24: 308 | FO24: 232 | FP24: 227 | FQ24: 225 | FR24: 241 | FS24: 232 | FT24: 235 | FU24: 225 | FV24: 245 | FW24: 235 | FX24: 217 | FY24: 262 | FZ24: 228 | GA24: 262 | GB24: 236 | GC24: 229 | GD24: 223 | GE24: 233 | GF24: 228 | GG24: 217 | GH24: 232 | GI24: 217 | GJ24: 229 | GK24: 228 | GL24: 221 | GM24: 237 | GN24: 226 | GO24: 224 | GP24: 226 | GQ24: 239 | GR24: 231 | GS24: 225 | GT24: 223 | GU24: 263 | GV24: 226 | GW24: 240 | GX24: 226 | GY24: 226 | GZ24: 223 | HA24: 224 | HB24: 238 | HC24: 241 | HD24: 225 | HE24: 236 | HF24: 226 | HG24: 220 | HH24: 232 | HI24: 222 | HJ24: 229 | HK24: 229 | HL24: 246 | HM24: 244 | HN24: 243 | HO24: 245 | HP24: 222 | HQ24: 217 | HR24: 186 | HS24: 232 | HT24: 221 | HU24: 218 | HV24: 240 | HW24: 202 | HX24: 204 | HY24: 221 | HZ24: 253 | IA24: 278 | IB24: 251 | IC24: 279 | ID24: 295 | IE24: 245 | IF24: 177 | IG24: 209 | IH24: 152 | II24: 204 | IJ24: 174 | IK24: 541 | IL24: 293 | IM24: 277 | IN24: 305 | IO24: 507 | IP24: 320 | IQ24: 286 | IR24: 309 | IS24: 288 | IT24: 524 | IU24: 308 | IV24: 294 | IW24: 341 | IX24: 142 | IY24: 152 | IZ24: 164 | JA24: 181 | JB24: 309 | JC24: 292 | JD24: 292 | JE24: 269 | JF24: 282 | JG24: 260 | JH24: 254 | JI24: 207 | JJ24: 236 | JK24: 236 | JL24: 241 | JM24: 234 | JN24: 255 | JO24: 223 | JP24: 202 | JQ24: 206 | JR24: 223 | JS24: 231 | JT24: 270 | JU24: 269 | JV24: 242 | JW24: 245 | JX24: 261 | JY24: 250 | JZ24: 255 | KA24: 242 | KB24: 260 | KC24: 269 | KD24: 245 | KE24: 184 | KF24: 182 | KG24: 176 | KH24: 184 | KI24: 171 | KJ24: 186 | KK24: 325 | KL24: 342 | KM24: 305 | KN24: 373 | KO24: 345 | KP24: 357 | KQ24: 324 | KR24: 361 | KS24: 292 | KT24: 306 | KU24: 310 | KV24: 315 | KW24: 165 | KX24: 176 | KY24: 206 | KZ24: 160 | LA24: 194 | LB24: 200 | LC24: 161 | LD24: 179 | LE24: 172 | LF24: 333 | LG24: 331 | LH24: 340 | LI24: 343 | LJ24: 228 | LK24: 252 | LL24: 281 | LM24: 267 | LN24: 232 | LO24: 266 | LP24: 246 | LQ24: 284 | LR24: 314 | LS24: 293 | LT24: 285 | LU24: 321 | LV24: 297 | LW24: 311 | LX24: 196 | LY24: 202 | LZ24: 209 | MA24: 200 | MB24: 212 | MC24: 195 | MD24: 204 | ME24: 217 | MF24: 196 | MG24: 288 | MH24: 196 | MI24: 256 | MJ24: 222 | MK24: 190 | ML24: 200 | MM24: 201 | MN24: 344 | MO24: 342 | MP24: 283 | MQ24: 293 | MR24: 308 | MS24: 323 | MT24: 266 | MU24: 247 | MV24: 288 | MW24: 272 | MX24: 355 | MY24: 373 | MZ24: 358 | NA24: 204 | NB24: 208 | NC24: 225 | ND24: 275 | NE24: 271 | NF24: 262 | NG24: 285 | NH24: 250 | NI24: 301 | NJ24: 234 | NK24: 442 | NL24: 439 | NM24: 429 | NN24: 400 | NO24: 426 | NP24: 417 | NQ24: 393 | NR24: 304 | NS24: 389 | NT24: 341 | NU24: 306 | NV24: 366 | NW24: 392 | NX24: 354 | NY24: 351 | NZ24: 360 | OA24: 331 | OB24: 372 | OC24: 344 | OD24: 335 | OE24: 370 | OF24: 400 | OG24: 398 | OH24: 392 | OI24: 414 | OJ24: 347 | OK24: 367 | OL24: 410 | OM24: 382 | ON24: 375 | OO24: 437 | OP24: 392 | OQ24: 412 | OR24: 418 | OS24: 436 | OT24: 448 | OU24: 420 | OV24: 391 | OW24: 441 | OX24: 430 | OY24: 431 | OZ24: 426 | PA24: 421 | PB24: 411 | PC24: 398 | PD24: 440 | PE24: 457 | PF24: 462 | PG24: 478 | PH24: 459 | PI24: 468 | PJ24: 488 | PK24: 417 | PL24: 474 | PM24: 497 | PN24: 474 | PO24: 494 | PP24: 442 | PQ24: 492 | PR24: 512 | PS24: 530 | PT24: 436 | PU24: 528 | PV24: 386 | PW24: 378 | PX24: 391 | PY24: 357 | PZ24: 403 | QA24: 389 | QB24: 405 | QC24: 531 | QD24: 506 | QE24: 497 | QF24: 478 | QG24: 498 | QH24: 328 | QI24: 354 | QJ24: 352 | QK24: 344 | QL24: 354 | QM24: 343 | QN24: 313 | QO24: 346 | QP24: 333 | QQ24: 369 | QR24: 422 | QS24: 430 | QT24: 385 | QU24: 419 | QV24: 462 | QW24: 426 | QX24: 448 | QY24: 432 | QZ24: 404 | RA24: 436 | RB24: 430 | RC24: 441 | RD24: 359 | RE24: 355 | RF24: 386 | RG24: 379 | RH24: 364 | RI24: 358 | RJ24: 387 | RK24: 377 | RL24: 509 | RM24: 594 | RN24: 571 | RO24: 590 | RP24: 558 | RQ24: 522 | RR24: 485 | RS24: 498 | RT24: 585 | RU24: 587 | RV24: 563 | RW24: 503 | RX24: 542 | RY24: 491 | RZ24: 486 | SA24: 455 | SB24: 472 | SC24: 495 | SD24: 466 | SE24: 515 | SF24: 600 | SG24: 476 | SH24: 586 | SI24: 570 | SJ24: 572 | SK24: 588 | SL24: 556 | SM24: 493 | SN24: 576 | SO24: 565 | SP24: 582 | SQ24: 554 | SR24: 555 | SS24: 618 | ST24: 590 | SU24: 598 | SV24: 569 | SW24: 558 | SX24: 579 | SY24: 559 | SZ24: 644 | TA24: 627 | TB24: 605 | TC24: 645 | TD24: 682 | TE24: 548 | TF24: 543 | TG24: 543 | TH24: 528 | TI24: 505 | TJ24: 521 | TK24: 491 | TL24: 552 | TM24: 638 | TN24: 633 | TO24: 603 | TP24: 613 | TQ24: 618 | TR24: 367 | TS24: 338 | TT24: 351 | TU24: 328 | TV24: 334 | TW24: 309 | TX24: 295 | TY24: 359 | TZ24: 436 | UA24: 421 | UB24: 373 | UC24: 409 | UD24: 377 | UE24: 389 | UF24: 356 | UG24: 451 | UH24: 436 | UI24: 417 | UJ24: 454 | UK24: 415 | UL24: 450 | UM24: 397 | UN24: 451 | UO24: 475 | UP24: 441 | UQ24: 470 | UR24: 423 | US24: 404 | UT24: 449 | UU24: 405 | UV24: 445 | UW24: 416 | UX24: 411 | UY24: 434 | UZ24: 454 | VA24: 461 | VB24: 418 | VC24: 467 | VD24: 390 | VE24: 424 | VF24: 415 | VG24: 419 | VH24: 474
D25: =IF(OR(A25=0,B25=0),0,IF(OR($B$4=0,$C$13=0),0,VLOOKUP($C$13,data!$AA$2:$AB$579,2,0))) -> 0 | F25: =IF(OR(C25=0,D25=0),0,IF(D25="অন্য এলাকা",VLOOKUP($J$2,data!$B$1:$I$3316,7,0),VLOOKUP($J$2,data!$B$1:$I$3316,8,0))) -> 0 | G25: =FLOOR(F25*C25,1) -> 0 | H25: 05793 | P25: 1 | Q25: =IF(P25=0,"",COUNTIF($P$2:P25,">0")) -> 24 | R25: Barishal - Airport Thana, Barishal | T25: 23 | U25: Barishal - Agailjhara | V25: Bhola - Manpura | W25: 179 | X25: 187 | Y25: 184 | Z25: 156 | AA25: 224 | AB25: 201 | AC25: 163 | AD25: 137 | AE25: 128 | AF25: 146 | AG25: 156 | AH25: 120 | AI25: 128 | AJ25: 121 | AK25: 124 | AL25: 151 | AM25: 140 | AN25: 73 | AO25: 50 | AP25: 62 | AQ25: 64 | AR25: 44 | AS25: 0 | AT25: 28 | AU25: 134 | AV25: 173 | AW25: 128 | AX25: 147 | AY25: 164 | AZ25: 142 | BA25: 144 | BB25: 118 | BC25: 197 | BD25: 159 | BE25: 152 | BF25: 161 | BG25: 156 | BH25: 194 | BI25: 214 | BJ25: 166 | BK25: 156 | BL25: 177 | BM25: 417 | BN25: 353 | BO25: 385 | BP25: 423 | BQ25: 371 | BR25: 387 | BS25: 416 | BT25: 284 | BU25: 231 | BV25: 307 | BW25: 287 | BX25: 310 | BY25: 254 | BZ25: 273 | CA25: 319 | CB25: 303 | CC25: 164 | CD25: 147 | CE25: 205 | CF25: 161 | CG25: 165 | CH25: 274 | CI25: 301 | CJ25: 277 | CK25: 323 | CL25: 284 | CM25: 293 | CN25: 282 | CO25: 313 | CP25: 283 | CQ25: 283 | CR25: 281 | CS25: 285 | CT25: 249 | CU25: 283 | CV25: 287 | CW25: 276 | CX25: 283 | CY25: 278 | CZ25: 340 | DA25: 224 | DB25: 275 | DC25: 282 | DD25: 304 | DE25: 295 | DF25: 307 | DG25: 297 | DH25: 286 | DI25: 273 | DJ25: 332 | DK25: 245 | DL25: 182 | DM25: 237 | DN25: 229 | DO25: 208 | DP25: 211 | DQ25: 213 | DR25: 241 | DS25: 221 | DT25: 218 | DU25: 191 | DV25: 172 | DW25: 246 | DX25: 255 | DY25: 188 | DZ25: 213 | EA25: 201 | EB25: 374 | EC25: 425 | ED25: 359 | EE25: 389 | EF25: 347 | EG25: 415 | EH25: 496 | EI25: 445 | EJ25: 204 | EK25: 178 | EL25: 191 | EM25: 207 | EN25: 214 | EO25: 140 | EP25: 268 | EQ25: 295 | ER25: 298 | ES25: 290 | ET25: 257 | EU25: 279 | EV25: 249 | EW25: 87 | EX25: 124 | EY25: 136 | EZ25: 144 | FA25: 84 | FB25: 154 | FC25: 155 | FD25: 125 | FE25: 116 | FF25: 168 | FG25: 166 | FH25: 101 | FI25: 104 | FJ25: 347 | FK25: 276 | FL25: 330 | FM25: 328 | FN25: 336 | FO25: 260 | FP25: 255 | FQ25: 253 | FR25: 269 | FS25: 259 | FT25: 263 | FU25: 253 | FV25: 273 | FW25: 263 | FX25: 245 | FY25: 290 | FZ25: 256 | GA25: 290 | GB25: 264 | GC25: 257 | GD25: 250 | GE25: 261 | GF25: 256 | GG25: 245 | GH25: 260 | GI25: 245 | GJ25: 257 | GK25: 256 | GL25: 249 | GM25: 265 | GN25: 254 | GO25: 252 | GP25: 254 | GQ25: 267 | GR25: 259 | GS25: 253 | GT25: 251 | GU25: 291 | GV25: 254 | GW25: 268 | GX25: 254 | GY25: 254 | GZ25: 251 | HA25: 252 | HB25: 266 | HC25: 269 | HD25: 253 | HE25: 264 | HF25: 254 | HG25: 248 | HH25: 259 | HI25: 250 | HJ25: 256 | HK25: 257 | HL25: 273 | HM25: 272 | HN25: 271 | HO25: 273 | HP25: 250 | HQ25: 245 | HR25: 214 | HS25: 259 | HT25: 249 | HU25: 246 | HV25: 268 | HW25: 230 | HX25: 231 | HY25: 248 | HZ25: 280 | IA25: 306 | IB25: 279 | IC25: 306 | ID25: 322 | IE25: 273 | IF25: 205 | IG25: 237 | IH25: 180 | II25: 232 | IJ25: 202 | IK25: 569 | IL25: 321 | IM25: 305 | IN25: 333 | IO25: 535 | IP25: 348 | IQ25: 314 | IR25: 337 | IS25: 316 | IT25: 552 | IU25: 335 | IV25: 322 | IW25: 369 | IX25: 170 | IY25: 179 | IZ25: 191 | JA25: 209 | JB25: 337 | JC25: 320 | JD25: 320 | JE25: 297 | JF25: 310 | JG25: 288 | JH25: 282 | JI25: 234 | JJ25: 264 | JK25: 264 | JL25: 269 | JM25: 262 | JN25: 283 | JO25: 251 | JP25: 230 | JQ25: 234 | JR25: 251 | JS25: 259 | JT25: 298 | JU25: 297 | JV25: 270 | JW25: 273 | JX25: 288 | JY25: 277 | JZ25: 283 | KA25: 270 | KB25: 288 | KC25: 297 | KD25: 273 | KE25: 212 | KF25: 210 | KG25: 204 | KH25: 212 | KI25: 199 | KJ25: 214 | KK25: 352 | KL25: 370 | KM25: 333 | KN25: 401 | KO25: 372 | KP25: 384 | KQ25: 352 | KR25: 389 | KS25: 320 | KT25: 334 | KU25: 338 | KV25: 343 | KW25: 193 | KX25: 204 | KY25: 234 | KZ25: 188 | LA25: 222 | LB25: 228 | LC25: 189 | LD25: 207 | LE25: 200 | LF25: 361 | LG25: 359 | LH25: 368 | LI25: 371 | LJ25: 255 | LK25: 280 | LL25: 309 | LM25: 295 | LN25: 260 | LO25: 293 | LP25: 274 | LQ25: 312 | LR25: 342 | LS25: 321 | LT25: 313 | LU25: 349 | LV25: 325 | LW25: 339 | LX25: 224 | LY25: 230 | LZ25: 237 | MA25: 228 | MB25: 239 | MC25: 223 | MD25: 232 | ME25: 244 | MF25: 224 | MG25: 315 | MH25: 224 | MI25: 284 | MJ25: 249 | MK25: 218 | ML25: 228 | MM25: 229 | MN25: 372 | MO25: 370 | MP25: 311 | MQ25: 320 | MR25: 336 | MS25: 351 | MT25: 293 | MU25: 275 | MV25: 316 | MW25: 300 | MX25: 382 | MY25: 401 | MZ25: 386 | NA25: 232 | NB25: 236 | NC25: 253 | ND25: 303 | NE25: 298 | NF25: 290 | NG25: 313 | NH25: 278 | NI25: 329 | NJ25: 261 | NK25: 470 | NL25: 466 | NM25: 457 | NN25: 427 | NO25: 454 | NP25: 445 | NQ25: 421 | NR25: 332 | NS25: 417 | NT25: 369 | NU25: 334 | NV25: 394 | NW25: 420 | NX25: 382 | NY25: 379 | NZ25: 387 | OA25: 359 | OB25: 400 | OC25: 372 | OD25: 363 | OE25: 398 | OF25: 427 | OG25: 426 | OH25: 419 | OI25: 442 | OJ25: 375 | OK25: 395 | OL25: 438 | OM25: 409 | ON25: 403 | OO25: 465 | OP25: 419 | OQ25: 439 | OR25: 445 | OS25: 463 | OT25: 476 | OU25: 448 | OV25: 419 | OW25: 469 | OX25: 458 | OY25: 459 | OZ25: 454 | PA25: 449 | PB25: 439 | PC25: 425 | PD25: 468 | PE25: 484 | PF25: 490 | PG25: 506 | PH25: 487 | PI25: 496 | PJ25: 516 | PK25: 445 | PL25: 502 | PM25: 525 | PN25: 502 | PO25: 522 | PP25: 469 | PQ25: 520 | PR25: 540 | PS25: 558 | PT25: 463 | PU25: 556 | PV25: 414 | PW25: 406 | PX25: 419 | PY25: 384 | PZ25: 431 | QA25: 417 | QB25: 433 | QC25: 559 | QD25: 534 | QE25: 525 | QF25: 506 | QG25: 526 | QH25: 356 | QI25: 381 | QJ25: 380 | QK25: 371 | QL25: 382 | QM25: 371 | QN25: 341 | QO25: 374 | QP25: 361 | QQ25: 397 | QR25: 450 | QS25: 458 | QT25: 413 | QU25: 447 | QV25: 490 | QW25: 454 | QX25: 476 | QY25: 459 | QZ25: 432 | RA25: 464 | RB25: 457 | RC25: 469 | RD25: 387 | RE25: 383 | RF25: 413 | RG25: 407 | RH25: 392 | RI25: 386 | RJ25: 415 | RK25: 405 | RL25: 536 | RM25: 622 | RN25: 599 | RO25: 618 | RP25: 585 | RQ25: 550 | RR25: 513 | RS25: 526 | RT25: 613 | RU25: 615 | RV25: 591 | RW25: 530 | RX25: 570 | RY25: 519 | RZ25: 513 | SA25: 483 | SB25: 500 | SC25: 523 | SD25: 494 | SE25: 543 | SF25: 628 | SG25: 504 | SH25: 613 | SI25: 598 | SJ25: 599 | SK25: 616 | SL25: 584 | SM25: 521 | SN25: 604 | SO25: 593 | SP25: 610 | SQ25: 582 | SR25: 583 | SS25: 646 | ST25: 617 | SU25: 626 | SV25: 597 | SW25: 586 | SX25: 607 | SY25: 587 | SZ25: 672 | TA25: 655 | TB25: 632 | TC25: 673 | TD25: 710 | TE25: 576 | TF25: 571 | TG25: 570 | TH25: 556 | TI25: 533 | TJ25: 549 | TK25: 519 | TL25: 580 | TM25: 666 | TN25: 661 | TO25: 631 | TP25: 641 | TQ25: 646 | TR25: 395 | TS25: 366 | TT25: 379 | TU25: 356 | TV25: 361 | TW25: 337 | TX25: 322 | TY25: 387 | TZ25: 464 | UA25: 449 | UB25: 401 | UC25: 437 | UD25: 405 | UE25: 417 | UF25: 384 | UG25: 479 | UH25: 464 | UI25: 445 | UJ25: 482 | UK25: 443 | UL25: 477 | UM25: 425 | UN25: 479 | UO25: 503 | UP25: 469 | UQ25: 498 | UR25: 451 | US25: 432 | UT25: 477 | UU25: 433 | UV25: 473 | UW25: 443 | UX25: 439 | UY25: 461 | UZ25: 482 | VA25: 488 | VB25: 445 | VC25: 495 | VD25: 418 | VE25: 443 | VF25: 442 | VG25: 447 | VH25: 502
D26: =IF(OR(A26=0,B26=0),0,IF(OR($B$4=0,$C$13=0),0,VLOOKUP($C$13,data!$AA$2:$AB$579,2,0))) -> 0 | F26: =IF(OR(C26=0,D26=0),0,IF(D26="অন্য এলাকা",VLOOKUP($J$2,data!$B$1:$I$3316,7,0),VLOOKUP($J$2,data!$B$1:$I$3316,8,0))) -> 0 | G26: 0 | H26: 05794 | P26: 1 | Q26: =IF(P26=0,"",COUNTIF($P$2:P26,">0")) -> 25 | R26: Barishal - Babuganj | T26: 24 | U26: Barishal - Airport Thana, Barishal | V26: Bhola - Tazumuddin | W26: 151 | X26: 160 | Y26: 157 | Z26: 129 | AA26: 197 | AB26: 173 | AC26: 135 | AD26: 109 | AE26: 101 | AF26: 119 | AG26: 129 | AH26: 92 | AI26: 100 | AJ26: 93 | AK26: 96 | AL26: 123 | AM26: 113 | AN26: 46 | AO26: 22 | AP26: 40 | AQ26: 36 | AR26: 22 | AS26: 28 | AT26: 0 | AU26: 106 | AV26: 145 | AW26: 100 | AX26: 119 | AY26: 136 | AZ26: 120 | BA26: 116 | BB26: 96 | BC26: 170 | BD26: 132 | BE26: 125 | BF26: 134 | BG26: 128 | BH26: 167 | BI26: 187 | BJ26: 139 | BK26: 128 | BL26: 149 | BM26: 389 | BN26: 326 | BO26: 357 | BP26: 396 | BQ26: 343 | BR26: 360 | BS26: 389 | BT26: 256 | BU26: 203 | BV26: 279 | BW26: 259 | BX26: 282 | BY26: 227 | BZ26: 246 | CA26: 291 | CB26: 275 | CC26: 136 | CD26: 119 | CE26: 177 | CF26: 133 | CG26: 137 | CH26: 247 | CI26: 273 | CJ26: 249 | CK26: 296 | CL26: 256 | CM26: 265 | CN26: 254 | CO26: 285 | CP26: 256 | CQ26: 255 | CR26: 253 | CS26: 258 | CT26: 222 | CU26: 255 | CV26: 259 | CW26: 248 | CX26: 255 | CY26: 250 | CZ26: 312 | DA26: 196 | DB26: 247 | DC26: 254 | DD26: 277 | DE26: 267 | DF26: 279 | DG26: 270 | DH26: 259 | DI26: 245 | DJ26: 305 | DK26: 218 | DL26: 154 | DM26: 210 | DN26: 201 | DO26: 181 | DP26: 183 | DQ26: 185 | DR26: 213 | DS26: 193 | DT26: 190 | DU26: 163 | DV26: 145 | DW26: 218 | DX26: 228 | DY26: 161 | DZ26: 185 | EA26: 173 | EB26: 346 | EC26: 397 | ED26: 331 | EE26: 362 | EF26: 320 | EG26: 387 | EH26: 469 | EI26: 418 | EJ26: 176 | EK26: 151 | EL26: 163 | EM26: 179 | EN26: 186 | EO26: 113 | EP26: 240 | EQ26: 268 | ER26: 270 | ES26: 263 | ET26: 229 | EU26: 252 | EV26: 221 | EW26: 59 | EX26: 97 | EY26: 108 | EZ26: 116 | FA26: 56 | FB26: 126 | FC26: 128 | FD26: 97 | FE26: 89 | FF26: 141 | FG26: 138 | FH26: 73 | FI26: 76 | FJ26: 319 | FK26: 248 | FL26: 302 | FM26: 301 | FN26: 308 | FO26: 232 | FP26: 227 | FQ26: 225 | FR26: 241 | FS26: 232 | FT26: 235 | FU26: 225 | FV26: 245 | FW26: 236 | FX26: 217 | FY26: 268 | FZ26: 229 | GA26: 262 | GB26: 237 | GC26: 230 | GD26: 223 | GE26: 233 | GF26: 228 | GG26: 217 | GH26: 233 | GI26: 218 | GJ26: 229 | GK26: 229 | GL26: 221 | GM26: 237 | GN26: 226 | GO26: 225 | GP26: 227 | GQ26: 239 | GR26: 232 | GS26: 226 | GT26: 223 | GU26: 263 | GV26: 226 | GW26: 240 | GX26: 226 | GY26: 226 | GZ26: 223 | HA26: 224 | HB26: 238 | HC26: 241 | HD26: 225 | HE26: 236 | HF26: 226 | HG26: 220 | HH26: 232 | HI26: 222 | HJ26: 229 | HK26: 229 | HL26: 246 | HM26: 244 | HN26: 243 | HO26: 245 | HP26: 222 | HQ26: 218 | HR26: 187 | HS26: 232 | HT26: 222 | HU26: 218 | HV26: 241 | HW26: 202 | HX26: 204 | HY26: 221 | HZ26: 253 | IA26: 278 | IB26: 251 | IC26: 279 | ID26: 295 | IE26: 245 | IF26: 178 | IG26: 209 | IH26: 152 | II26: 204 | IJ26: 174 | IK26: 541 | IL26: 294 | IM26: 277 | IN26: 305 | IO26: 507 | IP26: 320 | IQ26: 287 | IR26: 309 | IS26: 289 | IT26: 524 | IU26: 308 | IV26: 295 | IW26: 341 | IX26: 142 | IY26: 152 | IZ26: 164 | JA26: 181 | JB26: 309 | JC26: 292 | JD26: 292 | JE26: 270 | JF26: 283 | JG26: 261 | JH26: 255 | JI26: 207 | JJ26: 236 | JK26: 237 | JL26: 241 | JM26: 234 | JN26: 256 | JO26: 223 | JP26: 202 | JQ26: 207 | JR26: 223 | JS26: 231 | JT26: 270 | JU26: 269 | JV26: 242 | JW26: 245 | JX26: 261 | JY26: 250 | JZ26: 255 | KA26: 243 | KB26: 261 | KC26: 270 | KD26: 245 | KE26: 185 | KF26: 182 | KG26: 176 | KH26: 185 | KI26: 171 | KJ26: 186 | KK26: 325 | KL26: 342 | KM26: 305 | KN26: 374 | KO26: 345 | KP26: 357 | KQ26: 325 | KR26: 361 | KS26: 292 | KT26: 306 | KU26: 311 | KV26: 315 | KW26: 165 | KX26: 176 | KY26: 206 | KZ26: 160 | LA26: 194 | LB26: 200 | LC26: 162 | LD26: 179 | LE26: 173 | LF26: 334 | LG26: 331 | LH26: 341 | LI26: 343 | LJ26: 228 | LK26: 252 | LL26: 281 | LM26: 267 | LN26: 232 | LO26: 266 | LP26: 246 | LQ26: 284 | LR26: 315 | LS26: 293 | LT26: 285 | LU26: 321 | LV26: 297 | LW26: 311 | LX26: 197 | LY26: 202 | LZ26: 209 | MA26: 201 | MB26: 212 | MC26: 195 | MD26: 204 | ME26: 217 | MF26: 197 | MG26: 288 | MH26: 197 | MI26: 256 | MJ26: 222 | MK26: 190 | ML26: 200 | MM26: 201 | MN26: 344 | MO26: 342 | MP26: 283 | MQ26: 293 | MR26: 309 | MS26: 323 | MT26: 266 | MU26: 247 | MV26: 289 | MW26: 272 | MX26: 355 | MY26: 373 | MZ26: 358 | NA26: 204 | NB26: 208 | NC26: 225 | ND26: 275 | NE26: 271 | NF26: 262 | NG26: 286 | NH26: 250 | NI26: 301 | NJ26: 234 | NK26: 442 | NL26: 439 | NM26: 429 | NN26: 400 | NO26: 426 | NP26: 417 | NQ26: 393 | NR26: 304 | NS26: 390 | NT26: 341 | NU26: 306 | NV26: 366 | NW26: 392 | NX26: 354 | NY26: 351 | NZ26: 360 | OA26: 332 | OB26: 372 | OC26: 344 | OD26: 336 | OE26: 370 | OF26: 400 | OG26: 398 | OH26: 392 | OI26: 414 | OJ26: 347 | OK26: 367 | OL26: 411 | OM26: 382 | ON26: 375 | OO26: 437 | OP26: 392 | OQ26: 412 | OR26: 418 | OS26: 436 | OT26: 449 | OU26: 420 | OV26: 391 | OW26: 441 | OX26: 430 | OY26: 431 | OZ26: 426 | PA26: 421 | PB26: 412 | PC26: 398 | PD26: 440 | PE26: 457 | PF26: 463 | PG26: 478 | PH26: 459 | PI26: 468 | PJ26: 488 | PK26: 417 | PL26: 474 | PM26: 498 | PN26: 474 | PO26: 495 | PP26: 442 | PQ26: 493 | PR26: 512 | PS26: 530 | PT26: 436 | PU26: 529 | PV26: 386 | PW26: 378 | PX26: 391 | PY26: 357 | PZ26: 403 | QA26: 389 | QB26: 405 | QC26: 532 | QD26: 506 | QE26: 497 | QF26: 479 | QG26: 498 | QH26: 328 | QI26: 354 | QJ26: 353 | QK26: 344 | QL26: 354 | QM26: 343 | QN26: 313 | QO26: 346 | QP26: 334 | QQ26: 370 | QR26: 423 | QS26: 430 | QT26: 385 | QU26: 419 | QV26: 462 | QW26: 427 | QX26: 449 | QY26: 432 | QZ26: 404 | RA26: 436 | RB26: 430 | RC26: 441 | RD26: 359 | RE26: 356 | RF26: 386 | RG26: 380 | RH26: 364 | RI26: 358 | RJ26: 387 | RK26: 377 | RL26: 509 | RM26: 594 | RN26: 572 | RO26: 590 | RP26: 558 | RQ26: 522 | RR26: 486 | RS26: 499 | RT26: 585 | RU26: 587 | RV26: 563 | RW26: 503 | RX26: 542 | RY26: 491 | RZ26: 486 | SA26: 456 | SB26: 472 | SC26: 495 | SD26: 466 | SE26: 515 | SF26: 600 | SG26: 476 | SH26: 586 | SI26: 570 | SJ26: 572 | SK26: 588 | SL26: 556 | SM26: 493 | SN26: 576 | SO26: 565 | SP26: 582 | SQ26: 554 | SR26: 555 | SS26: 618 | ST26: 590 | SU26: 598 | SV26: 569 | SW26: 559 | SX26: 579 | SY26: 559 | SZ26: 644 | TA26: 627 | TB26: 605 | TC26: 645 | TD26: 682 | TE26: 548 | TF26: 543 | TG26: 543 | TH26: 528 | TI26: 505 | TJ26: 521 | TK26: 491 | TL26: 552 | TM26: 639 | TN26: 633 | TO26: 603 | TP26: 614 | TQ26: 618 | TR26: 367 | TS26: 338 | TT26: 351 | TU26: 328 | TV26: 334 | TW26: 310 | TX26: 295 | TY26: 359 | TZ26: 437 | UA26: 421 | UB26: 373 | UC26: 409 | UD26: 377 | UE26: 389 | UF26: 356 | UG26: 451 | UH26: 437 | UI26: 417 | UJ26: 454 | UK26: 416 | UL26: 450 | UM26: 397 | UN26: 451 | UO26: 475 | UP26: 441 | UQ26: 471 | UR26: 423 | US26: 404 | UT26: 450 | UU26: 405 | UV26: 445 | UW26: 416 | UX26: 412 | UY26: 434 | UZ26: 454 | VA26: 461 | VB26: 418 | VC26: 467 | VD26: 390 | VE26: 424 | VF26: 415 | VG26: 419 | VH26: 474
H27: 01927 | P27: 1 | Q27: =IF(P27=0,"",COUNTIF($P$2:P27,">0")) -> 26 | R27: Barishal - Bakerganj | T27: 25 | U27: Barishal - Babuganj | V27: Jhalokati - Jhalokati Sadar | W27: 85 | X27: 54 | Y27: 91 | Z27: 63 | AA27: 91 | AB27: 107 | AC27: 63 | AD27: 37 | AE27: 35 | AF27: 21 | AG27: 56 | AH27: 20 | AI27: 27 | AJ27: 21 | AK27: 24 | AL27: 50 | AM27: 40 | AN27: 60 | AO27: 84 | AP27: 124 | AQ27: 78 | AR27: 106 | AS27: 134 | AT27: 106 | AU27: 0 | AV27: 39 | AW27: 12 | AX27: 14 | AY27: 70 | AZ27: 87 | BA27: 50 | BB27: 86 | BC27: 104 | BD27: 66 | BE27: 59 | BF27: 28 | BG27: 22 | BH27: 61 | BI27: 72 | BJ27: 33 | BK27: 23 | BL27: 43 | BM27: 393 | BN27: 329 | BO27: 361 | BP27: 399 | BQ27: 347 | BR27: 363 | BS27: 392 | BT27: 311 | BU27: 238 | BV27: 296 | BW27: 293 | BX27: 269 | BY27: 296 | BZ27: 301 | CA27: 297 | CB27: 282 | CC27: 140 | CD27: 123 | CE27: 105 | CF27: 137 | CG27: 141 | CH27: 250 | CI27: 277 | CJ27: 253 | CK27: 299 | CL27: 260 | CM27: 269 | CN27: 258 | CO27: 289 | CP27: 259 | CQ27: 259 | CR27: 257 | CS27: 261 | CT27: 225 | CU27: 259 | CV27: 263 | CW27: 252 | CX27: 259 | CY27: 254 | CZ27: 316 | DA27: 200 | DB27: 251 | DC27: 258 | DD27: 280 | DE27: 271 | DF27: 283 | DG27: 273 | DH27: 262 | DI27: 249 | DJ27: 308 | DK27: 222 | DL27: 158 | DM27: 292 | DN27: 283 | DO27: 258 | DP27: 301 | DQ27: 279 | DR27: 273 | DS27: 252 | DT27: 276 | DU27: 167 | DV27: 148 | DW27: 228 | DX27: 283 | DY27: 164 | DZ27: 244 | EA27: 288 | EB27: 350 | EC27: 401 | ED27: 335 | EE27: 365 | EF27: 323 | EG27: 391 | EH27: 472 | EI27: 421 | EJ27: 180 | EK27: 154 | EL27: 167 | EM27: 183 | EN27: 190 | EO27: 168 | EP27: 244 | EQ27: 271 | ER27: 274 | ES27: 266 | ET27: 233 | EU27: 255 | EV27: 225 | EW27: 148 | EX27: 100 | EY27: 112 | EZ27: 120 | FA27: 123 | FB27: 130 | FC27: 131 | FD27: 158 | FE27: 155 | FF27: 144 | FG27: 142 | FH27: 152 | FI27: 142 | FJ27: 323 | FK27: 252 | FL27: 306 | FM27: 304 | FN27: 312 | FO27: 199 | FP27: 197 | FQ27: 187 | FR27: 209 | FS27: 199 | FT27: 203 | FU27: 188 | FV27: 213 | FW27: 203 | FX27: 193 | FY27: 229 | FZ27: 196 | GA27: 190 | GB27: 204 | GC27: 199 | GD27: 187 | GE27: 200 | GF27: 195 | GG27: 193 | GH27: 200 | GI27: 192 | GJ27: 196 | GK27: 191 | GL27: 198 | GM27: 204 | GN27: 185 | GO27: 187 | GP27: 189 | GQ27: 207 | GR27: 199 | GS27: 193 | GT27: 190 | GU27: 190 | GV27: 193 | GW27: 208 | GX27: 193 | GY27: 193 | GZ27: 195 | HA27: 192 | HB27: 205 | HC27: 209 | HD27: 193 | HE27: 203 | HF27: 193 | HG27: 187 | HH27: 199 | HI27: 189 | HJ27: 196 | HK27: 197 | HL27: 213 | HM27: 211 | HN27: 210 | HO27: 215 | HP27: 189 | HQ27: 132 | HR27: 114 | HS27: 147 | HT27: 149 | HU27: 145 | HV27: 168 | HW27: 129 | HX27: 131 | HY27: 148 | HZ27: 225 | IA27: 245 | IB27: 242 | IC27: 247 | ID27: 254 | IE27: 212 | IF27: 89 | IG27: 124 | IH27: 79 | II27: 131 | IJ27: 73 | IK27: 548 | IL27: 280 | IM27: 264 | IN27: 291 | IO27: 513 | IP27: 307 | IQ27: 273 | IR27: 295 | IS27: 275 | IT27: 531 | IU27: 294 | IV27: 281 | IW27: 328 | IX27: 70 | IY27: 79 | IZ27: 91 | JA27: 109 | JB27: 205 | JC27: 198 | JD27: 220 | JE27: 237 | JF27: 250 | JG27: 188 | JH27: 206 | JI27: 216 | JJ27: 163 | JK27: 187 | JL27: 196 | JM27: 162 | JN27: 183 | JO27: 216 | JP27: 208 | JQ27: 207 | JR27: 196 | JS27: 207 | JT27: 257 | JU27: 256 | JV27: 230 | JW27: 230 | JX27: 249 | JY27: 236 | JZ27: 182 | KA27: 170 | KB27: 188 | KC27: 197 | KD27: 172 | KE27: 112 | KF27: 110 | KG27: 104 | KH27: 112 | KI27: 98 | KJ27: 113 | KK27: 292 | KL27: 310 | KM27: 272 | KN27: 341 | KO27: 312 | KP27: 324 | KQ27: 292 | KR27: 328 | KS27: 259 | KT27: 221 | KU27: 278 | KV27: 283 | KW27: 59 | KX27: 71 | KY27: 83 | KZ27: 55 | LA27: 84 | LB27: 95 | LC27: 56 | LD27: 74 | LE27: 67 | LF27: 261 | LG27: 227 | LH27: 236 | LI27: 205 | LJ27: 122 | LK27: 146 | LL27: 176 | LM27: 162 | LN27: 126 | LO27: 160 | LP27: 140 | LQ27: 179 | LR27: 242 | LS27: 221 | LT27: 179 | LU27: 194 | LV27: 192 | LW27: 239 | LX27: 91 | LY27: 97 | LZ27: 104 | MA27: 95 | MB27: 106 | MC27: 90 | MD27: 99 | ME27: 111 | MF27: 91 | MG27: 182 | MH27: 91 | MI27: 151 | MJ27: 116 | MK27: 85 | ML27: 94 | MM27: 106 | MN27: 271 | MO27: 269 | MP27: 210 | MQ27: 220 | MR27: 236 | MS27: 250 | MT27: 193 | MU27: 162 | MV27: 159 | MW27: 199 | MX27: 282 | MY27: 248 | MZ27: 254 | NA27: 109 | NB27: 123 | NC27: 155 | ND27: 170 | NE27: 165 | NF27: 157 | NG27: 180 | NH27: 144 | NI27: 195 | NJ27: 128 | NK27: 409 | NL27: 406 | NM27: 396 | NN27: 367 | NO27: 393 | NP27: 384 | NQ27: 361 | NR27: 272 | NS27: 357 | NT27: 309 | NU27: 284 | NV27: 329 | NW27: 360 | NX27: 333 | NY27: 319 | NZ27: 327 | OA27: 318 | OB27: 340 | OC27: 311 | OD27: 303 | OE27: 368 | OF27: 367 | OG27: 366 | OH27: 403 | OI27: 382 | OJ27: 334 | OK27: 378 | OL27: 378 | OM27: 349 | ON27: 343 | OO27: 405 | OP27: 359 | OQ27: 379 | OR27: 385 | OS27: 403 | OT27: 376 | OU27: 379 | OV27: 358 | OW27: 381 | OX27: 392 | OY27: 387 | OZ27: 353 | PA27: 404 | PB27: 379 | PC27: 365 | PD27: 398 | PE27: 414 | PF27: 402 | PG27: 418 | PH27: 416 | PI27: 408 | PJ27: 428 | PK27: 345 | PL27: 392 | PM27: 457 | PN27: 401 | PO27: 422 | PP27: 369 | PQ27: 420 | PR27: 439 | PS27: 457 | PT27: 363 | PU27: 456 | PV27: 314 | PW27: 305 | PX27: 319 | PY27: 284 | PZ27: 330 | QA27: 317 | QB27: 332 | QC27: 459 | QD27: 433 | QE27: 424 | QF27: 406 | QG27: 425 | QH27: 255 | QI27: 281 | QJ27: 280 | QK27: 271 | QL27: 281 | QM27: 271 | QN27: 240 | QO27: 273 | QP27: 261 | QQ27: 297 | QR27: 350 | QS27: 357 | QT27: 312 | QU27: 346 | QV27: 390 | QW27: 354 | QX27: 376 | QY27: 359 | QZ27: 332 | RA27: 363 | RB27: 357 | RC27: 369 | RD27: 326 | RE27: 323 | RF27: 353 | RG27: 347 | RH27: 291 | RI27: 325 | RJ27: 335 | RK27: 308 | RL27: 466 | RM27: 552 | RN27: 529 | RO27: 547 | RP27: 515 | RQ27: 479 | RR27: 443 | RS27: 438 | RT27: 542 | RU27: 544 | RV27: 520 | RW27: 460 | RX27: 500 | RY27: 449 | RZ27: 443 | SA27: 413 | SB27: 430 | SC27: 453 | SD27: 428 | SE27: 472 | SF27: 558 | SG27: 443 | SH27: 543 | SI27: 528 | SJ27: 529 | SK27: 545 | SL27: 513 | SM27: 460 | SN27: 533 | SO27: 523 | SP27: 539 | SQ27: 512 | SR27: 513 | SS27: 575 | ST27: 547 | SU27: 555 | SV27: 526 | SW27: 516 | SX27: 537 | SY27: 517 | SZ27: 601 | TA27: 585 | TB27: 562 | TC27: 602 | TD27: 639 | TE27: 505 | TF27: 501 | TG27: 500 | TH27: 486 | TI27: 462 | TJ27: 478 | TK27: 449 | TL27: 510 | TM27: 596 | TN27: 591 | TO27: 560 | TP27: 571 | TQ27: 575 | TR27: 374 | TS27: 345 | TT27: 358 | TU27: 335 | TV27: 340 | TW27: 316 | TX27: 301 | TY27: 365 | TZ27: 443 | UA27: 428 | UB27: 380 | UC27: 416 | UD27: 384 | UE27: 396 | UF27: 363 | UG27: 458 | UH27: 443 | UI27: 424 | UJ27: 461 | UK27: 383 | UL27: 456 | UM27: 404 | UN27: 458 | UO27: 482 | UP27: 448 | UQ27: 477 | UR27: 430 | US27: 410 | UT27: 456 | UU27: 412 | UV27: 452 | UW27: 422 | UX27: 418 | UY27: 440 | UZ27: 461 | VA27: 467 | VB27: 424 | VC27: 474 | VD27: 396 | VE27: 431 | VF27: 421 | VG27: 426 | VH27: 481
B28: =IF(SUM(G13:G26)<=0,0,"me©‡gvU : "&IFERROR(IF(SUM(G13:G26)>0,SUM(G13:G26)&".00 ",0),"")) -> 0 | C28: =IF(OR(B4=0,SUM(G13:G26)<=0),0,VLOOKUP(SUM(G13:G26),data!$R$2:$S$100001,2,0)&" "&"gvÎ") -> 0 | H28: 04010 | P28: 1 | Q28: =IF(P28=0,"",COUNTIF($P$2:P28,">0")) -> 27 | R28: Barishal - Banari Para | T28: 26 | U28: Barishal - Bakerganj | V28: Jhalokati - Kanthalia | W28: 53 | X28: 21 | Y28: 37 | Z28: 5 | AA28: 61 | AB28: 73 | AC28: 101 | AD28: 76 | AE28: 33 | AF28: 58 | AG28: 95 | AH28: 59 | AI28: 66 | AJ28: 60 | AK28: 63 | AL28: 89 | AM28: 79 | AN28: 99 | AO28: 123 | AP28: 163 | AQ28: 117 | AR28: 145 | AS28: 173 | AT28: 145 | AU28: 39 | AV28: 0 | AW28: 50 | AX28: 26 | AY28: 68 | AZ28: 85 | BA28: 48 | BB28: 54 | BC28: 70 | BD28: 15 | BE28: 27 | BF28: 13 | BG28: 30 | BH28: 31 | BI28: 73 | BJ28: 35 | BK28: 50 | BL28: 29 | BM28: 431 | BN28: 368 | BO28: 400 | BP28: 438 | BQ28: 386 | BR28: 402 | BS28: 431 | BT28: 357 | BU28: 284 | BV28: 342 | BW28: 338 | BX28: 314 | BY28: 342 | BZ28: 346 | CA28: 343 | CB28: 327 | CC28: 179 | CD28: 162 | CE28: 143 | CF28: 176 | CG28: 179 | CH28: 289 | CI28: 316 | CJ28: 291 | CK28: 338 | CL28: 298 | CM28: 308 | CN28: 296 | CO28: 328 | CP28: 298 | CQ28: 297 | CR28: 296 | CS28: 300 | CT28: 264 | CU28: 298 | CV28: 301 | CW28: 290 | CX28: 297 | CY28: 293 | CZ28: 355 | DA28: 239 | DB28: 289 | DC28: 296 | DD28: 319 | DE28: 310 | DF28: 322 | DG28: 312 | DH28: 301 | DI28: 288 | DJ28: 347 | DK28: 260 | DL28: 197 | DM28: 337 | DN28: 329 | DO28: 303 | DP28: 346 | DQ28: 325 | DR28: 320 | DS28: 297 | DT28: 322 | DU28: 206 | DV28: 187 | DW28: 273 | DX28: 329 | DY28: 203 | DZ28: 289 | EA28: 334 | EB28: 388 | EC28: 439 | ED28: 373 | EE28: 404 | EF28: 362 | EG28: 430 | EH28: 511 | EI28: 460 | EJ28: 218 | EK28: 193 | EL28: 206 | EM28: 222 | EN28: 229 | EO28: 207 | EP28: 283 | EQ28: 310 | ER28: 313 | ES28: 305 | ET28: 272 | EU28: 294 | EV28: 264 | EW28: 187 | EX28: 139 | EY28: 151 | EZ28: 158 | FA28: 162 | FB28: 168 | FC28: 170 | FD28: 196 | FE28: 193 | FF28: 183 | FG28: 180 | FH28: 191 | FI28: 181 | FJ28: 362 | FK28: 290 | FL28: 344 | FM28: 343 | FN28: 351 | FO28: 245 | FP28: 242 | FQ28: 233 | FR28: 254 | FS28: 244 | FT28: 248 | FU28: 233 | FV28: 258 | FW28: 248 | FX28: 238 | FY28: 275 | FZ28: 241 | GA28: 235 | GB28: 249 | GC28: 245 | GD28: 232 | GE28: 246 | GF28: 241 | GG28: 238 | GH28: 245 | GI28: 238 | GJ28: 242 | GK28: 237 | GL28: 244 | GM28: 250 | GN28: 230 | GO28: 233 | GP28: 234 | GQ28: 252 | GR28: 244 | GS28: 238 | GT28: 236 | GU28: 236 | GV28: 239 | GW28: 253 | GX28: 239 | GY28: 239 | GZ28: 240 | HA28: 237 | HB28: 251 | HC28: 254 | HD28: 238 | HE28: 249 | HF28: 239 | HG28: 233 | HH28: 244 | HI28: 234 | HJ28: 241 | HK28: 242 | HL28: 259 | HM28: 257 | HN28: 256 | HO28: 261 | HP28: 235 | HQ28: 134 | HR28: 161 | HS28: 148 | HT28: 190 | HU28: 186 | HV28: 178 | HW28: 164 | HX28: 172 | HY28: 158 | HZ28: 270 | IA28: 291 | IB28: 288 | IC28: 293 | ID28: 300 | IE28: 258 | IF28: 91 | IG28: 126 | IH28: 98 | II28: 143 | IJ28: 75 | IK28: 593 | IL28: 325 | IM28: 309 | IN28: 337 | IO28: 559 | IP28: 352 | IQ28: 318 | IR28: 341 | IS28: 320 | IT28: 576 | IU28: 340 | IV28: 326 | IW28: 373 | IX28: 108 | IY28: 118 | IZ28: 130 | JA28: 147 | JB28: 246 | JC28: 238 | JD28: 265 | JE28: 283 | JF28: 295 | JG28: 229 | JH28: 251 | JI28: 262 | JJ28: 209 | JK28: 233 | JL28: 242 | JM28: 207 | JN28: 228 | JO28: 261 | JP28: 254 | JQ28: 252 | JR28: 241 | JS28: 253 | JT28: 302 | JU28: 301 | JV28: 276 | JW28: 275 | JX28: 295 | JY28: 282 | JZ28: 193 | KA28: 210 | KB28: 229 | KC28: 238 | KD28: 213 | KE28: 151 | KF28: 148 | KG28: 142 | KH28: 151 | KI28: 137 | KJ28: 152 | KK28: 337 | KL28: 355 | KM28: 318 | KN28: 386 | KO28: 357 | KP28: 370 | KQ28: 337 | KR28: 374 | KS28: 305 | KT28: 262 | KU28: 323 | KV28: 328 | KW28: 58 | KX28: 72 | KY28: 81 | KZ28: 53 | LA28: 100 | LB28: 93 | LC28: 42 | LD28: 72 | LE28: 53 | LF28: 243 | LG28: 225 | LH28: 235 | LI28: 203 | LJ28: 121 | LK28: 145 | LL28: 174 | LM28: 160 | LN28: 125 | LO28: 158 | LP28: 139 | LQ28: 177 | LR28: 218 | LS28: 198 | LT28: 178 | LU28: 193 | LV28: 190 | LW28: 215 | LX28: 89 | LY28: 95 | LZ28: 102 | MA28: 93 | MB28: 104 | MC28: 88 | MD28: 97 | ME28: 109 | MF28: 89 | MG28: 180 | MH28: 89 | MI28: 149 | MJ28: 114 | MK28: 83 | ML28: 93 | MM28: 111 | MN28: 274 | MO28: 272 | MP28: 251 | MQ28: 261 | MR28: 238 | MS28: 252 | MT28: 184 | MU28: 164 | MV28: 157 | MW28: 199 | MX28: 258 | MY28: 246 | MZ28: 253 | NA28: 111 | NB28: 125 | NC28: 153 | ND28: 168 | NE28: 164 | NF28: 155 | NG28: 178 | NH28: 143 | NI28: 194 | NJ28: 126 | NK28: 455 | NL28: 451 | NM28: 442 | NN28: 413 | NO28: 439 | NP28: 430 | NQ28: 406 | NR28: 317 | NS28: 403 | NT28: 354 | NU28: 329 | NV28: 374 | NW28: 405 | NX28: 379 | NY28: 364 | NZ28: 373 | OA28: 363 | OB28: 385 | OC28: 357 | OD28: 349 | OE28: 413 | OF28: 413 | OG28: 411 | OH28: 448 | OI28: 427 | OJ28: 379 | OK28: 424 | OL28: 424 | OM28: 395 | ON28: 388 | OO28: 450 | OP28: 405 | OQ28: 425 | OR28: 431 | OS28: 448 | OT28: 378 | OU28: 381 | OV28: 404 | OW28: 384 | OX28: 395 | OY28: 389 | OZ28: 355 | PA28: 407 | PB28: 380 | PC28: 366 | PD28: 400 | PE28: 417 | PF28: 405 | PG28: 420 | PH28: 419 | PI28: 410 | PJ28: 430 | PK28: 347 | PL28: 394 | PM28: 459 | PN28: 404 | PO28: 424 | PP28: 371 | PQ28: 422 | PR28: 442 | PS28: 460 | PT28: 365 | PU28: 458 | PV28: 316 | PW28: 308 | PX28: 321 | PY28: 286 | PZ28: 333 | QA28: 319 | QB28: 334 | QC28: 461 | QD28: 436 | QE28: 427 | QF28: 408 | QG28: 428 | QH28: 296 | QI28: 322 | QJ28: 320 | QK28: 312 | QL28: 322 | QM28: 273 | QN28: 281 | QO28: 314 | QP28: 301 | QQ28: 299 | QR28: 352 | QS28: 360 | QT28: 315 | QU28: 349 | QV28: 392 | QW28: 356 | QX28: 378 | QY28: 361 | QZ28: 334 | RA28: 366 | RB28: 359 | RC28: 371 | RD28: 372 | RE28: 368 | RF28: 398 | RG28: 392 | RH28: 332 | RI28: 371 | RJ28: 337 | RK28: 349 | RL28: 468 | RM28: 554 | RN28: 531 | RO28: 550 | RP28: 518 | RQ28: 482 | RR28: 445 | RS28: 441 | RT28: 545 | RU28: 547 | RV28: 523 | RW28: 462 | RX28: 502 | RY28: 451 | RZ28: 445 | SA28: 415 | SB28: 432 | SC28: 455 | SD28: 431 | SE28: 475 | SF28: 560 | SG28: 489 | SH28: 546 | SI28: 530 | SJ28: 531 | SK28: 548 | SL28: 516 | SM28: 506 | SN28: 536 | SO28: 525 | SP28: 542 | SQ28: 514 | SR28: 515 | SS28: 578 | ST28: 549 | SU28: 558 | SV28: 529 | SW28: 518 | SX28: 539 | SY28: 519 | SZ28: 604 | TA28: 587 | TB28: 565 | TC28: 605 | TD28: 642 | TE28: 508 | TF28: 503 | TG28: 502 | TH28: 488 | TI28: 465 | TJ28: 481 | TK28: 451 | TL28: 512 | TM28: 598 | TN28: 593 | TO28: 563 | TP28: 573 | TQ28: 578 | TR28: 419 | TS28: 390 | TT28: 403 | TU28: 380 | TV28: 386 | TW28: 362 | TX28: 347 | TY28: 411 | TZ28: 489 | UA28: 473 | UB28: 425 | UC28: 461 | UD28: 429 | UE28: 441 | UF28: 408 | UG28: 503 | UH28: 489 | UI28: 469 | UJ28: 506 | UK28: 428 | UL28: 502 | UM28: 449 | UN28: 503 | UO28: 527 | UP28: 493 | UQ28: 523 | UR28: 475 | US28: 456 | UT28: 502 | UU28: 457 | UV28: 497 | UW28: 468 | UX28: 464 | UY28: 486 | UZ28: 506 | VA28: 513 | VB28: 470 | VC28: 519 | VD28: 442 | VE28: 467 | VF28: 467 | VG28: 471 | VH28: 526
H29: 03819 | P29: 1 | Q29: =IF(P29=0,"",COUNTIF($P$2:P29,">0")) -> 28 | R29: Barishal - Barishal Sadar | T29: 27 | U29: Barishal - Banari Para | V29: Jhalokati - Nalchhity | W29: 66 | X29: 65 | Y29: 65 | Z29: 34 | AA29: 102 | AB29: 89 | AC29: 63 | AD29: 37 | AE29: 16 | AF29: 47 | AG29: 57 | AH29: 20 | AI29: 28 | AJ29: 21 | AK29: 25 | AL29: 51 | AM29: 41 | AN29: 54 | AO29: 78 | AP29: 118 | AQ29: 72 | AR29: 100 | AS29: 128 | AT29: 100 | AU29: 12 | AV29: 50 | AW29: 0 | AX29: 25 | AY29: 51 | AZ29: 68 | BA29: 32 | BB29: 68 | BC29: 85 | BD29: 42 | BE29: 40 | BF29: 39 | BG29: 33 | BH29: 72 | BI29: 83 | BJ29: 44 | BK29: 56 | BL29: 54 | BM29: 386 | BN29: 323 | BO29: 355 | BP29: 393 | BQ29: 341 | BR29: 357 | BS29: 386 | BT29: 312 | BU29: 239 | BV29: 297 | BW29: 294 | BX29: 269 | BY29: 297 | BZ29: 302 | CA29: 298 | CB29: 282 | CC29: 134 | CD29: 117 | CE29: 105 | CF29: 131 | CG29: 134 | CH29: 244 | CI29: 271 | CJ29: 246 | CK29: 293 | CL29: 253 | CM29: 263 | CN29: 251 | CO29: 283 | CP29: 253 | CQ29: 252 | CR29: 251 | CS29: 255 | CT29: 219 | CU29: 253 | CV29: 256 | CW29: 245 | CX29: 252 | CY29: 248 | CZ29: 310 | DA29: 194 | DB29: 244 | DC29: 251 | DD29: 274 | DE29: 265 | DF29: 277 | DG29: 267 | DH29: 256 | DI29: 243 | DJ29: 302 | DK29: 215 | DL29: 152 | DM29: 293 | DN29: 284 | DO29: 258 | DP29: 301 | DQ29: 280 | DR29: 274 | DS29: 252 | DT29: 277 | DU29: 161 | DV29: 142 | DW29: 228 | DX29: 284 | DY29: 158 | DZ29: 244 | EA29: 171 | EB29: 343 | EC29: 394 | ED29: 328 | EE29: 359 | EF29: 317 | EG29: 385 | EH29: 466 | EI29: 415 | EJ29: 173 | EK29: 148 | EL29: 161 | EM29: 177 | EN29: 184 | EO29: 162 | EP29: 238 | EQ29: 265 | ER29: 268 | ES29: 260 | ET29: 227 | EU29: 249 | EV29: 219 | EW29: 142 | EX29: 94 | EY29: 106 | EZ29: 113 | FA29: 117 | FB29: 123 | FC29: 125 | FD29: 151 | FE29: 148 | FF29: 138 | FG29: 135 | FH29: 146 | FI29: 136 | FJ29: 317 | FK29: 245 | FL29: 299 | FM29: 298 | FN29: 306 | FO29: 200 | FP29: 197 | FQ29: 188 | FR29: 209 | FS29: 200 | FT29: 203 | FU29: 189 | FV29: 213 | FW29: 203 | FX29: 193 | FY29: 230 | FZ29: 196 | GA29: 190 | GB29: 204 | GC29: 200 | GD29: 187 | GE29: 201 | GF29: 196 | GG29: 193 | GH29: 201 | GI29: 193 | GJ29: 197 | GK29: 192 | GL29: 199 | GM29: 205 | GN29: 185 | GO29: 188 | GP29: 189 | GQ29: 207 | GR29: 200 | GS29: 193 | GT29: 191 | GU29: 191 | GV29: 194 | GW29: 208 | GX29: 194 | GY29: 194 | GZ29: 195 | HA29: 192 | HB29: 206 | HC29: 209 | HD29: 193 | HE29: 204 | HF29: 194 | HG29: 188 | HH29: 200 | HI29: 189 | HJ29: 197 | HK29: 197 | HL29: 214 | HM29: 212 | HN29: 211 | HO29: 216 | HP29: 190 | HQ29: 145 | HR29: 114 | HS29: 160 | HT29: 149 | HU29: 146 | HV29: 168 | HW29: 130 | HX29: 132 | HY29: 149 | HZ29: 226 | IA29: 246 | IB29: 243 | IC29: 248 | ID29: 255 | IE29: 213 | IF29: 105 | IG29: 137 | IH29: 80 | II29: 132 | IJ29: 102 | IK29: 549 | IL29: 281 | IM29: 264 | IN29: 292 | IO29: 514 | IP29: 307 | IQ29: 274 | IR29: 296 | IS29: 276 | IT29: 531 | IU29: 295 | IV29: 282 | IW29: 328 | IX29: 70 | IY29: 80 | IZ29: 92 | JA29: 109 | JB29: 205 | JC29: 198 | JD29: 220 | JE29: 238 | JF29: 250 | JG29: 188 | JH29: 206 | JI29: 217 | JJ29: 164 | JK29: 188 | JL29: 197 | JM29: 162 | JN29: 183 | JO29: 217 | JP29: 209 | JQ29: 208 | JR29: 197 | JS29: 208 | JT29: 257 | JU29: 256 | JV29: 231 | JW29: 231 | JX29: 250 | JY29: 237 | JZ29: 183 | KA29: 170 | KB29: 188 | KC29: 197 | KD29: 173 | KE29: 112 | KF29: 110 | KG29: 104 | KH29: 112 | KI29: 99 | KJ29: 114 | KK29: 293 | KL29: 310 | KM29: 273 | KN29: 342 | KO29: 313 | KP29: 325 | KQ29: 292 | KR29: 329 | KS29: 260 | KT29: 221 | KU29: 278 | KV29: 283 | KW29: 70 | KX29: 82 | KY29: 94 | KZ29: 66 | LA29: 122 | LB29: 106 | LC29: 67 | LD29: 85 | LE29: 78 | LF29: 261 | LG29: 259 | LH29: 268 | LI29: 216 | LJ29: 133 | LK29: 157 | LL29: 187 | LM29: 173 | LN29: 137 | LO29: 171 | LP29: 151 | LQ29: 190 | LR29: 242 | LS29: 221 | LT29: 190 | LU29: 205 | LV29: 203 | LW29: 239 | LX29: 102 | LY29: 108 | LZ29: 115 | MA29: 106 | MB29: 117 | MC29: 101 | MD29: 110 | ME29: 122 | MF29: 102 | MG29: 193 | MH29: 102 | MI29: 162 | MJ29: 127 | MK29: 96 | ML29: 105 | MM29: 129 | MN29: 272 | MO29: 270 | MP29: 211 | MQ29: 221 | MR29: 236 | MS29: 251 | MT29: 194 | MU29: 175 | MV29: 216 | MW29: 200 | MX29: 283 | MY29: 301 | MZ29: 286 | NA29: 132 | NB29: 136 | NC29: 153 | ND29: 181 | NE29: 176 | NF29: 168 | NG29: 191 | NH29: 155 | NI29: 206 | NJ29: 139 | NK29: 410 | NL29: 407 | NM29: 397 | NN29: 368 | NO29: 394 | NP29: 385 | NQ29: 361 | NR29: 272 | NS29: 358 | NT29: 309 | NU29: 284 | NV29: 329 | NW29: 360 | NX29: 334 | NY29: 319 | NZ29: 328 | OA29: 319 | OB29: 340 | OC29: 312 | OD29: 304 | OE29: 368 | OF29: 368 | OG29: 366 | OH29: 403 | OI29: 382 | OJ29: 334 | OK29: 379 | OL29: 379 | OM29: 350 | ON29: 343 | OO29: 405 | OP29: 360 | OQ29: 380 | OR29: 386 | OS29: 404 | OT29: 376 | OU29: 380 | OV29: 359 | OW29: 382 | OX29: 393 | OY29: 388 | OZ29: 354 | PA29: 405 | PB29: 379 | PC29: 366 | PD29: 398 | PE29: 415 | PF29: 403 | PG29: 418 | PH29: 417 | PI29: 408 | PJ29: 429 | PK29: 345 | PL29: 393 | PM29: 457 | PN29: 402 | PO29: 422 | PP29: 370 | PQ29: 420 | PR29: 440 | PS29: 458 | PT29: 364 | PU29: 456 | PV29: 314 | PW29: 306 | PX29: 319 | PY29: 285 | PZ29: 331 | QA29: 317 | QB29: 333 | QC29: 459 | QD29: 434 | QE29: 425 | QF29: 406 | QG29: 426 | QH29: 256 | QI29: 282 | QJ29: 280 | QK29: 272 | QL29: 282 | QM29: 271 | QN29: 241 | QO29: 274 | QP29: 261 | QQ29: 297 | QR29: 350 | QS29: 358 | QT29: 313 | QU29: 347 | QV29: 390 | QW29: 354 | QX29: 376 | QY29: 360 | QZ29: 332 | RA29: 364 | RB29: 358 | RC29: 369 | RD29: 327 | RE29: 324 | RF29: 354 | RG29: 347 | RH29: 292 | RI29: 326 | RJ29: 336 | RK29: 308 | RL29: 467 | RM29: 552 | RN29: 530 | RO29: 548 | RP29: 516 | RQ29: 480 | RR29: 443 | RS29: 439 | RT29: 543 | RU29: 545 | RV29: 521 | RW29: 461 | RX29: 500 | RY29: 449 | RZ29: 444 | SA29: 413 | SB29: 430 | SC29: 453 | SD29: 429 | SE29: 473 | SF29: 558 | SG29: 444 | SH29: 544 | SI29: 528 | SJ29: 530 | SK29: 546 | SL29: 514 | SM29: 461 | SN29: 534 | SO29: 523 | SP29: 540 | SQ29: 512 | SR29: 513 | SS29: 576 | ST29: 548 | SU29: 556 | SV29: 527 | SW29: 516 | SX29: 537 | SY29: 517 | SZ29: 602 | TA29: 585 | TB29: 563 | TC29: 603 | TD29: 640 | TE29: 506 | TF29: 501 | TG29: 501 | TH29: 486 | TI29: 463 | TJ29: 479 | TK29: 449 | TL29: 510 | TM29: 597 | TN29: 591 | TO29: 561 | TP29: 572 | TQ29: 576 | TR29: 375 | TS29: 345 | TT29: 358 | TU29: 335 | TV29: 341 | TW29: 317 | TX29: 302 | TY29: 366 | TZ29: 444 | UA29: 428 | UB29: 381 | UC29: 417 | UD29: 384 | UE29: 396 | UF29: 364 | UG29: 458 | UH29: 444 | UI29: 424 | UJ29: 461 | UK29: 384 | UL29: 457 | UM29: 405 | UN29: 458 | UO29: 482 | UP29: 448 | UQ29: 478 | UR29: 431 | US29: 411 | UT29: 457 | UU29: 413 | UV29: 452 | UW29: 423 | UX29: 419 | UY29: 441 | UZ29: 462 | VA29: 468 | VB29: 425 | VC29: 474 | VD29: 397 | VE29: 422 | VF29: 422 | VG29: 427 | VH29: 481
A30: =IFERROR(IF(J2=0,0,"অনুমোদনের নথি নং ও তারিখ -"),"") -> 0 | H30: 05539 | P30: 1 | Q30: =IF(P30=0,"",COUNTIF($P$2:P30,">0")) -> 29 | R30: Barishal - Bondar Thana, Barishal | T30: 28 | U30: Barishal - Barishal Sadar | V30: Jhalokati - Rajapur | W30: 98 | X30: 41 | Y30: 79 | Z30: 28 | AA30: 78 | AB30: 120 | AC30: 76 | AD30: 50 | AE30: 48 | AF30: 32 | AG30: 69 | AH30: 33 | AI30: 40 | AJ30: 34 | AK30: 37 | AL30: 63 | AM30: 53 | AN30: 73 | AO30: 97 | AP30: 137 | AQ30: 91 | AR30: 119 | AS30: 147 | AT30: 119 | AU30: 14 | AV30: 26 | AW30: 25 | AX30: 0 | AY30: 83 | AZ30: 100 | BA30: 63 | BB30: 99 | BC30: 117 | BD30: 38 | BE30: 72 | BF30: 14 | BG30: 9 | BH30: 48 | BI30: 59 | BJ30: 20 | BK30: 30 | BL30: 30 | BM30: 406 | BN30: 342 | BO30: 374 | BP30: 412 | BQ30: 360 | BR30: 376 | BS30: 405 | BT30: 324 | BU30: 251 | BV30: 309 | BW30: 306 | BX30: 282 | BY30: 309 | BZ30: 314 | CA30: 310 | CB30: 294 | CC30: 153 | CD30: 136 | CE30: 118 | CF30: 150 | CG30: 154 | CH30: 263 | CI30: 290 | CJ30: 266 | CK30: 312 | CL30: 273 | CM30: 282 | CN30: 271 | CO30: 302 | CP30: 272 | CQ30: 272 | CR30: 270 | CS30: 274 | CT30: 238 | CU30: 272 | CV30: 276 | CW30: 265 | CX30: 272 | CY30: 267 | CZ30: 329 | DA30: 213 | DB30: 264 | DC30: 271 | DD30: 293 | DE30: 284 | DF30: 296 | DG30: 286 | DH30: 275 | DI30: 262 | DJ30: 321 | DK30: 234 | DL30: 171 | DM30: 305 | DN30: 296 | DO30: 271 | DP30: 314 | DQ30: 292 | DR30: 305 | DS30: 265 | DT30: 289 | DU30: 180 | DV30: 161 | DW30: 241 | DX30: 296 | DY30: 177 | DZ30: 257 | EA30: 301 | EB30: 363 | EC30: 414 | ED30: 348 | EE30: 378 | EF30: 336 | EG30: 404 | EH30: 485 | EI30: 434 | EJ30: 193 | EK30: 167 | EL30: 180 | EM30: 196 | EN30: 203 | EO30: 181 | EP30: 257 | EQ30: 284 | ER30: 287 | ES30: 279 | ET30: 246 | EU30: 268 | EV30: 238 | EW30: 161 | EX30: 113 | EY30: 125 | EZ30: 133 | FA30: 136 | FB30: 143 | FC30: 144 | FD30: 170 | FE30: 168 | FF30: 157 | FG30: 154 | FH30: 165 | FI30: 155 | FJ30: 336 | FK30: 265 | FL30: 319 | FM30: 317 | FN30: 325 | FO30: 212 | FP30: 210 | FQ30: 200 | FR30: 221 | FS30: 212 | FT30: 216 | FU30: 201 | FV30: 226 | FW30: 216 | FX30: 206 | FY30: 242 | FZ30: 209 | GA30: 203 | GB30: 217 | GC30: 212 | GD30: 200 | GE30: 213 | GF30: 208 | GG30: 206 | GH30: 213 | GI30: 205 | GJ30: 209 | GK30: 204 | GL30: 211 | GM30: 217 | GN30: 198 | GO30: 200 | GP30: 202 | GQ30: 220 | GR30: 212 | GS30: 206 | GT30: 203 | GU30: 203 | GV30: 206 | GW30: 221 | GX30: 206 | GY30: 206 | GZ30: 208 | HA30: 205 | HB30: 218 | HC30: 222 | HD30: 206 | HE30: 216 | HF30: 206 | HG30: 200 | HH30: 212 | HI30: 202 | HJ30: 209 | HK30: 210 | HL30: 226 | HM30: 224 | HN30: 223 | HO30: 228 | HP30: 202 | HQ30: 119 | HR30: 127 | HS30: 134 | HT30: 162 | HU30: 158 | HV30: 164 | HW30: 142 | HX30: 144 | HY30: 144 | HZ30: 238 | IA30: 258 | IB30: 255 | IC30: 260 | ID30: 267 | IE30: 225 | IF30: 77 | IG30: 111 | IH30: 92 | II30: 129 | IJ30: 61 | IK30: 561 | IL30: 293 | IM30: 277 | IN30: 304 | IO30: 526 | IP30: 320 | IQ30: 286 | IR30: 308 | IS30: 288 | IT30: 544 | IU30: 307 | IV30: 294 | IW30: 341 | IX30: 82 | IY30: 92 | IZ30: 104 | JA30: 122 | JB30: 218 | JC30: 210 | JD30: 233 | JE30: 250 | JF30: 263 | JG30: 201 | JH30: 219 | JI30: 229 | JJ30: 176 | JK30: 200 | JL30: 209 | JM30: 175 | JN30: 196 | JO30: 229 | JP30: 221 | JQ30: 220 | JR30: 209 | JS30: 220 | JT30: 269 | JU30: 269 | JV30: 243 | JW30: 243 | JX30: 262 | JY30: 249 | JZ30: 178 | KA30: 183 | KB30: 201 | KC30: 210 | KD30: 185 | KE30: 125 | KF30: 123 | KG30: 117 | KH30: 125 | KI30: 111 | KJ30: 126 | KK30: 305 | KL30: 323 | KM30: 285 | KN30: 354 | KO30: 325 | KP30: 337 | KQ30: 305 | KR30: 341 | KS30: 272 | KT30: 234 | KU30: 291 | KV30: 296 | KW30: 47 | KX30: 58 | KY30: 70 | KZ30: 42 | LA30: 71 | LB30: 82 | LC30: 42 | LD30: 61 | LE30: 53 | LF30: 232 | LG30: 214 | LH30: 224 | LI30: 192 | LJ30: 109 | LK30: 133 | LL30: 163 | LM30: 149 | LN30: 114 | LO30: 147 | LP30: 128 | LQ30: 166 | LR30: 207 | LS30: 186 | LT30: 166 | LU30: 181 | LV30: 179 | LW30: 204 | LX30: 78 | LY30: 84 | LZ30: 91 | MA30: 82 | MB30: 93 | MC30: 77 | MD30: 86 | ME30: 98 | MF30: 78 | MG30: 169 | MH30: 74 | MI30: 138 | MJ30: 103 | MK30: 72 | ML30: 82 | MM30: 93 | MN30: 284 | MO30: 282 | MP30: 223 | MQ30: 233 | MR30: 249 | MS30: 263 | MT30: 170 | MU30: 149 | MV30: 146 | MW30: 185 | MX30: 247 | MY30: 235 | MZ30: 241 | NA30: 96 | NB30: 110 | NC30: 142 | ND30: 157 | NE30: 152 | NF30: 144 | NG30: 167 | NH30: 132 | NI30: 183 | NJ30: 115 | NK30: 422 | NL30: 419 | NM30: 409 | NN30: 380 | NO30: 406 | NP30: 397 | NQ30: 374 | NR30: 285 | NS30: 370 | NT30: 322 | NU30: 297 | NV30: 342 | NW30: 373 | NX30: 346 | NY30: 332 | NZ30: 340 | OA30: 331 | OB30: 353 | OC30: 324 | OD30: 316 | OE30: 381 | OF30: 380 | OG30: 379 | OH30: 416 | OI30: 395 | OJ30: 347 | OK30: 391 | OL30: 391 | OM30: 362 | ON30: 356 | OO30: 418 | OP30: 372 | OQ30: 392 | OR30: 398 | OS30: 416 | OT30: 389 | OU30: 392 | OV30: 371 | OW30: 394 | OX30: 405 | OY30: 400 | OZ30: 366 | PA30: 417 | PB30: 392 | PC30: 378 | PD30: 411 | PE30: 427 | PF30: 415 | PG30: 431 | PH30: 429 | PI30: 421 | PJ30: 441 | PK30: 358 | PL30: 405 | PM30: 470 | PN30: 414 | PO30: 435 | PP30: 382 | PQ30: 433 | PR30: 452 | PS30: 470 | PT30: 376 | PU30: 469 | PV30: 327 | PW30: 318 | PX30: 332 | PY30: 297 | PZ30: 343 | QA30: 330 | QB30: 345 | QC30: 472 | QD30: 446 | QE30: 437 | QF30: 419 | QG30: 438 | QH30: 268 | QI30: 294 | QJ30: 293 | QK30: 284 | QL30: 294 | QM30: 284 | QN30: 253 | QO30: 286 | QP30: 274 | QQ30: 310 | QR30: 363 | QS30: 370 | QT30: 325 | QU30: 359 | QV30: 403 | QW30: 367 | QX30: 389 | QY30: 372 | QZ30: 345 | RA30: 376 | RB30: 370 | RC30: 382 | RD30: 339 | RE30: 336 | RF30: 366 | RG30: 360 | RH30: 304 | RI30: 338 | RJ30: 348 | RK30: 321 | RL30: 479 | RM30: 565 | RN30: 542 | RO30: 560 | RP30: 528 | RQ30: 492 | RR30: 456 | RS30: 451 | RT30: 555 | RU30: 557 | RV30: 533 | RW30: 473 | RX30: 513 | RY30: 462 | RZ30: 456 | SA30: 426 | SB30: 443 | SC30: 466 | SD30: 441 | SE30: 485 | SF30: 571 | SG30: 456 | SH30: 556 | SI30: 540 | SJ30: 542 | SK30: 558 | SL30: 526 | SM30: 473 | SN30: 546 | SO30: 536 | SP30: 552 | SQ30: 525 | SR30: 526 | SS30: 588 | ST30: 560 | SU30: 568 | SV30: 539 | SW30: 529 | SX30: 550 | SY30: 529 | SZ30: 614 | TA30: 598 | TB30: 575 | TC30: 615 | TD30: 652 | TE30: 518 | TF30: 514 | TG30: 513 | TH30: 499 | TI30: 475 | TJ30: 491 | TK30: 461 | TL30: 523 | TM30: 609 | TN30: 603 | TO30: 573 | TP30: 584 | TQ30: 588 | TR30: 387 | TS30: 358 | TT30: 371 | TU30: 347 | TV30: 353 | TW30: 329 | TX30: 314 | TY30: 378 | TZ30: 456 | UA30: 441 | UB30: 393 | UC30: 429 | UD30: 396 | UE30: 409 | UF30: 376 | UG30: 471 | UH30: 456 | UI30: 437 | UJ30: 474 | UK30: 396 | UL30: 469 | UM30: 417 | UN30: 471 | UO30: 495 | UP30: 461 | UQ30: 490 | UR30: 443 | US30: 423 | UT30: 469 | UU30: 425 | UV30: 465 | UW30: 435 | UX30: 431 | UY30: 453 | UZ30: 474 | VA30: 480 | VB30: 437 | VC30: 487 | VD30: 409 | VE30: 444 | VF30: 434 | VG30: 439 | VH30: 494
H31: 06971 | P31: 1 | Q31: =IF(P31=0,"",COUNTIF($P$2:P31,">0")) -> 30 | R31: Barishal - Gaurnadi | T31: 29 | U31: Barishal - Bondar Thana, Barishal | V31: Patuakhali - Bauphal | W31: 65 | X31: 79 | Y31: 80 | Z31: 63 | AA31: 108 | AB31: 88 | AC31: 99 | AD31: 73 | AE31: 35 | AF31: 83 | AG31: 93 | AH31: 56 | AI31: 64 | AJ31: 57 | AK31: 61 | AL31: 87 | AM31: 77 | AN31: 90 | AO31: 114 | AP31: 102 | AQ31: 108 | AR31: 116 | AS31: 164 | AT31: 136 | AU31: 70 | AV31: 68 | AW31: 51 | AX31: 83 | AY31: 0 | AZ31: 17 | BA31: 20 | BB31: 44 | BC31: 84 | BD31: 49 | BE31: 39 | BF31: 97 | BG31: 92 | BH31: 131 | BI31: 150 | BJ31: 103 | BK31: 92 | BL31: 113 | BM31: 422 | BN31: 359 | BO31: 391 | BP31: 429 | BQ31: 377 | BR31: 393 | BS31: 422 | BT31: 348 | BU31: 275 | BV31: 333 | BW31: 330 | BX31: 306 | BY31: 333 | BZ31: 338 | CA31: 334 | CB31: 318 | CC31: 170 | CD31: 153 | CE31: 141 | CF31: 167 | CG31: 170 | CH31: 280 | CI31: 307 | CJ31: 282 | CK31: 329 | CL31: 290 | CM31: 299 | CN31: 288 | CO31: 319 | CP31: 289 | CQ31: 289 | CR31: 287 | CS31: 291 | CT31: 255 | CU31: 289 | CV31: 293 | CW31: 281 | CX31: 289 | CY31: 284 | CZ31: 346 | DA31: 230 | DB31: 280 | DC31: 287 | DD31: 310 | DE31: 301 | DF31: 313 | DG31: 303 | DH31: 292 | DI31: 279 | DJ31: 338 | DK31: 251 | DL31: 188 | DM31: 329 | DN31: 320 | DO31: 295 | DP31: 337 | DQ31: 316 | DR31: 310 | DS31: 288 | DT31: 313 | DU31: 197 | DV31: 178 | DW31: 264 | DX31: 320 | DY31: 194 | DZ31: 280 | EA31: 207 | EB31: 380 | EC31: 431 | ED31: 364 | EE31: 395 | EF31: 353 | EG31: 421 | EH31: 502 | EI31: 451 | EJ31: 209 | EK31: 184 | EL31: 197 | EM31: 213 | EN31: 220 | EO31: 198 | EP31: 274 | EQ31: 301 | ER31: 304 | ES31: 296 | ET31: 263 | EU31: 285 | EV31: 255 | EW31: 178 | EX31: 130 | EY31: 142 | EZ31: 150 | FA31: 153 | FB31: 159 | FC31: 161 | FD31: 187 | FE31: 184 | FF31: 174 | FG31: 171 | FH31: 182 | FI31: 172 | FJ31: 353 | FK31: 281 | FL31: 335 | FM31: 334 | FN31: 342 | FO31: 236 | FP31: 234 | FQ31: 224 | FR31: 245 | FS31: 236 | FT31: 239 | FU31: 225 | FV31: 249 | FW31: 239 | FX31: 230 | FY31: 266 | FZ31: 233 | GA31: 226 | GB31: 241 | GC31: 236 | GD31: 223 | GE31: 237 | GF31: 232 | GG31: 230 | GH31: 237 | GI31: 229 | GJ31: 233 | GK31: 228 | GL31: 235 | GM31: 241 | GN31: 221 | GO31: 224 | GP31: 225 | GQ31: 243 | GR31: 236 | GS31: 230 | GT31: 227 | GU31: 227 | GV31: 230 | GW31: 244 | GX31: 230 | GY31: 230 | GZ31: 231 | HA31: 228 | HB31: 242 | HC31: 245 | HD31: 229 | HE31: 240 | HF31: 230 | HG31: 224 | HH31: 236 | HI31: 225 | HJ31: 233 | HK31: 233 | HL31: 250 | HM31: 248 | HN31: 247 | HO31: 252 | HP31: 226 | HQ31: 181 | HR31: 151 | HS31: 196 | HT31: 186 | HU31: 182 | HV31: 204 | HW31: 166 | HX31: 168 | HY31: 185 | HZ31: 262 | IA31: 282 | IB31: 279 | IC31: 284 | ID31: 291 | IE31: 249 | IF31: 141 | IG31: 173 | IH31: 116 | II31: 168 | IJ31: 138 | IK31: 585 | IL31: 317 | IM31: 300 | IN31: 328 | IO31: 550 | IP31: 343 | IQ31: 310 | IR31: 332 | IS31: 312 | IT31: 567 | IU31: 331 | IV31: 318 | IW31: 364 | IX31: 106 | IY31: 116 | IZ31: 128 | JA31: 145 | JB31: 242 | JC31: 234 | JD31: 256 | JE31: 274 | JF31: 287 | JG31: 225 | JH31: 242 | JI31: 253 | JJ31: 200 | JK31: 224 | JL31: 233 | JM31: 198 | JN31: 219 | JO31: 253 | JP31: 245 | JQ31: 244 | JR31: 233 | JS31: 244 | JT31: 293 | JU31: 292 | JV31: 267 | JW31: 267 | JX31: 286 | JY31: 273 | JZ31: 219 | KA31: 206 | KB31: 225 | KC31: 234 | KD31: 209 | KE31: 149 | KF31: 146 | KG31: 140 | KH31: 148 | KI31: 135 | KJ31: 150 | KK31: 329 | KL31: 346 | KM31: 309 | KN31: 378 | KO31: 349 | KP31: 361 | KQ31: 329 | KR31: 365 | KS31: 296 | KT31: 258 | KU31: 315 | KV31: 319 | KW31: 129 | KX31: 140 | KY31: 170 | KZ31: 124 | LA31: 158 | LB31: 164 | LC31: 126 | LD31: 143 | LE31: 136 | LF31: 298 | LG31: 295 | LH31: 305 | LI31: 307 | LJ31: 192 | LK31: 216 | LL31: 245 | LM31: 231 | LN31: 196 | LO31: 230 | LP31: 210 | LQ31: 248 | LR31: 278 | LS31: 257 | LT31: 249 | LU31: 285 | LV31: 261 | LW31: 275 | LX31: 160 | LY31: 166 | LZ31: 173 | MA31: 165 | MB31: 176 | MC31: 159 | MD31: 168 | ME31: 181 | MF31: 160 | MG31: 252 | MH31: 160 | MI31: 220 | MJ31: 186 | MK31: 154 | ML31: 164 | MM31: 165 | MN31: 308 | MO31: 306 | MP31: 247 | MQ31: 257 | MR31: 273 | MS31: 287 | MT31: 230 | MU31: 211 | MV31: 253 | MW31: 236 | MX31: 319 | MY31: 337 | MZ31: 322 | NA31: 168 | NB31: 172 | NC31: 189 | ND31: 239 | NE31: 235 | NF31: 226 | NG31: 249 | NH31: 214 | NI31: 265 | NJ31: 198 | NK31: 446 | NL31: 443 | NM31: 433 | NN31: 404 | NO31: 430 | NP31: 421 | NQ31: 397 | NR31: 308 | NS31: 394 | NT31: 345 | NU31: 320 | NV31: 365 | NW31: 396 | NX31: 370 | NY31: 355 | NZ31: 364 | OA31: 355 | OB31: 376 | OC31: 348 | OD31: 340 | OE31: 404 | OF31: 404 | OG31: 402 | OH31: 439 | OI31: 418 | OJ31: 370 | OK31: 415 | OL31: 415 | OM31: 386 | ON31: 379 | OO31: 441 | OP31: 396 | OQ31: 416 | OR31: 422 | OS31: 440 | OT31: 413 | OU31: 416 | OV31: 395 | OW31: 418 | OX31: 429 | OY31: 424 | OZ31: 390 | PA31: 441 | PB31: 416 | PC31: 402 | PD31: 434 | PE31: 451 | PF31: 439 | PG31: 454 | PH31: 453 | PI31: 444 | PJ31: 465 | PK31: 381 | PL31: 429 | PM31: 494 | PN31: 438 | PO31: 458 | PP31: 406 | PQ31: 457 | PR31: 476 | PS31: 494 | PT31: 400 | PU31: 492 | PV31: 350 | PW31: 342 | PX31: 355 | PY31: 321 | PZ31: 367 | QA31: 353 | QB31: 369 | QC31: 495 | QD31: 470 | QE31: 461 | QF31: 442 | QG31: 462 | QH31: 292 | QI31: 318 | QJ31: 316 | QK31: 308 | QL31: 318 | QM31: 307 | QN31: 277 | QO31: 310 | QP31: 297 | QQ31: 333 | QR31: 386 | QS31: 394 | QT31: 349 | QU31: 383 | QV31: 426 | QW31: 390 | QX31: 412 | QY31: 396 | QZ31: 368 | RA31: 400 | RB31: 394 | RC31: 405 | RD31: 363 | RE31: 360 | RF31: 390 | RG31: 383 | RH31: 328 | RI31: 362 | RJ31: 372 | RK31: 344 | RL31: 503 | RM31: 588 | RN31: 566 | RO31: 584 | RP31: 552 | RQ31: 516 | RR31: 480 | RS31: 475 | RT31: 579 | RU31: 581 | RV31: 557 | RW31: 497 | RX31: 536 | RY31: 485 | RZ31: 480 | SA31: 450 | SB31: 466 | SC31: 489 | SD31: 465 | SE31: 509 | SF31: 594 | SG31: 480 | SH31: 580 | SI31: 564 | SJ31: 566 | SK31: 582 | SL31: 550 | SM31: 497 | SN31: 570 | SO31: 559 | SP31: 576 | SQ31: 548 | SR31: 549 | SS31: 612 | ST31: 584 | SU31: 592 | SV31: 563 | SW31: 553 | SX31: 573 | SY31: 553 | SZ31: 638 | TA31: 621 | TB31: 599 | TC31: 639 | TD31: 676 | TE31: 542 | TF31: 537 | TG31: 537 | TH31: 522 | TI31: 499 | TJ31: 515 | TK31: 485 | TL31: 546 | TM31: 633 | TN31: 627 | TO31: 597 | TP31: 608 | TQ31: 612 | TR31: 411 | TS31: 381 | TT31: 395 | TU31: 371 | TV31: 377 | TW31: 353 | TX31: 338 | TY31: 402 | TZ31: 480 | UA31: 464 | UB31: 417 | UC31: 453 | UD31: 420 | UE31: 433 | UF31: 400 | UG31: 494 | UH31: 480 | UI31: 461 | UJ31: 497 | UK31: 420 | UL31: 493 | UM31: 441 | UN31: 495 | UO31: 518 | UP31: 484 | UQ31: 514 | UR31: 467 | US31: 447 | UT31: 493 | UU31: 449 | UV31: 488 | UW31: 459 | UX31: 455 | UY31: 477 | UZ31: 498 | VA31: 504 | VB31: 461 | VC31: 510 | VD31: 433 | VE31: 458 | VF31: 458 | VG31: 463 | VH31: 517
A32: =IFERROR(IF(OR(E13="বিমান",E14="বিমান",E15="বিমান",E16="বিমান",E17="বিমান",E18="বিমান"),"** বিলের সাথে বিমানের বোর্ডিং পাস সংযোজন করুন",0),"") -> 0 | H32: 03218 | P32: 1 | Q32: =IF(P32=0,"",COUNTIF($P$2:P32,">0")) -> 31 | R32: Barishal - Kawnia Thana | T32: 30 | U32: Barishal - Gaurnadi | V32: Patuakhali - Dashmina | W32: 62 | X32: 95 | Y32: 77 | Z32: 80 | AA32: 104 | AB32: 84 | AC32: 116 | AD32: 90 | AE32: 52 | AF32: 99 | AG32: 109 | AH32: 73 | AI32: 81 | AJ32: 74 | AK32: 77 | AL32: 104 | AM32: 93 | AN32: 107 | AO32: 131 | AP32: 85 | AQ32: 124 | AR32: 99 | AS32: 142 | AT32: 120 | AU32: 87 | AV32: 85 | AW32: 68 | AX32: 100 | AY32: 17 | AZ32: 0 | BA32: 37 | BB32: 27 | BC32: 81 | BD32: 65 | BE32: 56 | BF32: 114 | BG32: 108 | BH32: 108 | BI32: 167 | BJ32: 119 | BK32: 108 | BL32: 129 | BM32: 439 | BN32: 376 | BO32: 407 | BP32: 446 | BQ32: 394 | BR32: 410 | BS32: 439 | BT32: 365 | BU32: 291 | BV32: 350 | BW32: 346 | BX32: 322 | BY32: 350 | BZ32: 354 | CA32: 351 | CB32: 335 | CC32: 186 | CD32: 169 | CE32: 158 | CF32: 183 | CG32: 187 | CH32: 297 | CI32: 323 | CJ32: 299 | CK32: 346 | CL32: 306 | CM32: 315 | CN32: 304 | CO32: 335 | CP32: 306 | CQ32: 305 | CR32: 303 | CS32: 308 | CT32: 272 | CU32: 305 | CV32: 309 | CW32: 298 | CX32: 305 | CY32: 300 | CZ32: 362 | DA32: 246 | DB32: 297 | DC32: 304 | DD32: 327 | DE32: 317 | DF32: 329 | DG32: 320 | DH32: 309 | DI32: 295 | DJ32: 355 | DK32: 268 | DL32: 204 | DM32: 345 | DN32: 336 | DO32: 311 | DP32: 354 | DQ32: 332 | DR32: 326 | DS32: 305 | DT32: 330 | DU32: 213 | DV32: 195 | DW32: 281 | DX32: 336 | DY32: 211 | DZ32: 297 | EA32: 223 | EB32: 396 | EC32: 447 | ED32: 381 | EE32: 412 | EF32: 370 | EG32: 437 | EH32: 519 | EI32: 468 | EJ32: 226 | EK32: 201 | EL32: 213 | EM32: 229 | EN32: 237 | EO32: 214 | EP32: 290 | EQ32: 318 | ER32: 320 | ES32: 313 | ET32: 279 | EU32: 302 | EV32: 271 | EW32: 195 | EX32: 147 | EY32: 158 | EZ32: 166 | FA32: 169 | FB32: 176 | FC32: 178 | FD32: 204 | FE32: 201 | FF32: 191 | FG32: 188 | FH32: 198 | FI32: 188 | FJ32: 370 | FK32: 298 | FL32: 352 | FM32: 351 | FN32: 358 | FO32: 253 | FP32: 250 | FQ32: 241 | FR32: 262 | FS32: 252 | FT32: 256 | FU32: 241 | FV32: 266 | FW32: 256 | FX32: 246 | FY32: 282 | FZ32: 249 | GA32: 243 | GB32: 257 | GC32: 253 | GD32: 240 | GE32: 253 | GF32: 249 | GG32: 246 | GH32: 253 | GI32: 246 | GJ32: 249 | GK32: 244 | GL32: 251 | GM32: 257 | GN32: 238 | GO32: 240 | GP32: 242 | GQ32: 260 | GR32: 252 | GS32: 246 | GT32: 244 | GU32: 244 | GV32: 246 | GW32: 261 | GX32: 246 | GY32: 246 | GZ32: 248 | HA32: 245 | HB32: 258 | HC32: 262 | HD32: 246 | HE32: 257 | HF32: 246 | HG32: 240 | HH32: 252 | HI32: 242 | HJ32: 249 | HK32: 250 | HL32: 266 | HM32: 264 | HN32: 264 | HO32: 268 | HP32: 243 | HQ32: 198 | HR32: 167 | HS32: 212 | HT32: 202 | HU32: 198 | HV32: 221 | HW32: 182 | HX32: 184 | HY32: 201 | HZ32: 278 | IA32: 299 | IB32: 295 | IC32: 301 | ID32: 307 | IE32: 266 | IF32: 158 | IG32: 190 | IH32: 133 | II32: 185 | IJ32: 155 | IK32: 601 | IL32: 333 | IM32: 317 | IN32: 345 | IO32: 567 | IP32: 360 | IQ32: 326 | IR32: 349 | IS32: 328 | IT32: 584 | IU32: 347 | IV32: 334 | IW32: 381 | IX32: 123 | IY32: 132 | IZ32: 144 | JA32: 162 | JB32: 258 | JC32: 251 | JD32: 273 | JE32: 291 | JF32: 303 | JG32: 241 | JH32: 259 | JI32: 269 | JJ32: 216 | JK32: 240 | JL32: 249 | JM32: 215 | JN32: 236 | JO32: 269 | JP32: 261 | JQ32: 260 | JR32: 249 | JS32: 261 | JT32: 310 | JU32: 309 | JV32: 284 | JW32: 283 | JX32: 302 | JY32: 289 | JZ32: 236 | KA32: 223 | KB32: 241 | KC32: 250 | KD32: 225 | KE32: 165 | KF32: 163 | KG32: 157 | KH32: 165 | KI32: 152 | KJ32: 167 | KK32: 345 | KL32: 363 | KM32: 325 | KN32: 394 | KO32: 365 | KP32: 377 | KQ32: 345 | KR32: 382 | KS32: 313 | KT32: 274 | KU32: 331 | KV32: 336 | KW32: 145 | KX32: 157 | KY32: 186 | KZ32: 141 | LA32: 174 | LB32: 181 | LC32: 142 | LD32: 160 | LE32: 153 | LF32: 314 | LG32: 311 | LH32: 321 | LI32: 324 | LJ32: 208 | LK32: 232 | LL32: 262 | LM32: 248 | LN32: 212 | LO32: 246 | LP32: 226 | LQ32: 265 | LR32: 295 | LS32: 274 | LT32: 265 | LU32: 302 | LV32: 278 | LW32: 292 | LX32: 177 | LY32: 183 | LZ32: 190 | MA32: 181 | MB32: 192 | MC32: 176 | MD32: 185 | ME32: 197 | MF32: 177 | MG32: 268 | MH32: 177 | MI32: 237 | MJ32: 202 | MK32: 171 | ML32: 181 | MM32: 181 | MN32: 325 | MO32: 322 | MP32: 264 | MQ32: 273 | MR32: 289 | MS32: 303 | MT32: 246 | MU32: 227 | MV32: 269 | MW32: 253 | MX32: 335 | MY32: 353 | MZ32: 339 | NA32: 185 | NB32: 189 | NC32: 206 | ND32: 256 | NE32: 251 | NF32: 243 | NG32: 266 | NH32: 230 | NI32: 281 | NJ32: 214 | NK32: 463 | NL32: 459 | NM32: 450 | NN32: 420 | NO32: 446 | NP32: 437 | NQ32: 414 | NR32: 325 | NS32: 410 | NT32: 362 | NU32: 337 | NV32: 382 | NW32: 413 | NX32: 386 | NY32: 372 | NZ32: 381 | OA32: 371 | OB32: 393 | OC32: 365 | OD32: 356 | OE32: 421 | OF32: 420 | OG32: 419 | OH32: 456 | OI32: 435 | OJ32: 387 | OK32: 432 | OL32: 431 | OM32: 403 | ON32: 396 | OO32: 458 | OP32: 413 | OQ32: 433 | OR32: 438 | OS32: 456 | OT32: 429 | OU32: 432 | OV32: 412 | OW32: 435 | OX32: 445 | OY32: 440 | OZ32: 406 | PA32: 457 | PB32: 432 | PC32: 418 | PD32: 451 | PE32: 467 | PF32: 456 | PG32: 471 | PH32: 470 | PI32: 461 | PJ32: 481 | PK32: 398 | PL32: 445 | PM32: 510 | PN32: 455 | PO32: 475 | PP32: 422 | PQ32: 473 | PR32: 493 | PS32: 510 | PT32: 416 | PU32: 522 | PV32: 367 | PW32: 358 | PX32: 372 | PY32: 337 | PZ32: 383 | QA32: 370 | QB32: 385 | QC32: 512 | QD32: 487 | QE32: 478 | QF32: 459 | QG32: 478 | QH32: 308 | QI32: 334 | QJ32: 333 | QK32: 324 | QL32: 334 | QM32: 324 | QN32: 294 | QO32: 327 | QP32: 314 | QQ32: 350 | QR32: 403 | QS32: 410 | QT32: 366 | QU32: 400 | QV32: 443 | QW32: 407 | QX32: 429 | QY32: 412 | QZ32: 385 | RA32: 416 | RB32: 410 | RC32: 422 | RD32: 380 | RE32: 376 | RF32: 406 | RG32: 400 | RH32: 344 | RI32: 378 | RJ32: 388 | RK32: 361 | RL32: 519 | RM32: 605 | RN32: 582 | RO32: 600 | RP32: 568 | RQ32: 533 | RR32: 496 | RS32: 491 | RT32: 595 | RU32: 598 | RV32: 574 | RW32: 513 | RX32: 553 | RY32: 502 | RZ32: 496 | SA32: 466 | SB32: 483 | SC32: 506 | SD32: 482 | SE32: 526 | SF32: 611 | SG32: 497 | SH32: 596 | SI32: 581 | SJ32: 582 | SK32: 599 | SL32: 567 | SM32: 514 | SN32: 586 | SO32: 576 | SP32: 593 | SQ32: 565 | SR32: 566 | SS32: 628 | ST32: 600 | SU32: 608 | SV32: 579 | SW32: 569 | SX32: 590 | SY32: 570 | SZ32: 655 | TA32: 638 | TB32: 615 | TC32: 656 | TD32: 693 | TE32: 558 | TF32: 554 | TG32: 553 | TH32: 539 | TI32: 516 | TJ32: 531 | TK32: 502 | TL32: 563 | TM32: 649 | TN32: 644 | TO32: 613 | TP32: 624 | TQ32: 629 | TR32: 427 | TS32: 398 | TT32: 411 | TU32: 388 | TV32: 394 | TW32: 369 | TX32: 355 | TY32: 419 | TZ32: 496 | UA32: 481 | UB32: 433 | UC32: 469 | UD32: 437 | UE32: 449 | UF32: 416 | UG32: 511 | UH32: 496 | UI32: 477 | UJ32: 514 | UK32: 436 | UL32: 510 | UM32: 457 | UN32: 511 | UO32: 535 | UP32: 501 | UQ32: 530 | UR32: 483 | US32: 464 | UT32: 509 | UU32: 465 | UV32: 505 | UW32: 476 | UX32: 471 | UY32: 494 | UZ32: 514 | VA32: 521 | VB32: 478 | VC32: 527 | VD32: 450 | VE32: 484 | VF32: 475 | VG32: 479 | VH32: 534
A33: ১। এই মর্মে প্রত্যয়ন করা যাচ্ছে যে, এই বিলে ভ্রমণ ও যাত্রাবিরতী বিশ্ববিদ্যালয়ের স্বার্থে করা হয়েছে। | H33: 03831 | P33: 1 | Q33: =IF(P33=0,"",COUNTIF($P$2:P33,">0")) -> 32 | R33: Barishal - Muladi | T33: 31 | U33: Barishal - Kawnia Thana | V33: Patuakhali - Dumki | W33: 46 | X33: 59 | Y33: 60 | Z33: 43 | AA33: 88 | AB33: 68 | AC33: 79 | AD33: 54 | AE33: 15 | AF33: 63 | AG33: 73 | AH33: 37 | AI33: 44 | AJ33: 38 | AK33: 41 | AL33: 67 | AM33: 57 | AN33: 70 | AO33: 94 | AP33: 107 | AQ33: 88 | AR33: 116 | AS33: 144 | AT33: 116 | AU33: 50 | AV33: 48 | AW33: 32 | AX33: 63 | AY33: 20 | AZ33: 37 | BA33: 0 | BB33: 47 | BC33: 64 | BD33: 29 | BE33: 19 | BF33: 78 | BG33: 72 | BH33: 111 | BI33: 131 | BJ33: 83 | BK33: 72 | BL33: 93 | BM33: 403 | BN33: 339 | BO33: 371 | BP33: 409 | BQ33: 357 | BR33: 373 | BS33: 402 | BT33: 328 | BU33: 255 | BV33: 313 | BW33: 310 | BX33: 286 | BY33: 313 | BZ33: 318 | CA33: 314 | CB33: 298 | CC33: 150 | CD33: 133 | CE33: 122 | CF33: 147 | CG33: 151 | CH33: 260 | CI33: 287 | CJ33: 263 | CK33: 309 | CL33: 270 | CM33: 279 | CN33: 268 | CO33: 299 | CP33: 269 | CQ33: 269 | CR33: 267 | CS33: 272 | CT33: 235 | CU33: 269 | CV33: 273 | CW33: 262 | CX33: 269 | CY33: 264 | CZ33: 326 | DA33: 210 | DB33: 261 | DC33: 268 | DD33: 290 | DE33: 281 | DF33: 293 | DG33: 283 | DH33: 272 | DI33: 259 | DJ33: 318 | DK33: 232 | DL33: 168 | DM33: 309 | DN33: 300 | DO33: 275 | DP33: 318 | DQ33: 296 | DR33: 290 | DS33: 268 | DT33: 293 | DU33: 177 | DV33: 158 | DW33: 245 | DX33: 300 | DY33: 174 | DZ33: 261 | EA33: 187 | EB33: 360 | EC33: 411 | ED33: 345 | EE33: 375 | EF33: 333 | EG33: 401 | EH33: 482 | EI33: 431 | EJ33: 190 | EK33: 164 | EL33: 177 | EM33: 193 | EN33: 200 | EO33: 178 | EP33: 254 | EQ33: 281 | ER33: 284 | ES33: 276 | ET33: 243 | EU33: 265 | EV33: 235 | EW33: 158 | EX33: 110 | EY33: 122 | EZ33: 130 | FA33: 133 | FB33: 140 | FC33: 142 | FD33: 168 | FE33: 165 | FF33: 154 | FG33: 152 | FH33: 162 | FI33: 152 | FJ33: 333 | FK33: 262 | FL33: 316 | FM33: 314 | FN33: 322 | FO33: 216 | FP33: 214 | FQ33: 204 | FR33: 225 | FS33: 216 | FT33: 220 | FU33: 205 | FV33: 229 | FW33: 220 | FX33: 210 | FY33: 246 | FZ33: 213 | GA33: 207 | GB33: 221 | GC33: 216 | GD33: 204 | GE33: 217 | GF33: 212 | GG33: 210 | GH33: 217 | GI33: 209 | GJ33: 213 | GK33: 208 | GL33: 215 | GM33: 221 | GN33: 202 | GO33: 204 | GP33: 206 | GQ33: 223 | GR33: 216 | GS33: 210 | GT33: 207 | GU33: 207 | GV33: 210 | GW33: 225 | GX33: 210 | GY33: 210 | GZ33: 212 | HA33: 209 | HB33: 222 | HC33: 226 | HD33: 210 | HE33: 220 | HF33: 210 | HG33: 204 | HH33: 216 | HI33: 206 | HJ33: 213 | HK33: 214 | HL33: 230 | HM33: 228 | HN33: 227 | HO33: 232 | HP33: 206 | HQ33: 162 | HR33: 131 | HS33: 176 | HT33: 166 | HU33: 162 | HV33: 185 | HW33: 146 | HX33: 148 | HY33: 165 | HZ33: 242 | IA33: 262 | IB33: 259 | IC33: 264 | ID33: 271 | IE33: 229 | IF33: 122 | IG33: 153 | IH33: 96 | II33: 148 | IJ33: 118 | IK33: 565 | IL33: 297 | IM33: 281 | IN33: 308 | IO33: 530 | IP33: 324 | IQ33: 290 | IR33: 312 | IS33: 292 | IT33: 548 | IU33: 311 | IV33: 298 | IW33: 345 | IX33: 86 | IY33: 96 | IZ33: 108 | JA33: 126 | JB33: 222 | JC33: 214 | JD33: 237 | JE33: 254 | JF33: 267 | JG33: 205 | JH33: 223 | JI33: 233 | JJ33: 180 | JK33: 204 | JL33: 213 | JM33: 179 | JN33: 200 | JO33: 233 | JP33: 225 | JQ33: 224 | JR33: 213 | JS33: 224 | JT33: 273 | JU33: 273 | JV33: 247 | JW33: 247 | JX33: 266 | JY33: 253 | JZ33: 199 | KA33: 187 | KB33: 205 | KC33: 214 | KD33: 189 | KE33: 129 | KF33: 126 | KG33: 121 | KH33: 129 | KI33: 115 | KJ33: 130 | KK33: 309 | KL33: 326 | KM33: 289 | KN33: 358 | KO33: 329 | KP33: 341 | KQ33: 309 | KR33: 345 | KS33: 276 | KT33: 238 | KU33: 295 | KV33: 300 | KW33: 109 | KX33: 120 | KY33: 150 | KZ33: 105 | LA33: 138 | LB33: 144 | LC33: 106 | LD33: 123 | LE33: 117 | LF33: 278 | LG33: 275 | LH33: 285 | LI33: 287 | LJ33: 172 | LK33: 196 | LL33: 225 | LM33: 212 | LN33: 176 | LO33: 210 | LP33: 190 | LQ33: 228 | LR33: 259 | LS33: 237 | LT33: 229 | LU33: 265 | LV33: 241 | LW33: 256 | LX33: 141 | LY33: 147 | LZ33: 153 | MA33: 145 | MB33: 156 | MC33: 139 | MD33: 148 | ME33: 161 | MF33: 141 | MG33: 232 | MH33: 141 | MI33: 200 | MJ33: 166 | MK33: 134 | ML33: 144 | MM33: 145 | MN33: 288 | MO33: 286 | MP33: 227 | MQ33: 237 | MR33: 253 | MS33: 267 | MT33: 210 | MU33: 191 | MV33: 233 | MW33: 216 | MX33: 299 | MY33: 317 | MZ33: 302 | NA33: 148 | NB33: 152 | NC33: 169 | ND33: 219 | NE33: 215 | NF33: 206 | NG33: 230 | NH33: 194 | NI33: 245 | NJ33: 178 | NK33: 426 | NL33: 423 | NM33: 413 | NN33: 384 | NO33: 410 | NP33: 401 | NQ33: 377 | NR33: 289 | NS33: 374 | NT33: 326 | NU33: 300 | NV33: 345 | NW33: 376 | NX33: 350 | NY33: 336 | NZ33: 344 | OA33: 335 | OB33: 356 | OC33: 328 | OD33: 320 | OE33: 385 | OF33: 384 | OG33: 383 | OH33: 420 | OI33: 399 | OJ33: 351 | OK33: 395 | OL33: 395 | OM33: 366 | ON33: 360 | OO33: 422 | OP33: 376 | OQ33: 396 | OR33: 402 | OS33: 420 | OT33: 393 | OU33: 396 | OV33: 375 | OW33: 398 | OX33: 409 | OY33: 404 | OZ33: 370 | PA33: 421 | PB33: 396 | PC33: 382 | PD33: 415 | PE33: 431 | PF33: 419 | PG33: 435 | PH33: 433 | PI33: 425 | PJ33: 445 | PK33: 361 | PL33: 409 | PM33: 474 | PN33: 418 | PO33: 439 | PP33: 386 | PQ33: 437 | PR33: 456 | PS33: 474 | PT33: 380 | PU33: 473 | PV33: 330 | PW33: 322 | PX33: 335 | PY33: 301 | PZ33: 347 | QA33: 333 | QB33: 349 | QC33: 476 | QD33: 450 | QE33: 441 | QF33: 423 | QG33: 442 | QH33: 272 | QI33: 298 | QJ33: 297 | QK33: 288 | QL33: 298 | QM33: 288 | QN33: 257 | QO33: 290 | QP33: 278 | QQ33: 314 | QR33: 367 | QS33: 374 | QT33: 329 | QU33: 363 | QV33: 407 | QW33: 371 | QX33: 393 | QY33: 376 | QZ33: 349 | RA33: 380 | RB33: 374 | RC33: 386 | RD33: 343 | RE33: 340 | RF33: 370 | RG33: 364 | RH33: 308 | RI33: 342 | RJ33: 352 | RK33: 325 | RL33: 483 | RM33: 569 | RN33: 546 | RO33: 564 | RP33: 532 | RQ33: 496 | RR33: 460 | RS33: 455 | RT33: 559 | RU33: 561 | RV33: 537 | RW33: 477 | RX33: 517 | RY33: 465 | RZ33: 460 | SA33: 430 | SB33: 446 | SC33: 470 | SD33: 445 | SE33: 489 | SF33: 575 | SG33: 460 | SH33: 560 | SI33: 544 | SJ33: 546 | SK33: 562 | SL33: 530 | SM33: 477 | SN33: 550 | SO33: 540 | SP33: 556 | SQ33: 529 | SR33: 529 | SS33: 592 | ST33: 564 | SU33: 572 | SV33: 543 | SW33: 533 | SX33: 554 | SY33: 533 | SZ33: 618 | TA33: 602 | TB33: 579 | TC33: 619 | TD33: 656 | TE33: 522 | TF33: 518 | TG33: 517 | TH33: 503 | TI33: 479 | TJ33: 495 | TK33: 465 | TL33: 526 | TM33: 613 | TN33: 607 | TO33: 577 | TP33: 588 | TQ33: 592 | TR33: 391 | TS33: 362 | TT33: 375 | TU33: 351 | TV33: 357 | TW33: 333 | TX33: 318 | TY33: 382 | TZ33: 460 | UA33: 445 | UB33: 397 | UC33: 433 | UD33: 400 | UE33: 413 | UF33: 380 | UG33: 474 | UH33: 460 | UI33: 441 | UJ33: 478 | UK33: 400 | UL33: 473 | UM33: 421 | UN33: 475 | UO33: 498 | UP33: 465 | UQ33: 494 | UR33: 447 | US33: 427 | UT33: 473 | UU33: 429 | UV33: 468 | UW33: 439 | UX33: 435 | UY33: 457 | UZ33: 478 | VA33: 484 | VB33: 441 | VC33: 491 | VD33: 413 | VE33: 438 | VF33: 438 | VG33: 443 | VH33: 498
A34: ২। এই বিলে দাবীকৃত অর্থ অন্য কোন বিলে আহরণ করা হয়নি। | H34: 04312 | P34: 1 | Q34: =IF(P34=0,"",COUNTIF($P$2:P34,">0")) -> 33 | R34: Barishal - Wazirpur | T34: 32 | U34: Barishal - Muladi | V34: Patuakhali - Galachipa | W34: 36 | X34: 87 | Y34: 50 | Z34: 49 | AA34: 78 | AB34: 58 | AC34: 115 | AD34: 90 | AE34: 51 | AF34: 99 | AG34: 109 | AH34: 73 | AI34: 80 | AJ34: 74 | AK34: 77 | AL34: 103 | AM34: 93 | AN34: 106 | AO34: 96 | AP34: 61 | AQ34: 124 | AR34: 75 | AS34: 118 | AT34: 96 | AU34: 86 | AV34: 54 | AW34: 68 | AX34: 99 | AY34: 44 | AZ34: 27 | BA34: 47 | BB34: 0 | BC34: 55 | BD34: 43 | BE34: 33 | BF34: 114 | BG34: 108 | BH34: 82 | BI34: 167 | BJ34: 119 | BK34: 108 | BL34: 129 | BM34: 439 | BN34: 375 | BO34: 407 | BP34: 445 | BQ34: 393 | BR34: 409 | BS34: 438 | BT34: 364 | BU34: 291 | BV34: 349 | BW34: 346 | BX34: 322 | BY34: 349 | BZ34: 354 | CA34: 350 | CB34: 334 | CC34: 186 | CD34: 169 | CE34: 158 | CF34: 183 | CG34: 187 | CH34: 296 | CI34: 323 | CJ34: 299 | CK34: 345 | CL34: 306 | CM34: 315 | CN34: 304 | CO34: 335 | CP34: 305 | CQ34: 305 | CR34: 303 | CS34: 307 | CT34: 271 | CU34: 305 | CV34: 309 | CW34: 298 | CX34: 305 | CY34: 300 | CZ34: 362 | DA34: 246 | DB34: 297 | DC34: 304 | DD34: 326 | DE34: 317 | DF34: 329 | DG34: 319 | DH34: 308 | DI34: 295 | DJ34: 354 | DK34: 267 | DL34: 204 | DM34: 345 | DN34: 336 | DO34: 311 | DP34: 354 | DQ34: 332 | DR34: 326 | DS34: 304 | DT34: 329 | DU34: 213 | DV34: 194 | DW34: 281 | DX34: 336 | DY34: 210 | DZ34: 297 | EA34: 223 | EB34: 396 | EC34: 447 | ED34: 381 | EE34: 411 | EF34: 369 | EG34: 437 | EH34: 518 | EI34: 467 | EJ34: 226 | EK34: 200 | EL34: 213 | EM34: 229 | EN34: 236 | EO34: 214 | EP34: 290 | EQ34: 317 | ER34: 320 | ES34: 312 | ET34: 279 | EU34: 301 | EV34: 271 | EW34: 194 | EX34: 146 | EY34: 158 | EZ34: 166 | FA34: 169 | FB34: 176 | FC34: 177 | FD34: 203 | FE34: 201 | FF34: 190 | FG34: 187 | FH34: 198 | FI34: 188 | FJ34: 369 | FK34: 298 | FL34: 352 | FM34: 350 | FN34: 358 | FO34: 252 | FP34: 250 | FQ34: 240 | FR34: 261 | FS34: 252 | FT34: 256 | FU34: 241 | FV34: 265 | FW34: 256 | FX34: 246 | FY34: 282 | FZ34: 249 | GA34: 243 | GB34: 257 | GC34: 252 | GD34: 239 | GE34: 253 | GF34: 248 | GG34: 246 | GH34: 253 | GI34: 245 | GJ34: 249 | GK34: 244 | GL34: 251 | GM34: 257 | GN34: 237 | GO34: 240 | GP34: 242 | GQ34: 259 | GR34: 252 | GS34: 246 | GT34: 243 | GU34: 243 | GV34: 246 | GW34: 260 | GX34: 246 | GY34: 246 | GZ34: 248 | HA34: 244 | HB34: 258 | HC34: 261 | HD34: 246 | HE34: 256 | HF34: 246 | HG34: 240 | HH34: 252 | HI34: 242 | HJ34: 249 | HK34: 249 | HL34: 266 | HM34: 264 | HN34: 263 | HO34: 268 | HP34: 242 | HQ34: 198 | HR34: 167 | HS34: 212 | HT34: 202 | HU34: 198 | HV34: 221 | HW34: 182 | HX34: 184 | HY34: 201 | HZ34: 278 | IA34: 298 | IB34: 295 | IC34: 300 | ID34: 307 | IE34: 265 | IF34: 158 | IG34: 189 | IH34: 132 | II34: 184 | IJ34: 154 | IK34: 601 | IL34: 333 | IM34: 316 | IN34: 344 | IO34: 566 | IP34: 359 | IQ34: 326 | IR34: 348 | IS34: 328 | IT34: 583 | IU34: 347 | IV34: 334 | IW34: 381 | IX34: 122 | IY34: 132 | IZ34: 144 | JA34: 161 | JB34: 258 | JC34: 250 | JD34: 272 | JE34: 290 | JF34: 303 | JG34: 241 | JH34: 258 | JI34: 269 | JJ34: 216 | JK34: 240 | JL34: 249 | JM34: 214 | JN34: 236 | JO34: 269 | JP34: 261 | JQ34: 260 | JR34: 249 | JS34: 260 | JT34: 309 | JU34: 309 | JV34: 283 | JW34: 283 | JX34: 302 | JY34: 289 | JZ34: 235 | KA34: 223 | KB34: 241 | KC34: 250 | KD34: 225 | KE34: 165 | KF34: 162 | KG34: 156 | KH34: 165 | KI34: 151 | KJ34: 166 | KK34: 345 | KL34: 362 | KM34: 325 | KN34: 394 | KO34: 365 | KP34: 377 | KQ34: 345 | KR34: 381 | KS34: 312 | KT34: 274 | KU34: 331 | KV34: 335 | KW34: 145 | KX34: 156 | KY34: 186 | KZ34: 140 | LA34: 174 | LB34: 180 | LC34: 142 | LD34: 159 | LE34: 111 | LF34: 314 | LG34: 311 | LH34: 321 | LI34: 323 | LJ34: 208 | LK34: 232 | LL34: 261 | LM34: 247 | LN34: 212 | LO34: 246 | LP34: 226 | LQ34: 264 | LR34: 295 | LS34: 273 | LT34: 265 | LU34: 301 | LV34: 277 | LW34: 291 | LX34: 177 | LY34: 182 | LZ34: 189 | MA34: 181 | MB34: 192 | MC34: 175 | MD34: 184 | ME34: 197 | MF34: 177 | MG34: 268 | MH34: 177 | MI34: 236 | MJ34: 202 | MK34: 170 | ML34: 180 | MM34: 181 | MN34: 324 | MO34: 322 | MP34: 263 | MQ34: 273 | MR34: 289 | MS34: 303 | MT34: 246 | MU34: 227 | MV34: 269 | MW34: 252 | MX34: 335 | MY34: 353 | MZ34: 338 | NA34: 184 | NB34: 188 | NC34: 205 | ND34: 255 | NE34: 251 | NF34: 242 | NG34: 266 | NH34: 230 | NI34: 281 | NJ34: 214 | NK34: 462 | NL34: 459 | NM34: 449 | NN34: 420 | NO34: 446 | NP34: 437 | NQ34: 413 | NR34: 325 | NS34: 410 | NT34: 362 | NU34: 336 | NV34: 381 | NW34: 412 | NX34: 386 | NY34: 372 | NZ34: 380 | OA34: 371 | OB34: 392 | OC34: 364 | OD34: 356 | OE34: 420 | OF34: 420 | OG34: 419 | OH34: 456 | OI34: 435 | OJ34: 387 | OK34: 431 | OL34: 431 | OM34: 402 | ON34: 396 | OO34: 457 | OP34: 412 | OQ34: 432 | OR34: 438 | OS34: 456 | OT34: 429 | OU34: 432 | OV34: 411 | OW34: 434 | OX34: 445 | OY34: 440 | OZ34: 406 | PA34: 457 | PB34: 432 | PC34: 418 | PD34: 450 | PE34: 467 | PF34: 455 | PG34: 470 | PH34: 469 | PI34: 460 | PJ34: 481 | PK34: 397 | PL34: 445 | PM34: 510 | PN34: 454 | PO34: 475 | PP34: 422 | PQ34: 473 | PR34: 492 | PS34: 510 | PT34: 416 | PU34: 509 | PV34: 366 | PW34: 358 | PX34: 371 | PY34: 337 | PZ34: 383 | QA34: 369 | QB34: 385 | QC34: 512 | QD34: 486 | QE34: 477 | QF34: 459 | QG34: 478 | QH34: 308 | QI34: 334 | QJ34: 333 | QK34: 324 | QL34: 334 | QM34: 323 | QN34: 293 | QO34: 326 | QP34: 314 | QQ34: 350 | QR34: 403 | QS34: 410 | QT34: 365 | QU34: 399 | QV34: 442 | QW34: 407 | QX34: 429 | QY34: 412 | QZ34: 384 | RA34: 416 | RB34: 410 | RC34: 421 | RD34: 379 | RE34: 376 | RF34: 406 | RG34: 400 | RH34: 344 | RI34: 378 | RJ34: 388 | RK34: 361 | RL34: 519 | RM34: 605 | RN34: 582 | RO34: 600 | RP34: 568 | RQ34: 532 | RR34: 496 | RS34: 491 | RT34: 595 | RU34: 597 | RV34: 573 | RW34: 513 | RX34: 553 | RY34: 501 | RZ34: 496 | SA34: 466 | SB34: 482 | SC34: 506 | SD34: 481 | SE34: 525 | SF34: 610 | SG34: 496 | SH34: 596 | SI34: 580 | SJ34: 582 | SK34: 598 | SL34: 566 | SM34: 513 | SN34: 586 | SO34: 576 | SP34: 592 | SQ34: 565 | SR34: 565 | SS34: 628 | ST34: 600 | SU34: 608 | SV34: 579 | SW34: 569 | SX34: 590 | SY34: 569 | SZ34: 654 | TA34: 638 | TB34: 615 | TC34: 655 | TD34: 692 | TE34: 558 | TF34: 554 | TG34: 553 | TH34: 538 | TI34: 515 | TJ34: 531 | TK34: 501 | TL34: 562 | TM34: 649 | TN34: 643 | TO34: 613 | TP34: 624 | TQ34: 628 | TR34: 427 | TS34: 397 | TT34: 411 | TU34: 387 | TV34: 393 | TW34: 369 | TX34: 354 | TY34: 418 | TZ34: 496 | UA34: 480 | UB34: 433 | UC34: 469 | UD34: 436 | UE34: 449 | UF34: 416 | UG34: 510 | UH34: 496 | UI34: 477 | UJ34: 514 | UK34: 436 | UL34: 509 | UM34: 457 | UN34: 511 | UO34: 534 | UP34: 500 | UQ34: 530 | UR34: 483 | US34: 463 | UT34: 509 | UU34: 465 | UV34: 504 | UW34: 475 | UX34: 471 | UY34: 493 | UZ34: 514 | VA34: 520 | VB34: 477 | VC34: 526 | VD34: 449 | VE34: 474 | VF34: 474 | VG34: 479 | VH34: 533
